Workbook

Sheet Inputs
A1: Instructions: | B1: Values in Blue are Unprotected. ALL worksheets are protected (No Password). | Y1: Paid | AA1: 0 | AB1: =10^AA1 -> 1 | AF1: 0 | AJ1: 1 | AN1: Yes
B2: The file is set up for a 10 x 10 triangle, but NO other size. Tail extrapolation of up to 5 years. | Y2: Incurred | AA2: 3 | AB2: =10^AA2 -> 1000 | AC2: (in 000's) | AF2: 1 | AJ2: 2 | AN2: No
B3: Enter basic data and assumptions on this sheet. | AA3: 6 | AB3: =10^AA3 -> 1000000 | AC3: (in Million's) | AF3: 2 | AJ3: 3
B4: Other assumptions, e.g., tail factors, model weights, are entered in the Results - Deterministic sheet. | AA4: 9 | AB4: =10^AA4 -> 1000000000 | AC4: (in Billion's) | AF4: 3 | AJ4: 4
B5: Use Copy and Past Special | Values to import the simulated possible outcomes into the respective "RawSimResults" sheets. | AA5: 12 | AB5: =10^AA5 -> 1000000000000 | AC5: (in Trillion's) | AF5: 4 | AJ5: 5
AF6: 5
A8: Company: | B8: Company Name
A9: LOB / Segment: | B9: LOB Name
A10: Current Year: | B10: 2020
A11: Years in Tail: | B11: 2
A12: Iterations: | B12: 10000
B15: Current Year Cumulative Paid Data (Input)
A16: Year | B16: 12 | C16: 24 | D16: 36 | E16: 48 | F16: 60 | G16: 72 | H16: 84 | I16: 96 | J16: 108 | K16: 120 | L16: 132 | M16: 144 | N16: 156 | O16: 168 | P16: 180
A17: =A18-1 -> 2011
A18: 2012
A19: 2013
A20: 2014
A21: 2015
A22: 2016
A23: 2017
A24: 2018
A25: =A26-1 -> 2019
A26: =CurrentYear -> 2020
B29: Current Year Cumulative Incurred Data (Input)
A30: Year | B30: =B16 -> 12 | C30: =C16 -> 24 | D30: 36 | E30: 48 | F30: 60 | G30: 72 | H30: 84 | I30: 96 | J30: 108 | K30: 120
A31: =A17 -> 2011
A32: =A18 -> 2012
A33: 2013
A34: 2014
A35: 2015
A36: 2016
A37: 2017
A38: 2018
A39: 2019
A40: 2020
B42: 1 | C42: 2 | D42: 3 | E42: 4 | F42: 5 | G42: 6 | H42: 7 | I42: 8 | J42: 9 | K42: 10
B43: Current Year Cumulative Case Reserves
A44: Year | B44: =B16 -> 12 | C44: =C16 -> 24 | D44: 36 | E44: 48 | F44: 60 | G44: 72 | H44: 84 | I44: 96 | J44: 108 | K44: 120
A45: =A17 -> 2011 | B45: =IF(B$42+$M45-1>CurrentYear,"",IF(OR(B17="",B31=""),"",B31-B17)) ->  | M45: 1
A46: =A18 -> 2012 | B46: =IF(B$42+$M46-1>CurrentYear,"",IF(OR(B18="",B32=""),"",B32-B18)) ->  | M46: 2
A47: 2013 | B47: =IF(B$42+$M47-1>CurrentYear,"",IF(OR(B19="",B33=""),"",B33-B19)) ->  | M47: 3
A48: 2014 | B48: =IF(B$42+$M48-1>CurrentYear,"",IF(OR(B20="",B34=""),"",B34-B20)) ->  | M48: 4
A49: 2015 | B49: =IF(B$42+$M49-1>CurrentYear,"",IF(OR(B21="",B35=""),"",B35-B21)) ->  | M49: 5
A50: 2016 | B50: =IF(B$42+$M50-1>CurrentYear,"",IF(OR(B22="",B36=""),"",B36-B22)) ->  | M50: 6
A51: 2017 | B51: =IF(B$42+$M51-1>CurrentYear,"",IF(OR(B23="",B37=""),"",B37-B23)) ->  | M51: 7
A52: 2018 | B52: =IF(B$42+$M52-1>CurrentYear,"",IF(OR(B24="",B38=""),"",B38-B24)) ->  | M52: 8
A53: 2019 | B53: =IF(B$42+$M53-1>CurrentYear,"",IF(OR(B25="",B39=""),"",B39-B25)) ->  | M53: 9
A54: 2020 | B54: =IF(B$42+$M54-1>CurrentYear,"",IF(OR(B26="",B40=""),"",B40-B26)) ->  | M54: 10
B59: Earned | C59: Earned | D59: A Priori
A60: Year | B60: Premium | C60: Exposures | D60: Loss Ratio
A61: =A17 -> 2011
A62: =A18 -> 2012
A63: 2013
A64: 2014
A65: 2015
A66: 2016
A67: 2017
A68: 2018
A69: 2019
A70: 2020
A71: Total / Average | B71: =SUM(PremValues) -> 0 | C71: =SUM(ExpValues) -> 0 | D71: =IFERROR(SUMPRODUCT(LRValues,PremValues)/SUM(PremValues),0) -> 0

Sheet Results - Deterministic
B1: =CompanyName -> Company Name | W1: =CompanyName -> Company Name | AF1: =CompanyName -> Company Name | AW1: =CompanyName -> Company Name | BN1: =CompanyName -> Company Name | CE1: =CompanyName -> Company Name
B2: =LOBName&" -- Paid Data" -> LOB Name -- Paid Data | W2: =LOBName -> LOB Name | AF2: =LOBName&" -- Paid Data" -> LOB Name -- Paid Data | AW2: =LOBName&" -- Paid Data" -> LOB Name -- Paid Data | BN2: =LOBName&" -- Paid Data [Expected Incurred]" -> LOB Name -- Paid Data [Expected Incurred] | CE2: =LOBName&" -- Paid Data" -> LOB Name -- Paid Data
B3: ="Chain Ladder Development as of December 31, "&CurrentYear-1 -> Chain Ladder Development as of December 31, 2019 | R3: Paid Chain Ladder | U3: B-F | X3: Paid CL | Y3: Inc CL | Z3: Management | AA3: Selected | AF3: ="Chain Ladder Expected Cumulative Future Development as of Decmber 31, "&CurrentYear-1 -> Chain Ladder Expected Cumulative Future Development as of Decmber 31, 2019 | AW3: ="Chain Ladder Expected Cumulative Future Development as of Decmber 31, "&CurrentYear-1 -> Chain Ladder Expected Cumulative Future Development as of Decmber 31, 2019 | BN3: ="Chain Ladder Expected Cumulative Future Development as of Decmber 31, "&CurrentYear-1 -> Chain Ladder Expected Cumulative Future Development as of Decmber 31, 2019 | CE3: ="Weighted Expected Incremental Future Development as of Decmber 31, "&CurrentYear-1 -> Weighted Expected Incremental Future Development as of Decmber 31, 2019
B4: AY | C4: 12 | D4: 24 | E4: 36 | F4: 48 | G4: 60 | H4: 72 | I4: 84 | J4: 96 | K4: 108 | L4: 120 | M4: 132 | N4: 144 | O4: 156 | P4: 168 | R4: Diagonal | S4: Ultimate | U4: Ultimate | W4: AY | X4: ULR | Y4: ULR | Z4: IELR | AA4: ULR | AF4: AY | AG4: 12 | AH4: 24 | AI4: 36 | AJ4: 48 | AK4: 60 | AL4: 72 | AM4: 84 | AN4: 96 | AO4: 108 | AP4: 120 | AQ4: 132 | AR4: 144 | AS4: 156 | AT4: 168 | AU4: 180+ | AW4: AY | AX4: 12 | AY4: 24 | AZ4: 36 | BA4: 48 | BB4: 60 | BC4: 72 | BD4: 84 | BE4: 96 | BF4: 108 | BG4: 120 | BH4: 132 | BI4: 144 | BJ4: 156 | BK4: 168 | BL4: 180+ | BN4: AY | BO4: 12 | BP4: 24 | BQ4: 36 | BR4: 48 | BS4: 60 | BT4: 72 | BU4: 84 | BV4: 96 | BW4: 108 | BX4: 120 | BY4: 132 | BZ4: 144 | CA4: 156 | CB4: 168 | CC4: 180+ | CE4: AY | CF4: 12 | CG4: 24 | CH4: 36 | CI4: 48 | CJ4: 60 | CK4: 72 | CL4: 84 | CM4: 96 | CN4: 108 | CO4: 120 | CP4: 132 | CQ4: 144 | CR4: 156 | CS4: 168 | CT4: 180+ | CU4: Total
A5: 1 | B5: =B6-1 -> 2011 | C5: =Inputs!B17 -> 0 | D5: =Inputs!C17 -> 0 | E5: =Inputs!D17 -> 0 | F5: =Inputs!E17 -> 0 | G5: =Inputs!F17 -> 0 | H5: =Inputs!G17 -> 0 | I5: =Inputs!H17 -> 0 | J5: =Inputs!I17 -> 0 | K5: =Inputs!J17 -> 0 | R5: =K5 -> 0 | S5: =$R5*K$16 -> 0 | U5: =(Inputs!$B61*Inputs!$D61*K$17)+$R5 -> 0 | W5: =B5 -> 2011 | X5: =IFERROR(S5/Inputs!$B61,0) -> 0 | Y5: =IFERROR(S24/Inputs!$B61,0) -> 0 | Z5: =Inputs!$D$61:$D$69 -> 0 | AA5: =IFERROR(L44/Inputs!B61,0) -> 0 | AF5: =AF6-1 -> 2011 | AO5: =K5 -> 0 | AP5: =AO5*K$15 -> 0 | AQ5: =AP5*L$15 -> 0 | AR5: =AQ5*M$15 -> 0 | AS5: 0 | AT5: 0 | AU5: 0 | AW5: =AW6-1 -> 2011 | BF5: =AO5 -> 0 | BG5: =AP5 -> 0 | BH5: =AQ5 -> 0 | BI5: =AR5 -> 0 | BJ5: 0 | BK5: 0 | BL5: 0 | BN5: =BN6-1 -> 2011 | BW5: =AO24 -> 0 | BX5: =IF($AU24=0,0,BX24*($AU5/$AU24)) -> 0 | BY5: 0 | BZ5: 0 | CA5: 0 | CB5: 0 | CC5: 0 | CE5: =CE6-1 -> 2011 | CO5: =BG79-BF79 -> 0 | CP5: =BH79-BG79 -> 0 | CQ5: =BI79-BH79 -> 0 | CR5: 0 | CS5: 0 | CT5: 0 | CU5: =SUM(CG5:CT5) -> 0
A6: 2 | B6: 2012 | C6: =Inputs!B18 -> 0 | D6: =Inputs!C18 -> 0 | E6: =Inputs!D18 -> 0 | F6: =Inputs!E18 -> 0 | G6: =Inputs!F18 -> 0 | H6: =Inputs!G18 -> 0 | I6: =Inputs!H18 -> 0 | J6: =Inputs!I18 -> 0 | R6: =J6 -> 0 | S6: =$R6*J$16 -> 0 | U6: =(Inputs!$B62*Inputs!$D62*J$17)+$R6 -> 0 | W6: 2012 | X6: =IFERROR(S6/Inputs!$B62,0) -> 0 | Y6: =IFERROR(S25/Inputs!$B62,0) -> 0 | Z6: 0 | AA6: =IFERROR(L45/Inputs!B62,0) -> 0 | AF6: 2012 | AN6: =J6 -> 0 | AO6: =AN6*J$15 -> 0 | AP6: 0 | AQ6: 0 | AR6: =AQ6*M$15 -> 0 | AS6: 0 | AT6: 0 | AU6: 0 | AW6: 2012 | BE6: =AN6 -> 0 | BF6: 0 | BG6: 0 | BH6: 0 | BI6: 0 | BJ6: 0 | BK6: 0 | BL6: 0 | BN6: 2012 | BV6: =AN25 -> 0 | BW6: 0 | BX6: 0 | BY6: 0 | BZ6: 0 | CA6: 0 | CB6: 0 | CC6: 0 | CE6: 2012 | CN6: =BF80-BE80 -> 0 | CO6: 0 | CP6: 0 | CQ6: =BI80-BH80 -> 0 | CR6: 0 | CS6: 0 | CT6: 0 | CU6: =SUM(CG6:CT6) -> 0
A7: 3 | B7: 2013 | C7: =Inputs!B19 -> 0 | D7: =Inputs!C19 -> 0 | E7: =Inputs!D19 -> 0 | F7: =Inputs!E19 -> 0 | G7: =Inputs!F19 -> 0 | H7: =Inputs!G19 -> 0 | I7: =Inputs!H19 -> 0 | R7: =I7 -> 0 | S7: =$R7*I$16 -> 0 | U7: =(Inputs!$B63*Inputs!$D63*I$17)+$R7 -> 0 | W7: 2013 | X7: =IFERROR(S7/Inputs!$B63,0) -> 0 | Y7: =IFERROR(S26/Inputs!$B63,0) -> 0 | Z7: 0 | AA7: =IFERROR(L46/Inputs!B63,0) -> 0 | AF7: 2013 | AM7: =I7 -> 0 | AN7: =AM7*I$15 -> 0 | AO7: =AN7*J$15 -> 0 | AP7: 0 | AQ7: 0 | AR7: =AQ7*M$15 -> 0 | AS7: 0 | AT7: 0 | AU7: 0 | AW7: 2013 | BD7: =AM7 -> 0 | BE7: 0 | BF7: 0 | BG7: 0 | BH7: 0 | BI7: 0 | BJ7: 0 | BK7: 0 | BL7: 0 | BN7: 2013 | BU7: =AM26 -> 0 | BV7: 0 | BW7: 0 | BX7: 0 | BY7: 0 | BZ7: 0 | CA7: 0 | CB7: 0 | CC7: 0 | CE7: 2013 | CM7: =BE81-BD81 -> 0 | CN7: 0 | CO7: 0 | CP7: 0 | CQ7: =BI81-BH81 -> 0 | CR7: 0 | CS7: 0 | CT7: 0 | CU7: 0
A8: 4 | B8: 2014 | C8: =Inputs!B20 -> 0 | D8: =Inputs!C20 -> 0 | E8: =Inputs!D20 -> 0 | F8: =Inputs!E20 -> 0 | G8: =Inputs!F20 -> 0 | H8: =Inputs!G20 -> 0 | R8: =H8 -> 0 | S8: =$R8*H$16 -> 0 | U8: =(Inputs!$B64*Inputs!$D64*H$17)+$R8 -> 0 | W8: 2014 | X8: =IFERROR(S8/Inputs!$B64,0) -> 0 | Y8: =IFERROR(S27/Inputs!$B64,0) -> 0 | Z8: 0 | AA8: =IFERROR(L47/Inputs!B64,0) -> 0 | AF8: 2014 | AL8: =H8 -> 0 | AM8: =AL8*H$15 -> 0 | AN8: =AM8*I$15 -> 0 | AO8: =AN8*J$15 -> 0 | AP8: 0 | AQ8: 0 | AR8: =AQ8*M$15 -> 0 | AS8: 0 | AT8: 0 | AU8: 0 | AW8: 2014 | BC8: =AL8 -> 0 | BD8: 0 | BE8: 0 | BF8: 0 | BG8: 0 | BH8: 0 | BI8: 0 | BJ8: 0 | BK8: 0 | BL8: 0 | BN8: 2014 | BT8: =AL27 -> 0 | BU8: 0 | BV8: 0 | BW8: 0 | BX8: 0 | BY8: 0 | BZ8: 0 | CA8: 0 | CB8: 0 | CC8: 0 | CE8: 2014 | CL8: =BD82-BC82 -> 0 | CM8: 0 | CN8: 0 | CO8: 0 | CP8: 0 | CQ8: =BI82-BH82 -> 0 | CR8: 0 | CS8: 0 | CT8: 0 | CU8: 0
A9: 5 | B9: 2015 | C9: =Inputs!B21 -> 0 | D9: =Inputs!C21 -> 0 | E9: =Inputs!D21 -> 0 | F9: =Inputs!E21 -> 0 | G9: =Inputs!F21 -> 0 | R9: =G9 -> 0 | S9: =$R9*G$16 -> 0 | U9: =(Inputs!$B65*Inputs!$D65*G$17)+$R9 -> 0 | W9: 2015 | X9: =IFERROR(S9/Inputs!$B65,0) -> 0 | Y9: =IFERROR(S28/Inputs!$B65,0) -> 0 | Z9: 0 | AA9: =IFERROR(L48/Inputs!B65,0) -> 0 | AF9: 2015 | AK9: =G9 -> 0 | AL9: =AK9*G$15 -> 0 | AM9: =AL9*H$15 -> 0 | AN9: =AM9*I$15 -> 0 | AO9: =AN9*J$15 -> 0 | AP9: 0 | AQ9: 0 | AR9: =AQ9*M$15 -> 0 | AS9: 0 | AT9: 0 | AU9: 0 | AW9: 2015 | BB9: =AK9 -> 0 | BC9: 0 | BD9: 0 | BE9: 0 | BF9: 0 | BG9: 0 | BH9: 0 | BI9: 0 | BJ9: 0 | BK9: 0 | BL9: 0 | BN9: 2015 | BS9: =AK28 -> 0 | BT9: 0 | BU9: 0 | BV9: 0 | BW9: 0 | BX9: 0 | BY9: 0 | BZ9: 0 | CA9: 0 | CB9: 0 | CC9: 0 | CE9: 2015 | CK9: =BC83-BB83 -> 0 | CL9: 0 | CM9: 0 | CN9: 0 | CO9: 0 | CP9: 0 | CQ9: =BI83-BH83 -> 0 | CR9: 0 | CS9: 0 | CT9: 0 | CU9: 0
A10: 6 | B10: 2016 | C10: =Inputs!B22 -> 0 | D10: =Inputs!C22 -> 0 | E10: =Inputs!D22 -> 0 | F10: =Inputs!E22 -> 0 | R10: =F10 -> 0 | S10: =$R10*F$16 -> 0 | U10: =(Inputs!$B66*Inputs!$D66*F$17)+$R10 -> 0 | W10: 2016 | X10: =IFERROR(S10/Inputs!$B66,0) -> 0 | Y10: =IFERROR(S29/Inputs!$B66,0) -> 0 | Z10: 0 | AA10: =IFERROR(L49/Inputs!B66,0) -> 0 | AF10: 2016 | AJ10: =F10 -> 0 | AK10: =AJ10*F$15 -> 0 | AL10: =AK10*G$15 -> 0 | AM10: =AL10*H$15 -> 0 | AN10: =AM10*I$15 -> 0 | AO10: =AN10*J$15 -> 0 | AP10: 0 | AQ10: 0 | AR10: =AQ10*M$15 -> 0 | AS10: 0 | AT10: 0 | AU10: 0 | AW10: 2016 | BA10: =AJ10 -> 0 | BB10: =AK10 -> 0 | BC10: 0 | BD10: 0 | BE10: 0 | BF10: 0 | BG10: 0 | BH10: 0 | BI10: 0 | BJ10: 0 | BK10: 0 | BL10: 0 | BN10: 2016 | BR10: =AJ29 -> 0 | BS10: 0 | BT10: 0 | BU10: 0 | BV10: 0 | BW10: 0 | BX10: 0 | BY10: 0 | BZ10: 0 | CA10: 0 | CB10: 0 | CC10: 0 | CE10: 2016 | CJ10: =BB84-BA84 -> 0 | CK10: =BC84-BB84 -> 0 | CL10: 0 | CM10: 0 | CN10: 0 | CO10: 0 | CP10: 0 | CQ10: =BI84-BH84 -> 0 | CR10: 0 | CS10: 0 | CT10: 0 | CU10: 0
A11: 7 | B11: 2017 | C11: =Inputs!B23 -> 0 | D11: =Inputs!C23 -> 0 | E11: =Inputs!D23 -> 0 | R11: =E11 -> 0 | S11: =$R11*E$16 -> 0 | U11: =(Inputs!$B67*Inputs!$D67*E$17)+$R11 -> 0 | W11: 2017 | X11: =IFERROR(S11/Inputs!$B67,0) -> 0 | Y11: =IFERROR(S30/Inputs!$B67,0) -> 0 | Z11: 0 | AA11: =IFERROR(L50/Inputs!B67,0) -> 0 | AF11: 2017 | AI11: =E11 -> 0 | AJ11: =AI11*E$15 -> 0 | AK11: =AJ11*F$15 -> 0 | AL11: =AK11*G$15 -> 0 | AM11: =AL11*H$15 -> 0 | AN11: =AM11*I$15 -> 0 | AO11: =AN11*J$15 -> 0 | AP11: 0 | AQ11: 0 | AR11: =AQ11*M$15 -> 0 | AS11: 0 | AT11: 0 | AU11: 0 | AW11: 2017 | AZ11: =AI11 -> 0 | BA11: =AJ11 -> 0 | BB11: =AK11 -> 0 | BC11: 0 | BD11: 0 | BE11: 0 | BF11: 0 | BG11: 0 | BH11: 0 | BI11: 0 | BJ11: 0 | BK11: 0 | BL11: 0 | BN11: 2017 | BQ11: =AI30 -> 0 | BR11: 0 | BS11: 0 | BT11: 0 | BU11: 0 | BV11: 0 | BW11: 0 | BX11: 0 | BY11: 0 | BZ11: 0 | CA11: 0 | CB11: 0 | CC11: 0 | CE11: 2017 | CI11: =BA85-AZ85 -> 0 | CJ11: =BB85-BA85 -> 0 | CK11: =BC85-BB85 -> 0 | CL11: 0 | CM11: 0 | CN11: 0 | CO11: 0 | CP11: 0 | CQ11: =BI85-BH85 -> 0 | CR11: 0 | CS11: 0 | CT11: 0 | CU11: 0
A12: 8 | B12: 2018 | C12: =Inputs!B24 -> 0 | D12: =Inputs!C24 -> 0 | R12: =D12 -> 0 | S12: =$R12*D$16 -> 0 | U12: =(Inputs!$B68*Inputs!$D68*D$17)+$R12 -> 0 | W12: 2018 | X12: =IFERROR(S12/Inputs!$B68,0) -> 0 | Y12: =IFERROR(S31/Inputs!$B68,0) -> 0 | Z12: 0 | AA12: =IFERROR(L51/Inputs!B68,0) -> 0 | AF12: 2018 | AH12: =D12 -> 0 | AI12: =AH12*D$15 -> 0 | AJ12: =AI12*E$15 -> 0 | AK12: =AJ12*F$15 -> 0 | AL12: =AK12*G$15 -> 0 | AM12: =AL12*H$15 -> 0 | AN12: =AM12*I$15 -> 0 | AO12: =AN12*J$15 -> 0 | AP12: 0 | AQ12: 0 | AR12: =AQ12*M$15 -> 0 | AS12: 0 | AT12: 0 | AU12: 0 | AW12: 2018 | AY12: =AH12 -> 0 | AZ12: =AI12 -> 0 | BA12: =AJ12 -> 0 | BB12: =AK12 -> 0 | BC12: 0 | BD12: 0 | BE12: 0 | BF12: 0 | BG12: 0 | BH12: 0 | BI12: 0 | BJ12: 0 | BK12: 0 | BL12: 0 | BN12: 2018 | BP12: =AH31 -> 0 | BQ12: 0 | BR12: 0 | BS12: 0 | BT12: 0 | BU12: 0 | BV12: 0 | BW12: 0 | BX12: 0 | BY12: 0 | BZ12: 0 | CA12: 0 | CB12: 0 | CC12: 0 | CE12: 2018 | CH12: =AZ86-AY86 -> 0 | CI12: =BA86-AZ86 -> 0 | CJ12: =BB86-BA86 -> 0 | CK12: =BC86-BB86 -> 0 | CL12: 0 | CM12: 0 | CN12: 0 | CO12: 0 | CP12: 0 | CQ12: =BI86-BH86 -> 0 | CR12: 0 | CS12: 0 | CT12: 0 | CU12: 0
A13: 9 | B13: =CurrentYear-1 -> 2019 | C13: =Inputs!B25 -> 0 | R13: =C13 -> 0 | S13: =$R13*C$16 -> 0 | U13: =(Inputs!$B69*Inputs!$D69*C$17)+$R13 -> 0 | W13: =B13 -> 2019 | X13: =IFERROR(S13/Inputs!$B69,0) -> 0 | Y13: =IFERROR(S32/Inputs!$B69,0) -> 0 | Z13: 0 | AA13: =IFERROR(L52/Inputs!B69,0) -> 0 | AF13: =CurrentYear-1 -> 2019 | AG13: =C13 -> 0 | AH13: =AG13*C$15 -> 0 | AI13: =AH13*D$15 -> 0 | AJ13: =AI13*E$15 -> 0 | AK13: 0 | AL13: 0 | AM13: 0 | AN13: 0 | AO13: 0 | AP13: 0 | AQ13: 0 | AR13: =AQ13*M$15 -> 0 | AS13: 0 | AT13: 0 | AU13: 0 | AW13: =CurrentYear-1 -> 2019 | AX13: =AG13 -> 0 | AY13: =AH13 -> 0 | AZ13: =AI13 -> 0 | BA13: =AJ13 -> 0 | BB13: =AK13 -> 0 | BC13: 0 | BD13: 0 | BE13: 0 | BF13: 0 | BG13: 0 | BH13: 0 | BI13: 0 | BJ13: 0 | BK13: 0 | BL13: 0 | BN13: =CurrentYear-1 -> 2019 | BO13: =AG32 -> 0 | BP13: 0 | BQ13: 0 | BR13: 0 | BS13: 0 | BT13: 0 | BU13: 0 | BV13: 0 | BW13: 0 | BX13: 0 | BY13: 0 | BZ13: 0 | CA13: 0 | CB13: 0 | CC13: 0 | CE13: =CurrentYear-1 -> 2019 | CG13: =AY87-AX87 -> 0 | CH13: =AZ87-AY87 -> 0 | CI13: =BA87-AZ87 -> 0 | CJ13: =BB87-BA87 -> 0 | CK13: =BC87-BB87 -> 0 | CL13: 0 | CM13: 0 | CN13: 0 | CO13: 0 | CP13: 0 | CQ13: =BI87-BH87 -> 0 | CR13: 0 | CS13: 0 | CT13: 0 | CU13: 0
C14: =C4&"-"&D4 -> 12-24 | D14: =D4&"-"&E4 -> 24-36 | E14: 36-48 | F14: 48-60 | G14: 60-72 | H14: 72-84 | I14: 84-96 | J14: 96-108 | K14: 108-120 | L14: 120-132 | M14: 132-144 | N14: 144-156 | O14: 156-168 | P14: 168-
A15: 10 | B15: ATA | C15: =IFERROR(SUM(D5:D12)/SUM(C5:C12),1) -> 1 | D15: =IFERROR(SUM(E5:E11)/SUM(D5:D11),1) -> 1 | E15: =IFERROR(SUM(F5:F10)/SUM(E5:E10),1) -> 1 | F15: =IFERROR(SUM(G5:G9)/SUM(F5:F9),1) -> 1 | G15: =IFERROR(SUM(H5:H8)/SUM(G5:G8),1) -> 1 | H15: =IFERROR(SUM(I5:I7)/SUM(H5:H7),1) -> 1 | I15: =IFERROR(SUM(J5:J6)/SUM(I5:I6),1) -> 1 | J15: =IFERROR(K5/J5,1) -> 1 | K15: 1 | L15: 1 | M15: 1 | N15: 1 | O15: 1 | P15: 1
B16: CDF | C16: =D16*C15 -> 1 | D16: 1 | E16: 1 | F16: 1 | G16: 1 | H16: 1 | I16: 1 | J16: =K16*J15 -> 1 | K16: =L16*K15 -> 1 | L16: =M16*L15 -> 1 | M16: 1 | N16: 1 | O16: 1 | P16: =P15 -> 1
B17: Unpaid | C17: =1-1/C16 -> 0 | D17: 0 | E17: 0 | F17: 0 | G17: 0 | H17: 0 | I17: 0 | J17: 0 | K17: 0 | L17: 0 | M17: =1-1/M16 -> 0 | N17: 0 | O17: 0 | P17: 0
B20: =CompanyName -> Company Name | W20: =CompanyName -> Company Name | AF20: =CompanyName -> Company Name | AW20: =CompanyName -> Company Name | BN20: =CompanyName -> Company Name | CE20: =CompanyName -> Company Name
B21: =LOBName&" -- Incurred Data" -> LOB Name -- Incurred Data | W21: =LOBName -> LOB Name | AF21: =LOBName&" -- Incurred Data" -> LOB Name -- Incurred Data | AW21: =LOBName&" -- Incurred Data [Expected Paid]" -> LOB Name -- Incurred Data [Expected Paid] | BN21: =LOBName&" -- Incurred Data" -> LOB Name -- Incurred Data | CE21: =LOBName&" -- Incurred Data" -> LOB Name -- Incurred Data
B22: ="Chain Ladder Development as of December 31, "&CurrentYear-1 -> Chain Ladder Development as of December 31, 2019 | R22: Incurred Chain Ladder | U22: B-F | W22: ="Expected Paid Losses during CY "&$W$32+1 -> Expected Paid Losses during CY 2020 | AF22: ="Chain Ladder Expected Cumulative Future Development as of Decmber 31, "&CurrentYear-1 -> Chain Ladder Expected Cumulative Future Development as of Decmber 31, 2019 | AW22: ="Chain Ladder Expected Cumulative Future Development as of Decmber 31, "&CurrentYear-1 -> Chain Ladder Expected Cumulative Future Development as of Decmber 31, 2019 | BN22: ="Chain Ladder Expected Cumulative Future Development as of Decmber 31, "&CurrentYear-1 -> Chain Ladder Expected Cumulative Future Development as of Decmber 31, 2019 | CE22: ="Weighted Expected Incremental Future Development as of Decmber 31, "&CurrentYear-1 -> Weighted Expected Incremental Future Development as of Decmber 31, 2019
B23: AY | C23: 12 | D23: 24 | E23: 36 | F23: 48 | G23: 60 | H23: 72 | I23: 84 | J23: 96 | K23: 108 | L23: 120 | M23: 132 | N23: 144 | O23: 156 | P23: 168 | R23: Diagonal | S23: Ultimate | U23: Ultimate | W23: AY | X23: Paid CL | Y23: Inc CL | Z23: Paid BF | AA23: Inc BF | AB23: Weighted | AC23: Selected | AF23: AY | AG23: 12 | AH23: 24 | AI23: 36 | AJ23: 48 | AK23: 60 | AL23: 72 | AM23: 84 | AN23: 96 | AO23: 108 | AP23: 120 | AQ23: 132 | AR23: 144 | AS23: 156 | AT23: 168 | AU23: 180+ | AW23: AY | AX23: 12 | AY23: 24 | AZ23: 36 | BA23: 48 | BB23: 60 | BC23: 72 | BD23: 84 | BE23: 96 | BF23: 108 | BG23: 120 | BH23: 132 | BI23: 144 | BJ23: 156 | BK23: 168 | BL23: 180+ | BN23: AY | BO23: 12 | BP23: 24 | BQ23: 36 | BR23: 48 | BS23: 60 | BT23: 72 | BU23: 84 | BV23: 96 | BW23: 108 | BX23: 120 | BY23: 132 | BZ23: 144 | CA23: 156 | CB23: 168 | CC23: 180+ | CE23: AY | CF23: 12 | CG23: 24 | CH23: 36 | CI23: 48 | CJ23: 60 | CK23: 72 | CL23: 84 | CM23: 96 | CN23: 108 | CO23: 120 | CP23: 132 | CQ23: 144 | CR23: 156 | CS23: 168 | CT23: 180+ | CU23: Total
B24: =B25-1 -> 2011 | C24: =Inputs!B31 -> 0 | D24: =Inputs!C31 -> 0 | E24: =Inputs!D31 -> 0 | F24: =Inputs!E31 -> 0 | G24: =Inputs!F31 -> 0 | H24: =Inputs!G31 -> 0 | I24: =Inputs!H31 -> 0 | J24: =Inputs!I31 -> 0 | K24: =Inputs!J31 -> 0 | R24: =K24 -> 0 | S24: =$R24*K$35 -> 0 | U24: =(Inputs!$B61*Inputs!$D61*K$36)+$R24 -> 0 | W24: =B24 -> 2011 | X24: =INDEX($AX$5:$BL$13,$W24-$W$24+1,$W$32-$W24+2)-INDEX($AX$5:$BL$13,$W24-$W$24+1,$W$32-$W24+1) -> 0 | Y24: =INDEX($AX$24:$BL$32,$W24-$W$24+1,$W$32-$W24+2)-INDEX($AX$24:$BL$32,$W24-$W$24+1,$W$32-$W24+1) -> 0 | Z24: =INDEX($AX$43:$BL$51,$W24-$W$24+1,$W$32-$W24+2)-INDEX($AX$43:$BL$51,$W24-$W$24+1,$W$32-$W24+1) -> 0 | AA24: =INDEX($AX$61:$BL$69,$W24-$W$24+1,$W$32-$W24+2)-INDEX($AX$61:$BL$69,$W24-$W$24+1,$W$32-$W24+1) -> 0 | AB24: =SUM(X24:AA24*H44:K44) -> 0 | AC24: =E108 -> 0 | AF24: =AF25-1 -> 2011 | AO24: =K24 -> 0 | AP24: =AO24*K$34 -> 0 | AQ24: =AP24*L$34 -> 0 | AR24: =AQ24*M$34 -> 0 | AS24: 0 | AT24: 0 | AU24: 0 | AW24: =AW25-1 -> 2011 | BF24: =AO5 -> 0 | BG24: =IF($AU5=0,0,BG5*($AU24/$AU5)) -> 0 | BH24: 0 | BI24: 0 | BJ24: 0 | BK24: 0 | BL24: 0 | BN24: =BN25-1 -> 2011 | BW24: =AO24 -> 0 | BX24: =AP24 -> 0 | BY24: =AQ24 -> 0 | BZ24: =AR24 -> 0 | CA24: 0 | CB24: 0 | CC24: 0 | CE24: =CE25-1 -> 2011 | CO24: =BX79-BW79 -> 0 | CP24: 0 | CQ24: =BZ79-BY79 -> 0 | CR24: 0 | CS24: 0 | CT24: 0 | CU24: =SUM(CG24:CT24) -> 0
B25: 2012 | C25: =Inputs!B32 -> 0 | D25: =Inputs!C32 -> 0 | E25: =Inputs!D32 -> 0 | F25: =Inputs!E32 -> 0 | G25: =Inputs!F32 -> 0 | H25: =Inputs!G32 -> 0 | I25: =Inputs!H32 -> 0 | J25: =Inputs!I32 -> 0 | R25: =J25 -> 0 | S25: =$R25*J$35 -> 0 | U25: =(Inputs!$B62*Inputs!$D62*J$36)+$R25 -> 0 | W25: 2012 | X25: 0 | Y25: =INDEX($AX$24:$BL$32,$W25-$W$24+1,$W$32-$W25+2)-INDEX($AX$24:$BL$32,$W25-$W$24+1,$W$32-$W25+1) -> 0 | Z25: =INDEX($AX$43:$BL$51,$W25-$W$24+1,$W$32-$W25+2)-INDEX($AX$43:$BL$51,$W25-$W$24+1,$W$32-$W25+1) -> 0 | AA25: =INDEX($AX$61:$BL$69,$W25-$W$24+1,$W$32-$W25+2)-INDEX($AX$61:$BL$69,$W25-$W$24+1,$W$32-$W25+1) -> 0 | AB25: =SUM(X25:AA25*H45:K45) -> 0 | AC25: =E109 -> 0 | AF25: 2012 | AN25: =J25 -> 0 | AO25: =AN25*J$34 -> 0 | AP25: 0 | AQ25: 0 | AR25: =AQ25*M$34 -> 0 | AS25: 0 | AT25: 0 | AU25: 0 | AW25: 2012 | BE25: =AN6 -> 0 | BF25: 0 | BG25: 0 | BH25: 0 | BI25: 0 | BJ25: 0 | BK25: 0 | BL25: 0 | BN25: 2012 | BV25: =AN25 -> 0 | BW25: 0 | BX25: 0 | BY25: 0 | BZ25: 0 | CA25: 0 | CB25: 0 | CC25: 0 | CE25: 2012 | CN25: =BW80-BV80 -> 0 | CO25: 0 | CP25: 0 | CQ25: =BZ80-BY80 -> 0 | CR25: 0 | CS25: 0 | CT25: 0 | CU25: =SUM(CG25:CT25) -> 0
B26: 2013 | C26: =Inputs!B33 -> 0 | D26: =Inputs!C33 -> 0 | E26: =Inputs!D33 -> 0 | F26: =Inputs!E33 -> 0 | G26: =Inputs!F33 -> 0 | H26: =Inputs!G33 -> 0 | I26: =Inputs!H33 -> 0 | R26: =I26 -> 0 | S26: =$R26*I$35 -> 0 | U26: =(Inputs!$B63*Inputs!$D63*I$36)+$R26 -> 0 | W26: 2013 | X26: 0 | Y26: 0 | Z26: 0 | AA26: 0 | AB26: =SUM(X26:AA26*H46:K46) -> 0 | AC26: 0 | AF26: 2013 | AM26: =I26 -> 0 | AN26: =AM26*I$34 -> 0 | AO26: 0 | AP26: 0 | AQ26: 0 | AR26: =AQ26*M$34 -> 0 | AS26: 0 | AT26: 0 | AU26: 0 | AW26: 2013 | BD26: =AM7 -> 0 | BE26: 0 | BF26: 0 | BG26: 0 | BH26: 0 | BI26: 0 | BJ26: 0 | BK26: 0 | BL26: 0 | BN26: 2013 | BU26: =AM26 -> 0 | BV26: 0 | BW26: 0 | BX26: 0 | BY26: 0 | BZ26: 0 | CA26: 0 | CB26: 0 | CC26: 0 | CE26: 2013 | CM26: =BV81-BU81 -> 0 | CN26: 0 | CO26: 0 | CP26: 0 | CQ26: =BZ81-BY81 -> 0 | CR26: 0 | CS26: 0 | CT26: 0 | CU26: 0
B27: 2014 | C27: =Inputs!B34 -> 0 | D27: =Inputs!C34 -> 0 | E27: =Inputs!D34 -> 0 | F27: =Inputs!E34 -> 0 | G27: =Inputs!F34 -> 0 | H27: =Inputs!G34 -> 0 | R27: =H27 -> 0 | S27: =$R27*H$35 -> 0 | U27: =(Inputs!$B64*Inputs!$D64*H$36)+$R27 -> 0 | W27: 2014 | X27: 0 | Y27: 0 | Z27: 0 | AA27: 0 | AB27: =SUM(X27:AA27*H47:K47) -> 0 | AC27: 0 | AF27: 2014 | AL27: =H27 -> 0 | AM27: =AL27*H$34 -> 0 | AN27: 0 | AO27: 0 | AP27: 0 | AQ27: 0 | AR27: =AQ27*M$34 -> 0 | AS27: 0 | AT27: 0 | AU27: 0 | AW27: 2014 | BC27: =AL8 -> 0 | BD27: 0 | BE27: 0 | BF27: 0 | BG27: 0 | BH27: 0 | BI27: 0 | BJ27: 0 | BK27: 0 | BL27: 0 | BN27: 2014 | BT27: =AL27 -> 0 | BU27: 0 | BV27: 0 | BW27: 0 | BX27: 0 | BY27: 0 | BZ27: 0 | CA27: 0 | CB27: 0 | CC27: 0 | CE27: 2014 | CL27: =BU82-BT82 -> 0 | CM27: =BV82-BU82 -> 0 | CN27: 0 | CO27: 0 | CP27: 0 | CQ27: =BZ82-BY82 -> 0 | CR27: 0 | CS27: 0 | CT27: 0 | CU27: 0
B28: 2015 | C28: =Inputs!B35 -> 0 | D28: =Inputs!C35 -> 0 | E28: =Inputs!D35 -> 0 | F28: =Inputs!E35 -> 0 | G28: =Inputs!F35 -> 0 | R28: =G28 -> 0 | S28: =$R28*G$35 -> 0 | U28: =(Inputs!$B65*Inputs!$D65*G$36)+$R28 -> 0 | W28: 2015 | X28: 0 | Y28: 0 | Z28: 0 | AA28: 0 | AB28: =SUM(X28:AA28*H48:K48) -> 0 | AC28: 0 | AF28: 2015 | AK28: =G28 -> 0 | AL28: =AK28*G$34 -> 0 | AM28: 0 | AN28: 0 | AO28: 0 | AP28: 0 | AQ28: 0 | AR28: =AQ28*M$34 -> 0 | AS28: 0 | AT28: 0 | AU28: 0 | AW28: 2015 | BB28: =AK9 -> 0 | BC28: 0 | BD28: 0 | BE28: 0 | BF28: 0 | BG28: 0 | BH28: 0 | BI28: 0 | BJ28: 0 | BK28: 0 | BL28: 0 | BN28: 2015 | BS28: =AK28 -> 0 | BT28: 0 | BU28: 0 | BV28: 0 | BW28: 0 | BX28: 0 | BY28: 0 | BZ28: 0 | CA28: 0 | CB28: 0 | CC28: 0 | CE28: 2015 | CK28: =BT83-BS83 -> 0 | CL28: =BU83-BT83 -> 0 | CM28: =BV83-BU83 -> 0 | CN28: 0 | CO28: 0 | CP28: 0 | CQ28: =BZ83-BY83 -> 0 | CR28: 0 | CS28: 0 | CT28: 0 | CU28: 0
B29: 2016 | C29: =Inputs!B36 -> 0 | D29: =Inputs!C36 -> 0 | E29: =Inputs!D36 -> 0 | F29: =Inputs!E36 -> 0 | R29: =F29 -> 0 | S29: =$R29*F$35 -> 0 | U29: =(Inputs!$B66*Inputs!$D66*F$36)+$R29 -> 0 | W29: 2016 | X29: =INDEX($AX$5:$BL$13,$W29-$W$24+1,$W$32-$W29+2)-INDEX($AX$5:$BL$13,$W29-$W$24+1,$W$32-$W29+1) -> 0 | Y29: 0 | Z29: 0 | AA29: 0 | AB29: =SUM(X29:AA29*H49:K49) -> 0 | AC29: 0 | AF29: 2016 | AJ29: =F29 -> 0 | AK29: =AJ29*F$34 -> 0 | AL29: =AK29*G$34 -> 0 | AM29: 0 | AN29: 0 | AO29: 0 | AP29: 0 | AQ29: 0 | AR29: =AQ29*M$34 -> 0 | AS29: 0 | AT29: 0 | AU29: 0 | AW29: 2016 | BA29: =AJ10 -> 0 | BB29: 0 | BC29: 0 | BD29: 0 | BE29: 0 | BF29: 0 | BG29: 0 | BH29: 0 | BI29: 0 | BJ29: 0 | BK29: 0 | BL29: 0 | BN29: 2016 | BR29: =AJ29 -> 0 | BS29: =AK29 -> 0 | BT29: 0 | BU29: 0 | BV29: 0 | BW29: 0 | BX29: 0 | BY29: 0 | BZ29: 0 | CA29: 0 | CB29: 0 | CC29: 0 | CE29: 2016 | CJ29: =BS84-BR84 -> 0 | CK29: =BT84-BS84 -> 0 | CL29: =BU84-BT84 -> 0 | CM29: =BV84-BU84 -> 0 | CN29: 0 | CO29: 0 | CP29: 0 | CQ29: =BZ84-BY84 -> 0 | CR29: 0 | CS29: 0 | CT29: 0 | CU29: 0
B30: 2017 | C30: =Inputs!B37 -> 0 | D30: =Inputs!C37 -> 0 | E30: =Inputs!D37 -> 0 | R30: =E30 -> 0 | S30: =$R30*E$35 -> 0 | U30: =(Inputs!$B67*Inputs!$D67*E$36)+$R30 -> 0 | W30: 2017 | X30: 0 | Y30: 0 | Z30: 0 | AA30: 0 | AB30: =SUM(X30:AA30*H50:K50) -> 0 | AC30: 0 | AF30: 2017 | AI30: =E30 -> 0 | AJ30: =AI30*E$34 -> 0 | AK30: =AJ30*F$34 -> 0 | AL30: =AK30*G$34 -> 0 | AM30: 0 | AN30: 0 | AO30: 0 | AP30: 0 | AQ30: 0 | AR30: =AQ30*M$34 -> 0 | AS30: 0 | AT30: 0 | AU30: 0 | AW30: 2017 | AZ30: =AI11 -> 0 | BA30: 0 | BB30: 0 | BC30: 0 | BD30: 0 | BE30: 0 | BF30: 0 | BG30: 0 | BH30: 0 | BI30: 0 | BJ30: 0 | BK30: 0 | BL30: 0 | BN30: 2017 | BQ30: =AI30 -> 0 | BR30: =AJ30 -> 0 | BS30: =AK30 -> 0 | BT30: 0 | BU30: 0 | BV30: 0 | BW30: 0 | BX30: 0 | BY30: 0 | BZ30: 0 | CA30: 0 | CB30: 0 | CC30: 0 | CE30: 2017 | CI30: =BR85-BQ85 -> 0 | CJ30: =BS85-BR85 -> 0 | CK30: =BT85-BS85 -> 0 | CL30: =BU85-BT85 -> 0 | CM30: =BV85-BU85 -> 0 | CN30: 0 | CO30: 0 | CP30: 0 | CQ30: =BZ85-BY85 -> 0 | CR30: 0 | CS30: 0 | CT30: 0 | CU30: 0
B31: 2018 | C31: =Inputs!B38 -> 0 | D31: =Inputs!C38 -> 0 | R31: =D31 -> 0 | S31: =$R31*D$35 -> 0 | U31: =(Inputs!$B68*Inputs!$D68*D$36)+$R31 -> 0 | W31: 2018 | X31: 0 | Y31: 0 | Z31: 0 | AA31: 0 | AB31: =SUM(X31:AA31*H51:K51) -> 0 | AC31: 0 | AF31: 2018 | AH31: =D31 -> 0 | AI31: =AH31*D$34 -> 0 | AJ31: =AI31*E$34 -> 0 | AK31: =AJ31*F$34 -> 0 | AL31: =AK31*G$34 -> 0 | AM31: 0 | AN31: 0 | AO31: 0 | AP31: 0 | AQ31: 0 | AR31: =AQ31*M$34 -> 0 | AS31: 0 | AT31: 0 | AU31: 0 | AW31: 2018 | AY31: =AH12 -> 0 | AZ31: 0 | BA31: 0 | BB31: 0 | BC31: 0 | BD31: 0 | BE31: 0 | BF31: 0 | BG31: 0 | BH31: 0 | BI31: 0 | BJ31: 0 | BK31: 0 | BL31: 0 | BN31: 2018 | BP31: =AH31 -> 0 | BQ31: =AI31 -> 0 | BR31: =AJ31 -> 0 | BS31: =AK31 -> 0 | BT31: 0 | BU31: 0 | BV31: 0 | BW31: 0 | BX31: 0 | BY31: 0 | BZ31: 0 | CA31: 0 | CB31: 0 | CC31: 0 | CE31: 2018 | CH31: =BQ86-BP86 -> 0 | CI31: =BR86-BQ86 -> 0 | CJ31: =BS86-BR86 -> 0 | CK31: =BT86-BS86 -> 0 | CL31: =BU86-BT86 -> 0 | CM31: =BV86-BU86 -> 0 | CN31: =BW86-BV86 -> 0 | CO31: =BX86-BW86 -> 0 | CP31: =BY86-BX86 -> 0 | CQ31: 0 | CR31: 0 | CS31: 0 | CT31: 0 | CU31: 0
B32: =CurrentYear-1 -> 2019 | C32: =Inputs!B39 -> 0 | R32: =C32 -> 0 | S32: =$R32*C$35 -> 0 | U32: =(Inputs!$B69*Inputs!$D69*C$36)+$R32 -> 0 | W32: =B32 -> 2019 | X32: =INDEX($AX$5:$BL$13,$W32-$W$24+1,$W$32-$W32+2)-INDEX($AX$5:$BL$13,$W32-$W$24+1,$W$32-$W32+1) -> 0 | Y32: 0 | Z32: 0 | AA32: 0 | AB32: =SUM(X32:AA32*H52:K52) -> 0 | AC32: 0 | AF32: =CurrentYear-1 -> 2019 | AG32: =C32 -> 0 | AH32: =AG32*C$34 -> 0 | AI32: =AH32*D$34 -> 0 | AJ32: =AI32*E$34 -> 0 | AK32: =AJ32*F$34 -> 0 | AL32: =AK32*G$34 -> 0 | AM32: 0 | AN32: 0 | AO32: 0 | AP32: 0 | AQ32: 0 | AR32: =AQ32*M$34 -> 0 | AS32: 0 | AT32: 0 | AU32: 0 | AW32: =CurrentYear-1 -> 2019 | AX32: =AG13 -> 0 | AY32: 0 | AZ32: 0 | BA32: 0 | BB32: 0 | BC32: 0 | BD32: 0 | BE32: 0 | BF32: 0 | BG32: 0 | BH32: 0 | BI32: 0 | BJ32: 0 | BK32: 0 | BL32: 0 | BN32: =CurrentYear-1 -> 2019 | BO32: =AG32 -> 0 | BP32: =AH32 -> 0 | BQ32: =AI32 -> 0 | BR32: =AJ32 -> 0 | BS32: =AK32 -> 0 | BT32: 0 | BU32: 0 | BV32: 0 | BW32: 0 | BX32: 0 | BY32: 0 | BZ32: 0 | CA32: 0 | CB32: 0 | CC32: 0 | CE32: =CurrentYear-1 -> 2019 | CG32: =BP87-BO87 -> 0 | CH32: 0 | CI32: 0 | CJ32: 0 | CK32: 0 | CL32: 0 | CM32: 0 | CN32: 0 | CO32: 0 | CP32: 0 | CQ32: =BZ87-BY87 -> 0 | CR32: 0 | CS32: 0 | CT32: 0 | CU32: 0
C33: =C23&"-"&D23 -> 12-24 | D33: =D23&"-"&E23 -> 24-36 | E33: 36-48 | F33: 48-60 | G33: 60-72 | H33: 72-84 | I33: 84-96 | J33: 96-108 | K33: 108-120 | L33: 120-132 | M33: 132-144 | N33: 144-156 | O33: 156-168 | P33: 168- | W33: AY<CY | X33: =SUM(X24:X32) -> 0 | Y33: =SUM(Y24:Y32) -> 0 | Z33: 0 | AA33: 0 | AB33: 0 | AC33: 0
B34: ATA | C34: =IFERROR(SUM(D24:D31)/SUM(C24:C31),1) -> 1 | D34: =IFERROR(SUM(E24:E30)/SUM(D24:D30),1) -> 1 | E34: =IFERROR(SUM(F24:F29)/SUM(E24:E29),1) -> 1 | F34: =IFERROR(SUM(G24:G28)/SUM(F24:F28),1) -> 1 | G34: =IFERROR(SUM(H24:H27)/SUM(G24:G27),1) -> 1 | H34: =IFERROR(SUM(I24:I26)/SUM(H24:H26),1) -> 1 | I34: =IFERROR(SUM(J24:J25)/SUM(I24:I25),1) -> 1 | J34: =IFERROR(K24/J24,1) -> 1 | K34: 1 | L34: 1 | M34: 1 | N34: 1 | O34: 1 | P34: 1
B35: CDF | C35: =D35*C34 -> 1 | D35: =E35*D34 -> 1 | E35: =F35*E34 -> 1 | F35: =G35*F34 -> 1 | G35: =H35*G34 -> 1 | H35: =I35*H34 -> 1 | I35: =J35*I34 -> 1 | J35: =K35*J34 -> 1 | K35: =L35*K34 -> 1 | L35: =M35*L34 -> 1 | M35: 1 | N35: 1 | O35: 1 | P35: =P34 -> 1
B36: Unrptd | C36: =1-1/C35 -> 0 | D36: 0 | E36: 0 | F36: 0 | G36: 0 | H36: 0 | I36: 0 | J36: 0 | K36: 0 | L36: 0 | M36: =1-1/M35 -> 0 | N36: 0 | O36: 0 | P36: 0
B39: =CompanyName -> Company Name | W39: =CompanyName -> Company Name | AF39: =CompanyName -> Company Name | AW39: =CompanyName -> Company Name | BN39: =CompanyName -> Company Name
B40: =LOBName -> LOB Name | W40: =LOBName -> LOB Name | AF40: =LOBName&" -- Paid Data" -> LOB Name -- Paid Data | AW40: =LOBName&" -- Paid Data" -> LOB Name -- Paid Data | BN40: =LOBName&" -- Paid Data [Expected Incurred]" -> LOB Name -- Paid Data [Expected Incurred]
B41: ="Calculation of Weighted Ultimate as of December 31, "&CurrentYear-1 -> Calculation of Weighted Ultimate as of December 31, 2019 | W41: ="Expected Incurred Losses during CY "&$W$32+1 -> Expected Incurred Losses during CY 2020 | AF41: ="Bornhuetter-Feguson Expected Cumulative Future Development as of Decmber 31, "&CurrentYear-1 -> Bornhuetter-Feguson Expected Cumulative Future Development as of Decmber 31, 2019 | AW41: ="Bornhuetter-Feguson Expected Cumulative Future Development as of Decmber 31, "&CurrentYear-1 -> Bornhuetter-Feguson Expected Cumulative Future Development as of Decmber 31, 2019 | BN41: ="Bornhuetter-Feguson Expected Cumulative Future Development as of Decmber 31, "&CurrentYear-1 -> Bornhuetter-Feguson Expected Cumulative Future Development as of Decmber 31, 2019
D42: Ultimate Values by Method | H42: Weights by Method | L42: Weighted | W42: AY | X42: Paid CL | Y42: Inc CL | Z42: Paid BF | AA42: Inc BF | AB42: Weighted | AC42: Selected | AF42: AY | AG42: 12 | AH42: 24 | AI42: 36 | AJ42: 48 | AK42: 60 | AL42: 72 | AM42: 84 | AN42: 96 | AO42: 108 | AP42: 120 | AQ42: 132 | AR42: 144 | AS42: 156 | AT42: 168 | AU42: 180+ | AW42: AY | AX42: 12 | AY42: 24 | AZ42: 36 | BA42: 48 | BB42: 60 | BC42: 72 | BD42: 84 | BE42: 96 | BF42: 108 | BG42: 120 | BH42: 132 | BI42: 144 | BJ42: 156 | BK42: 168 | BL42: 180+ | BN42: AY | BO42: 12 | BP42: 24 | BQ42: 36 | BR42: 48 | BS42: 60 | BT42: 72 | BU42: 84 | BV42: 96 | BW42: 108 | BX42: 120 | BY42: 132 | BZ42: 144 | CA42: 156 | CB42: 168 | CC42: 180+
B43: AY | C43: Age | D43: Paid CL | E43: Inc CL | F43: Paid BF | G43: Inc BF | H43: Paid CL | I43: Inc CL | J43: Paid BF | K43: Inc BF | L43: Ultimate | W43: =W24 -> 2011 | X43: =INDEX($BO$5:$CC$13,$W43-$W$24+1,$W$32-$W43+2)-INDEX($BO$5:$CC$13,$W43-$W$24+1,$W$32-$W43+1) -> 0 | Y43: =INDEX($BO$24:$CC$32,$W43-$W$24+1,$W$32-$W43+2)-INDEX($BO$24:$CC$32,$W43-$W$24+1,$W$32-$W43+1) -> 0 | Z43: =INDEX($BO$43:$CC$51,$W43-$W$24+1,$W$32-$W43+2)-INDEX($BO$43:$CC$51,$W43-$W$24+1,$W$32-$W43+1) -> 0 | AA43: =INDEX($BO$61:$CC$69,$W43-$W$24+1,$W$32-$W43+2)-INDEX($BO$61:$CC$69,$W43-$W$24+1,$W$32-$W43+1) -> 0 | AB43: =SUM(X43:AA43*H44:K44) -> 0 | AC43: =H108 -> 0 | AF43: =AF44-1 -> 2011 | AO43: =K5 -> 0 | AP43: =AO43+Inputs!$B61*Inputs!$D61*(K$17-L$17) -> 0 | AQ43: =AP43+Inputs!$B61*Inputs!$D61*(L$17-M$17) -> 0 | AR43: =AQ43+Inputs!$B61*Inputs!$D61*(M$17-N$17) -> 0 | AS43: =AR43+Inputs!$B61*Inputs!$D61*(N$17-O$17) -> 0 | AT43: =AS43+Inputs!$B61*Inputs!$D61*(O$17-P$17) -> 0 | AU43: =AT43+Inputs!$B61*Inputs!$D61*(P$17-Q$17) -> 0 | AW43: =AW44-1 -> 2011 | BF43: =AO43 -> 0 | BG43: =AP43 -> 0 | BH43: =AQ43 -> 0 | BI43: =AR43 -> 0 | BJ43: 0 | BK43: 0 | BL43: 0 | BN43: =BN44-1 -> 2011 | BW43: =AO61 -> 0 | BX43: =IF($AU61=0,0,BX61*($AU43/$AU61)) -> 0 | BY43: 0 | BZ43: 0 | CA43: 0 | CB43: 0 | CC43: 0
B44: =B45-1 -> 2011 | C44: =K$4 -> 108 | D44: =S5 -> 0 | E44: =S24 -> 0 | F44: =U5 -> 0 | G44: =U24 -> 0 | L44: =IFERROR(SUMPRODUCT(D44:G44,H44:K44)/SUM(H44:K44),0) -> 0 | W44: =W25 -> 2012 | X44: 0 | Y44: 0 | Z44: 0 | AA44: 0 | AB44: =SUM(X44:AA44*H45:K45) -> 0 | AC44: =H109 -> 0 | AF44: 2012 | AN44: =J6 -> 0 | AO44: =AN44+Inputs!$B62*Inputs!$D62*(J$17-K$17) -> 0 | AP44: =AO44+Inputs!$B62*Inputs!$D62*(K$17-L$17) -> 0 | AQ44: =AP44+Inputs!$B62*Inputs!$D62*(L$17-M$17) -> 0 | AR44: =AQ44+Inputs!$B62*Inputs!$D62*(M$17-N$17) -> 0 | AS44: =AR44+Inputs!$B62*Inputs!$D62*(N$17-O$17) -> 0 | AT44: =AS44+Inputs!$B62*Inputs!$D62*(O$17-P$17) -> 0 | AU44: =AT44+Inputs!$B62*Inputs!$D62*(P$17-Q$17) -> 0 | AW44: 2012 | BE44: =AN44 -> 0 | BF44: 0 | BG44: 0 | BH44: 0 | BI44: 0 | BJ44: 0 | BK44: 0 | BL44: 0 | BN44: 2012 | BV44: =AN62 -> 0 | BW44: 0 | BX44: 0 | BY44: 0 | BZ44: 0 | CA44: 0 | CB44: 0 | CC44: 0
B45: 2012 | C45: =J$4 -> 96 | D45: 0 | E45: 0 | F45: 0 | G45: 0 | L45: =IFERROR(SUMPRODUCT(D45:G45,H45:K45)/SUM(H45:K45),0) -> 0 | W45: 2013 | X45: 0 | Y45: 0 | Z45: 0 | AA45: 0 | AB45: =SUM(X45:AA45*H46:K46) -> 0 | AC45: 0 | AF45: 2013 | AM45: =I7 -> 0 | AN45: =AM45+Inputs!$B63*Inputs!$D63*(I$17-J$17) -> 0 | AO45: =AN45+Inputs!$B63*Inputs!$D63*(J$17-K$17) -> 0 | AP45: =AO45+Inputs!$B63*Inputs!$D63*(K$17-L$17) -> 0 | AQ45: =AP45+Inputs!$B63*Inputs!$D63*(L$17-M$17) -> 0 | AR45: =AQ45+Inputs!$B63*Inputs!$D63*(M$17-N$17) -> 0 | AS45: =AR45+Inputs!$B63*Inputs!$D63*(N$17-O$17) -> 0 | AT45: =AS45+Inputs!$B63*Inputs!$D63*(O$17-P$17) -> 0 | AU45: =AT45+Inputs!$B63*Inputs!$D63*(P$17-Q$17) -> 0 | AW45: 2013 | BD45: =AM45 -> 0 | BE45: 0 | BF45: 0 | BG45: 0 | BH45: 0 | BI45: 0 | BJ45: 0 | BK45: 0 | BL45: 0 | BN45: 2013 | BU45: =AM63 -> 0 | BV45: 0 | BW45: 0 | BX45: 0 | BY45: 0 | BZ45: 0 | CA45: 0 | CB45: 0 | CC45: 0
B46: 2013 | C46: =I$4 -> 84 | D46: 0 | E46: 0 | F46: 0 | G46: 0 | L46: 0 | W46: 2014 | X46: 0 | Y46: 0 | Z46: 0 | AA46: 0 | AB46: =SUM(X46:AA46*H47:K47) -> 0 | AC46: 0 | AF46: 2014 | AL46: =H8 -> 0 | AM46: =AL46+Inputs!$B64*Inputs!$D64*(H$17-I$17) -> 0 | AN46: =AM46+Inputs!$B64*Inputs!$D64*(I$17-J$17) -> 0 | AO46: =AN46+Inputs!$B64*Inputs!$D64*(J$17-K$17) -> 0 | AP46: =AO46+Inputs!$B64*Inputs!$D64*(K$17-L$17) -> 0 | AQ46: =AP46+Inputs!$B64*Inputs!$D64*(L$17-M$17) -> 0 | AR46: =AQ46+Inputs!$B64*Inputs!$D64*(M$17-N$17) -> 0 | AS46: =AR46+Inputs!$B64*Inputs!$D64*(N$17-O$17) -> 0 | AT46: =AS46+Inputs!$B64*Inputs!$D64*(O$17-P$17) -> 0 | AU46: =AT46+Inputs!$B64*Inputs!$D64*(P$17-Q$17) -> 0 | AW46: 2014 | BC46: =AL46 -> 0 | BD46: 0 | BE46: 0 | BF46: 0 | BG46: 0 | BH46: 0 | BI46: 0 | BJ46: 0 | BK46: 0 | BL46: 0 | BN46: 2014 | BT46: =AL64 -> 0 | BU46: 0 | BV46: 0 | BW46: 0 | BX46: 0 | BY46: 0 | BZ46: 0 | CA46: 0 | CB46: 0 | CC46: 0
B47: 2014 | C47: =H$4 -> 72 | D47: 0 | E47: 0 | F47: 0 | G47: 0 | L47: 0 | W47: 2015 | X47: 0 | Y47: 0 | Z47: 0 | AA47: 0 | AB47: =SUM(X47:AA47*H48:K48) -> 0 | AC47: 0 | AF47: 2015 | AK47: =G9 -> 0 | AL47: =AK47+Inputs!$B65*Inputs!$D65*(G$17-H$17) -> 0 | AM47: =AL47+Inputs!$B65*Inputs!$D65*(H$17-I$17) -> 0 | AN47: =AM47+Inputs!$B65*Inputs!$D65*(I$17-J$17) -> 0 | AO47: =AN47+Inputs!$B65*Inputs!$D65*(J$17-K$17) -> 0 | AP47: =AO47+Inputs!$B65*Inputs!$D65*(K$17-L$17) -> 0 | AQ47: =AP47+Inputs!$B65*Inputs!$D65*(L$17-M$17) -> 0 | AR47: =AQ47+Inputs!$B65*Inputs!$D65*(M$17-N$17) -> 0 | AS47: =AR47+Inputs!$B65*Inputs!$D65*(N$17-O$17) -> 0 | AT47: =AS47+Inputs!$B65*Inputs!$D65*(O$17-P$17) -> 0 | AU47: =AT47+Inputs!$B65*Inputs!$D65*(P$17-Q$17) -> 0 | AW47: 2015 | BB47: =AK47 -> 0 | BC47: 0 | BD47: 0 | BE47: 0 | BF47: 0 | BG47: 0 | BH47: 0 | BI47: 0 | BJ47: 0 | BK47: 0 | BL47: 0 | BN47: 2015 | BS47: =AK65 -> 0 | BT47: 0 | BU47: 0 | BV47: 0 | BW47: 0 | BX47: 0 | BY47: 0 | BZ47: 0 | CA47: 0 | CB47: 0 | CC47: 0
B48: 2015 | C48: =G$4 -> 60 | D48: 0 | E48: 0 | F48: 0 | G48: 0 | L48: 0 | W48: 2016 | X48: 0 | Y48: 0 | Z48: 0 | AA48: 0 | AB48: =SUM(X48:AA48*H49:K49) -> 0 | AC48: 0 | AF48: 2016 | AJ48: =F10 -> 0 | AK48: =AJ48+Inputs!$B66*Inputs!$D66*(F$17-G$17) -> 0 | AL48: =AK48+Inputs!$B66*Inputs!$D66*(G$17-H$17) -> 0 | AM48: =AL48+Inputs!$B66*Inputs!$D66*(H$17-I$17) -> 0 | AN48: =AM48+Inputs!$B66*Inputs!$D66*(I$17-J$17) -> 0 | AO48: =AN48+Inputs!$B66*Inputs!$D66*(J$17-K$17) -> 0 | AP48: =AO48+Inputs!$B66*Inputs!$D66*(K$17-L$17) -> 0 | AQ48: =AP48+Inputs!$B66*Inputs!$D66*(L$17-M$17) -> 0 | AR48: =AQ48+Inputs!$B66*Inputs!$D66*(M$17-N$17) -> 0 | AS48: =AR48+Inputs!$B66*Inputs!$D66*(N$17-O$17) -> 0 | AT48: =AS48+Inputs!$B66*Inputs!$D66*(O$17-P$17) -> 0 | AU48: =AT48+Inputs!$B66*Inputs!$D66*(P$17-Q$17) -> 0 | AW48: 2016 | BA48: =AJ48 -> 0 | BB48: =AK48 -> 0 | BC48: 0 | BD48: 0 | BE48: 0 | BF48: 0 | BG48: 0 | BH48: 0 | BI48: 0 | BJ48: 0 | BK48: 0 | BL48: 0 | BN48: 2016 | BR48: =AJ66 -> 0 | BS48: 0 | BT48: 0 | BU48: 0 | BV48: 0 | BW48: 0 | BX48: 0 | BY48: 0 | BZ48: 0 | CA48: 0 | CB48: 0 | CC48: 0
B49: 2016 | C49: =F$4 -> 48 | D49: 0 | E49: 0 | F49: 0 | G49: 0 | L49: 0 | W49: 2017 | X49: 0 | Y49: 0 | Z49: 0 | AA49: 0 | AB49: =SUM(X49:AA49*H50:K50) -> 0 | AC49: 0 | AF49: 2017 | AI49: =E11 -> 0 | AJ49: =AI49+Inputs!$B67*Inputs!$D67*(E$17-F$17) -> 0 | AK49: =AJ49+Inputs!$B67*Inputs!$D67*(F$17-G$17) -> 0 | AL49: =AK49+Inputs!$B67*Inputs!$D67*(G$17-H$17) -> 0 | AM49: =AL49+Inputs!$B67*Inputs!$D67*(H$17-I$17) -> 0 | AN49: =AM49+Inputs!$B67*Inputs!$D67*(I$17-J$17) -> 0 | AO49: =AN49+Inputs!$B67*Inputs!$D67*(J$17-K$17) -> 0 | AP49: =AO49+Inputs!$B67*Inputs!$D67*(K$17-L$17) -> 0 | AQ49: =AP49+Inputs!$B67*Inputs!$D67*(L$17-M$17) -> 0 | AR49: =AQ49+Inputs!$B67*Inputs!$D67*(M$17-N$17) -> 0 | AS49: =AR49+Inputs!$B67*Inputs!$D67*(N$17-O$17) -> 0 | AT49: =AS49+Inputs!$B67*Inputs!$D67*(O$17-P$17) -> 0 | AU49: =AT49+Inputs!$B67*Inputs!$D67*(P$17-Q$17) -> 0 | AW49: 2017 | AZ49: =AI49 -> 0 | BA49: =AJ49 -> 0 | BB49: =AK49 -> 0 | BC49: 0 | BD49: 0 | BE49: 0 | BF49: 0 | BG49: 0 | BH49: 0 | BI49: 0 | BJ49: 0 | BK49: 0 | BL49: 0 | BN49: 2017 | BQ49: =AI67 -> 0 | BR49: 0 | BS49: 0 | BT49: 0 | BU49: 0 | BV49: 0 | BW49: 0 | BX49: 0 | BY49: 0 | BZ49: 0 | CA49: 0 | CB49: 0 | CC49: 0
B50: 2017 | C50: =E$4 -> 36 | D50: 0 | E50: 0 | F50: 0 | G50: 0 | L50: 0 | W50: 2018 | X50: 0 | Y50: 0 | Z50: 0 | AA50: 0 | AB50: =SUM(X50:AA50*H51:K51) -> 0 | AC50: 0 | AF50: 2018 | AH50: =D12 -> 0 | AI50: =AH50+Inputs!$B68*Inputs!$D68*(D$17-E$17) -> 0 | AJ50: =AI50+Inputs!$B68*Inputs!$D68*(E$17-F$17) -> 0 | AK50: =AJ50+Inputs!$B68*Inputs!$D68*(F$17-G$17) -> 0 | AL50: =AK50+Inputs!$B68*Inputs!$D68*(G$17-H$17) -> 0 | AM50: =AL50+Inputs!$B68*Inputs!$D68*(H$17-I$17) -> 0 | AN50: =AM50+Inputs!$B68*Inputs!$D68*(I$17-J$17) -> 0 | AO50: =AN50+Inputs!$B68*Inputs!$D68*(J$17-K$17) -> 0 | AP50: =AO50+Inputs!$B68*Inputs!$D68*(K$17-L$17) -> 0 | AQ50: =AP50+Inputs!$B68*Inputs!$D68*(L$17-M$17) -> 0 | AR50: =AQ50+Inputs!$B68*Inputs!$D68*(M$17-N$17) -> 0 | AS50: =AR50+Inputs!$B68*Inputs!$D68*(N$17-O$17) -> 0 | AT50: =AS50+Inputs!$B68*Inputs!$D68*(O$17-P$17) -> 0 | AU50: =AT50+Inputs!$B68*Inputs!$D68*(P$17-Q$17) -> 0 | AW50: 2018 | AY50: =AH50 -> 0 | AZ50: =AI50 -> 0 | BA50: =AJ50 -> 0 | BB50: =AK50 -> 0 | BC50: 0 | BD50: 0 | BE50: 0 | BF50: 0 | BG50: 0 | BH50: 0 | BI50: 0 | BJ50: 0 | BK50: 0 | BL50: 0 | BN50: 2018 | BP50: =AH68 -> 0 | BQ50: 0 | BR50: 0 | BS50: 0 | BT50: 0 | BU50: 0 | BV50: 0 | BW50: 0 | BX50: 0 | BY50: 0 | BZ50: 0 | CA50: 0 | CB50: 0 | CC50: 0
B51: 2018 | C51: =D$4 -> 24 | D51: 0 | E51: 0 | F51: 0 | G51: 0 | L51: 0 | W51: 2019 | X51: 0 | Y51: 0 | Z51: 0 | AA51: 0 | AB51: =SUM(X51:AA51*H52:K52) -> 0 | AC51: 0 | AF51: =CurrentYear-1 -> 2019 | AG51: =C13 -> 0 | AH51: =AG51+Inputs!$B69*Inputs!$D69*(C$17-D$17) -> 0 | AI51: =AH51+Inputs!$B69*Inputs!$D69*(D$17-E$17) -> 0 | AJ51: =AI51+Inputs!$B69*Inputs!$D69*(E$17-F$17) -> 0 | AK51: =AJ51+Inputs!$B69*Inputs!$D69*(F$17-G$17) -> 0 | AL51: =AK51+Inputs!$B69*Inputs!$D69*(G$17-H$17) -> 0 | AM51: =AL51+Inputs!$B69*Inputs!$D69*(H$17-I$17) -> 0 | AN51: =AM51+Inputs!$B69*Inputs!$D69*(I$17-J$17) -> 0 | AO51: =AN51+Inputs!$B69*Inputs!$D69*(J$17-K$17) -> 0 | AP51: =AO51+Inputs!$B69*Inputs!$D69*(K$17-L$17) -> 0 | AQ51: =AP51+Inputs!$B69*Inputs!$D69*(L$17-M$17) -> 0 | AR51: =AQ51+Inputs!$B69*Inputs!$D69*(M$17-N$17) -> 0 | AS51: =AR51+Inputs!$B69*Inputs!$D69*(N$17-O$17) -> 0 | AT51: =AS51+Inputs!$B69*Inputs!$D69*(O$17-P$17) -> 0 | AU51: =AT51+Inputs!$B69*Inputs!$D69*(P$17-Q$17) -> 0 | AW51: =CurrentYear-1 -> 2019 | AX51: =AG51 -> 0 | AY51: =AH51 -> 0 | AZ51: =AI51 -> 0 | BA51: =AJ51 -> 0 | BB51: =AK51 -> 0 | BC51: 0 | BD51: 0 | BE51: 0 | BF51: 0 | BG51: 0 | BH51: 0 | BI51: 0 | BJ51: 0 | BK51: 0 | BL51: 0 | BN51: =CurrentYear-1 -> 2019 | BO51: =AG69 -> 0 | BP51: 0 | BQ51: 0 | BR51: 0 | BS51: 0 | BT51: 0 | BU51: 0 | BV51: 0 | BW51: 0 | BX51: 0 | BY51: 0 | BZ51: 0 | CA51: 0 | CB51: 0 | CC51: 0
B52: =CurrentYear-1 -> 2019 | C52: =C$4 -> 12 | D52: 0 | E52: 0 | F52: 0 | G52: 0 | L52: 0 | W52: AY<CY | X52: =SUM(X43:X51) -> 0 | Y52: =SUM(Y43:Y51) -> 0 | Z52: =SUM(Z43:Z51) -> 0 | AA52: =SUM(AA43:AA51) -> 0 | AB52: =SUM(AB43:AB51) -> 0 | AC52: =SUM(AC43:AC51) -> 0
B53: Totals | D53: =SUM(D44:D52) -> 0 | E53: =SUM(E44:E52) -> 0 | F53: 0 | G53: 0 | L53: =SUM(L44:L52) -> 0
B56: =CompanyName -> Company Name
B57: =LOBName -> LOB Name | AF57: =CompanyName -> Company Name | AW57: =CompanyName -> Company Name | BN57: =CompanyName -> Company Name
B58: ="Total Unpaid Reconciliation as of December 31, "&CurrentYear-1 -> Total Unpaid Reconciliation as of December 31, 2019 | AF58: =LOBName&" -- Incurred Data" -> LOB Name -- Incurred Data | AW58: =LOBName&" -- Incurred Data [Expected Paid]" -> LOB Name -- Incurred Data [Expected Paid] | BN58: =LOBName&" -- Incurred Data" -> LOB Name -- Incurred Data
D59: Paid | E59: Incurred | F59: Weighted | G59: Case | I59: Total | J59: Selected | K59: Selected | L59: Total | AF59: ="Borhuetter-Ferguson Expected Cumulative Future Development as of Decmber 31, "&CurrentYear-1 -> Borhuetter-Ferguson Expected Cumulative Future Development as of Decmber 31, 2019 | AW59: ="Borhuetter-Ferguson Expected Cumulative Future Development as of Decmber 31, "&CurrentYear-1 -> Borhuetter-Ferguson Expected Cumulative Future Development as of Decmber 31, 2019 | BN59: ="Borhuetter-Ferguson Expected Cumulative Future Development as of Decmber 31, "&CurrentYear-1 -> Borhuetter-Ferguson Expected Cumulative Future Development as of Decmber 31, 2019
B60: AY | C60: Age | D60: to Date | E60: to Date | F60: Ultimate | G60: Reserve | H60: IBNR | I60: Unpaid | J60: Ultimate | K60: IBNR | L60: Unpaid | AF60: AY | AG60: 12 | AH60: 24 | AI60: 36 | AJ60: 48 | AK60: 60 | AL60: 72 | AM60: 84 | AN60: 96 | AO60: 108 | AP60: 120 | AQ60: 132 | AR60: 144 | AS60: 156 | AT60: 168 | AU60: 180+ | AW60: AY | AX60: 12 | AY60: 24 | AZ60: 36 | BA60: 48 | BB60: 60 | BC60: 72 | BD60: 84 | BE60: 96 | BF60: 108 | BG60: 120 | BH60: 132 | BI60: 144 | BJ60: 156 | BK60: 168 | BL60: 180+ | BN60: AY | BO60: 12 | BP60: 24 | BQ60: 36 | BR60: 48 | BS60: 60 | BT60: 72 | BU60: 84 | BV60: 96 | BW60: 108 | BX60: 120 | BY60: 132 | BZ60: 144 | CA60: 156 | CB60: 168 | CC60: 180+
B61: =B62-1 -> 2011 | C61: =K$4 -> 108 | D61: =R5 -> 0 | E61: =R24 -> 0 | F61: =L44 -> 0 | G61: =E61-D61 -> 0 | H61: =F61-E61 -> 0 | I61: =F61-D61 -> 0 | J61: =F61 -> 0 | K61: =J61-E61 -> 0 | L61: =J61-D61 -> 0 | AF61: =AF62-1 -> 2011 | AO61: =K24 -> 0 | AP61: =AO61+Inputs!$B61*Inputs!$D61*(K$36-L$36) -> 0 | AQ61: =AP61+Inputs!$B61*Inputs!$D61*(L$36-M$36) -> 0 | AR61: =AQ61+Inputs!$B61*Inputs!$D61*(M$36-N$36) -> 0 | AS61: =AR61+Inputs!$B61*Inputs!$D61*(N$36-O$36) -> 0 | AT61: =AS61+Inputs!$B61*Inputs!$D61*(O$36-P$36) -> 0 | AU61: =AT61+Inputs!$B61*Inputs!$D61*(P$36-Q$36) -> 0 | AW61: =AW62-1 -> 2011 | BF61: =AO43 -> 0 | BG61: =IF($AU43=0,0,BG43*($AU61/$AU43)) -> 0 | BH61: 0 | BI61: 0 | BJ61: 0 | BK61: 0 | BL61: 0 | BN61: =BN62-1 -> 2011 | BW61: =AO61 -> 0 | BX61: =AP61 -> 0 | BY61: =AQ61 -> 0 | BZ61: =AR61 -> 0 | CA61: 0 | CB61: 0 | CC61: 0
B62: 2012 | C62: =J$4 -> 96 | D62: 0 | E62: 0 | F62: =L45 -> 0 | G62: =E62-D62 -> 0 | H62: =F62-E62 -> 0 | I62: =F62-D62 -> 0 | J62: =F62 -> 0 | K62: =J62-E62 -> 0 | L62: =J62-D62 -> 0 | AF62: 2012 | AN62: =J25 -> 0 | AO62: =AN62+Inputs!$B62*Inputs!$D62*(J$36-K$36) -> 0 | AP62: =AO62+Inputs!$B62*Inputs!$D62*(K$36-L$36) -> 0 | AQ62: =AP62+Inputs!$B62*Inputs!$D62*(L$36-M$36) -> 0 | AR62: =AQ62+Inputs!$B62*Inputs!$D62*(M$36-N$36) -> 0 | AS62: =AR62+Inputs!$B62*Inputs!$D62*(N$36-O$36) -> 0 | AT62: =AS62+Inputs!$B62*Inputs!$D62*(O$36-P$36) -> 0 | AU62: =AT62+Inputs!$B62*Inputs!$D62*(P$36-Q$36) -> 0 | AW62: 2012 | BE62: =AN44 -> 0 | BF62: 0 | BG62: 0 | BH62: 0 | BI62: 0 | BJ62: 0 | BK62: 0 | BL62: 0 | BN62: 2012 | BV62: =AN62 -> 0 | BW62: 0 | BX62: 0 | BY62: 0 | BZ62: 0 | CA62: 0 | CB62: 0 | CC62: 0
B63: 2013 | C63: =I$4 -> 84 | D63: 0 | E63: 0 | F63: 0 | G63: 0 | H63: 0 | I63: 0 | J63: 0 | K63: 0 | L63: 0 | AF63: 2013 | AM63: =I26 -> 0 | AN63: =AM63+Inputs!$B63*Inputs!$D63*(I$36-J$36) -> 0 | AO63: =AN63+Inputs!$B63*Inputs!$D63*(J$36-K$36) -> 0 | AP63: =AO63+Inputs!$B63*Inputs!$D63*(K$36-L$36) -> 0 | AQ63: =AP63+Inputs!$B63*Inputs!$D63*(L$36-M$36) -> 0 | AR63: =AQ63+Inputs!$B63*Inputs!$D63*(M$36-N$36) -> 0 | AS63: =AR63+Inputs!$B63*Inputs!$D63*(N$36-O$36) -> 0 | AT63: =AS63+Inputs!$B63*Inputs!$D63*(O$36-P$36) -> 0 | AU63: =AT63+Inputs!$B63*Inputs!$D63*(P$36-Q$36) -> 0 | AW63: 2013 | BD63: =AM45 -> 0 | BE63: 0 | BF63: 0 | BG63: 0 | BH63: 0 | BI63: 0 | BJ63: 0 | BK63: 0 | BL63: 0 | BN63: 2013 | BU63: =AM63 -> 0 | BV63: 0 | BW63: 0 | BX63: 0 | BY63: 0 | BZ63: 0 | CA63: 0 | CB63: 0 | CC63: 0
B64: 2014 | C64: =H$4 -> 72 | D64: 0 | E64: 0 | F64: 0 | G64: 0 | H64: 0 | I64: 0 | J64: 0 | K64: 0 | L64: 0 | AF64: 2014 | AL64: =H27 -> 0 | AM64: =AL64+Inputs!$B64*Inputs!$D64*(H$36-I$36) -> 0 | AN64: =AM64+Inputs!$B64*Inputs!$D64*(I$36-J$36) -> 0 | AO64: =AN64+Inputs!$B64*Inputs!$D64*(J$36-K$36) -> 0 | AP64: =AO64+Inputs!$B64*Inputs!$D64*(K$36-L$36) -> 0 | AQ64: =AP64+Inputs!$B64*Inputs!$D64*(L$36-M$36) -> 0 | AR64: =AQ64+Inputs!$B64*Inputs!$D64*(M$36-N$36) -> 0 | AS64: =AR64+Inputs!$B64*Inputs!$D64*(N$36-O$36) -> 0 | AT64: =AS64+Inputs!$B64*Inputs!$D64*(O$36-P$36) -> 0 | AU64: =AT64+Inputs!$B64*Inputs!$D64*(P$36-Q$36) -> 0 | AW64: 2014 | BC64: =AL46 -> 0 | BD64: 0 | BE64: 0 | BF64: 0 | BG64: 0 | BH64: 0 | BI64: 0 | BJ64: 0 | BK64: 0 | BL64: 0 | BN64: 2014 | BT64: =AL64 -> 0 | BU64: 0 | BV64: 0 | BW64: 0 | BX64: 0 | BY64: 0 | BZ64: 0 | CA64: 0 | CB64: 0 | CC64: 0
B65: 2015 | C65: =G$4 -> 60 | D65: 0 | E65: 0 | F65: 0 | G65: 0 | H65: 0 | I65: 0 | J65: 0 | K65: 0 | L65: 0 | AF65: 2015 | AK65: =G28 -> 0 | AL65: =AK65+Inputs!$B65*Inputs!$D65*(G$36-H$36) -> 0 | AM65: =AL65+Inputs!$B65*Inputs!$D65*(H$36-I$36) -> 0 | AN65: =AM65+Inputs!$B65*Inputs!$D65*(I$36-J$36) -> 0 | AO65: =AN65+Inputs!$B65*Inputs!$D65*(J$36-K$36) -> 0 | AP65: =AO65+Inputs!$B65*Inputs!$D65*(K$36-L$36) -> 0 | AQ65: =AP65+Inputs!$B65*Inputs!$D65*(L$36-M$36) -> 0 | AR65: =AQ65+Inputs!$B65*Inputs!$D65*(M$36-N$36) -> 0 | AS65: =AR65+Inputs!$B65*Inputs!$D65*(N$36-O$36) -> 0 | AT65: =AS65+Inputs!$B65*Inputs!$D65*(O$36-P$36) -> 0 | AU65: =AT65+Inputs!$B65*Inputs!$D65*(P$36-Q$36) -> 0 | AW65: 2015 | BB65: =AK47 -> 0 | BC65: 0 | BD65: 0 | BE65: 0 | BF65: 0 | BG65: 0 | BH65: 0 | BI65: 0 | BJ65: 0 | BK65: 0 | BL65: 0 | BN65: 2015 | BS65: =AK65 -> 0 | BT65: 0 | BU65: 0 | BV65: 0 | BW65: 0 | BX65: 0 | BY65: 0 | BZ65: 0 | CA65: 0 | CB65: 0 | CC65: 0
B66: 2016 | C66: =F$4 -> 48 | D66: 0 | E66: 0 | F66: 0 | G66: 0 | H66: 0 | I66: 0 | J66: 0 | K66: 0 | L66: 0 | AF66: 2016 | AJ66: =F29 -> 0 | AK66: =AJ66+Inputs!$B66*Inputs!$D66*(F$36-G$36) -> 0 | AL66: =AK66+Inputs!$B66*Inputs!$D66*(G$36-H$36) -> 0 | AM66: =AL66+Inputs!$B66*Inputs!$D66*(H$36-I$36) -> 0 | AN66: =AM66+Inputs!$B66*Inputs!$D66*(I$36-J$36) -> 0 | AO66: =AN66+Inputs!$B66*Inputs!$D66*(J$36-K$36) -> 0 | AP66: =AO66+Inputs!$B66*Inputs!$D66*(K$36-L$36) -> 0 | AQ66: =AP66+Inputs!$B66*Inputs!$D66*(L$36-M$36) -> 0 | AR66: =AQ66+Inputs!$B66*Inputs!$D66*(M$36-N$36) -> 0 | AS66: =AR66+Inputs!$B66*Inputs!$D66*(N$36-O$36) -> 0 | AT66: =AS66+Inputs!$B66*Inputs!$D66*(O$36-P$36) -> 0 | AU66: =AT66+Inputs!$B66*Inputs!$D66*(P$36-Q$36) -> 0 | AW66: 2016 | BA66: =AJ48 -> 0 | BB66: 0 | BC66: 0 | BD66: 0 | BE66: 0 | BF66: 0 | BG66: 0 | BH66: 0 | BI66: 0 | BJ66: 0 | BK66: 0 | BL66: 0 | BN66: 2016 | BR66: =AJ66 -> 0 | BS66: =AK66 -> 0 | BT66: 0 | BU66: 0 | BV66: 0 | BW66: 0 | BX66: 0 | BY66: 0 | BZ66: 0 | CA66: 0 | CB66: 0 | CC66: 0
B67: 2017 | C67: =E$4 -> 36 | D67: 0 | E67: 0 | F67: 0 | G67: 0 | H67: 0 | I67: 0 | J67: 0 | K67: 0 | L67: 0 | AF67: 2017 | AI67: =E30 -> 0 | AJ67: =AI67+Inputs!$B67*Inputs!$D67*(E$36-F$36) -> 0 | AK67: =AJ67+Inputs!$B67*Inputs!$D67*(F$36-G$36) -> 0 | AL67: =AK67+Inputs!$B67*Inputs!$D67*(G$36-H$36) -> 0 | AM67: =AL67+Inputs!$B67*Inputs!$D67*(H$36-I$36) -> 0 | AN67: =AM67+Inputs!$B67*Inputs!$D67*(I$36-J$36) -> 0 | AO67: =AN67+Inputs!$B67*Inputs!$D67*(J$36-K$36) -> 0 | AP67: =AO67+Inputs!$B67*Inputs!$D67*(K$36-L$36) -> 0 | AQ67: =AP67+Inputs!$B67*Inputs!$D67*(L$36-M$36) -> 0 | AR67: =AQ67+Inputs!$B67*Inputs!$D67*(M$36-N$36) -> 0 | AS67: =AR67+Inputs!$B67*Inputs!$D67*(N$36-O$36) -> 0 | AT67: =AS67+Inputs!$B67*Inputs!$D67*(O$36-P$36) -> 0 | AU67: =AT67+Inputs!$B67*Inputs!$D67*(P$36-Q$36) -> 0 | AW67: 2017 | AZ67: =AI49 -> 0 | BA67: 0 | BB67: 0 | BC67: 0 | BD67: 0 | BE67: 0 | BF67: 0 | BG67: 0 | BH67: 0 | BI67: 0 | BJ67: 0 | BK67: 0 | BL67: 0 | BN67: 2017 | BQ67: =AI67 -> 0 | BR67: =AJ67 -> 0 | BS67: =AK67 -> 0 | BT67: 0 | BU67: 0 | BV67: 0 | BW67: 0 | BX67: 0 | BY67: 0 | BZ67: 0 | CA67: 0 | CB67: 0 | CC67: 0
B68: 2018 | C68: =D$4 -> 24 | D68: 0 | E68: 0 | F68: 0 | G68: 0 | H68: 0 | I68: 0 | J68: 0 | K68: 0 | L68: 0 | AF68: 2018 | AH68: =D31 -> 0 | AI68: =AH68+Inputs!$B68*Inputs!$D68*(D$36-E$36) -> 0 | AJ68: =AI68+Inputs!$B68*Inputs!$D68*(E$36-F$36) -> 0 | AK68: =AJ68+Inputs!$B68*Inputs!$D68*(F$36-G$36) -> 0 | AL68: =AK68+Inputs!$B68*Inputs!$D68*(G$36-H$36) -> 0 | AM68: =AL68+Inputs!$B68*Inputs!$D68*(H$36-I$36) -> 0 | AN68: =AM68+Inputs!$B68*Inputs!$D68*(I$36-J$36) -> 0 | AO68: =AN68+Inputs!$B68*Inputs!$D68*(J$36-K$36) -> 0 | AP68: =AO68+Inputs!$B68*Inputs!$D68*(K$36-L$36) -> 0 | AQ68: =AP68+Inputs!$B68*Inputs!$D68*(L$36-M$36) -> 0 | AR68: =AQ68+Inputs!$B68*Inputs!$D68*(M$36-N$36) -> 0 | AS68: =AR68+Inputs!$B68*Inputs!$D68*(N$36-O$36) -> 0 | AT68: =AS68+Inputs!$B68*Inputs!$D68*(O$36-P$36) -> 0 | AU68: =AT68+Inputs!$B68*Inputs!$D68*(P$36-Q$36) -> 0 | AW68: 2018 | AY68: =AH50 -> 0 | AZ68: 0 | BA68: 0 | BB68: 0 | BC68: 0 | BD68: 0 | BE68: 0 | BF68: 0 | BG68: 0 | BH68: 0 | BI68: 0 | BJ68: 0 | BK68: 0 | BL68: 0 | BN68: 2018 | BP68: =AH68 -> 0 | BQ68: =AI68 -> 0 | BR68: =AJ68 -> 0 | BS68: =AK68 -> 0 | BT68: 0 | BU68: 0 | BV68: 0 | BW68: 0 | BX68: 0 | BY68: 0 | BZ68: 0 | CA68: 0 | CB68: 0 | CC68: 0
B69: =CurrentYear-1 -> 2019 | C69: =C$4 -> 12 | D69: 0 | E69: 0 | F69: 0 | G69: 0 | H69: 0 | I69: 0 | J69: 0 | K69: 0 | L69: 0 | AF69: =CurrentYear-1 -> 2019 | AG69: =C32 -> 0 | AH69: =AG69+Inputs!$B69*Inputs!$D69*(C$36-D$36) -> 0 | AI69: =AH69+Inputs!$B69*Inputs!$D69*(D$36-E$36) -> 0 | AJ69: =AI69+Inputs!$B69*Inputs!$D69*(E$36-F$36) -> 0 | AK69: =AJ69+Inputs!$B69*Inputs!$D69*(F$36-G$36) -> 0 | AL69: =AK69+Inputs!$B69*Inputs!$D69*(G$36-H$36) -> 0 | AM69: =AL69+Inputs!$B69*Inputs!$D69*(H$36-I$36) -> 0 | AN69: =AM69+Inputs!$B69*Inputs!$D69*(I$36-J$36) -> 0 | AO69: =AN69+Inputs!$B69*Inputs!$D69*(J$36-K$36) -> 0 | AP69: =AO69+Inputs!$B69*Inputs!$D69*(K$36-L$36) -> 0 | AQ69: =AP69+Inputs!$B69*Inputs!$D69*(L$36-M$36) -> 0 | AR69: =AQ69+Inputs!$B69*Inputs!$D69*(M$36-N$36) -> 0 | AS69: =AR69+Inputs!$B69*Inputs!$D69*(N$36-O$36) -> 0 | AT69: =AS69+Inputs!$B69*Inputs!$D69*(O$36-P$36) -> 0 | AU69: =AT69+Inputs!$B69*Inputs!$D69*(P$36-Q$36) -> 0 | AW69: =CurrentYear-1 -> 2019 | AX69: =AG51 -> 0 | AY69: 0 | AZ69: 0 | BA69: 0 | BB69: 0 | BC69: 0 | BD69: 0 | BE69: 0 | BF69: 0 | BG69: 0 | BH69: 0 | BI69: 0 | BJ69: 0 | BK69: 0 | BL69: 0 | BN69: =CurrentYear-1 -> 2019 | BO69: =AG69 -> 0 | BP69: =AH69 -> 0 | BQ69: =AI69 -> 0 | BR69: =AJ69 -> 0 | BS69: =AK69 -> 0 | BT69: 0 | BU69: 0 | BV69: 0 | BW69: 0 | BX69: 0 | BY69: 0 | BZ69: 0 | CA69: 0 | CB69: 0 | CC69: 0
B70: Totals | D70: =SUM(D61:D69) -> 0 | E70: =SUM(E61:E69) -> 0 | F70: =SUM(F61:F69) -> 0 | G70: =SUM(G61:G69) -> 0 | H70: =SUM(H61:H69) -> 0 | I70: =SUM(I61:I69) -> 0 | J70: 0 | K70: =SUM(K61:K69) -> 0 | L70: =SUM(L61:L69) -> 0
B73: =CompanyName -> Company Name
B74: =LOBName&" -- Paid Data" -> LOB Name -- Paid Data
B75: ="Expected Incremental Future Development as of December 31, "&CurrentYear-1 -> Expected Incremental Future Development as of December 31, 2019 | AW75: =CompanyName -> Company Name | BN75: =CompanyName -> Company Name
B76: AY | C76: 12 | D76: 24 | E76: 36 | F76: 48 | G76: 60 | H76: 72 | I76: 84 | J76: 96 | K76: 108 | L76: 120 | M76: 132 | N76: 144 | O76: 156 | P76: 168 | Q76: 180+ | R76: Total | AW76: =LOBName&" -- Paid Data" -> LOB Name -- Paid Data | BN76: =LOBName&" -- Incurred Data" -> LOB Name -- Incurred Data
B77: =B78-1 -> 2011 | L77: =IF($CU5=0,0,$L61*(CO5/$CU5)) -> 0 | M77: =IF($CU5=0,0,$L61*(CP5/$CU5)) -> 0 | N77: =IF($CU5=0,0,$L61*(CQ5/$CU5)) -> 0 | O77: =IF($CU5=0,0,$L61*(CR5/$CU5)) -> 0 | P77: =IF($CU5=0,0,$L61*(CS5/$CU5)) -> 0 | Q77: =IF($CU5=0,0,$L61*(CT5/$CU5)) -> 0 | R77: =SUM(D77:Q77) -> 0 | AW77: ="Weighted Expected Cumulative Future Development as of Decmber 31, "&CurrentYear-1 -> Weighted Expected Cumulative Future Development as of Decmber 31, 2019 | BN77: ="Weighted Expected Cumulative Future Development as of Decmber 31, "&CurrentYear-1 -> Weighted Expected Cumulative Future Development as of Decmber 31, 2019
B78: 2012 | K78: =IF($CU6=0,0,$L62*(CN6/$CU6)) -> 0 | L78: =IF($CU6=0,0,$L62*(CO6/$CU6)) -> 0 | M78: =IF($CU6=0,0,$L62*(CP6/$CU6)) -> 0 | N78: =IF($CU6=0,0,$L62*(CQ6/$CU6)) -> 0 | O78: =IF($CU6=0,0,$L62*(CR6/$CU6)) -> 0 | P78: =IF($CU6=0,0,$L62*(CS6/$CU6)) -> 0 | Q78: =IF($CU6=0,0,$L62*(CT6/$CU6)) -> 0 | R78: =SUM(D78:Q78) -> 0 | AW78: AY | AX78: 12 | AY78: 24 | AZ78: 36 | BA78: 48 | BB78: 60 | BC78: 72 | BD78: 84 | BE78: 96 | BF78: 108 | BG78: 120 | BH78: 132 | BI78: 144 | BJ78: 156 | BK78: 168 | BL78: 180+ | BN78: AY | BO78: 12 | BP78: 24 | BQ78: 36 | BR78: 48 | BS78: 60 | BT78: 72 | BU78: 84 | BV78: 96 | BW78: 108 | BX78: 120 | BY78: 132 | BZ78: 144 | CA78: 156 | CB78: 168 | CC78: 180+
B79: 2013 | J79: =IF($CU7=0,0,$L63*(CM7/$CU7)) -> 0 | K79: =IF($CU7=0,0,$L63*(CN7/$CU7)) -> 0 | L79: =IF($CU7=0,0,$L63*(CO7/$CU7)) -> 0 | M79: =IF($CU7=0,0,$L63*(CP7/$CU7)) -> 0 | N79: =IF($CU7=0,0,$L63*(CQ7/$CU7)) -> 0 | O79: =IF($CU7=0,0,$L63*(CR7/$CU7)) -> 0 | P79: =IF($CU7=0,0,$L63*(CS7/$CU7)) -> 0 | Q79: =IF($CU7=0,0,$L63*(CT7/$CU7)) -> 0 | R79: =SUM(D79:Q79) -> 0 | AW79: =AW80-1 -> 2011 | BF79: =IFERROR((BF5*$H44+BF24*$I44+BF43*$J44+BF61*$K44)/SUM($H44:$K44),0) -> 0 | BG79: 0 | BH79: 0 | BI79: 0 | BJ79: 0 | BK79: 0 | BL79: 0 | BN79: =BN80-1 -> 2011 | BW79: =IFERROR((BW5*$H44+BW24*$I44+BW43*$J44+BW61*$K44)/SUM($H44:$K44),0) -> 0 | BX79: 0 | BY79: 0 | BZ79: 0 | CA79: 0 | CB79: 0 | CC79: 0
B80: 2014 | I80: =IF($CU8=0,0,$L64*(CL8/$CU8)) -> 0 | J80: =IF($CU8=0,0,$L64*(CM8/$CU8)) -> 0 | K80: =IF($CU8=0,0,$L64*(CN8/$CU8)) -> 0 | L80: =IF($CU8=0,0,$L64*(CO8/$CU8)) -> 0 | M80: =IF($CU8=0,0,$L64*(CP8/$CU8)) -> 0 | N80: =IF($CU8=0,0,$L64*(CQ8/$CU8)) -> 0 | O80: =IF($CU8=0,0,$L64*(CR8/$CU8)) -> 0 | P80: =IF($CU8=0,0,$L64*(CS8/$CU8)) -> 0 | Q80: =IF($CU8=0,0,$L64*(CT8/$CU8)) -> 0 | R80: =SUM(D80:Q80) -> 0 | AW80: 2012 | BE80: 0 | BF80: 0 | BG80: 0 | BH80: 0 | BI80: 0 | BJ80: 0 | BK80: 0 | BL80: 0 | BN80: 2012 | BV80: 0 | BW80: 0 | BX80: 0 | BY80: 0 | BZ80: 0 | CA80: 0 | CB80: 0 | CC80: 0
B81: 2015 | H81: =IF($CU9=0,0,$L65*(CK9/$CU9)) -> 0 | I81: =IF($CU9=0,0,$L65*(CL9/$CU9)) -> 0 | J81: =IF($CU9=0,0,$L65*(CM9/$CU9)) -> 0 | K81: =IF($CU9=0,0,$L65*(CN9/$CU9)) -> 0 | L81: =IF($CU9=0,0,$L65*(CO9/$CU9)) -> 0 | M81: =IF($CU9=0,0,$L65*(CP9/$CU9)) -> 0 | N81: =IF($CU9=0,0,$L65*(CQ9/$CU9)) -> 0 | O81: =IF($CU9=0,0,$L65*(CR9/$CU9)) -> 0 | P81: =IF($CU9=0,0,$L65*(CS9/$CU9)) -> 0 | Q81: =IF($CU9=0,0,$L65*(CT9/$CU9)) -> 0 | R81: =SUM(D81:Q81) -> 0 | AW81: 2013 | BD81: 0 | BE81: 0 | BF81: 0 | BG81: 0 | BH81: 0 | BI81: 0 | BJ81: 0 | BK81: 0 | BL81: 0 | BN81: 2013 | BU81: 0 | BV81: 0 | BW81: 0 | BX81: 0 | BY81: 0 | BZ81: 0 | CA81: 0 | CB81: 0 | CC81: 0
B82: 2016 | G82: =IF($CU10=0,0,$L66*(CJ10/$CU10)) -> 0 | H82: =IF($CU10=0,0,$L66*(CK10/$CU10)) -> 0 | I82: =IF($CU10=0,0,$L66*(CL10/$CU10)) -> 0 | J82: =IF($CU10=0,0,$L66*(CM10/$CU10)) -> 0 | K82: =IF($CU10=0,0,$L66*(CN10/$CU10)) -> 0 | L82: =IF($CU10=0,0,$L66*(CO10/$CU10)) -> 0 | M82: =IF($CU10=0,0,$L66*(CP10/$CU10)) -> 0 | N82: =IF($CU10=0,0,$L66*(CQ10/$CU10)) -> 0 | O82: =IF($CU10=0,0,$L66*(CR10/$CU10)) -> 0 | P82: =IF($CU10=0,0,$L66*(CS10/$CU10)) -> 0 | Q82: =IF($CU10=0,0,$L66*(CT10/$CU10)) -> 0 | R82: 0 | AW82: 2014 | BC82: 0 | BD82: 0 | BE82: 0 | BF82: 0 | BG82: 0 | BH82: 0 | BI82: 0 | BJ82: 0 | BK82: 0 | BL82: 0 | BN82: 2014 | BT82: 0 | BU82: 0 | BV82: 0 | BW82: 0 | BX82: 0 | BY82: 0 | BZ82: 0 | CA82: 0 | CB82: 0 | CC82: 0
B83: 2017 | F83: =IF($CU11=0,0,$L67*(CI11/$CU11)) -> 0 | G83: =IF($CU11=0,0,$L67*(CJ11/$CU11)) -> 0 | H83: =IF($CU11=0,0,$L67*(CK11/$CU11)) -> 0 | I83: =IF($CU11=0,0,$L67*(CL11/$CU11)) -> 0 | J83: =IF($CU11=0,0,$L67*(CM11/$CU11)) -> 0 | K83: =IF($CU11=0,0,$L67*(CN11/$CU11)) -> 0 | L83: =IF($CU11=0,0,$L67*(CO11/$CU11)) -> 0 | M83: =IF($CU11=0,0,$L67*(CP11/$CU11)) -> 0 | N83: =IF($CU11=0,0,$L67*(CQ11/$CU11)) -> 0 | O83: =IF($CU11=0,0,$L67*(CR11/$CU11)) -> 0 | P83: =IF($CU11=0,0,$L67*(CS11/$CU11)) -> 0 | Q83: =IF($CU11=0,0,$L67*(CT11/$CU11)) -> 0 | R83: 0 | AW83: 2015 | BB83: 0 | BC83: 0 | BD83: 0 | BE83: 0 | BF83: 0 | BG83: 0 | BH83: 0 | BI83: 0 | BJ83: 0 | BK83: 0 | BL83: 0 | BN83: 2015 | BS83: 0 | BT83: 0 | BU83: 0 | BV83: 0 | BW83: 0 | BX83: 0 | BY83: 0 | BZ83: 0 | CA83: 0 | CB83: 0 | CC83: 0
B84: 2018 | E84: =IF($CU12=0,0,$L68*(CH12/$CU12)) -> 0 | F84: =IF($CU12=0,0,$L68*(CI12/$CU12)) -> 0 | G84: =IF($CU12=0,0,$L68*(CJ12/$CU12)) -> 0 | H84: =IF($CU12=0,0,$L68*(CK12/$CU12)) -> 0 | I84: =IF($CU12=0,0,$L68*(CL12/$CU12)) -> 0 | J84: =IF($CU12=0,0,$L68*(CM12/$CU12)) -> 0 | K84: =IF($CU12=0,0,$L68*(CN12/$CU12)) -> 0 | L84: =IF($CU12=0,0,$L68*(CO12/$CU12)) -> 0 | M84: =IF($CU12=0,0,$L68*(CP12/$CU12)) -> 0 | N84: =IF($CU12=0,0,$L68*(CQ12/$CU12)) -> 0 | O84: =IF($CU12=0,0,$L68*(CR12/$CU12)) -> 0 | P84: =IF($CU12=0,0,$L68*(CS12/$CU12)) -> 0 | Q84: =IF($CU12=0,0,$L68*(CT12/$CU12)) -> 0 | R84: 0 | AW84: 2016 | BA84: 0 | BB84: 0 | BC84: 0 | BD84: 0 | BE84: 0 | BF84: 0 | BG84: 0 | BH84: 0 | BI84: 0 | BJ84: 0 | BK84: 0 | BL84: 0 | BN84: 2016 | BR84: 0 | BS84: 0 | BT84: 0 | BU84: 0 | BV84: 0 | BW84: 0 | BX84: 0 | BY84: 0 | BZ84: 0 | CA84: 0 | CB84: 0 | CC84: 0
B85: =CurrentYear-1 -> 2019 | D85: =IF($CU13=0,0,$L69*(CG13/$CU13)) -> 0 | E85: =IF($CU13=0,0,$L69*(CH13/$CU13)) -> 0 | F85: 0 | G85: 0 | H85: 0 | I85: 0 | J85: 0 | K85: 0 | L85: 0 | M85: 0 | N85: 0 | O85: 0 | P85: 0 | Q85: 0 | R85: 0 | AW85: 2017 | AZ85: 0 | BA85: 0 | BB85: 0 | BC85: 0 | BD85: 0 | BE85: 0 | BF85: 0 | BG85: 0 | BH85: 0 | BI85: 0 | BJ85: 0 | BK85: 0 | BL85: 0 | BN85: 2017 | BQ85: 0 | BR85: 0 | BS85: 0 | BT85: 0 | BU85: 0 | BV85: 0 | BW85: 0 | BX85: 0 | BY85: 0 | BZ85: 0 | CA85: 0 | CB85: 0 | CC85: 0
AW86: 2018 | AY86: 0 | AZ86: 0 | BA86: 0 | BB86: 0 | BC86: 0 | BD86: 0 | BE86: 0 | BF86: 0 | BG86: 0 | BH86: 0 | BI86: 0 | BJ86: 0 | BK86: 0 | BL86: 0 | BN86: 2018 | BP86: 0 | BQ86: 0 | BR86: 0 | BS86: 0 | BT86: 0 | BU86: 0 | BV86: 0 | BW86: 0 | BX86: 0 | BY86: 0 | BZ86: 0 | CA86: 0 | CB86: 0 | CC86: 0
AW87: =CurrentYear-1 -> 2019 | AX87: =IFERROR((AX13*$H52+AX32*$I52+AX51*$J52+AX69*$K52)/SUM($H52:$K52),0) -> 0 | AY87: 0 | AZ87: 0 | BA87: 0 | BB87: 0 | BC87: 0 | BD87: 0 | BE87: 0 | BF87: 0 | BG87: 0 | BH87: 0 | BI87: 0 | BJ87: 0 | BK87: 0 | BL87: 0 | BN87: =CurrentYear-1 -> 2019 | BO87: =IFERROR((BO13*$H52+BO32*$I52+BO51*$J52+BO69*$K52)/SUM($H52:$K52),0) -> 0 | BP87: 0 | BQ87: 0 | BR87: 0 | BS87: 0 | BT87: 0 | BU87: 0 | BV87: 0 | BW87: 0 | BX87: 0 | BY87: 0 | BZ87: 0 | CA87: 0 | CB87: 0 | CC87: 0
B88: =CompanyName -> Company Name
B89: =LOBName&" -- Incurred Data" -> LOB Name -- Incurred Data
B90: ="Expected Incremental Future Development as of December 31, "&CurrentYear-1 -> Expected Incremental Future Development as of December 31, 2019
B91: AY | C91: 12 | D91: 24 | E91: 36 | F91: 48 | G91: 60 | H91: 72 | I91: 84 | J91: 96 | K91: 108 | L91: 120 | M91: 132 | N91: 144 | O91: 156 | P91: 168 | Q91: 180+ | R91: Total
B92: =B93-1 -> 2011 | L92: =IF($CU24=0,0,$K61*(CO24/$CU24)) -> 0 | M92: =IF($CU24=0,0,$K61*(CP24/$CU24)) -> 0 | N92: =IF($CU24=0,0,$K61*(CQ24/$CU24)) -> 0 | O92: =IF($CU24=0,0,$K61*(CR24/$CU24)) -> 0 | P92: =IF($CU24=0,0,$K61*(CS24/$CU24)) -> 0 | Q92: =IF($CU24=0,0,$K61*(CT24/$CU24)) -> 0 | R92: =SUM(D92:Q92) -> 0
B93: 2012 | K93: =IF($CU25=0,0,$K62*(CN25/$CU25)) -> 0 | L93: =IF($CU25=0,0,$K62*(CO25/$CU25)) -> 0 | M93: =IF($CU25=0,0,$K62*(CP25/$CU25)) -> 0 | N93: =IF($CU25=0,0,$K62*(CQ25/$CU25)) -> 0 | O93: =IF($CU25=0,0,$K62*(CR25/$CU25)) -> 0 | P93: =IF($CU25=0,0,$K62*(CS25/$CU25)) -> 0 | Q93: =IF($CU25=0,0,$K62*(CT25/$CU25)) -> 0 | R93: =SUM(D93:Q93) -> 0
B94: 2013 | J94: =IF($CU26=0,0,$K63*(CM26/$CU26)) -> 0 | K94: =IF($CU26=0,0,$K63*(CN26/$CU26)) -> 0 | L94: =IF($CU26=0,0,$K63*(CO26/$CU26)) -> 0 | M94: =IF($CU26=0,0,$K63*(CP26/$CU26)) -> 0 | N94: =IF($CU26=0,0,$K63*(CQ26/$CU26)) -> 0 | O94: =IF($CU26=0,0,$K63*(CR26/$CU26)) -> 0 | P94: =IF($CU26=0,0,$K63*(CS26/$CU26)) -> 0 | Q94: =IF($CU26=0,0,$K63*(CT26/$CU26)) -> 0 | R94: =SUM(D94:Q94) -> 0
B95: 2014 | I95: =IF($CU27=0,0,$K64*(CL27/$CU27)) -> 0 | J95: =IF($CU27=0,0,$K64*(CM27/$CU27)) -> 0 | K95: =IF($CU27=0,0,$K64*(CN27/$CU27)) -> 0 | L95: =IF($CU27=0,0,$K64*(CO27/$CU27)) -> 0 | M95: =IF($CU27=0,0,$K64*(CP27/$CU27)) -> 0 | N95: =IF($CU27=0,0,$K64*(CQ27/$CU27)) -> 0 | O95: =IF($CU27=0,0,$K64*(CR27/$CU27)) -> 0 | P95: =IF($CU27=0,0,$K64*(CS27/$CU27)) -> 0 | Q95: =IF($CU27=0,0,$K64*(CT27/$CU27)) -> 0 | R95: =SUM(D95:Q95) -> 0
B96: 2015 | H96: =IF($CU28=0,0,$K65*(CK28/$CU28)) -> 0 | I96: =IF($CU28=0,0,$K65*(CL28/$CU28)) -> 0 | J96: =IF($CU28=0,0,$K65*(CM28/$CU28)) -> 0 | K96: =IF($CU28=0,0,$K65*(CN28/$CU28)) -> 0 | L96: =IF($CU28=0,0,$K65*(CO28/$CU28)) -> 0 | M96: =IF($CU28=0,0,$K65*(CP28/$CU28)) -> 0 | N96: =IF($CU28=0,0,$K65*(CQ28/$CU28)) -> 0 | O96: =IF($CU28=0,0,$K65*(CR28/$CU28)) -> 0 | P96: =IF($CU28=0,0,$K65*(CS28/$CU28)) -> 0 | Q96: =IF($CU28=0,0,$K65*(CT28/$CU28)) -> 0 | R96: =SUM(D96:Q96) -> 0
B97: 2016 | G97: =IF($CU29=0,0,$K66*(CJ29/$CU29)) -> 0 | H97: =IF($CU29=0,0,$K66*(CK29/$CU29)) -> 0 | I97: =IF($CU29=0,0,$K66*(CL29/$CU29)) -> 0 | J97: =IF($CU29=0,0,$K66*(CM29/$CU29)) -> 0 | K97: =IF($CU29=0,0,$K66*(CN29/$CU29)) -> 0 | L97: =IF($CU29=0,0,$K66*(CO29/$CU29)) -> 0 | M97: =IF($CU29=0,0,$K66*(CP29/$CU29)) -> 0 | N97: =IF($CU29=0,0,$K66*(CQ29/$CU29)) -> 0 | O97: =IF($CU29=0,0,$K66*(CR29/$CU29)) -> 0 | P97: =IF($CU29=0,0,$K66*(CS29/$CU29)) -> 0 | Q97: =IF($CU29=0,0,$K66*(CT29/$CU29)) -> 0 | R97: 0
B98: 2017 | F98: =IF($CU30=0,0,$K67*(CI30/$CU30)) -> 0 | G98: =IF($CU30=0,0,$K67*(CJ30/$CU30)) -> 0 | H98: =IF($CU30=0,0,$K67*(CK30/$CU30)) -> 0 | I98: =IF($CU30=0,0,$K67*(CL30/$CU30)) -> 0 | J98: =IF($CU30=0,0,$K67*(CM30/$CU30)) -> 0 | K98: =IF($CU30=0,0,$K67*(CN30/$CU30)) -> 0 | L98: =IF($CU30=0,0,$K67*(CO30/$CU30)) -> 0 | M98: =IF($CU30=0,0,$K67*(CP30/$CU30)) -> 0 | N98: =IF($CU30=0,0,$K67*(CQ30/$CU30)) -> 0 | O98: =IF($CU30=0,0,$K67*(CR30/$CU30)) -> 0 | P98: =IF($CU30=0,0,$K67*(CS30/$CU30)) -> 0 | Q98: =IF($CU30=0,0,$K67*(CT30/$CU30)) -> 0 | R98: =SUM(D98:Q98) -> 0
B99: 2018 | E99: =IF($CU31=0,0,$K68*(CH31/$CU31)) -> 0 | F99: =IF($CU31=0,0,$K68*(CI31/$CU31)) -> 0 | G99: =IF($CU31=0,0,$K68*(CJ31/$CU31)) -> 0 | H99: =IF($CU31=0,0,$K68*(CK31/$CU31)) -> 0 | I99: =IF($CU31=0,0,$K68*(CL31/$CU31)) -> 0 | J99: =IF($CU31=0,0,$K68*(CM31/$CU31)) -> 0 | K99: =IF($CU31=0,0,$K68*(CN31/$CU31)) -> 0 | L99: =IF($CU31=0,0,$K68*(CO31/$CU31)) -> 0 | M99: =IF($CU31=0,0,$K68*(CP31/$CU31)) -> 0 | N99: =IF($CU31=0,0,$K68*(CQ31/$CU31)) -> 0 | O99: =IF($CU31=0,0,$K68*(CR31/$CU31)) -> 0 | P99: =IF($CU31=0,0,$K68*(CS31/$CU31)) -> 0 | Q99: =IF($CU31=0,0,$K68*(CT31/$CU31)) -> 0 | R99: 0
B100: =CurrentYear-1 -> 2019 | D100: =IF($CU32=0,0,$K69*(CG32/$CU32)) -> 0 | E100: =IF($CU32=0,0,$K69*(CH32/$CU32)) -> 0 | F100: 0 | G100: 0 | H100: 0 | I100: 0 | J100: 0 | K100: 0 | L100: 0 | M100: 0 | N100: 0 | O100: 0 | P100: 0 | Q100: 0 | R100: 0
B103: =CompanyName -> Company Name
B104: =LOBName -> LOB Name
B105: ="Deterministic Actual vs. Expected as of December 31, "&CurrentYear -> Deterministic Actual vs. Expected as of December 31, 2020
D106: Actual | E106: Expected | G106: Actual | H106: Expected | T106: Unadjusted | V106: Unadjusted
B107: AY | C107: Age | D107: Paid | E107: Paid | F107: Difference | G107: Incurred | H107: Incurred | I107: Difference | T107: Paid | V107: Incurred
B108: =B109-1 -> 2011 | C108: =L$4 -> 120 | D108: =Inputs!K17-Inputs!J17 -> 0 | E108: =L77 -> 0 | F108: =D108-E108 -> 0 | G108: =Inputs!K31-Inputs!J31 -> 0 | H108: =L92 -> 0 | I108: =G108-H108 -> 0 | T108: =CO5 -> 0 | V108: =CO24 -> 0
B109: 2012 | C109: =K$4 -> 108 | D109: =Inputs!J18-Inputs!I18 -> 0 | E109: =K78 -> 0 | F109: =D109-E109 -> 0 | G109: =Inputs!J32-Inputs!I32 -> 0 | H109: =K93 -> 0 | I109: =G109-H109 -> 0 | T109: =CN6 -> 0 | V109: =CN25 -> 0
B110: 2013 | C110: =J$4 -> 96 | D110: =Inputs!I19-Inputs!H19 -> 0 | E110: =J79 -> 0 | F110: 0 | G110: =Inputs!I33-Inputs!H33 -> 0 | H110: =J94 -> 0 | I110: 0 | T110: =CM7 -> 0 | V110: =CM26 -> 0
B111: 2014 | C111: =I$4 -> 84 | D111: =Inputs!H20-Inputs!G20 -> 0 | E111: =I80 -> 0 | F111: 0 | G111: =Inputs!H34-Inputs!G34 -> 0 | H111: =I95 -> 0 | I111: 0 | T111: =CL8 -> 0 | V111: =CL27 -> 0
B112: 2015 | C112: =H$4 -> 72 | D112: =Inputs!G21-Inputs!F21 -> 0 | E112: =H81 -> 0 | F112: 0 | G112: =Inputs!G35-Inputs!F35 -> 0 | H112: =H96 -> 0 | I112: 0 | T112: =CK9 -> 0 | V112: =CK28 -> 0
B113: 2016 | C113: =G$4 -> 60 | D113: =Inputs!F22-Inputs!E22 -> 0 | E113: =G82 -> 0 | F113: 0 | G113: =Inputs!F36-Inputs!E36 -> 0 | H113: =G97 -> 0 | I113: 0 | T113: =CJ10 -> 0 | V113: =CJ29 -> 0
B114: 2017 | C114: =F$4 -> 48 | D114: =Inputs!E23-Inputs!D23 -> 0 | E114: =F83 -> 0 | F114: 0 | G114: =Inputs!E37-Inputs!D37 -> 0 | H114: =F98 -> 0 | I114: 0 | T114: =CI11 -> 0 | V114: =CI30 -> 0
B115: 2018 | C115: =E$4 -> 36 | D115: =Inputs!D24-Inputs!C24 -> 0 | E115: =E84 -> 0 | F115: 0 | G115: =Inputs!D38-Inputs!C38 -> 0 | H115: =E99 -> 0 | I115: 0 | T115: =CH12 -> 0 | V115: =CH31 -> 0
B116: 2019 | C116: =D$4 -> 24 | D116: =Inputs!C25-Inputs!B25 -> 0 | E116: =D85 -> 0 | F116: 0 | G116: =Inputs!C39-Inputs!B39 -> 0 | H116: =D100 -> 0 | I116: 0 | T116: =CG13 -> 0 | V116: =CG32 -> 0
B117: =CurrentYear -> 2020 | C117: =C$4 -> 12 | D117: =Inputs!B26 -> 0 | G117: =Inputs!B40 -> 0
B118: Totals | D118: =SUM(D108:D117) -> 0 | G118: =SUM(G108:G117) -> 0
B119: AY<CY | D119: =SUM(D108:D116) -> 0 | E119: =SUM(E108:E116) -> 0 | F119: 0 | G119: 0 | H119: 0 | I119: 0 | T119: =SUM(T108:T116) -> 0 | V119: =SUM(V108:V116) -> 0
B122: =CompanyName -> Company Name
B123: =LOBName -> LOB Name
B124: ="Deterministic Actual vs. Method Range as of December 31, "&CurrentYear -> Deterministic Actual vs. Method Range as of December 31, 2020
D125: Actual | E125: Paid | F125: Paid | G125: Range | H125: Actual | I125: Incurred | J125: Incurred
B126: AY | C126: Age | D126: Paid | E126: Minimum | F126: Maximum | G126: Percent | H126: Incurred | I126: Minimum | J126: Maximum | K126: Difference
B127: =B128-1 -> 2011 | C127: =L$4 -> 120 | D127: =D108 -> 0 | E127: =MIN(X24:AA24)+AC24-AB24 -> 0 | F127: =MAX(X24:AA24)+AC24-AB24 -> 0 | G127: =IFERROR((D127-E127)/(F127-E127),"") ->  | H127: =G108 -> 0 | I127: =MIN(X43:AA43)+AC43-AB43 -> 0 | J127: =MAX(X43:AA43)+AC43-AB43 -> 0 | K127: =IFERROR((H127-I127)/(J127-I127),"") -> 
B128: 2012 | C128: =K$4 -> 108 | D128: =D109 -> 0 | E128: =MIN(X25:AA25)+AC25-AB25 -> 0 | F128: =MAX(X25:AA25)+AC25-AB25 -> 0 | G128: =IFERROR((D128-E128)/(F128-E128),"") ->  | H128: 0 | I128: 0 | J128: 0 | K128: =IFERROR((H128-I128)/(J128-I128),"") -> 
B129: 2013 | C129: =J$4 -> 96 | D129: 0 | E129: 0 | F129: 0 | H129: 0 | I129: 0 | J129: 0
B130: 2014 | C130: =I$4 -> 84 | D130: 0 | E130: 0 | F130: 0 | H130: 0 | I130: 0 | J130: 0
B131: 2015 | C131: =H$4 -> 72 | D131: 0 | E131: 0 | F131: 0 | H131: 0 | I131: 0 | J131: 0
B132: 2016 | C132: =G$4 -> 60 | D132: 0 | E132: 0 | F132: 0 | H132: 0 | I132: 0 | J132: 0
B133: 2017 | C133: =F$4 -> 48 | D133: 0 | E133: 0 | F133: 0 | H133: 0 | I133: 0 | J133: 0
B134: 2018 | C134: =E$4 -> 36 | D134: 0 | E134: 0 | F134: 0 | H134: 0 | I134: 0 | J134: 0
B135: 2019 | C135: =D$4 -> 24 | D135: 0 | E135: 0 | F135: 0 | H135: 0 | I135: 0 | J135: 0
B136: =CurrentYear -> 2020 | C136: =C$4 -> 12 | D136: 0 | H136: 0
B137: Totals | D137: =SUM(D127:D136) -> 0 | H137: =SUM(H127:H136) -> 0
B138: AY<CY | D138: =SUM(D127:D135) -> 0 | E138: =MIN(X33:AA33)+AC33-AB33 -> 0 | F138: =MAX(X33:AA33)+AC33-AB33 -> 0 | G138: =IFERROR((D138-E138)/(F138-E138),"") ->  | H138: =SUM(H127:H135) -> 0 | I138: =MIN(X52:AA52)+AC52-AB52 -> 0 | J138: =MAX(X52:AA52)+AC52-AB52 -> 0 | K138: =IFERROR((H138-I138)/(J138-I138),"") -> 

Sheet Results - Stochastic
G1: KPI Thresholds: | H1: 0.05 | I1: 0.25 | J1: 0.5 | L1: =1-I1 -> 0.75 | M1: =1-H1 -> 0.95
B3: =CompanyName -> Company Name
B4: =LOBName -> LOB Name
B5: ="Stochastic Estimates as of December 31, "&CurrentYear-1 -> Stochastic Estimates as of December 31, 2019
B6: Estimated Unpaid Claims by Accident Year
B7: AY | C7: Mean | D7: Std Dev | E7: CoV | F7: Min | G7: Max | H7: =H$1 -> 0.05 | I7: =I$1 -> 0.25 | J7: Median | K7: Mode | L7: =L$1 -> 0.75 | M7: =M$1 -> 0.95
A8: 2 | B8: =B9-1 -> 2011 | C8: =AVERAGE(PYpU_AY_8) -> 0 | D8: =_xlfn.STDEV.S(PYpU_AY_8) -> 0 | E8: =IFERROR(D8/C8,"") ->  | F8: =MIN(PYpU_AY_8) -> 0 | G8: =MAX(PYpU_AY_8) -> 0 | H8: =_xlfn.PERCENTILE.INC(PYpU_AY_8,H$1) -> 0 | I8: =_xlfn.PERCENTILE.INC(PYpU_AY_8,I$1) -> 0 | J8: =_xlfn.PERCENTILE.INC(PYpU_AY_8,J$1) -> 0 | K8: =IFERROR(_xlfn.MODE.SNGL(ROUND(PYpU_AY_8,0)),"") -> 0 | L8: =_xlfn.PERCENTILE.INC(PYpU_AY_8,L$1) -> 0 | M8: =_xlfn.PERCENTILE.INC(PYpU_AY_8,M$1) -> 0
A9: 3 | B9: 2012 | C9: =AVERAGE(PYpU_AY_7) -> 0 | D9: =_xlfn.STDEV.S(PYpU_AY_7) -> 0 | F9: =MIN(PYpU_AY_7) -> 0 | G9: =MAX(PYpU_AY_7) -> 0 | H9: =_xlfn.PERCENTILE.INC(PYpU_AY_7,H$1) -> 0 | I9: =_xlfn.PERCENTILE.INC(PYpU_AY_7,I$1) -> 0 | J9: =_xlfn.PERCENTILE.INC(PYpU_AY_7,J$1) -> 0 | K9: =IFERROR(_xlfn.MODE.SNGL(ROUND(PYpU_AY_7,0)),"") -> 0 | L9: =_xlfn.PERCENTILE.INC(PYpU_AY_7,L$1) -> 0 | M9: =_xlfn.PERCENTILE.INC(PYpU_AY_7,M$1) -> 0
A10: 4 | B10: 2013 | C10: =AVERAGE(PYpU_AY_6) -> 0 | D10: =_xlfn.STDEV.S(PYpU_AY_6) -> 0 | F10: =MIN(PYpU_AY_6) -> 0 | G10: =MAX(PYpU_AY_6) -> 0 | H10: =_xlfn.PERCENTILE.INC(PYpU_AY_6,H$1) -> 0 | I10: =_xlfn.PERCENTILE.INC(PYpU_AY_6,I$1) -> 0 | J10: =_xlfn.PERCENTILE.INC(PYpU_AY_6,J$1) -> 0 | K10: =IFERROR(_xlfn.MODE.SNGL(ROUND(PYpU_AY_6,0)),"") -> 0 | L10: =_xlfn.PERCENTILE.INC(PYpU_AY_6,L$1) -> 0 | M10: =_xlfn.PERCENTILE.INC(PYpU_AY_6,M$1) -> 0
A11: 5 | B11: 2014 | C11: =AVERAGE(PYpU_AY_5) -> 0 | D11: =_xlfn.STDEV.S(PYpU_AY_5) -> 0 | F11: =MIN(PYpU_AY_5) -> 0 | G11: =MAX(PYpU_AY_5) -> 0 | H11: =_xlfn.PERCENTILE.INC(PYpU_AY_5,H$1) -> 0 | I11: =_xlfn.PERCENTILE.INC(PYpU_AY_5,I$1) -> 0 | J11: =_xlfn.PERCENTILE.INC(PYpU_AY_5,J$1) -> 0 | K11: =IFERROR(_xlfn.MODE.SNGL(ROUND(PYpU_AY_5,0)),"") -> 0 | L11: =_xlfn.PERCENTILE.INC(PYpU_AY_5,L$1) -> 0 | M11: =_xlfn.PERCENTILE.INC(PYpU_AY_5,M$1) -> 0
A12: 6 | B12: 2015 | C12: =AVERAGE(PYpU_AY_4) -> 0 | D12: =_xlfn.STDEV.S(PYpU_AY_4) -> 0 | F12: =MIN(PYpU_AY_4) -> 0 | G12: =MAX(PYpU_AY_4) -> 0 | H12: =_xlfn.PERCENTILE.INC(PYpU_AY_4,H$1) -> 0 | I12: =_xlfn.PERCENTILE.INC(PYpU_AY_4,I$1) -> 0 | J12: =_xlfn.PERCENTILE.INC(PYpU_AY_4,J$1) -> 0 | K12: =IFERROR(_xlfn.MODE.SNGL(ROUND(PYpU_AY_4,0)),"") -> 0 | L12: =_xlfn.PERCENTILE.INC(PYpU_AY_4,L$1) -> 0 | M12: =_xlfn.PERCENTILE.INC(PYpU_AY_4,M$1) -> 0
A13: 7 | B13: 2016 | C13: =AVERAGE(PYpU_AY_3) -> 0 | D13: =_xlfn.STDEV.S(PYpU_AY_3) -> 0 | F13: =MIN(PYpU_AY_3) -> 0 | G13: =MAX(PYpU_AY_3) -> 0 | H13: =_xlfn.PERCENTILE.INC(PYpU_AY_3,H$1) -> 0 | I13: =_xlfn.PERCENTILE.INC(PYpU_AY_3,I$1) -> 0 | J13: =_xlfn.PERCENTILE.INC(PYpU_AY_3,J$1) -> 0 | K13: =IFERROR(_xlfn.MODE.SNGL(ROUND(PYpU_AY_3,0)),"") -> 0 | L13: =_xlfn.PERCENTILE.INC(PYpU_AY_3,L$1) -> 0 | M13: =_xlfn.PERCENTILE.INC(PYpU_AY_3,M$1) -> 0
A14: 8 | B14: 2017 | C14: =AVERAGE(PYpU_AY_2) -> 0 | D14: =_xlfn.STDEV.S(PYpU_AY_2) -> 0 | F14: =MIN(PYpU_AY_2) -> 0 | G14: =MAX(PYpU_AY_2) -> 0 | H14: =_xlfn.PERCENTILE.INC(PYpU_AY_2,H$1) -> 0 | I14: =_xlfn.PERCENTILE.INC(PYpU_AY_2,I$1) -> 0 | J14: =_xlfn.PERCENTILE.INC(PYpU_AY_2,J$1) -> 0 | K14: =IFERROR(_xlfn.MODE.SNGL(ROUND(PYpU_AY_2,0)),"") -> 0 | L14: =_xlfn.PERCENTILE.INC(PYpU_AY_2,L$1) -> 0 | M14: =_xlfn.PERCENTILE.INC(PYpU_AY_2,M$1) -> 0
A15: 9 | B15: =B16-1 -> 2018 | C15: =AVERAGE(PYpU_AY_1) -> 0 | D15: =_xlfn.STDEV.S(PYpU_AY_1) -> 0 | F15: =MIN(PYpU_AY_1) -> 0 | G15: =MAX(PYpU_AY_1) -> 0 | H15: =_xlfn.PERCENTILE.INC(PYpU_AY_1,H$1) -> 0 | I15: =_xlfn.PERCENTILE.INC(PYpU_AY_1,I$1) -> 0 | J15: =_xlfn.PERCENTILE.INC(PYpU_AY_1,J$1) -> 0 | K15: =IFERROR(_xlfn.MODE.SNGL(ROUND(PYpU_AY_1,0)),"") -> 0 | L15: =_xlfn.PERCENTILE.INC(PYpU_AY_1,L$1) -> 0 | M15: =_xlfn.PERCENTILE.INC(PYpU_AY_1,M$1) -> 0
A16: 10 | B16: =CurrentYear-1 -> 2019 | C16: =AVERAGE(PYpU_AY) -> 0 | D16: =_xlfn.STDEV.S(PYpU_AY) -> 0 | F16: =MIN(PYpU_AY) -> 0 | G16: =MAX(PYpU_AY) -> 0 | H16: =_xlfn.PERCENTILE.INC(PYpU_AY,H$1) -> 0 | I16: =_xlfn.PERCENTILE.INC(PYpU_AY,I$1) -> 0 | J16: =_xlfn.PERCENTILE.INC(PYpU_AY,J$1) -> 0 | K16: =IFERROR(_xlfn.MODE.SNGL(ROUND(PYpU_AY,0)),"") -> 0 | L16: =_xlfn.PERCENTILE.INC(PYpU_AY,L$1) -> 0 | M16: =_xlfn.PERCENTILE.INC(PYpU_AY,M$1) -> 0
B17: Total | C17: =AVERAGE(PYpU_AYTot) -> 0 | D17: =_xlfn.STDEV.S(PYpU_AYTot) -> 0 | F17: =MIN(PYpU_AYTot) -> 0 | G17: =MAX(PYpU_AYTot) -> 0 | H17: =_xlfn.PERCENTILE.INC(PYpU_AYTot,H$1) -> 0 | I17: =_xlfn.PERCENTILE.INC(PYpU_AYTot,I$1) -> 0 | J17: =_xlfn.PERCENTILE.INC(PYpU_AYTot,J$1) -> 0 | K17: =IFERROR(_xlfn.MODE.SNGL(ROUND(PYpU_AYTot,0)),"") -> 0 | L17: =_xlfn.PERCENTILE.INC(PYpU_AYTot,L$1) -> 0 | M17: =_xlfn.PERCENTILE.INC(PYpU_AYTot,M$1) -> 0
B20: =CompanyName -> Company Name
B21: =LOBName -> LOB Name
B22: ="Stochastic Estimates as of December 31, "&CurrentYear-1 -> Stochastic Estimates as of December 31, 2019
B23: Estimated Paid Claims by Calendar Year
B24: CY | C24: Mean | D24: Std Dev | E24: CoV | F24: Min | G24: Max | H24: =H$1 -> 0.05 | I24: =I$1 -> 0.25 | J24: Median | K24: Mode | L24: =L$1 -> 0.75 | M24: =M$1 -> 0.95
B25: =CurrentYear -> 2020 | C25: =AVERAGE(PYpU_CY1) -> 0 | D25: =_xlfn.STDEV.S(PYpU_CY1) -> 0 | E25: =IFERROR(D25/C25,"") ->  | F25: =MIN(PYpU_CY1) -> 0 | G25: =MAX(PYpU_CY1) -> 0 | H25: =_xlfn.PERCENTILE.INC(PYpU_CY1,H$1) -> 0 | I25: =_xlfn.PERCENTILE.INC(PYpU_CY1,I$1) -> 0 | J25: =_xlfn.PERCENTILE.INC(PYpU_CY1,J$1) -> 0 | K25: =IFERROR(_xlfn.MODE.SNGL(ROUND(PYpU_CY1,0)),"") -> 0 | L25: =_xlfn.PERCENTILE.INC(PYpU_CY1,L$1) -> 0 | M25: =_xlfn.PERCENTILE.INC(PYpU_CY1,M$1) -> 0
B26: =B25+1 -> 2021 | C26: =AVERAGE(PYpU_CY2) -> 0 | D26: =_xlfn.STDEV.S(PYpU_CY2) -> 0 | E26: =IFERROR(D26/C26,"") ->  | F26: =MIN(PYpU_CY2) -> 0 | G26: =MAX(PYpU_CY2) -> 0 | H26: =_xlfn.PERCENTILE.INC(PYpU_CY2,H$1) -> 0 | I26: =_xlfn.PERCENTILE.INC(PYpU_CY2,I$1) -> 0 | J26: =_xlfn.PERCENTILE.INC(PYpU_CY2,J$1) -> 0 | K26: =IFERROR(_xlfn.MODE.SNGL(ROUND(PYpU_CY2,0)),"") -> 0 | L26: =_xlfn.PERCENTILE.INC(PYpU_CY2,L$1) -> 0 | M26: =_xlfn.PERCENTILE.INC(PYpU_CY2,M$1) -> 0
B27: =B26+1 -> 2022 | C27: =AVERAGE(PYpU_CY3) -> 0 | D27: =_xlfn.STDEV.S(PYpU_CY3) -> 0 | F27: =MIN(PYpU_CY3) -> 0 | G27: =MAX(PYpU_CY3) -> 0 | H27: =_xlfn.PERCENTILE.INC(PYpU_CY3,H$1) -> 0 | I27: =_xlfn.PERCENTILE.INC(PYpU_CY3,I$1) -> 0 | J27: =_xlfn.PERCENTILE.INC(PYpU_CY3,J$1) -> 0 | K27: =IFERROR(_xlfn.MODE.SNGL(ROUND(PYpU_CY3,0)),"") -> 0 | L27: =_xlfn.PERCENTILE.INC(PYpU_CY3,L$1) -> 0 | M27: =_xlfn.PERCENTILE.INC(PYpU_CY3,M$1) -> 0
B28: 2023 | C28: =AVERAGE(PYpU_CY4) -> 0 | D28: =_xlfn.STDEV.S(PYpU_CY4) -> 0 | F28: =MIN(PYpU_CY4) -> 0 | G28: =MAX(PYpU_CY4) -> 0 | H28: =_xlfn.PERCENTILE.INC(PYpU_CY4,H$1) -> 0 | I28: =_xlfn.PERCENTILE.INC(PYpU_CY4,I$1) -> 0 | J28: =_xlfn.PERCENTILE.INC(PYpU_CY4,J$1) -> 0 | K28: =IFERROR(_xlfn.MODE.SNGL(ROUND(PYpU_CY4,0)),"") -> 0 | L28: =_xlfn.PERCENTILE.INC(PYpU_CY4,L$1) -> 0 | M28: =_xlfn.PERCENTILE.INC(PYpU_CY4,M$1) -> 0
B29: 2024 | C29: =AVERAGE(PYpU_CY5) -> 0 | D29: =_xlfn.STDEV.S(PYpU_CY5) -> 0 | F29: =MIN(PYpU_CY5) -> 0 | G29: =MAX(PYpU_CY5) -> 0 | H29: =_xlfn.PERCENTILE.INC(PYpU_CY5,H$1) -> 0 | I29: =_xlfn.PERCENTILE.INC(PYpU_CY5,I$1) -> 0 | J29: =_xlfn.PERCENTILE.INC(PYpU_CY5,J$1) -> 0 | K29: =IFERROR(_xlfn.MODE.SNGL(ROUND(PYpU_CY5,0)),"") -> 0 | L29: =_xlfn.PERCENTILE.INC(PYpU_CY5,L$1) -> 0 | M29: =_xlfn.PERCENTILE.INC(PYpU_CY5,M$1) -> 0
B30: 2025 | C30: =AVERAGE(PYpU_CY6) -> 0 | D30: =_xlfn.STDEV.S(PYpU_CY6) -> 0 | F30: =MIN(PYpU_CY6) -> 0 | G30: =MAX(PYpU_CY6) -> 0 | H30: =_xlfn.PERCENTILE.INC(PYpU_CY6,H$1) -> 0 | I30: =_xlfn.PERCENTILE.INC(PYpU_CY6,I$1) -> 0 | J30: =_xlfn.PERCENTILE.INC(PYpU_CY6,J$1) -> 0 | K30: =IFERROR(_xlfn.MODE.SNGL(ROUND(PYpU_CY6,0)),"") -> 0 | L30: =_xlfn.PERCENTILE.INC(PYpU_CY6,L$1) -> 0 | M30: =_xlfn.PERCENTILE.INC(PYpU_CY6,M$1) -> 0
B31: 2026 | C31: =AVERAGE(PYpU_CY7) -> 0 | D31: =_xlfn.STDEV.S(PYpU_CY7) -> 0 | F31: =MIN(PYpU_CY7) -> 0 | G31: =MAX(PYpU_CY7) -> 0 | H31: =_xlfn.PERCENTILE.INC(PYpU_CY7,H$1) -> 0 | I31: =_xlfn.PERCENTILE.INC(PYpU_CY7,I$1) -> 0 | J31: =_xlfn.PERCENTILE.INC(PYpU_CY7,J$1) -> 0 | K31: =IFERROR(_xlfn.MODE.SNGL(ROUND(PYpU_CY7,0)),"") -> 0 | L31: =_xlfn.PERCENTILE.INC(PYpU_CY7,L$1) -> 0 | M31: =_xlfn.PERCENTILE.INC(PYpU_CY7,M$1) -> 0
B32: 2027 | C32: =AVERAGE(PYpU_CY8) -> 0 | D32: =_xlfn.STDEV.S(PYpU_CY8) -> 0 | F32: =MIN(PYpU_CY8) -> 0 | G32: =MAX(PYpU_CY8) -> 0 | H32: =_xlfn.PERCENTILE.INC(PYpU_CY8,H$1) -> 0 | I32: =_xlfn.PERCENTILE.INC(PYpU_CY8,I$1) -> 0 | J32: =_xlfn.PERCENTILE.INC(PYpU_CY8,J$1) -> 0 | K32: =IFERROR(_xlfn.MODE.SNGL(ROUND(PYpU_CY8,0)),"") -> 0 | L32: =_xlfn.PERCENTILE.INC(PYpU_CY8,L$1) -> 0 | M32: =_xlfn.PERCENTILE.INC(PYpU_CY8,M$1) -> 0
B33: 2028 | C33: =AVERAGE(PYpU_CY9) -> 0 | D33: =_xlfn.STDEV.S(PYpU_CY9) -> 0 | F33: =MIN(PYpU_CY9) -> 0 | G33: =MAX(PYpU_CY9) -> 0 | H33: =_xlfn.PERCENTILE.INC(PYpU_CY9,H$1) -> 0 | I33: =_xlfn.PERCENTILE.INC(PYpU_CY9,I$1) -> 0 | J33: =_xlfn.PERCENTILE.INC(PYpU_CY9,J$1) -> 0 | K33: =IFERROR(_xlfn.MODE.SNGL(ROUND(PYpU_CY9,0)),"") -> 0 | L33: =_xlfn.PERCENTILE.INC(PYpU_CY9,L$1) -> 0 | M33: =_xlfn.PERCENTILE.INC(PYpU_CY9,M$1) -> 0
B34: =B33+1 -> 2029 | C34: =AVERAGE(PYpU_CY10) -> 0 | D34: =_xlfn.STDEV.S(PYpU_CY10) -> 0 | E34: =IFERROR(D34/C34,"") ->  | F34: =MIN(PYpU_CY10) -> 0 | G34: =MAX(PYpU_CY10) -> 0 | H34: =_xlfn.PERCENTILE.INC(PYpU_CY10,H$1) -> 0 | I34: =_xlfn.PERCENTILE.INC(PYpU_CY10,I$1) -> 0 | J34: =_xlfn.PERCENTILE.INC(PYpU_CY10,J$1) -> 0 | K34: =IFERROR(_xlfn.MODE.SNGL(ROUND(PYpU_CY10,0)),"") -> 0 | L34: =_xlfn.PERCENTILE.INC(PYpU_CY10,L$1) -> 0 | M34: =_xlfn.PERCENTILE.INC(PYpU_CY10,M$1) -> 0
B35: 2030 | C35: =AVERAGE(PYpU_CY11) -> 0 | D35: =_xlfn.STDEV.S(PYpU_CY11) -> 0 | F35: =MIN(PYpU_CY11) -> 0 | G35: =MAX(PYpU_CY11) -> 0 | H35: =_xlfn.PERCENTILE.INC(PYpU_CY11,H$1) -> 0 | I35: =_xlfn.PERCENTILE.INC(PYpU_CY11,I$1) -> 0 | J35: =_xlfn.PERCENTILE.INC(PYpU_CY11,J$1) -> 0 | K35: =IFERROR(_xlfn.MODE.SNGL(ROUND(PYpU_CY11,0)),"") -> 0 | L35: =_xlfn.PERCENTILE.INC(PYpU_CY11,L$1) -> 0 | M35: =_xlfn.PERCENTILE.INC(PYpU_CY11,M$1) -> 0
B36: 2031 | C36: =AVERAGE(PYpU_CY12) -> 0 | D36: =_xlfn.STDEV.S(PYpU_CY12) -> 0 | F36: =MIN(PYpU_CY12) -> 0 | G36: =MAX(PYpU_CY12) -> 0 | H36: =_xlfn.PERCENTILE.INC(PYpU_CY12,H$1) -> 0 | I36: =_xlfn.PERCENTILE.INC(PYpU_CY12,I$1) -> 0 | J36: =_xlfn.PERCENTILE.INC(PYpU_CY12,J$1) -> 0 | K36: =IFERROR(_xlfn.MODE.SNGL(ROUND(PYpU_CY12,0)),"") -> 0 | L36: =_xlfn.PERCENTILE.INC(PYpU_CY12,L$1) -> 0 | M36: =_xlfn.PERCENTILE.INC(PYpU_CY12,M$1) -> 0
B37: 2032 | C37: =AVERAGE(PYpU_CY13) -> 0 | D37: =_xlfn.STDEV.S(PYpU_CY13) -> 0 | F37: =MIN(PYpU_CY13) -> 0 | G37: =MAX(PYpU_CY13) -> 0 | H37: =_xlfn.PERCENTILE.INC(PYpU_CY13,H$1) -> 0 | I37: =_xlfn.PERCENTILE.INC(PYpU_CY13,I$1) -> 0 | J37: =_xlfn.PERCENTILE.INC(PYpU_CY13,J$1) -> 0 | K37: =IFERROR(_xlfn.MODE.SNGL(ROUND(PYpU_CY13,0)),"") -> 0 | L37: =_xlfn.PERCENTILE.INC(PYpU_CY13,L$1) -> 0 | M37: =_xlfn.PERCENTILE.INC(PYpU_CY13,M$1) -> 0
B38: 2033 | C38: =AVERAGE(PYpU_CY14) -> 0 | D38: =_xlfn.STDEV.S(PYpU_CY14) -> 0 | F38: =MIN(PYpU_CY14) -> 0 | G38: =MAX(PYpU_CY14) -> 0 | H38: =_xlfn.PERCENTILE.INC(PYpU_CY14,H$1) -> 0 | I38: =_xlfn.PERCENTILE.INC(PYpU_CY14,I$1) -> 0 | J38: =_xlfn.PERCENTILE.INC(PYpU_CY14,J$1) -> 0 | K38: =IFERROR(_xlfn.MODE.SNGL(ROUND(PYpU_CY14,0)),"") -> 0 | L38: =_xlfn.PERCENTILE.INC(PYpU_CY14,L$1) -> 0 | M38: =_xlfn.PERCENTILE.INC(PYpU_CY14,M$1) -> 0
B39: Total | C39: =AVERAGE(PYpU_AYTot) -> 0 | D39: =_xlfn.STDEV.S(PYpU_AYTot) -> 0 | F39: =MIN(PYpU_AYTot) -> 0 | G39: =MAX(PYpU_AYTot) -> 0 | H39: =_xlfn.PERCENTILE.INC(PYpU_AYTot,H$1) -> 0 | I39: =_xlfn.PERCENTILE.INC(PYpU_AYTot,I$1) -> 0 | J39: =_xlfn.PERCENTILE.INC(PYpU_AYTot,J$1) -> 0 | K39: =IFERROR(_xlfn.MODE.SNGL(ROUND(PYpU_AYTot,0)),"") -> 0 | L39: =_xlfn.PERCENTILE.INC(PYpU_AYTot,L$1) -> 0 | M39: =_xlfn.PERCENTILE.INC(PYpU_AYTot,M$1) -> 0
B42: =CompanyName -> Company Name
B43: =LOBName -> LOB Name
B44: ="Stochastic Estimates as of December 31, "&CurrentYear-1 -> Stochastic Estimates as of December 31, 2019
B45: Calendar Year Runoff of Unpaid Claims
B46: CY | C46: Mean | D46: Std Dev | E46: CoV | F46: Min | G46: Max | H46: =H$1 -> 0.05 | I46: =I$1 -> 0.25 | J46: Median | K46: Mode | L46: =L$1 -> 0.75 | M46: =M$1 -> 0.95
B47: =CurrentYear -> 2020 | C47: =AVERAGE(PYpU_CYR1) -> 0 | D47: =_xlfn.STDEV.S(PYpU_CYR1) -> 0 | E47: =IFERROR(D47/C47,"") ->  | F47: =MIN(PYpU_CYR1) -> 0 | G47: =MAX(PYpU_CYR1) -> 0 | H47: =_xlfn.PERCENTILE.INC(PYpU_CYR1,H$1) -> 0 | I47: =_xlfn.PERCENTILE.INC(PYpU_CYR1,I$1) -> 0 | J47: =_xlfn.PERCENTILE.INC(PYpU_CYR1,J$1) -> 0 | K47: =IFERROR(_xlfn.MODE.SNGL(ROUND(PYpU_CYR1,0)),"") -> 0 | L47: =_xlfn.PERCENTILE.INC(PYpU_CYR1,L$1) -> 0 | M47: =_xlfn.PERCENTILE.INC(PYpU_CYR1,M$1) -> 0
B48: =B47+1 -> 2021 | C48: =AVERAGE(PYpU_CYR2) -> 0 | D48: =_xlfn.STDEV.S(PYpU_CYR2) -> 0 | F48: =MIN(PYpU_CYR2) -> 0 | G48: =MAX(PYpU_CYR2) -> 0 | H48: =_xlfn.PERCENTILE.INC(PYpU_CYR2,H$1) -> 0 | I48: =_xlfn.PERCENTILE.INC(PYpU_CYR2,I$1) -> 0 | J48: =_xlfn.PERCENTILE.INC(PYpU_CYR2,J$1) -> 0 | K48: =IFERROR(_xlfn.MODE.SNGL(ROUND(PYpU_CYR2,0)),"") -> 0 | L48: =_xlfn.PERCENTILE.INC(PYpU_CYR2,L$1) -> 0 | M48: =_xlfn.PERCENTILE.INC(PYpU_CYR2,M$1) -> 0
B49: =B48+1 -> 2022 | C49: =AVERAGE(PYpU_CYR3) -> 0 | D49: =_xlfn.STDEV.S(PYpU_CYR3) -> 0 | F49: =MIN(PYpU_CYR3) -> 0 | G49: =MAX(PYpU_CYR3) -> 0 | H49: =_xlfn.PERCENTILE.INC(PYpU_CYR3,H$1) -> 0 | I49: =_xlfn.PERCENTILE.INC(PYpU_CYR3,I$1) -> 0 | J49: =_xlfn.PERCENTILE.INC(PYpU_CYR3,J$1) -> 0 | K49: =IFERROR(_xlfn.MODE.SNGL(ROUND(PYpU_CYR3,0)),"") -> 0 | L49: =_xlfn.PERCENTILE.INC(PYpU_CYR3,L$1) -> 0 | M49: =_xlfn.PERCENTILE.INC(PYpU_CYR3,M$1) -> 0
B50: 2023 | C50: =AVERAGE(PYpU_CYR4) -> 0 | D50: =_xlfn.STDEV.S(PYpU_CYR4) -> 0 | F50: =MIN(PYpU_CYR4) -> 0 | G50: =MAX(PYpU_CYR4) -> 0 | H50: =_xlfn.PERCENTILE.INC(PYpU_CYR4,H$1) -> 0 | I50: =_xlfn.PERCENTILE.INC(PYpU_CYR4,I$1) -> 0 | J50: =_xlfn.PERCENTILE.INC(PYpU_CYR4,J$1) -> 0 | K50: =IFERROR(_xlfn.MODE.SNGL(ROUND(PYpU_CYR4,0)),"") -> 0 | L50: =_xlfn.PERCENTILE.INC(PYpU_CYR4,L$1) -> 0 | M50: =_xlfn.PERCENTILE.INC(PYpU_CYR4,M$1) -> 0
B51: 2024 | C51: =AVERAGE(PYpU_CYR5) -> 0 | D51: =_xlfn.STDEV.S(PYpU_CYR5) -> 0 | F51: =MIN(PYpU_CYR5) -> 0 | G51: =MAX(PYpU_CYR5) -> 0 | H51: =_xlfn.PERCENTILE.INC(PYpU_CYR5,H$1) -> 0 | I51: =_xlfn.PERCENTILE.INC(PYpU_CYR5,I$1) -> 0 | J51: =_xlfn.PERCENTILE.INC(PYpU_CYR5,J$1) -> 0 | K51: =IFERROR(_xlfn.MODE.SNGL(ROUND(PYpU_CYR5,0)),"") -> 0 | L51: =_xlfn.PERCENTILE.INC(PYpU_CYR5,L$1) -> 0 | M51: =_xlfn.PERCENTILE.INC(PYpU_CYR5,M$1) -> 0
B52: 2025 | C52: =AVERAGE(PYpU_CYR6) -> 0 | D52: =_xlfn.STDEV.S(PYpU_CYR6) -> 0 | F52: =MIN(PYpU_CYR6) -> 0 | G52: =MAX(PYpU_CYR6) -> 0 | H52: =_xlfn.PERCENTILE.INC(PYpU_CYR6,H$1) -> 0 | I52: =_xlfn.PERCENTILE.INC(PYpU_CYR6,I$1) -> 0 | J52: =_xlfn.PERCENTILE.INC(PYpU_CYR6,J$1) -> 0 | K52: =IFERROR(_xlfn.MODE.SNGL(ROUND(PYpU_CYR6,0)),"") -> 0 | L52: =_xlfn.PERCENTILE.INC(PYpU_CYR6,L$1) -> 0 | M52: =_xlfn.PERCENTILE.INC(PYpU_CYR6,M$1) -> 0
B53: 2026 | C53: =AVERAGE(PYpU_CYR7) -> 0 | D53: =_xlfn.STDEV.S(PYpU_CYR7) -> 0 | F53: =MIN(PYpU_CYR7) -> 0 | G53: =MAX(PYpU_CYR7) -> 0 | H53: =_xlfn.PERCENTILE.INC(PYpU_CYR7,H$1) -> 0 | I53: =_xlfn.PERCENTILE.INC(PYpU_CYR7,I$1) -> 0 | J53: =_xlfn.PERCENTILE.INC(PYpU_CYR7,J$1) -> 0 | K53: =IFERROR(_xlfn.MODE.SNGL(ROUND(PYpU_CYR7,0)),"") -> 0 | L53: =_xlfn.PERCENTILE.INC(PYpU_CYR7,L$1) -> 0 | M53: =_xlfn.PERCENTILE.INC(PYpU_CYR7,M$1) -> 0
B54: 2027 | C54: =AVERAGE(PYpU_CYR8) -> 0 | D54: =_xlfn.STDEV.S(PYpU_CYR8) -> 0 | F54: =MIN(PYpU_CYR8) -> 0 | G54: =MAX(PYpU_CYR8) -> 0 | H54: =_xlfn.PERCENTILE.INC(PYpU_CYR8,H$1) -> 0 | I54: =_xlfn.PERCENTILE.INC(PYpU_CYR8,I$1) -> 0 | J54: =_xlfn.PERCENTILE.INC(PYpU_CYR8,J$1) -> 0 | K54: =IFERROR(_xlfn.MODE.SNGL(ROUND(PYpU_CYR8,0)),"") -> 0 | L54: =_xlfn.PERCENTILE.INC(PYpU_CYR8,L$1) -> 0 | M54: =_xlfn.PERCENTILE.INC(PYpU_CYR8,M$1) -> 0
B55: 2028 | C55: =AVERAGE(PYpU_CYR9) -> 0 | D55: =_xlfn.STDEV.S(PYpU_CYR9) -> 0 | F55: =MIN(PYpU_CYR9) -> 0 | G55: =MAX(PYpU_CYR9) -> 0 | H55: =_xlfn.PERCENTILE.INC(PYpU_CYR9,H$1) -> 0 | I55: =_xlfn.PERCENTILE.INC(PYpU_CYR9,I$1) -> 0 | J55: =_xlfn.PERCENTILE.INC(PYpU_CYR9,J$1) -> 0 | K55: =IFERROR(_xlfn.MODE.SNGL(ROUND(PYpU_CYR9,0)),"") -> 0 | L55: =_xlfn.PERCENTILE.INC(PYpU_CYR9,L$1) -> 0 | M55: =_xlfn.PERCENTILE.INC(PYpU_CYR9,M$1) -> 0
B56: 2029 | C56: =AVERAGE(PYpU_CYR10) -> 0 | D56: =_xlfn.STDEV.S(PYpU_CYR10) -> 0 | F56: =MIN(PYpU_CYR10) -> 0 | G56: =MAX(PYpU_CYR10) -> 0 | H56: =_xlfn.PERCENTILE.INC(PYpU_CYR10,H$1) -> 0 | I56: =_xlfn.PERCENTILE.INC(PYpU_CYR10,I$1) -> 0 | J56: =_xlfn.PERCENTILE.INC(PYpU_CYR10,J$1) -> 0 | K56: =IFERROR(_xlfn.MODE.SNGL(ROUND(PYpU_CYR10,0)),"") -> 0 | L56: =_xlfn.PERCENTILE.INC(PYpU_CYR10,L$1) -> 0 | M56: =_xlfn.PERCENTILE.INC(PYpU_CYR10,M$1) -> 0
B57: 2030 | C57: =AVERAGE(PYpU_CYR11) -> 0 | D57: =_xlfn.STDEV.S(PYpU_CYR11) -> 0 | F57: =MIN(PYpU_CYR11) -> 0 | G57: =MAX(PYpU_CYR11) -> 0 | H57: =_xlfn.PERCENTILE.INC(PYpU_CYR11,H$1) -> 0 | I57: =_xlfn.PERCENTILE.INC(PYpU_CYR11,I$1) -> 0 | J57: =_xlfn.PERCENTILE.INC(PYpU_CYR11,J$1) -> 0 | K57: =IFERROR(_xlfn.MODE.SNGL(ROUND(PYpU_CYR11,0)),"") -> 0 | L57: =_xlfn.PERCENTILE.INC(PYpU_CYR11,L$1) -> 0 | M57: =_xlfn.PERCENTILE.INC(PYpU_CYR11,M$1) -> 0
B58: 2031 | C58: =AVERAGE(PYpU_CYR12) -> 0 | D58: =_xlfn.STDEV.S(PYpU_CYR12) -> 0 | F58: =MIN(PYpU_CYR12) -> 0 | G58: =MAX(PYpU_CYR12) -> 0 | H58: =_xlfn.PERCENTILE.INC(PYpU_CYR12,H$1) -> 0 | I58: =_xlfn.PERCENTILE.INC(PYpU_CYR12,I$1) -> 0 | J58: =_xlfn.PERCENTILE.INC(PYpU_CYR12,J$1) -> 0 | K58: =IFERROR(_xlfn.MODE.SNGL(ROUND(PYpU_CYR12,0)),"") -> 0 | L58: =_xlfn.PERCENTILE.INC(PYpU_CYR12,L$1) -> 0 | M58: =_xlfn.PERCENTILE.INC(PYpU_CYR12,M$1) -> 0
B59: 2032 | C59: =AVERAGE(PYpU_CYR13) -> 0 | D59: =_xlfn.STDEV.S(PYpU_CYR13) -> 0 | F59: =MIN(PYpU_CYR13) -> 0 | G59: =MAX(PYpU_CYR13) -> 0 | H59: =_xlfn.PERCENTILE.INC(PYpU_CYR13,H$1) -> 0 | I59: =_xlfn.PERCENTILE.INC(PYpU_CYR13,I$1) -> 0 | J59: =_xlfn.PERCENTILE.INC(PYpU_CYR13,J$1) -> 0 | K59: =IFERROR(_xlfn.MODE.SNGL(ROUND(PYpU_CYR13,0)),"") -> 0 | L59: =_xlfn.PERCENTILE.INC(PYpU_CYR13,L$1) -> 0 | M59: =_xlfn.PERCENTILE.INC(PYpU_CYR13,M$1) -> 0
B60: 2033 | C60: =AVERAGE(PYpU_CYR14) -> 0 | D60: =_xlfn.STDEV.S(PYpU_CYR14) -> 0 | F60: =MIN(PYpU_CYR14) -> 0 | G60: =MAX(PYpU_CYR14) -> 0 | H60: =_xlfn.PERCENTILE.INC(PYpU_CYR14,H$1) -> 0 | I60: =_xlfn.PERCENTILE.INC(PYpU_CYR14,I$1) -> 0 | J60: =_xlfn.PERCENTILE.INC(PYpU_CYR14,J$1) -> 0 | K60: =IFERROR(_xlfn.MODE.SNGL(ROUND(PYpU_CYR14,0)),"") -> 0 | L60: =_xlfn.PERCENTILE.INC(PYpU_CYR14,L$1) -> 0 | M60: =_xlfn.PERCENTILE.INC(PYpU_CYR14,M$1) -> 0
B63: =CompanyName -> Company Name
B64: =LOBName -> LOB Name
B65: ="Stochastic Estimates as of December 31, "&CurrentYear-1 -> Stochastic Estimates as of December 31, 2019
B66: Loss Ratios by Accident Year
B67: AY | C67: Mean | D67: Std Dev | E67: CoV | F67: Min | G67: Max | H67: =H$1 -> 0.05 | I67: =I$1 -> 0.25 | J67: Median | K67: Mode | L67: =L$1 -> 0.75 | M67: =M$1 -> 0.95
B68: =B69-1 -> 2011 | C68: =IFERROR(AVERAGE(PYpU_LR_8)/Inputs!$B61,"") ->  | D68: =IFERROR(_xlfn.STDEV.S(PYpU_LR_8)/Inputs!$B61,"") ->  | E68: =IFERROR(D68/C68,"") ->  | F68: =IFERROR(MIN(PYpU_LR_8)/Inputs!$B61,"") ->  | G68: =IFERROR(MAX(PYpU_LR_8)/Inputs!$B61,"") ->  | H68: =IFERROR(_xlfn.PERCENTILE.INC(PYpU_LR_8,H$1)/Inputs!$B61,"") ->  | I68: =IFERROR(_xlfn.PERCENTILE.INC(PYpU_LR_8,I$1)/Inputs!$B61,"") ->  | J68: =IFERROR(_xlfn.PERCENTILE.INC(PYpU_LR_8,J$1)/Inputs!$B61,"") ->  | K68: =IFERROR(_xlfn.MODE.SNGL(ROUND(PYpU_LR_8,0))/Inputs!$B61,"") ->  | L68: =IFERROR(_xlfn.PERCENTILE.INC(PYpU_LR_8,L$1)/Inputs!$B61,"") ->  | M68: =IFERROR(_xlfn.PERCENTILE.INC(PYpU_LR_8,M$1)/Inputs!$B61,"") -> 
B69: 2012 | C69: =IFERROR(AVERAGE(PYpU_LR_7)/Inputs!$B62,"") ->  | D69: =IFERROR(_xlfn.STDEV.S(PYpU_LR_7)/Inputs!$B62,"") ->  | E69: =IFERROR(D69/C69,"") ->  | F69: =IFERROR(MIN(PYpU_LR_7)/Inputs!$B62,"") ->  | G69: =IFERROR(MAX(PYpU_LR_7)/Inputs!$B62,"") ->  | H69: =IFERROR(_xlfn.PERCENTILE.INC(PYpU_LR_7,H$1)/Inputs!$B62,"") ->  | I69: =IFERROR(_xlfn.PERCENTILE.INC(PYpU_LR_7,I$1)/Inputs!$B62,"") ->  | J69: =IFERROR(_xlfn.PERCENTILE.INC(PYpU_LR_7,J$1)/Inputs!$B62,"") ->  | K69: =IFERROR(_xlfn.MODE.SNGL(ROUND(PYpU_LR_7,0))/Inputs!$B62,"") ->  | L69: =IFERROR(_xlfn.PERCENTILE.INC(PYpU_LR_7,L$1)/Inputs!$B62,"") ->  | M69: =IFERROR(_xlfn.PERCENTILE.INC(PYpU_LR_7,M$1)/Inputs!$B62,"") -> 
B70: 2013 | C70: =IFERROR(AVERAGE(PYpU_LR_6)/Inputs!$B63,"") ->  | D70: =IFERROR(_xlfn.STDEV.S(PYpU_LR_6)/Inputs!$B63,"") ->  | F70: =IFERROR(MIN(PYpU_LR_6)/Inputs!$B63,"") ->  | G70: =IFERROR(MAX(PYpU_LR_6)/Inputs!$B63,"") ->  | H70: =IFERROR(_xlfn.PERCENTILE.INC(PYpU_LR_6,H$1)/Inputs!$B63,"") ->  | I70: =IFERROR(_xlfn.PERCENTILE.INC(PYpU_LR_6,I$1)/Inputs!$B63,"") ->  | J70: =IFERROR(_xlfn.PERCENTILE.INC(PYpU_LR_6,J$1)/Inputs!$B63,"") ->  | K70: =IFERROR(_xlfn.MODE.SNGL(ROUND(PYpU_LR_6,0))/Inputs!$B63,"") ->  | L70: =IFERROR(_xlfn.PERCENTILE.INC(PYpU_LR_6,L$1)/Inputs!$B63,"") ->  | M70: =IFERROR(_xlfn.PERCENTILE.INC(PYpU_LR_6,M$1)/Inputs!$B63,"") -> 
B71: 2014 | C71: =IFERROR(AVERAGE(PYpU_LR_5)/Inputs!$B64,"") ->  | D71: =IFERROR(_xlfn.STDEV.S(PYpU_LR_5)/Inputs!$B64,"") ->  | F71: =IFERROR(MIN(PYpU_LR_5)/Inputs!$B64,"") ->  | G71: =IFERROR(MAX(PYpU_LR_5)/Inputs!$B64,"") ->  | H71: =IFERROR(_xlfn.PERCENTILE.INC(PYpU_LR_5,H$1)/Inputs!$B64,"") ->  | I71: =IFERROR(_xlfn.PERCENTILE.INC(PYpU_LR_5,I$1)/Inputs!$B64,"") ->  | J71: =IFERROR(_xlfn.PERCENTILE.INC(PYpU_LR_5,J$1)/Inputs!$B64,"") ->  | K71: =IFERROR(_xlfn.MODE.SNGL(ROUND(PYpU_LR_5,0))/Inputs!$B64,"") ->  | L71: =IFERROR(_xlfn.PERCENTILE.INC(PYpU_LR_5,L$1)/Inputs!$B64,"") ->  | M71: =IFERROR(_xlfn.PERCENTILE.INC(PYpU_LR_5,M$1)/Inputs!$B64,"") -> 
B72: 2015 | C72: =IFERROR(AVERAGE(PYpU_LR_4)/Inputs!$B65,"") ->  | D72: =IFERROR(_xlfn.STDEV.S(PYpU_LR_4)/Inputs!$B65,"") ->  | F72: =IFERROR(MIN(PYpU_LR_4)/Inputs!$B65,"") ->  | G72: =IFERROR(MAX(PYpU_LR_4)/Inputs!$B65,"") ->  | H72: =IFERROR(_xlfn.PERCENTILE.INC(PYpU_LR_4,H$1)/Inputs!$B65,"") ->  | I72: =IFERROR(_xlfn.PERCENTILE.INC(PYpU_LR_4,I$1)/Inputs!$B65,"") ->  | J72: =IFERROR(_xlfn.PERCENTILE.INC(PYpU_LR_4,J$1)/Inputs!$B65,"") ->  | K72: =IFERROR(_xlfn.MODE.SNGL(ROUND(PYpU_LR_4,0))/Inputs!$B65,"") ->  | L72: =IFERROR(_xlfn.PERCENTILE.INC(PYpU_LR_4,L$1)/Inputs!$B65,"") ->  | M72: =IFERROR(_xlfn.PERCENTILE.INC(PYpU_LR_4,M$1)/Inputs!$B65,"") -> 
B73: 2016 | C73: =IFERROR(AVERAGE(PYpU_LR_3)/Inputs!$B66,"") ->  | D73: =IFERROR(_xlfn.STDEV.S(PYpU_LR_3)/Inputs!$B66,"") ->  | F73: =IFERROR(MIN(PYpU_LR_3)/Inputs!$B66,"") ->  | G73: =IFERROR(MAX(PYpU_LR_3)/Inputs!$B66,"") ->  | H73: =IFERROR(_xlfn.PERCENTILE.INC(PYpU_LR_3,H$1)/Inputs!$B66,"") ->  | I73: =IFERROR(_xlfn.PERCENTILE.INC(PYpU_LR_3,I$1)/Inputs!$B66,"") ->  | J73: =IFERROR(_xlfn.PERCENTILE.INC(PYpU_LR_3,J$1)/Inputs!$B66,"") ->  | K73: =IFERROR(_xlfn.MODE.SNGL(ROUND(PYpU_LR_3,0))/Inputs!$B66,"") ->  | L73: =IFERROR(_xlfn.PERCENTILE.INC(PYpU_LR_3,L$1)/Inputs!$B66,"") ->  | M73: =IFERROR(_xlfn.PERCENTILE.INC(PYpU_LR_3,M$1)/Inputs!$B66,"") -> 
B74: 2017 | C74: =IFERROR(AVERAGE(PYpU_LR_2)/Inputs!$B67,"") ->  | D74: =IFERROR(_xlfn.STDEV.S(PYpU_LR_2)/Inputs!$B67,"") ->  | F74: =IFERROR(MIN(PYpU_LR_2)/Inputs!$B67,"") ->  | G74: =IFERROR(MAX(PYpU_LR_2)/Inputs!$B67,"") ->  | H74: =IFERROR(_xlfn.PERCENTILE.INC(PYpU_LR_2,H$1)/Inputs!$B67,"") ->  | I74: =IFERROR(_xlfn.PERCENTILE.INC(PYpU_LR_2,I$1)/Inputs!$B67,"") ->  | J74: =IFERROR(_xlfn.PERCENTILE.INC(PYpU_LR_2,J$1)/Inputs!$B67,"") ->  | K74: =IFERROR(_xlfn.MODE.SNGL(ROUND(PYpU_LR_2,0))/Inputs!$B67,"") ->  | L74: =IFERROR(_xlfn.PERCENTILE.INC(PYpU_LR_2,L$1)/Inputs!$B67,"") ->  | M74: =IFERROR(_xlfn.PERCENTILE.INC(PYpU_LR_2,M$1)/Inputs!$B67,"") -> 
B75: =B76-1 -> 2018 | C75: =IFERROR(AVERAGE(PYpU_LR_1)/Inputs!$B68,"") ->  | D75: =IFERROR(_xlfn.STDEV.S(PYpU_LR_1)/Inputs!$B68,"") ->  | F75: =IFERROR(MIN(PYpU_LR_1)/Inputs!$B68,"") ->  | G75: =IFERROR(MAX(PYpU_LR_1)/Inputs!$B68,"") ->  | H75: =IFERROR(_xlfn.PERCENTILE.INC(PYpU_LR_1,H$1)/Inputs!$B68,"") ->  | I75: =IFERROR(_xlfn.PERCENTILE.INC(PYpU_LR_1,I$1)/Inputs!$B68,"") ->  | J75: =IFERROR(_xlfn.PERCENTILE.INC(PYpU_LR_1,J$1)/Inputs!$B68,"") ->  | K75: =IFERROR(_xlfn.MODE.SNGL(ROUND(PYpU_LR_1,0))/Inputs!$B68,"") ->  | L75: =IFERROR(_xlfn.PERCENTILE.INC(PYpU_LR_1,L$1)/Inputs!$B68,"") ->  | M75: =IFERROR(_xlfn.PERCENTILE.INC(PYpU_LR_1,M$1)/Inputs!$B68,"") -> 
B76: =CurrentYear-1 -> 2019 | C76: =IFERROR(AVERAGE(PYpU_LR)/Inputs!$B69,"") ->  | D76: =IFERROR(_xlfn.STDEV.S(PYpU_LR)/Inputs!$B69,"") ->  | F76: =IFERROR(MIN(PYpU_LR)/Inputs!$B69,"") ->  | G76: =IFERROR(MAX(PYpU_LR)/Inputs!$B69,"") ->  | H76: =IFERROR(_xlfn.PERCENTILE.INC(PYpU_LR,H$1)/Inputs!$B69,"") ->  | I76: =IFERROR(_xlfn.PERCENTILE.INC(PYpU_LR,I$1)/Inputs!$B69,"") ->  | J76: =IFERROR(_xlfn.PERCENTILE.INC(PYpU_LR,J$1)/Inputs!$B69,"") ->  | K76: =IFERROR(_xlfn.MODE.SNGL(ROUND(PYpU_LR,0))/Inputs!$B69,"") ->  | L76: =IFERROR(_xlfn.PERCENTILE.INC(PYpU_LR,L$1)/Inputs!$B69,"") ->  | M76: =IFERROR(_xlfn.PERCENTILE.INC(PYpU_LR,M$1)/Inputs!$B69,"") -> 
B77: Total | C77: =IFERROR(AVERAGE(PYpU_LRTot)/SUM(Inputs!$B61:$B69),"") ->  | D77: =IFERROR(_xlfn.STDEV.S(PYpU_LRTot)/SUM(Inputs!$B61:$B69),"") ->  | F77: =IFERROR(MIN(PYpU_LRTot)/SUM(Inputs!$B61:$B69),"") ->  | G77: =IFERROR(MAX(PYpU_LRTot)/SUM(Inputs!$B61:$B69),"") ->  | H77: =IFERROR(_xlfn.PERCENTILE.INC(PYpU_LRTot,H$1)/SUM(Inputs!$B61:$B69),"") ->  | I77: =IFERROR(_xlfn.PERCENTILE.INC(PYpU_LRTot,I$1)/SUM(Inputs!$B61:$B69),"") ->  | J77: =IFERROR(_xlfn.PERCENTILE.INC(PYpU_LRTot,J$1)/SUM(Inputs!$B61:$B69),"") ->  | K77: =IFERROR(_xlfn.MODE.SNGL(ROUND(PYpU_LRTot,0))/SUM(Inputs!$B61:$B69),"") ->  | L77: =IFERROR(_xlfn.PERCENTILE.INC(PYpU_LRTot,L$1)/SUM(Inputs!$B61:$B69),"") ->  | M77: =IFERROR(_xlfn.PERCENTILE.INC(PYpU_LRTot,M$1)/SUM(Inputs!$B61:$B69),"") -> 
B80: =CompanyName -> Company Name
B81: =LOBName&" - Paid" -> LOB Name - Paid
B82: ="Mean Future Incremental as of December 31, "&CurrentYear-1 -> Mean Future Incremental as of December 31, 2019
B83: AY | C83: 12 | D83: 24 | E83: 36 | F83: 48 | G83: 60 | H83: 72 | I83: 84 | J83: 96 | K83: 108 | L83: 120 | M83: 132 | N83: 144 | O83: 156 | P83: 168 | Q83: 180 | R83: Total
B84: =B85-1 -> 2011 | L84: =AVERAGE(PYpU_Y_8_120) -> 0 | M84: =AVERAGE(PYpU_Y_8_132) -> 0 | N84: =AVERAGE(PYpU_Y_8_144) -> 0 | O84: =AVERAGE(PYpU_Y_8_156) -> 0 | P84: =AVERAGE(PYpU_Y_8_168) -> 0 | Q84: =AVERAGE(PYpU_Y_8_180) -> 0 | R84: =SUM(D84:Q84) -> 0
B85: 2012 | K85: =AVERAGE(PYpU_Y_7_108) -> 0 | L85: =AVERAGE(PYpU_Y_7_120) -> 0 | M85: =AVERAGE(PYpU_Y_7_132) -> 0 | N85: =AVERAGE(PYpU_Y_7_144) -> 0 | O85: =AVERAGE(PYpU_Y_7_156) -> 0 | P85: =AVERAGE(PYpU_Y_7_168) -> 0 | Q85: =AVERAGE(PYpU_Y_7_180) -> 0 | R85: =SUM(D85:Q85) -> 0
B86: 2013 | J86: =AVERAGE(PYpU_Y_6_96) -> 0 | K86: =AVERAGE(PYpU_Y_6_108) -> 0 | L86: =AVERAGE(PYpU_Y_6_120) -> 0 | M86: =AVERAGE(PYpU_Y_6_132) -> 0 | N86: =AVERAGE(PYpU_Y_6_144) -> 0 | O86: =AVERAGE(PYpU_Y_6_156) -> 0 | P86: =AVERAGE(PYpU_Y_6_168) -> 0 | Q86: =AVERAGE(PYpU_Y_6_180) -> 0 | R86: =SUM(D86:Q86) -> 0
B87: 2014 | I87: =AVERAGE(PYpU_Y_5_84) -> 0 | J87: =AVERAGE(PYpU_Y_5_96) -> 0 | K87: =AVERAGE(PYpU_Y_5_108) -> 0 | L87: =AVERAGE(PYpU_Y_5_120) -> 0 | M87: =AVERAGE(PYpU_Y_5_132) -> 0 | N87: =AVERAGE(PYpU_Y_5_144) -> 0 | O87: =AVERAGE(PYpU_Y_5_156) -> 0 | P87: =AVERAGE(PYpU_Y_5_168) -> 0 | Q87: =AVERAGE(PYpU_Y_5_180) -> 0 | R87: 0
B88: 2015 | H88: =AVERAGE(PYpU_Y_4_72) -> 0 | I88: =AVERAGE(PYpU_Y_4_84) -> 0 | J88: =AVERAGE(PYpU_Y_4_96) -> 0 | K88: =AVERAGE(PYpU_Y_4_108) -> 0 | L88: =AVERAGE(PYpU_Y_4_120) -> 0 | M88: =AVERAGE(PYpU_Y_4_132) -> 0 | N88: =AVERAGE(PYpU_Y_4_144) -> 0 | O88: =AVERAGE(PYpU_Y_4_156) -> 0 | P88: =AVERAGE(PYpU_Y_4_168) -> 0 | Q88: =AVERAGE(PYpU_Y_4_180) -> 0 | R88: =SUM(D88:Q88) -> 0
B89: 2016 | G89: =AVERAGE(PYpU_Y_3_60) -> 0 | H89: =AVERAGE(PYpU_Y_3_72) -> 0 | I89: =AVERAGE(PYpU_Y_3_84) -> 0 | J89: =AVERAGE(PYpU_Y_3_96) -> 0 | K89: =AVERAGE(PYpU_Y_3_108) -> 0 | L89: =AVERAGE(PYpU_Y_3_120) -> 0 | M89: =AVERAGE(PYpU_Y_3_132) -> 0 | N89: =AVERAGE(PYpU_Y_3_144) -> 0 | O89: =AVERAGE(PYpU_Y_3_156) -> 0 | P89: =AVERAGE(PYpU_Y_3_168) -> 0 | Q89: =AVERAGE(PYpU_Y_3_180) -> 0 | R89: 0
B90: 2017 | F90: =AVERAGE(PYpU_Y_2_48) -> 0 | G90: =AVERAGE(PYpU_Y_2_60) -> 0 | H90: =AVERAGE(PYpU_Y_2_72) -> 0 | I90: =AVERAGE(PYpU_Y_2_84) -> 0 | J90: =AVERAGE(PYpU_Y_2_96) -> 0 | K90: =AVERAGE(PYpU_Y_2_108) -> 0 | L90: =AVERAGE(PYpU_Y_2_120) -> 0 | M90: =AVERAGE(PYpU_Y_2_132) -> 0 | N90: =AVERAGE(PYpU_Y_2_144) -> 0 | O90: =AVERAGE(PYpU_Y_2_156) -> 0 | P90: =AVERAGE(PYpU_Y_2_168) -> 0 | Q90: =AVERAGE(PYpU_Y_2_180) -> 0 | R90: =SUM(D90:Q90) -> 0
B91: 2018 | E91: =AVERAGE(PYpU_Y_1_36) -> 0 | F91: =AVERAGE(PYpU_Y_1_48) -> 0 | G91: =AVERAGE(PYpU_Y_1_60) -> 0 | H91: =AVERAGE(PYpU_Y_1_72) -> 0 | I91: =AVERAGE(PYpU_Y_1_84) -> 0 | J91: =AVERAGE(PYpU_Y_1_96) -> 0 | K91: =AVERAGE(PYpU_Y_1_108) -> 0 | L91: =AVERAGE(PYpU_Y_1_120) -> 0 | M91: =AVERAGE(PYpU_Y_1_132) -> 0 | N91: =AVERAGE(PYpU_Y_1_144) -> 0 | O91: =AVERAGE(PYpU_Y_1_156) -> 0 | P91: =AVERAGE(PYpU_Y_1_168) -> 0 | Q91: =AVERAGE(PYpU_Y_1_180) -> 0 | R91: 0
B92: =CurrentYear-1 -> 2019 | D92: =AVERAGE(PYpU_Y_24) -> 0 | E92: =AVERAGE(PYpU_Y_36) -> 0 | F92: =AVERAGE(PYpU_Y_48) -> 0 | G92: =AVERAGE(PYpU_Y_60) -> 0 | H92: =AVERAGE(PYpU_Y_72) -> 0 | I92: =AVERAGE(PYpU_Y_84) -> 0 | J92: =AVERAGE(PYpU_Y_96) -> 0 | K92: =AVERAGE(PYpU_Y_108) -> 0 | L92: =AVERAGE(PYpU_Y_120) -> 0 | M92: =AVERAGE(PYpU_Y_132) -> 0 | N92: =AVERAGE(PYpU_Y_144) -> 0 | O92: =AVERAGE(PYpU_Y_156) -> 0 | P92: =AVERAGE(PYpU_Y_168) -> 0 | Q92: =AVERAGE(PYpU_Y_180) -> 0 | R92: =SUM(D92:Q92) -> 0
B95: =CompanyName -> Company Name
B96: =LOBName&" - Paid" -> LOB Name - Paid
B97: ="Standard Deviation Future Incremental as of December 31, "&CurrentYear-1 -> Standard Deviation Future Incremental as of December 31, 2019
B98: AY | C98: 12 | D98: 24 | E98: 36 | F98: 48 | G98: 60 | H98: 72 | I98: 84 | J98: 96 | K98: 108 | L98: 120 | M98: 132 | N98: 144 | O98: 156 | P98: 168 | Q98: 180 | R98: Total
B99: =B100-1 -> 2011 | L99: =_xlfn.STDEV.S(PYpU_Y_8_120) -> 0 | M99: =_xlfn.STDEV.S(PYpU_Y_8_132) -> 0 | N99: =_xlfn.STDEV.S(PYpU_Y_8_144) -> 0 | O99: =_xlfn.STDEV.S(PYpU_Y_8_156) -> 0 | P99: =_xlfn.STDEV.S(PYpU_Y_8_168) -> 0 | Q99: =_xlfn.STDEV.S(PYpU_Y_8_180) -> 0 | R99: =_xlfn.STDEV.S(PYpU_AY_8) -> 0
B100: 2012 | K100: =_xlfn.STDEV.S(PYpU_Y_7_108) -> 0 | L100: =_xlfn.STDEV.S(PYpU_Y_7_120) -> 0 | M100: =_xlfn.STDEV.S(PYpU_Y_7_132) -> 0 | N100: =_xlfn.STDEV.S(PYpU_Y_7_144) -> 0 | O100: =_xlfn.STDEV.S(PYpU_Y_7_156) -> 0 | P100: =_xlfn.STDEV.S(PYpU_Y_7_168) -> 0 | Q100: =_xlfn.STDEV.S(PYpU_Y_7_180) -> 0 | R100: =_xlfn.STDEV.S(PYpU_AY_7) -> 0
B101: 2013 | J101: =_xlfn.STDEV.S(PYpU_Y_6_96) -> 0 | K101: =_xlfn.STDEV.S(PYpU_Y_6_108) -> 0 | L101: =_xlfn.STDEV.S(PYpU_Y_6_120) -> 0 | M101: =_xlfn.STDEV.S(PYpU_Y_6_132) -> 0 | N101: =_xlfn.STDEV.S(PYpU_Y_6_144) -> 0 | O101: =_xlfn.STDEV.S(PYpU_Y_6_156) -> 0 | P101: =_xlfn.STDEV.S(PYpU_Y_6_168) -> 0 | Q101: =_xlfn.STDEV.S(PYpU_Y_6_180) -> 0 | R101: =_xlfn.STDEV.S(PYpU_AY_6) -> 0
B102: 2014 | I102: =_xlfn.STDEV.S(PYpU_Y_5_84) -> 0 | J102: =_xlfn.STDEV.S(PYpU_Y_5_96) -> 0 | K102: =_xlfn.STDEV.S(PYpU_Y_5_108) -> 0 | L102: =_xlfn.STDEV.S(PYpU_Y_5_120) -> 0 | M102: =_xlfn.STDEV.S(PYpU_Y_5_132) -> 0 | N102: =_xlfn.STDEV.S(PYpU_Y_5_144) -> 0 | O102: =_xlfn.STDEV.S(PYpU_Y_5_156) -> 0 | P102: =_xlfn.STDEV.S(PYpU_Y_5_168) -> 0 | Q102: =_xlfn.STDEV.S(PYpU_Y_5_180) -> 0 | R102: =_xlfn.STDEV.S(PYpU_AY_5) -> 0
B103: 2015 | H103: =_xlfn.STDEV.S(PYpU_Y_4_72) -> 0 | I103: =_xlfn.STDEV.S(PYpU_Y_4_84) -> 0 | J103: =_xlfn.STDEV.S(PYpU_Y_4_96) -> 0 | K103: =_xlfn.STDEV.S(PYpU_Y_4_108) -> 0 | L103: =_xlfn.STDEV.S(PYpU_Y_4_120) -> 0 | M103: =_xlfn.STDEV.S(PYpU_Y_4_132) -> 0 | N103: =_xlfn.STDEV.S(PYpU_Y_4_144) -> 0 | O103: =_xlfn.STDEV.S(PYpU_Y_4_156) -> 0 | P103: =_xlfn.STDEV.S(PYpU_Y_4_168) -> 0 | Q103: =_xlfn.STDEV.S(PYpU_Y_4_180) -> 0 | R103: =_xlfn.STDEV.S(PYpU_AY_4) -> 0
B104: 2016 | G104: =_xlfn.STDEV.S(PYpU_Y_3_60) -> 0 | H104: =_xlfn.STDEV.S(PYpU_Y_3_72) -> 0 | I104: =_xlfn.STDEV.S(PYpU_Y_3_84) -> 0 | J104: =_xlfn.STDEV.S(PYpU_Y_3_96) -> 0 | K104: =_xlfn.STDEV.S(PYpU_Y_3_108) -> 0 | L104: =_xlfn.STDEV.S(PYpU_Y_3_120) -> 0 | M104: =_xlfn.STDEV.S(PYpU_Y_3_132) -> 0 | N104: =_xlfn.STDEV.S(PYpU_Y_3_144) -> 0 | O104: =_xlfn.STDEV.S(PYpU_Y_3_156) -> 0 | P104: =_xlfn.STDEV.S(PYpU_Y_3_168) -> 0 | Q104: =_xlfn.STDEV.S(PYpU_Y_3_180) -> 0 | R104: =_xlfn.STDEV.S(PYpU_AY_3) -> 0
B105: 2017 | F105: =_xlfn.STDEV.S(PYpU_Y_2_48) -> 0 | G105: =_xlfn.STDEV.S(PYpU_Y_2_60) -> 0 | H105: =_xlfn.STDEV.S(PYpU_Y_2_72) -> 0 | I105: =_xlfn.STDEV.S(PYpU_Y_2_84) -> 0 | J105: =_xlfn.STDEV.S(PYpU_Y_2_96) -> 0 | K105: =_xlfn.STDEV.S(PYpU_Y_2_108) -> 0 | L105: =_xlfn.STDEV.S(PYpU_Y_2_120) -> 0 | M105: =_xlfn.STDEV.S(PYpU_Y_2_132) -> 0 | N105: =_xlfn.STDEV.S(PYpU_Y_2_144) -> 0 | O105: =_xlfn.STDEV.S(PYpU_Y_2_156) -> 0 | P105: =_xlfn.STDEV.S(PYpU_Y_2_168) -> 0 | Q105: =_xlfn.STDEV.S(PYpU_Y_2_180) -> 0 | R105: =_xlfn.STDEV.S(PYpU_AY_2) -> 0
B106: 2018 | E106: =_xlfn.STDEV.S(PYpU_Y_1_36) -> 0 | F106: =_xlfn.STDEV.S(PYpU_Y_1_48) -> 0 | G106: =_xlfn.STDEV.S(PYpU_Y_1_60) -> 0 | H106: =_xlfn.STDEV.S(PYpU_Y_1_72) -> 0 | I106: =_xlfn.STDEV.S(PYpU_Y_1_84) -> 0 | J106: =_xlfn.STDEV.S(PYpU_Y_1_96) -> 0 | K106: =_xlfn.STDEV.S(PYpU_Y_1_108) -> 0 | L106: =_xlfn.STDEV.S(PYpU_Y_1_120) -> 0 | M106: =_xlfn.STDEV.S(PYpU_Y_1_132) -> 0 | N106: =_xlfn.STDEV.S(PYpU_Y_1_144) -> 0 | O106: =_xlfn.STDEV.S(PYpU_Y_1_156) -> 0 | P106: =_xlfn.STDEV.S(PYpU_Y_1_168) -> 0 | Q106: =_xlfn.STDEV.S(PYpU_Y_1_180) -> 0 | R106: =_xlfn.STDEV.S(PYpU_AY_1) -> 0
B107: =CurrentYear-1 -> 2019 | D107: =_xlfn.STDEV.S(PYpU_Y_24) -> 0 | E107: =_xlfn.STDEV.S(PYpU_Y_36) -> 0 | F107: =_xlfn.STDEV.S(PYpU_Y_48) -> 0 | G107: =_xlfn.STDEV.S(PYpU_Y_60) -> 0 | H107: =_xlfn.STDEV.S(PYpU_Y_72) -> 0 | I107: =_xlfn.STDEV.S(PYpU_Y_84) -> 0 | J107: =_xlfn.STDEV.S(PYpU_Y_96) -> 0 | K107: =_xlfn.STDEV.S(PYpU_Y_108) -> 0 | L107: =_xlfn.STDEV.S(PYpU_Y_120) -> 0 | M107: =_xlfn.STDEV.S(PYpU_Y_132) -> 0 | N107: =_xlfn.STDEV.S(PYpU_Y_144) -> 0 | O107: =_xlfn.STDEV.S(PYpU_Y_156) -> 0 | P107: =_xlfn.STDEV.S(PYpU_Y_168) -> 0 | Q107: =_xlfn.STDEV.S(PYpU_Y_180) -> 0 | R107: =_xlfn.STDEV.S(PYpU_AY) -> 0
B110: =CompanyName -> Company Name
B111: =LOBName&" - Paid" -> LOB Name - Paid
B112: ="CoV Future Incremental as of December 31, "&CurrentYear-1 -> CoV Future Incremental as of December 31, 2019
B113: AY | C113: 12 | D113: 24 | E113: 36 | F113: 48 | G113: 60 | H113: 72 | I113: 84 | J113: 96 | K113: 108 | L113: 120 | M113: 132 | N113: 144 | O113: 156 | P113: 168 | Q113: 180 | R113: Total
B114: =B115-1 -> 2011 | L114: =IFERROR(L99/L84,"") -> 
B115: 2012
B116: 2013
B117: 2014
B118: 2015
B119: 2016
B120: 2017
B121: 2018
B122: =CurrentYear-1 -> 2019 | D122: =IFERROR(D107/D92,"") -> 
B125: =CompanyName -> Company Name | U125: =CompanyName -> Company Name
B126: =LOBName&" - Paid" -> LOB Name - Paid | U126: =LOBName&" - Paid [Time Horizon -- CHECK]" -> LOB Name - Paid [Time Horizon -- CHECK]
B127: ="Stochastic Estimates as of December 31, "&CurrentYear-1 -> Stochastic Estimates as of December 31, 2019 | U127: ="Stochastic Estimates as of Decmber 31, "&CurrentYear-1 -> Stochastic Estimates as of Decmber 31, 2019
B128: ="Estimated Unpaid Claims by Accident Year, Calendar Year "&CurrentYear&" Only" -> Estimated Unpaid Claims by Accident Year, Calendar Year 2020 Only | U128: ="Results by Accident Year, Calendar Year "&CurrentYear&" Only" -> Results by Accident Year, Calendar Year 2020 Only
B129: AY | C129: Mean | D129: Std Dev | E129: CoV | F129: Min | G129: Max | H129: =H$1 -> 0.05 | I129: =I$1 -> 0.25 | J129: Median | K129: Mode | L129: =L$1 -> 0.75 | M129: =M$1 -> 0.95 | U129: AY | V129: Mean | W129: Std Dev | X129: CoV | Y129: Min | Z129: Max | AB129: Mean | AC129: Std Dev | AD129: CoV | AE129: Min | AF129: Max
B130: =B131-1 -> 2011 | C130: =AVERAGE(PYpU_Y_8_120) -> 0 | D130: =_xlfn.STDEV.S(PYpU_Y_8_120) -> 0 | E130: =IFERROR(D130/C130,"") ->  | F130: =MIN(PYpU_Y_8_120) -> 0 | G130: =MAX(PYpU_Y_8_120) -> 0 | H130: =_xlfn.PERCENTILE.INC(PYpU_Y_8_120,H$1) -> 0 | I130: =_xlfn.PERCENTILE.INC(PYpU_Y_8_120,I$1) -> 0 | J130: =_xlfn.PERCENTILE.INC(PYpU_Y_8_120,J$1) -> 0 | K130: =IFERROR(_xlfn.MODE.SNGL(ROUND(PYpU_Y_8_120,0)),"") -> 0 | L130: =_xlfn.PERCENTILE.INC(PYpU_Y_8_120,L$1) -> 0 | M130: =_xlfn.PERCENTILE.INC(PYpU_Y_8_120,M$1) -> 0 | U130: =U131-1 -> 2011 | V130: =AVERAGE(PYT1_Y_8_120) -> 0 | W130: =_xlfn.STDEV.S(PYT1_Y_8_120) -> 0 | X130: =IFERROR(W130/V130,"") ->  | Y130: =MIN(PYT1_Y_8_120) -> 0 | Z130: =MAX(PYT1_Y_8_120) -> 0 | AB130: =V130-C130 -> 0 | AC130: =W130-D130 -> 0 | AD130: =IFERROR(X130-E130,"") ->  | AE130: =Y130-F130 -> 0 | AF130: =Z130-G130 -> 0
B131: 2012 | C131: =AVERAGE(PYpU_Y_7_108) -> 0 | D131: =_xlfn.STDEV.S(PYpU_Y_7_108) -> 0 | F131: =MIN(PYpU_Y_7_108) -> 0 | G131: =MAX(PYpU_Y_7_108) -> 0 | H131: =_xlfn.PERCENTILE.INC(PYpU_Y_7_108,H$1) -> 0 | I131: =_xlfn.PERCENTILE.INC(PYpU_Y_7_108,I$1) -> 0 | J131: =_xlfn.PERCENTILE.INC(PYpU_Y_7_108,J$1) -> 0 | K131: =IFERROR(_xlfn.MODE.SNGL(ROUND(PYpU_Y_7_108,0)),"") -> 0 | L131: =_xlfn.PERCENTILE.INC(PYpU_Y_7_108,L$1) -> 0 | M131: =_xlfn.PERCENTILE.INC(PYpU_Y_7_108,M$1) -> 0 | U131: 2012 | V131: =AVERAGE(PYT1_Y_7_108) -> 0 | W131: =_xlfn.STDEV.S(PYT1_Y_7_108) -> 0 | Y131: =MIN(PYT1_Y_7_108) -> 0 | Z131: =MAX(PYT1_Y_7_108) -> 0 | AB131: =V131-C131 -> 0 | AC131: 0 | AD131: =IFERROR(X131-E131,"") ->  | AE131: 0 | AF131: 0
B132: 2013 | C132: =AVERAGE(PYpU_Y_6_96) -> 0 | D132: =_xlfn.STDEV.S(PYpU_Y_6_96) -> 0 | F132: =MIN(PYpU_Y_6_96) -> 0 | G132: =MAX(PYpU_Y_6_96) -> 0 | H132: =_xlfn.PERCENTILE.INC(PYpU_Y_6_96,H$1) -> 0 | I132: =_xlfn.PERCENTILE.INC(PYpU_Y_6_96,I$1) -> 0 | J132: =_xlfn.PERCENTILE.INC(PYpU_Y_6_96,J$1) -> 0 | K132: =IFERROR(_xlfn.MODE.SNGL(ROUND(PYpU_Y_6_96,0)),"") -> 0 | L132: =_xlfn.PERCENTILE.INC(PYpU_Y_6_96,L$1) -> 0 | M132: =_xlfn.PERCENTILE.INC(PYpU_Y_6_96,M$1) -> 0 | U132: 2013 | V132: =AVERAGE(PYT1_Y_6_96) -> 0 | W132: =_xlfn.STDEV.S(PYT1_Y_6_96) -> 0 | Y132: =MIN(PYT1_Y_6_96) -> 0 | Z132: =MAX(PYT1_Y_6_96) -> 0 | AB132: 0 | AC132: 0 | AE132: 0 | AF132: 0
B133: 2014 | C133: =AVERAGE(PYpU_Y_5_84) -> 0 | D133: =_xlfn.STDEV.S(PYpU_Y_5_84) -> 0 | F133: =MIN(PYpU_Y_5_84) -> 0 | G133: =MAX(PYpU_Y_5_84) -> 0 | H133: =_xlfn.PERCENTILE.INC(PYpU_Y_5_84,H$1) -> 0 | I133: =_xlfn.PERCENTILE.INC(PYpU_Y_5_84,I$1) -> 0 | J133: =_xlfn.PERCENTILE.INC(PYpU_Y_5_84,J$1) -> 0 | K133: =IFERROR(_xlfn.MODE.SNGL(ROUND(PYpU_Y_5_84,0)),"") -> 0 | L133: =_xlfn.PERCENTILE.INC(PYpU_Y_5_84,L$1) -> 0 | M133: =_xlfn.PERCENTILE.INC(PYpU_Y_5_84,M$1) -> 0 | U133: 2014 | V133: =AVERAGE(PYT1_Y_5_84) -> 0 | W133: =_xlfn.STDEV.S(PYT1_Y_5_84) -> 0 | Y133: =MIN(PYT1_Y_5_84) -> 0 | Z133: =MAX(PYT1_Y_5_84) -> 0 | AB133: 0 | AC133: 0 | AE133: 0 | AF133: 0
B134: 2015 | C134: =AVERAGE(PYpU_Y_4_72) -> 0 | D134: =_xlfn.STDEV.S(PYpU_Y_4_72) -> 0 | F134: =MIN(PYpU_Y_4_72) -> 0 | G134: =MAX(PYpU_Y_4_72) -> 0 | H134: =_xlfn.PERCENTILE.INC(PYpU_Y_4_72,H$1) -> 0 | I134: =_xlfn.PERCENTILE.INC(PYpU_Y_4_72,I$1) -> 0 | J134: =_xlfn.PERCENTILE.INC(PYpU_Y_4_72,J$1) -> 0 | K134: =IFERROR(_xlfn.MODE.SNGL(ROUND(PYpU_Y_4_72,0)),"") -> 0 | L134: =_xlfn.PERCENTILE.INC(PYpU_Y_4_72,L$1) -> 0 | M134: =_xlfn.PERCENTILE.INC(PYpU_Y_4_72,M$1) -> 0 | U134: 2015 | V134: =AVERAGE(PYT1_Y_4_72) -> 0 | W134: =_xlfn.STDEV.S(PYT1_Y_4_72) -> 0 | Y134: =MIN(PYT1_Y_4_72) -> 0 | Z134: =MAX(PYT1_Y_4_72) -> 0 | AB134: 0 | AC134: 0 | AE134: 0 | AF134: 0
B135: 2016 | C135: =AVERAGE(PYpU_Y_3_60) -> 0 | D135: =_xlfn.STDEV.S(PYpU_Y_3_60) -> 0 | F135: =MIN(PYpU_Y_3_60) -> 0 | G135: =MAX(PYpU_Y_3_60) -> 0 | H135: =_xlfn.PERCENTILE.INC(PYpU_Y_3_60,H$1) -> 0 | I135: =_xlfn.PERCENTILE.INC(PYpU_Y_3_60,I$1) -> 0 | J135: =_xlfn.PERCENTILE.INC(PYpU_Y_3_60,J$1) -> 0 | K135: =IFERROR(_xlfn.MODE.SNGL(ROUND(PYpU_Y_3_60,0)),"") -> 0 | L135: =_xlfn.PERCENTILE.INC(PYpU_Y_3_60,L$1) -> 0 | M135: =_xlfn.PERCENTILE.INC(PYpU_Y_3_60,M$1) -> 0 | U135: 2016 | V135: =AVERAGE(PYT1_Y_3_60) -> 0 | W135: =_xlfn.STDEV.S(PYT1_Y_3_60) -> 0 | Y135: =MIN(PYT1_Y_3_60) -> 0 | Z135: =MAX(PYT1_Y_3_60) -> 0 | AB135: 0 | AC135: 0 | AE135: 0 | AF135: 0
B136: 2017 | C136: =AVERAGE(PYpU_Y_2_48) -> 0 | D136: =_xlfn.STDEV.S(PYpU_Y_2_48) -> 0 | F136: =MIN(PYpU_Y_2_48) -> 0 | G136: =MAX(PYpU_Y_2_48) -> 0 | H136: =_xlfn.PERCENTILE.INC(PYpU_Y_2_48,H$1) -> 0 | I136: =_xlfn.PERCENTILE.INC(PYpU_Y_2_48,I$1) -> 0 | J136: =_xlfn.PERCENTILE.INC(PYpU_Y_2_48,J$1) -> 0 | K136: =IFERROR(_xlfn.MODE.SNGL(ROUND(PYpU_Y_2_48,0)),"") -> 0 | L136: =_xlfn.PERCENTILE.INC(PYpU_Y_2_48,L$1) -> 0 | M136: =_xlfn.PERCENTILE.INC(PYpU_Y_2_48,M$1) -> 0 | U136: 2017 | V136: =AVERAGE(PYT1_Y_2_48) -> 0 | W136: =_xlfn.STDEV.S(PYT1_Y_2_48) -> 0 | Y136: =MIN(PYT1_Y_2_48) -> 0 | Z136: =MAX(PYT1_Y_2_48) -> 0 | AB136: 0 | AC136: 0 | AE136: 0 | AF136: 0
B137: =B138-1 -> 2018 | C137: =AVERAGE(PYpU_Y_1_36) -> 0 | D137: =_xlfn.STDEV.S(PYpU_Y_1_36) -> 0 | F137: =MIN(PYpU_Y_1_36) -> 0 | G137: =MAX(PYpU_Y_1_36) -> 0 | H137: =_xlfn.PERCENTILE.INC(PYpU_Y_1_36,H$1) -> 0 | I137: =_xlfn.PERCENTILE.INC(PYpU_Y_1_36,I$1) -> 0 | J137: =_xlfn.PERCENTILE.INC(PYpU_Y_1_36,J$1) -> 0 | K137: =IFERROR(_xlfn.MODE.SNGL(ROUND(PYpU_Y_1_36,0)),"") -> 0 | L137: =_xlfn.PERCENTILE.INC(PYpU_Y_1_36,L$1) -> 0 | M137: =_xlfn.PERCENTILE.INC(PYpU_Y_1_36,M$1) -> 0 | U137: =U138-1 -> 2018 | V137: =AVERAGE(PYT1_Y_1_36) -> 0 | W137: =_xlfn.STDEV.S(PYT1_Y_1_36) -> 0 | Y137: =MIN(PYT1_Y_1_36) -> 0 | Z137: =MAX(PYT1_Y_1_36) -> 0 | AB137: 0 | AC137: 0 | AE137: 0 | AF137: 0
B138: =CurrentYear-1 -> 2019 | C138: =AVERAGE(PYpU_Y_24) -> 0 | D138: =_xlfn.STDEV.S(PYpU_Y_24) -> 0 | F138: =MIN(PYpU_Y_24) -> 0 | G138: =MAX(PYpU_Y_24) -> 0 | H138: =_xlfn.PERCENTILE.INC(PYpU_Y_24,H$1) -> 0 | I138: =_xlfn.PERCENTILE.INC(PYpU_Y_24,I$1) -> 0 | J138: =_xlfn.PERCENTILE.INC(PYpU_Y_24,J$1) -> 0 | K138: =IFERROR(_xlfn.MODE.SNGL(ROUND(PYpU_Y_24,0)),"") -> 0 | L138: =_xlfn.PERCENTILE.INC(PYpU_Y_24,L$1) -> 0 | M138: =_xlfn.PERCENTILE.INC(PYpU_Y_24,M$1) -> 0 | U138: =CurrentYear-1 -> 2019 | V138: =AVERAGE(PYT1_Y_24) -> 0 | W138: =_xlfn.STDEV.S(PYT1_Y_24) -> 0 | Y138: =MIN(PYT1_Y_24) -> 0 | Z138: =MAX(PYT1_Y_24) -> 0 | AB138: 0 | AC138: 0 | AE138: 0 | AF138: 0
B139: Total | C139: =AVERAGE(PYpU_CY1) -> 0 | D139: =_xlfn.STDEV.S(PYpU_CY1) -> 0 | F139: =MIN(PYpU_CY1) -> 0 | G139: =MAX(PYpU_CY1) -> 0 | H139: =_xlfn.PERCENTILE.INC(PYpU_CY1,H$1) -> 0 | I139: =_xlfn.PERCENTILE.INC(PYpU_CY1,I$1) -> 0 | J139: =_xlfn.PERCENTILE.INC(PYpU_CY1,J$1) -> 0 | K139: =IFERROR(_xlfn.MODE.SNGL(ROUND(PYpU_CY1,0)),"") -> 0 | L139: =_xlfn.PERCENTILE.INC(PYpU_CY1,L$1) -> 0 | M139: =_xlfn.PERCENTILE.INC(PYpU_CY1,M$1) -> 0 | U139: Total | V139: =AVERAGE(PYT1_CY1) -> 0 | W139: =_xlfn.STDEV.S(PYT1_CY1) -> 0 | Y139: =MIN(PYT1_CY1) -> 0 | Z139: =MAX(PYT1_CY1) -> 0 | AB139: 0 | AC139: 0 | AE139: 0 | AF139: 0
B142: =CompanyName -> Company Name
B143: =LOBName&" - Incurred" -> LOB Name - Incurred
B144: ="Mean Future Incremental as of December 31, "&CurrentYear-1 -> Mean Future Incremental as of December 31, 2019
B145: AY | C145: 12 | D145: 24 | E145: 36 | F145: 48 | G145: 60 | H145: 72 | I145: 84 | J145: 96 | K145: 108 | L145: 120 | M145: 132 | N145: 144 | O145: 156 | P145: 168 | Q145: 180 | R145: Total
B146: =B147-1 -> 2011 | L146: =AVERAGE(PYiU_Y_8_120) -> 0 | M146: =AVERAGE(PYiU_Y_8_132) -> 0 | N146: =AVERAGE(PYiU_Y_8_144) -> 0 | O146: =AVERAGE(PYiU_Y_8_156) -> 0 | P146: =AVERAGE(PYiU_Y_8_168) -> 0 | Q146: =AVERAGE(PYiU_Y_8_180) -> 0 | R146: =SUM(D146:Q146) -> 0
B147: 2012 | K147: =AVERAGE(PYiU_Y_7_108) -> 0 | L147: =AVERAGE(PYiU_Y_7_120) -> 0 | M147: =AVERAGE(PYiU_Y_7_132) -> 0 | N147: =AVERAGE(PYiU_Y_7_144) -> 0 | O147: =AVERAGE(PYiU_Y_7_156) -> 0 | P147: =AVERAGE(PYiU_Y_7_168) -> 0 | Q147: =AVERAGE(PYiU_Y_7_180) -> 0 | R147: =SUM(D147:Q147) -> 0
B148: 2013 | J148: =AVERAGE(PYiU_Y_6_96) -> 0 | K148: =AVERAGE(PYiU_Y_6_108) -> 0 | L148: =AVERAGE(PYiU_Y_6_120) -> 0 | M148: =AVERAGE(PYiU_Y_6_132) -> 0 | N148: =AVERAGE(PYiU_Y_6_144) -> 0 | O148: =AVERAGE(PYiU_Y_6_156) -> 0 | P148: =AVERAGE(PYiU_Y_6_168) -> 0 | Q148: =AVERAGE(PYiU_Y_6_180) -> 0 | R148: 0
B149: 2014 | I149: =AVERAGE(PYiU_Y_5_84) -> 0 | J149: =AVERAGE(PYiU_Y_5_96) -> 0 | K149: =AVERAGE(PYiU_Y_5_108) -> 0 | L149: =AVERAGE(PYiU_Y_5_120) -> 0 | M149: =AVERAGE(PYiU_Y_5_132) -> 0 | N149: =AVERAGE(PYiU_Y_5_144) -> 0 | O149: =AVERAGE(PYiU_Y_5_156) -> 0 | P149: =AVERAGE(PYiU_Y_5_168) -> 0 | Q149: =AVERAGE(PYiU_Y_5_180) -> 0 | R149: 0
B150: 2015 | H150: =AVERAGE(PYiU_Y_4_72) -> 0 | I150: =AVERAGE(PYiU_Y_4_84) -> 0 | J150: =AVERAGE(PYiU_Y_4_96) -> 0 | K150: =AVERAGE(PYiU_Y_4_108) -> 0 | L150: =AVERAGE(PYiU_Y_4_120) -> 0 | M150: =AVERAGE(PYiU_Y_4_132) -> 0 | N150: =AVERAGE(PYiU_Y_4_144) -> 0 | O150: =AVERAGE(PYiU_Y_4_156) -> 0 | P150: =AVERAGE(PYiU_Y_4_168) -> 0 | Q150: =AVERAGE(PYiU_Y_4_180) -> 0 | R150: 0
B151: 2016 | G151: =AVERAGE(PYiU_Y_3_60) -> 0 | H151: =AVERAGE(PYiU_Y_3_72) -> 0 | I151: =AVERAGE(PYiU_Y_3_84) -> 0 | J151: =AVERAGE(PYiU_Y_3_96) -> 0 | K151: =AVERAGE(PYiU_Y_3_108) -> 0 | L151: =AVERAGE(PYiU_Y_3_120) -> 0 | M151: =AVERAGE(PYiU_Y_3_132) -> 0 | N151: =AVERAGE(PYiU_Y_3_144) -> 0 | O151: =AVERAGE(PYiU_Y_3_156) -> 0 | P151: =AVERAGE(PYiU_Y_3_168) -> 0 | Q151: =AVERAGE(PYiU_Y_3_180) -> 0 | R151: 0
B152: 2017 | F152: =AVERAGE(PYiU_Y_2_48) -> 0 | G152: =AVERAGE(PYiU_Y_2_60) -> 0 | H152: =AVERAGE(PYiU_Y_2_72) -> 0 | I152: =AVERAGE(PYiU_Y_2_84) -> 0 | J152: =AVERAGE(PYiU_Y_2_96) -> 0 | K152: =AVERAGE(PYiU_Y_2_108) -> 0 | L152: =AVERAGE(PYiU_Y_2_120) -> 0 | M152: =AVERAGE(PYiU_Y_2_132) -> 0 | N152: =AVERAGE(PYiU_Y_2_144) -> 0 | O152: =AVERAGE(PYiU_Y_2_156) -> 0 | P152: =AVERAGE(PYiU_Y_2_168) -> 0 | Q152: =AVERAGE(PYiU_Y_2_180) -> 0 | R152: 0
B153: 2018 | E153: =AVERAGE(PYiU_Y_1_36) -> 0 | F153: =AVERAGE(PYiU_Y_1_48) -> 0 | G153: =AVERAGE(PYiU_Y_1_60) -> 0 | H153: =AVERAGE(PYiU_Y_1_72) -> 0 | I153: =AVERAGE(PYiU_Y_1_84) -> 0 | J153: =AVERAGE(PYiU_Y_1_96) -> 0 | K153: =AVERAGE(PYiU_Y_1_108) -> 0 | L153: =AVERAGE(PYiU_Y_1_120) -> 0 | M153: =AVERAGE(PYiU_Y_1_132) -> 0 | N153: =AVERAGE(PYiU_Y_1_144) -> 0 | O153: =AVERAGE(PYiU_Y_1_156) -> 0 | P153: =AVERAGE(PYiU_Y_1_168) -> 0 | Q153: =AVERAGE(PYiU_Y_1_180) -> 0 | R153: 0
B154: =CurrentYear-1 -> 2019 | D154: =AVERAGE(PYiU_Y_24) -> 0 | E154: =AVERAGE(PYiU_Y_36) -> 0 | F154: =AVERAGE(PYiU_Y_48) -> 0 | G154: =AVERAGE(PYiU_Y_60) -> 0 | H154: =AVERAGE(PYiU_Y_72) -> 0 | I154: =AVERAGE(PYiU_Y_84) -> 0 | J154: =AVERAGE(PYiU_Y_96) -> 0 | K154: =AVERAGE(PYiU_Y_108) -> 0 | L154: =AVERAGE(PYiU_Y_120) -> 0 | M154: =AVERAGE(PYiU_Y_132) -> 0 | N154: =AVERAGE(PYiU_Y_144) -> 0 | O154: =AVERAGE(PYiU_Y_156) -> 0 | P154: =AVERAGE(PYiU_Y_168) -> 0 | Q154: =AVERAGE(PYiU_Y_180) -> 0 | R154: =SUM(D154:Q154) -> 0
B157: =CompanyName -> Company Name
B158: =LOBName&" - Incurred" -> LOB Name - Incurred
B159: ="Standard Deviation Future Incremental as of December 31, "&CurrentYear-1 -> Standard Deviation Future Incremental as of December 31, 2019
B160: AY | C160: 12 | D160: 24 | E160: 36 | F160: 48 | G160: 60 | H160: 72 | I160: 84 | J160: 96 | K160: 108 | L160: 120 | M160: 132 | N160: 144 | O160: 156 | P160: 168 | Q160: 180 | R160: Total
B161: =B162-1 -> 2011 | L161: =_xlfn.STDEV.S(PYiU_Y_8_120) -> 0 | M161: =_xlfn.STDEV.S(PYiU_Y_8_132) -> 0 | N161: =_xlfn.STDEV.S(PYiU_Y_8_144) -> 0 | O161: =_xlfn.STDEV.S(PYiU_Y_8_156) -> 0 | P161: =_xlfn.STDEV.S(PYiU_Y_8_168) -> 0 | Q161: =_xlfn.STDEV.S(PYiU_Y_8_180) -> 0 | R161: =_xlfn.STDEV.S(PYiU_AY_8) -> 0
B162: 2012 | K162: =_xlfn.STDEV.S(PYiU_Y_7_108) -> 0 | L162: =_xlfn.STDEV.S(PYiU_Y_7_120) -> 0 | M162: =_xlfn.STDEV.S(PYiU_Y_7_132) -> 0 | N162: =_xlfn.STDEV.S(PYiU_Y_7_144) -> 0 | O162: =_xlfn.STDEV.S(PYiU_Y_7_156) -> 0 | P162: =_xlfn.STDEV.S(PYiU_Y_7_168) -> 0 | Q162: =_xlfn.STDEV.S(PYiU_Y_7_180) -> 0 | R162: =_xlfn.STDEV.S(PYiU_AY_7) -> 0
B163: 2013 | J163: =_xlfn.STDEV.S(PYiU_Y_6_96) -> 0 | K163: =_xlfn.STDEV.S(PYiU_Y_6_108) -> 0 | L163: =_xlfn.STDEV.S(PYiU_Y_6_120) -> 0 | M163: =_xlfn.STDEV.S(PYiU_Y_6_132) -> 0 | N163: =_xlfn.STDEV.S(PYiU_Y_6_144) -> 0 | O163: =_xlfn.STDEV.S(PYiU_Y_6_156) -> 0 | P163: =_xlfn.STDEV.S(PYiU_Y_6_168) -> 0 | Q163: =_xlfn.STDEV.S(PYiU_Y_6_180) -> 0 | R163: =_xlfn.STDEV.S(PYiU_AY_6) -> 0
B164: 2014 | I164: =_xlfn.STDEV.S(PYiU_Y_5_84) -> 0 | J164: =_xlfn.STDEV.S(PYiU_Y_5_96) -> 0 | K164: =_xlfn.STDEV.S(PYiU_Y_5_108) -> 0 | L164: =_xlfn.STDEV.S(PYiU_Y_5_120) -> 0 | M164: =_xlfn.STDEV.S(PYiU_Y_5_132) -> 0 | N164: =_xlfn.STDEV.S(PYiU_Y_5_144) -> 0 | O164: =_xlfn.STDEV.S(PYiU_Y_5_156) -> 0 | P164: =_xlfn.STDEV.S(PYiU_Y_5_168) -> 0 | Q164: =_xlfn.STDEV.S(PYiU_Y_5_180) -> 0 | R164: =_xlfn.STDEV.S(PYiU_AY_5) -> 0
B165: 2015 | H165: =_xlfn.STDEV.S(PYiU_Y_4_72) -> 0 | I165: =_xlfn.STDEV.S(PYiU_Y_4_84) -> 0 | J165: =_xlfn.STDEV.S(PYiU_Y_4_96) -> 0 | K165: =_xlfn.STDEV.S(PYiU_Y_4_108) -> 0 | L165: =_xlfn.STDEV.S(PYiU_Y_4_120) -> 0 | M165: =_xlfn.STDEV.S(PYiU_Y_4_132) -> 0 | N165: =_xlfn.STDEV.S(PYiU_Y_4_144) -> 0 | O165: =_xlfn.STDEV.S(PYiU_Y_4_156) -> 0 | P165: =_xlfn.STDEV.S(PYiU_Y_4_168) -> 0 | Q165: =_xlfn.STDEV.S(PYiU_Y_4_180) -> 0 | R165: =_xlfn.STDEV.S(PYiU_AY_4) -> 0
B166: 2016 | G166: =_xlfn.STDEV.S(PYiU_Y_3_60) -> 0 | H166: =_xlfn.STDEV.S(PYiU_Y_3_72) -> 0 | I166: =_xlfn.STDEV.S(PYiU_Y_3_84) -> 0 | J166: =_xlfn.STDEV.S(PYiU_Y_3_96) -> 0 | K166: =_xlfn.STDEV.S(PYiU_Y_3_108) -> 0 | L166: =_xlfn.STDEV.S(PYiU_Y_3_120) -> 0 | M166: =_xlfn.STDEV.S(PYiU_Y_3_132) -> 0 | N166: =_xlfn.STDEV.S(PYiU_Y_3_144) -> 0 | O166: =_xlfn.STDEV.S(PYiU_Y_3_156) -> 0 | P166: =_xlfn.STDEV.S(PYiU_Y_3_168) -> 0 | Q166: =_xlfn.STDEV.S(PYiU_Y_3_180) -> 0 | R166: =_xlfn.STDEV.S(PYiU_AY_3) -> 0
B167: 2017 | F167: =_xlfn.STDEV.S(PYiU_Y_2_48) -> 0 | G167: =_xlfn.STDEV.S(PYiU_Y_2_60) -> 0 | H167: =_xlfn.STDEV.S(PYiU_Y_2_72) -> 0 | I167: =_xlfn.STDEV.S(PYiU_Y_2_84) -> 0 | J167: =_xlfn.STDEV.S(PYiU_Y_2_96) -> 0 | K167: =_xlfn.STDEV.S(PYiU_Y_2_108) -> 0 | L167: =_xlfn.STDEV.S(PYiU_Y_2_120) -> 0 | M167: =_xlfn.STDEV.S(PYiU_Y_2_132) -> 0 | N167: =_xlfn.STDEV.S(PYiU_Y_2_144) -> 0 | O167: =_xlfn.STDEV.S(PYiU_Y_2_156) -> 0 | P167: =_xlfn.STDEV.S(PYiU_Y_2_168) -> 0 | Q167: =_xlfn.STDEV.S(PYiU_Y_2_180) -> 0 | R167: =_xlfn.STDEV.S(PYiU_AY_2) -> 0
B168: 2018 | E168: =_xlfn.STDEV.S(PYiU_Y_1_36) -> 0 | F168: =_xlfn.STDEV.S(PYiU_Y_1_48) -> 0 | G168: =_xlfn.STDEV.S(PYiU_Y_1_60) -> 0 | H168: =_xlfn.STDEV.S(PYiU_Y_1_72) -> 0 | I168: =_xlfn.STDEV.S(PYiU_Y_1_84) -> 0 | J168: =_xlfn.STDEV.S(PYiU_Y_1_96) -> 0 | K168: =_xlfn.STDEV.S(PYiU_Y_1_108) -> 0 | L168: =_xlfn.STDEV.S(PYiU_Y_1_120) -> 0 | M168: =_xlfn.STDEV.S(PYiU_Y_1_132) -> 0 | N168: =_xlfn.STDEV.S(PYiU_Y_1_144) -> 0 | O168: =_xlfn.STDEV.S(PYiU_Y_1_156) -> 0 | P168: =_xlfn.STDEV.S(PYiU_Y_1_168) -> 0 | Q168: =_xlfn.STDEV.S(PYiU_Y_1_180) -> 0 | R168: =_xlfn.STDEV.S(PYiU_AY_1) -> 0
B169: =CurrentYear-1 -> 2019 | D169: =_xlfn.STDEV.S(PYiU_Y_24) -> 0 | E169: =_xlfn.STDEV.S(PYiU_Y_36) -> 0 | F169: =_xlfn.STDEV.S(PYiU_Y_48) -> 0 | G169: =_xlfn.STDEV.S(PYiU_Y_60) -> 0 | H169: =_xlfn.STDEV.S(PYiU_Y_72) -> 0 | I169: =_xlfn.STDEV.S(PYiU_Y_84) -> 0 | J169: =_xlfn.STDEV.S(PYiU_Y_96) -> 0 | K169: =_xlfn.STDEV.S(PYiU_Y_108) -> 0 | L169: =_xlfn.STDEV.S(PYiU_Y_120) -> 0 | M169: =_xlfn.STDEV.S(PYiU_Y_132) -> 0 | N169: =_xlfn.STDEV.S(PYiU_Y_144) -> 0 | O169: =_xlfn.STDEV.S(PYiU_Y_156) -> 0 | P169: =_xlfn.STDEV.S(PYiU_Y_168) -> 0 | Q169: =_xlfn.STDEV.S(PYiU_Y_180) -> 0 | R169: =_xlfn.STDEV.S(PYiU_AY) -> 0
B172: =CompanyName -> Company Name
B173: =LOBName&" - Incurred" -> LOB Name - Incurred
B174: ="CoV Future Incremental as of December 31, "&CurrentYear-1 -> CoV Future Incremental as of December 31, 2019
B175: AY | C175: 12 | D175: 24 | E175: 36 | F175: 48 | G175: 60 | H175: 72 | I175: 84 | J175: 96 | K175: 108 | L175: 120 | M175: 132 | N175: 144 | O175: 156 | P175: 168 | Q175: 180 | R175: Total
B176: =B177-1 -> 2011 | L176: =IFERROR(L161/L146,"") -> 
B177: 2012 | K177: =IFERROR(K162/K147,"") -> 
B178: 2013 | J178: =IFERROR(J163/J148,"") -> 
B179: 2014 | I179: =IFERROR(I164/I149,"") -> 
B180: 2015 | H180: =IFERROR(H165/H150,"") -> 
B181: 2016 | G181: =IFERROR(G166/G151,"") -> 
B182: 2017 | F182: =IFERROR(F167/F152,"") -> 
B183: 2018 | E183: =IFERROR(E168/E153,"") -> 
B184: =CurrentYear-1 -> 2019 | D184: =IFERROR(D169/D154,"") ->  | E184: =IFERROR(E169/E154,"") -> 
B187: =CompanyName -> Company Name
B188: =LOBName&" - Incurred" -> LOB Name - Incurred
B189: ="Stochastic Estimates as of December 31, "&CurrentYear-1 -> Stochastic Estimates as of December 31, 2019
B190: ="Estimated IBNR by Accident Year, Calendar Year "&CurrentYear&" Only" -> Estimated IBNR by Accident Year, Calendar Year 2020 Only
B191: AY | C191: Mean | D191: Std Dev | E191: CoV | F191: Min | G191: Max | H191: =H$1 -> 0.05 | I191: =I$1 -> 0.25 | J191: Median | K191: Mode | L191: =L$1 -> 0.75 | M191: =M$1 -> 0.95
B192: =B193-1 -> 2011 | C192: =AVERAGE(PYiU_Y_8_120) -> 0 | D192: =_xlfn.STDEV.S(PYiU_Y_8_120) -> 0 | E192: =IFERROR(D192/C192,"") ->  | F192: =MIN(PYiU_Y_8_120) -> 0 | G192: =MAX(PYiU_Y_8_120) -> 0 | H192: =_xlfn.PERCENTILE.INC(PYiU_Y_8_120,H$1) -> 0 | I192: =_xlfn.PERCENTILE.INC(PYiU_Y_8_120,I$1) -> 0 | J192: =_xlfn.PERCENTILE.INC(PYiU_Y_8_120,J$1) -> 0 | K192: =IFERROR(_xlfn.MODE.SNGL(ROUND(PYiU_Y_8_120,0)),"") -> 0 | L192: =_xlfn.PERCENTILE.INC(PYiU_Y_8_120,L$1) -> 0 | M192: =_xlfn.PERCENTILE.INC(PYiU_Y_8_120,M$1) -> 0
B193: 2012 | C193: =AVERAGE(PYiU_Y_7_108) -> 0 | D193: =_xlfn.STDEV.S(PYiU_Y_7_108) -> 0 | F193: =MIN(PYiU_Y_7_108) -> 0 | G193: =MAX(PYiU_Y_7_108) -> 0 | H193: =_xlfn.PERCENTILE.INC(PYiU_Y_7_108,H$1) -> 0 | I193: =_xlfn.PERCENTILE.INC(PYiU_Y_7_108,I$1) -> 0 | J193: =_xlfn.PERCENTILE.INC(PYiU_Y_7_108,J$1) -> 0 | K193: =IFERROR(_xlfn.MODE.SNGL(ROUND(PYiU_Y_7_108,0)),"") -> 0 | L193: =_xlfn.PERCENTILE.INC(PYiU_Y_7_108,L$1) -> 0 | M193: =_xlfn.PERCENTILE.INC(PYiU_Y_7_108,M$1) -> 0
B194: 2013 | C194: =AVERAGE(PYiU_Y_6_96) -> 0 | D194: =_xlfn.STDEV.S(PYiU_Y_6_96) -> 0 | F194: =MIN(PYiU_Y_6_96) -> 0 | G194: =MAX(PYiU_Y_6_96) -> 0 | H194: =_xlfn.PERCENTILE.INC(PYiU_Y_6_96,H$1) -> 0 | I194: =_xlfn.PERCENTILE.INC(PYiU_Y_6_96,I$1) -> 0 | J194: =_xlfn.PERCENTILE.INC(PYiU_Y_6_96,J$1) -> 0 | K194: =IFERROR(_xlfn.MODE.SNGL(ROUND(PYiU_Y_6_96,0)),"") -> 0 | L194: =_xlfn.PERCENTILE.INC(PYiU_Y_6_96,L$1) -> 0 | M194: =_xlfn.PERCENTILE.INC(PYiU_Y_6_96,M$1) -> 0
B195: 2014 | C195: =AVERAGE(PYiU_Y_5_84) -> 0 | D195: =_xlfn.STDEV.S(PYiU_Y_5_84) -> 0 | F195: =MIN(PYiU_Y_5_84) -> 0 | G195: =MAX(PYiU_Y_5_84) -> 0 | H195: =_xlfn.PERCENTILE.INC(PYiU_Y_5_84,H$1) -> 0 | I195: =_xlfn.PERCENTILE.INC(PYiU_Y_5_84,I$1) -> 0 | J195: =_xlfn.PERCENTILE.INC(PYiU_Y_5_84,J$1) -> 0 | K195: =IFERROR(_xlfn.MODE.SNGL(ROUND(PYiU_Y_5_84,0)),"") -> 0 | L195: =_xlfn.PERCENTILE.INC(PYiU_Y_5_84,L$1) -> 0 | M195: =_xlfn.PERCENTILE.INC(PYiU_Y_5_84,M$1) -> 0
B196: 2015 | C196: =AVERAGE(PYiU_Y_4_72) -> 0 | D196: =_xlfn.STDEV.S(PYiU_Y_4_72) -> 0 | F196: =MIN(PYiU_Y_4_72) -> 0 | G196: =MAX(PYiU_Y_4_72) -> 0 | H196: =_xlfn.PERCENTILE.INC(PYiU_Y_4_72,H$1) -> 0 | I196: =_xlfn.PERCENTILE.INC(PYiU_Y_4_72,I$1) -> 0 | J196: =_xlfn.PERCENTILE.INC(PYiU_Y_4_72,J$1) -> 0 | K196: =IFERROR(_xlfn.MODE.SNGL(ROUND(PYiU_Y_4_72,0)),"") -> 0 | L196: =_xlfn.PERCENTILE.INC(PYiU_Y_4_72,L$1) -> 0 | M196: =_xlfn.PERCENTILE.INC(PYiU_Y_4_72,M$1) -> 0
B197: 2016 | C197: =AVERAGE(PYiU_Y_3_60) -> 0 | D197: =_xlfn.STDEV.S(PYiU_Y_3_60) -> 0 | F197: =MIN(PYiU_Y_3_60) -> 0 | G197: =MAX(PYiU_Y_3_60) -> 0 | H197: =_xlfn.PERCENTILE.INC(PYiU_Y_3_60,H$1) -> 0 | I197: =_xlfn.PERCENTILE.INC(PYiU_Y_3_60,I$1) -> 0 | J197: =_xlfn.PERCENTILE.INC(PYiU_Y_3_60,J$1) -> 0 | K197: =IFERROR(_xlfn.MODE.SNGL(ROUND(PYiU_Y_3_60,0)),"") -> 0 | L197: =_xlfn.PERCENTILE.INC(PYiU_Y_3_60,L$1) -> 0 | M197: =_xlfn.PERCENTILE.INC(PYiU_Y_3_60,M$1) -> 0
B198: 2017 | C198: =AVERAGE(PYiU_Y_2_48) -> 0 | D198: =_xlfn.STDEV.S(PYiU_Y_2_48) -> 0 | F198: =MIN(PYiU_Y_2_48) -> 0 | G198: =MAX(PYiU_Y_2_48) -> 0 | H198: =_xlfn.PERCENTILE.INC(PYiU_Y_2_48,H$1) -> 0 | I198: =_xlfn.PERCENTILE.INC(PYiU_Y_2_48,I$1) -> 0 | J198: =_xlfn.PERCENTILE.INC(PYiU_Y_2_48,J$1) -> 0 | K198: =IFERROR(_xlfn.MODE.SNGL(ROUND(PYiU_Y_2_48,0)),"") -> 0 | L198: =_xlfn.PERCENTILE.INC(PYiU_Y_2_48,L$1) -> 0 | M198: =_xlfn.PERCENTILE.INC(PYiU_Y_2_48,M$1) -> 0
B199: =B200-1 -> 2018 | C199: =AVERAGE(PYiU_Y_1_36) -> 0 | D199: =_xlfn.STDEV.S(PYiU_Y_1_36) -> 0 | F199: =MIN(PYiU_Y_1_36) -> 0 | G199: =MAX(PYiU_Y_1_36) -> 0 | H199: =_xlfn.PERCENTILE.INC(PYiU_Y_1_36,H$1) -> 0 | I199: =_xlfn.PERCENTILE.INC(PYiU_Y_1_36,I$1) -> 0 | J199: =_xlfn.PERCENTILE.INC(PYiU_Y_1_36,J$1) -> 0 | K199: =IFERROR(_xlfn.MODE.SNGL(ROUND(PYiU_Y_1_36,0)),"") -> 0 | L199: =_xlfn.PERCENTILE.INC(PYiU_Y_1_36,L$1) -> 0 | M199: =_xlfn.PERCENTILE.INC(PYiU_Y_1_36,M$1) -> 0
B200: =CurrentYear-1 -> 2019 | C200: =AVERAGE(PYiU_Y_24) -> 0 | D200: =_xlfn.STDEV.S(PYiU_Y_24) -> 0 | F200: =MIN(PYiU_Y_24) -> 0 | G200: =MAX(PYiU_Y_24) -> 0 | H200: =_xlfn.PERCENTILE.INC(PYiU_Y_24,H$1) -> 0 | I200: =_xlfn.PERCENTILE.INC(PYiU_Y_24,I$1) -> 0 | J200: =_xlfn.PERCENTILE.INC(PYiU_Y_24,J$1) -> 0 | K200: =IFERROR(_xlfn.MODE.SNGL(ROUND(PYiU_Y_24,0)),"") -> 0 | L200: =_xlfn.PERCENTILE.INC(PYiU_Y_24,L$1) -> 0 | M200: =_xlfn.PERCENTILE.INC(PYiU_Y_24,M$1) -> 0
B201: Total | C201: =AVERAGE(PYiU_CY1) -> 0 | D201: =_xlfn.STDEV.S(PYiU_CY1) -> 0 | F201: =MIN(PYiU_CY1) -> 0 | G201: =MAX(PYiU_CY1) -> 0 | H201: =_xlfn.PERCENTILE.INC(PYiU_CY1,H$1) -> 0 | I201: =_xlfn.PERCENTILE.INC(PYiU_CY1,I$1) -> 0 | J201: =_xlfn.PERCENTILE.INC(PYiU_CY1,J$1) -> 0 | K201: =IFERROR(_xlfn.MODE.SNGL(ROUND(PYiU_CY1,0)),"") -> 0 | L201: =_xlfn.PERCENTILE.INC(PYiU_CY1,L$1) -> 0 | M201: =_xlfn.PERCENTILE.INC(PYiU_CY1,M$1) -> 0
B204: =CompanyName -> Company Name
B205: =LOBName -> LOB Name
B206: ="Stochastic Actual vs. Expected as of December 31, "&CurrentYear -> Stochastic Actual vs. Expected as of December 31, 2020
D207: Actual | E207: Expected | G207: Actual | H207: Expected | J207: Conditional | K207: Expected
B208: AY | C208: Age | D208: Paid | E208: Paid | F208: Percentile | G208: Incurred | H208: Incurred | I208: Percentile | J208: Reserve | K208: Reserve | L208: Change
B209: =B210-1 -> 2011 | C209: =L$83 -> 120 | D209: =Inputs!K17-Inputs!J17 -> 0 | E209: =C130 -> 0 | F209: =IF(D209<F130,0,IF(D209>G130,1,_xlfn.PERCENTRANK.INC(PYpU_Y_8_120,D209))) -> 0 | G209: =Inputs!K31-Inputs!J31 -> 0 | H209: =L146 -> 0 | I209: =IF(G209<F192,0,IF(G209>G192,1,_xlfn.PERCENTRANK.INC(PYiU_Y_8_120,G209))) -> 0 | J209: =_xlfn.PERCENTILE.INC(PYT1_AY_8,F209) -> 0 | K209: =R84-D209 -> 0 | L209: =J209-K209 -> 0 | AA209: =IF(F209="",0,1) -> 1 | AB209: =IF(I209="",0,1) -> 1 | AD209: =IF($AA209=0,0,IF(AND($F209>$I$1,$F209<$L$1),1,0)) -> 0 | AE209: =IF($AB209=0,0,IF(AND($I209>$I$1,$I209<$L$1),1,0)) -> 0 | AG209: =IF($AA209=0,0,IF(AND($F209>$H$1,$F209<$M$1),1,0)) -> 0 | AH209: =IF($AB209=0,0,IF(AND($I209>$H$1,$I209<$M$1),1,0)) -> 0 | AJ209: =IF($AA209=0,0,IF(OR($F209<=$H$1,$F209>=$M$1),1,0)) -> 1 | AK209: =IF($AB209=0,0,IF(OR($I209<=$H$1,$I209>=$M$1),1,0)) -> 1
B210: 2012 | C210: =K$83 -> 108 | D210: =Inputs!J18-Inputs!I18 -> 0 | E210: 0 | F210: =IF(D210<F131,0,IF(D210>G131,1,_xlfn.PERCENTRANK.INC(PYpU_Y_7_108,D210))) -> 0 | G210: =Inputs!J32-Inputs!I32 -> 0 | H210: =K147 -> 0 | I210: =IF(G210<F193,0,IF(G210>G193,1,_xlfn.PERCENTRANK.INC(PYiU_Y_7_108,G210))) -> 0 | J210: =_xlfn.PERCENTILE.INC(PYT1_AY_7,F210) -> 0 | K210: =R85-D210 -> 0 | L210: =J210-K210 -> 0 | AA210: =IF(F210="",0,1) -> 1 | AB210: =IF(I210="",0,1) -> 1 | AD210: 0 | AE210: 0 | AG210: 0 | AH210: 0 | AJ210: 1 | AK210: 1
B211: 2013 | C211: =J$83 -> 96 | D211: =Inputs!I19-Inputs!H19 -> 0 | E211: 0 | F211: =IF(D211<F132,0,IF(D211>G132,1,_xlfn.PERCENTRANK.INC(PYpU_Y_6_96,D211))) -> 0 | G211: =Inputs!I33-Inputs!H33 -> 0 | H211: =J148 -> 0 | I211: =IF(G211<F194,0,IF(G211>G194,1,_xlfn.PERCENTRANK.INC(PYiU_Y_6_96,G211))) -> 0 | J211: =_xlfn.PERCENTILE.INC(PYT1_AY_6,F211) -> 0 | K211: 0 | L211: 0 | AA211: 1 | AB211: 1 | AD211: 0 | AE211: 0 | AG211: 0 | AH211: 0 | AJ211: 1 | AK211: 1
B212: 2014 | C212: =I$83 -> 84 | D212: =Inputs!H20-Inputs!G20 -> 0 | E212: 0 | F212: =IF(D212<F133,0,IF(D212>G133,1,_xlfn.PERCENTRANK.INC(PYpU_Y_5_84,D212))) -> 0 | G212: =Inputs!H34-Inputs!G34 -> 0 | H212: =I149 -> 0 | I212: =IF(G212<F195,0,IF(G212>G195,1,_xlfn.PERCENTRANK.INC(PYiU_Y_5_84,G212))) -> 0 | J212: =_xlfn.PERCENTILE.INC(PYT1_AY_5,F212) -> 0 | K212: 0 | L212: 0 | AA212: 1 | AB212: 1 | AD212: 0 | AE212: 0 | AG212: 0 | AH212: 0 | AJ212: 1 | AK212: 1
B213: 2015 | C213: =H$83 -> 72 | D213: =Inputs!G21-Inputs!F21 -> 0 | E213: 0 | F213: =IF(D213<F134,0,IF(D213>G134,1,_xlfn.PERCENTRANK.INC(PYpU_Y_4_72,D213))) -> 0 | G213: =Inputs!G35-Inputs!F35 -> 0 | H213: =H150 -> 0 | I213: =IF(G213<F196,0,IF(G213>G196,1,_xlfn.PERCENTRANK.INC(PYiU_Y_4_72,G213))) -> 0 | J213: =_xlfn.PERCENTILE.INC(PYT1_AY_4,F213) -> 0 | K213: 0 | L213: 0 | AA213: 1 | AB213: 1 | AD213: 0 | AE213: 0 | AG213: 0 | AH213: 0 | AJ213: 1 | AK213: 1
B214: 2016 | C214: =G$83 -> 60 | D214: =Inputs!F22-Inputs!E22 -> 0 | E214: 0 | F214: =IF(D214<F135,0,IF(D214>G135,1,_xlfn.PERCENTRANK.INC(PYpU_Y_3_60,D214))) -> 0 | G214: =Inputs!F36-Inputs!E36 -> 0 | H214: =G151 -> 0 | I214: =IF(G214<F197,0,IF(G214>G197,1,_xlfn.PERCENTRANK.INC(PYiU_Y_3_60,G214))) -> 0 | J214: =_xlfn.PERCENTILE.INC(PYT1_AY_3,F214) -> 0 | K214: 0 | L214: 0 | AA214: 1 | AB214: 1 | AD214: 0 | AE214: 0 | AG214: 0 | AH214: 0 | AJ214: 1 | AK214: 1
B215: 2017 | C215: =F$83 -> 48 | D215: =Inputs!E23-Inputs!D23 -> 0 | E215: 0 | F215: =IF(D215<F136,0,IF(D215>G136,1,_xlfn.PERCENTRANK.INC(PYpU_Y_2_48,D215))) -> 0 | G215: =Inputs!E37-Inputs!D37 -> 0 | H215: =F152 -> 0 | I215: =IF(G215<F198,0,IF(G215>G198,1,_xlfn.PERCENTRANK.INC(PYiU_Y_2_48,G215))) -> 0 | J215: =_xlfn.PERCENTILE.INC(PYT1_AY_2,F215) -> 0 | K215: 0 | L215: 0 | AA215: 1 | AB215: 1 | AD215: 0 | AE215: 0 | AG215: 0 | AH215: 0 | AJ215: 1 | AK215: 1
B216: 2018 | C216: =E$83 -> 36 | D216: =Inputs!D24-Inputs!C24 -> 0 | E216: 0 | F216: =IF(D216<F137,0,IF(D216>G137,1,_xlfn.PERCENTRANK.INC(PYpU_Y_1_36,D216))) -> 0 | G216: =Inputs!D38-Inputs!C38 -> 0 | H216: =E153 -> 0 | I216: =IF(G216<F199,0,IF(G216>G199,1,_xlfn.PERCENTRANK.INC(PYiU_Y_1_36,G216))) -> 0 | J216: =_xlfn.PERCENTILE.INC(PYT1_AY_1,F216) -> 0 | K216: 0 | L216: 0 | AA216: 1 | AB216: 1 | AD216: 0 | AE216: 0 | AG216: 0 | AH216: 0 | AJ216: 1 | AK216: 1
B217: 2019 | C217: =D$83 -> 24 | D217: =Inputs!C25-Inputs!B25 -> 0 | E217: 0 | F217: =IF(D217<F138,0,IF(D217>G138,1,_xlfn.PERCENTRANK.INC(PYpU_Y_24,D217))) -> 0 | G217: =Inputs!C39-Inputs!B39 -> 0 | H217: =D154 -> 0 | I217: =IF(G217<F200,0,IF(G217>G200,1,_xlfn.PERCENTRANK.INC(PYiU_Y_24,G217))) -> 0 | J217: =_xlfn.PERCENTILE.INC(PYT1_AY,F217) -> 0 | K217: 0 | L217: 0 | AA217: 1 | AB217: 1 | AD217: 0 | AE217: 0 | AG217: 0 | AH217: 0 | AJ217: 1 | AK217: 1
B218: =CurrentYear -> 2020 | C218: =C$83 -> 12 | D218: =Inputs!B26 -> 0 | G218: =Inputs!B40 -> 0 | AA218: 0 | AB218: 0 | AD218: 0 | AE218: 0 | AG218: 0 | AH218: 0 | AJ218: 0 | AK218: 0
B219: Totals | D219: =SUM(D209:D218) -> 0 | G219: =SUM(G209:G218) -> 0 | J219: =SUM(J209:J218) -> 0 | K219: 0 | L219: 0 | AA219: 0 | AB219: 0 | AD219: 0 | AE219: 0 | AG219: 0 | AH219: 0 | AJ219: 0 | AK219: 0
B220: AY<CY | D220: =SUM(D209:D217) -> 0 | E220: =SUM(E209:E217) -> 0 | F220: =IF(D220<F139,0,IF(D220>G139,1,_xlfn.PERCENTRANK.INC(PYpU_CY1,D220))) -> 0 | G220: =SUM(G209:G217) -> 0 | H220: =SUM(H209:H217) -> 0 | I220: =IF(G220<F201,0,IF(G220>G201,1,_xlfn.PERCENTRANK.INC(PYiU_CY1,G220))) -> 0 | J220: =_xlfn.PERCENTILE.INC(PYT1_AYTot,F220) -> 0 | K220: =C17-D220 -> 0 | L220: =J220-K220 -> 0 | AA220: 1 | AB220: 1 | AD220: 0 | AE220: 0 | AG220: 0 | AH220: 0 | AJ220: 1 | AK220: 1
C222: Number | I222: Percentage
C223: =TEXT($I$1,"0%")&" < X < "&TEXT($L$1,"0%") -> 25% < X < 75% | E223: =TEXT($H$1,"0%")&" < X < "&TEXT($M$1,"0%") -> 5% < X < 95% | G223: =TEXT($H$1,"0%")&" > X < "&TEXT($M$1,"0%") -> 5% > X < 95% | I223: =TEXT($I$1,"0%")&" < X < "&TEXT($L$1,"0%") -> 25% < X < 75% | K223: =TEXT($H$1,"0%")&" < X < "&TEXT($M$1,"0%") -> 5% < X < 95% | M223: =TEXT($H$1,"0%")&" > X < "&TEXT($M$1,"0%") -> 5% > X < 95%
C224: Expected | D224: Actual | E224: Expected | F224: Actual | G224: Expected | H224: Actual | I224: Expected | J224: Actual | K224: Expected | L224: Actual | M224: Expected | N224: Actual
C225: =($L$1-$I$1)*$P$225 -> 10 | D225: =SUM(AD209:AE220) -> 0 | E225: =($M$1-$H$1)*$P$225 -> 18 | F225: =SUM(AG209:AH220) -> 0 | G225: =(1-($M$1-$H$1))*$P$225 -> 2 | H225: =SUM(AJ209:AK220) -> 20 | I225: =C225/$P225 -> 0.5 | J225: 0 | K225: 0.9 | L225: 0 | M225: 0.1 | N225: 1 | P225: =SUM(AA209:AB220) -> 20
C229: 0 | D229: 0.05 | E229: 0.25 | G229: 0.75 | H229: 0.95 | I229: 1
... 95 more rows

Sheet KPIs
E3: Stochastic Model Results | S3: LOB #: | T3: 1
E4: =CurrentYear&" "&LOBName&" Exposure" -> 2020 LOB Name Exposure | S4: Total LOBs: | T4: 3
N5: Customize Page | Edit Layout | Printable View | Help for this Page
D6: « Back to List: Custom Object Definitions
D7: Stochastic Model Detail
G9: Model Name | H9: =CurrentYear&" "&LOBName&" Exposure" -> 2020 LOB Name Exposure | L9: Assumption Owner | M9: Reserving Actuary
G10: Description | H10: ="Expected "&LOBName&" claim payments during "&CurrentYear&" for exposure periods prior to "&CurrentYear&" based on data generated by claims system as of "&TEXT(F33,"mm/dd/yyyy")&" relative to the "&TEXT(F32,"mm/dd/yyyy")&" actuarial assumptions." -> Expected LOB Name claim payments during 2020 for exposure periods prior to 2020 based on data generated by claims system as of 12/31/2020 relative to the 12/31/2019 actuarial assumptions. | L10: Reports To | M10: Chief Actuary
G13: Assumption Value | H13: Expected Value | L13: Assumption Value Date | M13: =F32 -> 2019-12-31
G14: Assumption Minimum | H14: ='Results - Stochastic'!$H$1 -> 0.05 | L14: Next Update Due | M14: =F33 -> 2020-12-31
G15: Assumption Maximum | H15: ='Results - Stochastic'!$M$1 -> 0.95
D17: q Realized Value
H18: Paid Actual | I18: ='Results - Stochastic'!D220 -> 0 | L18: Incurred Actual | M18: ='Results - Stochastic'!G220 -> 0
H19: Paid Expected | I19: ='Results - Stochastic'!E220 -> 0 | L19: Incurred Expected | M19: ='Results - Stochastic'!H220 -> 0
H20: Paid Percentile | I20: ='Results - Stochastic'!F220 -> 0 | L20: Incurred Percentile | M20: ='Results - Stochastic'!I220 -> 0
D22: Stochastic Values | N22: Help
D23: Action | E23: Number | F23: Exposure Period | G23: Age | H23: Paid Actual | I23: Paid Expected | J23: Paid Percentile | L23: Incurred Actual | M23: Incurred Expected | N23: Incurred Percentile
A24: 9 | D24: Edit | Del | E24: =$T$3*10+1 -> 11 | F24: =DATE(CurrentYear-A24,12,31) -> 2011-12-31 | G24: =12*(1+A24) -> 120 | H24: ='Results - Stochastic'!D209 -> 0 | I24: ='Results - Stochastic'!E209 -> 0 | J24: ='Results - Stochastic'!F209 -> 0 | L24: ='Results - Stochastic'!G209 -> 0 | M24: ='Results - Stochastic'!H209 -> 0 | N24: ='Results - Stochastic'!I209 -> 0
A25: 8 | D25: Edit | Del | E25: =E24+1 -> 12 | F25: 2012-12-31 | G25: 108 | H25: ='Results - Stochastic'!D210 -> 0 | I25: ='Results - Stochastic'!E210 -> 0 | J25: ='Results - Stochastic'!F210 -> 0 | L25: ='Results - Stochastic'!G210 -> 0 | M25: ='Results - Stochastic'!H210 -> 0 | N25: ='Results - Stochastic'!I210 -> 0
A26: 7 | D26: Edit | Del | E26: =E25+1 -> 13 | F26: 2013-12-31 | G26: 96 | H26: ='Results - Stochastic'!D211 -> 0 | I26: ='Results - Stochastic'!E211 -> 0 | J26: ='Results - Stochastic'!F211 -> 0 | L26: ='Results - Stochastic'!G211 -> 0 | M26: ='Results - Stochastic'!H211 -> 0 | N26: ='Results - Stochastic'!I211 -> 0
A27: 6 | D27: Edit | Del | E27: 14 | F27: 2014-12-31 | G27: 84 | H27: ='Results - Stochastic'!D212 -> 0 | I27: ='Results - Stochastic'!E212 -> 0 | J27: ='Results - Stochastic'!F212 -> 0 | L27: ='Results - Stochastic'!G212 -> 0 | M27: ='Results - Stochastic'!H212 -> 0 | N27: ='Results - Stochastic'!I212 -> 0
A28: 5 | D28: Edit | Del | E28: 15 | F28: 2015-12-31 | G28: 72 | H28: ='Results - Stochastic'!D213 -> 0 | I28: ='Results - Stochastic'!E213 -> 0 | J28: ='Results - Stochastic'!F213 -> 0 | L28: ='Results - Stochastic'!G213 -> 0 | M28: ='Results - Stochastic'!H213 -> 0 | N28: ='Results - Stochastic'!I213 -> 0
A29: 4 | D29: Edit | Del | E29: 16 | F29: 2016-12-31 | G29: 60 | H29: ='Results - Stochastic'!D214 -> 0 | I29: ='Results - Stochastic'!E214 -> 0 | J29: ='Results - Stochastic'!F214 -> 0 | L29: ='Results - Stochastic'!G214 -> 0 | M29: ='Results - Stochastic'!H214 -> 0 | N29: ='Results - Stochastic'!I214 -> 0
A30: 3 | D30: Edit | Del | E30: 17 | F30: 2017-12-31 | G30: 48 | H30: ='Results - Stochastic'!D215 -> 0 | I30: ='Results - Stochastic'!E215 -> 0 | J30: ='Results - Stochastic'!F215 -> 0 | L30: ='Results - Stochastic'!G215 -> 0 | M30: ='Results - Stochastic'!H215 -> 0 | N30: ='Results - Stochastic'!I215 -> 0
A31: 2 | D31: Edit | Del | E31: 18 | F31: 2018-12-31 | G31: 36 | H31: ='Results - Stochastic'!D216 -> 0 | I31: ='Results - Stochastic'!E216 -> 0 | J31: ='Results - Stochastic'!F216 -> 0 | L31: ='Results - Stochastic'!G216 -> 0 | M31: ='Results - Stochastic'!H216 -> 0 | N31: ='Results - Stochastic'!I216 -> 0
A32: 1 | D32: Edit | Del | E32: 19 | F32: 2019-12-31 | G32: 24 | H32: ='Results - Stochastic'!D217 -> 0 | I32: ='Results - Stochastic'!E217 -> 0 | J32: ='Results - Stochastic'!F217 -> 0 | L32: ='Results - Stochastic'!G217 -> 0 | M32: ='Results - Stochastic'!H217 -> 0 | N32: ='Results - Stochastic'!I217 -> 0
A33: 0 | D33: Edit | Del | E33: 20 | F33: 2020-12-31 | G33: 12 | H33: ='Results - Stochastic'!D218 -> 0 | I33: ='Results - Stochastic'!E218 -> 0 | L33: ='Results - Stochastic'!G218 -> 0 | M33: ='Results - Stochastic'!H218 -> 0
N35: ="Page "&$T$3&" of "&$T$4 -> Page 1 of 3

Sheet PYp Ult - SimResults
A1: Accident Years: | C1: 9
B2: =PYpUltYrs -> 9 | C2: =B2 -> 9 | D2: =C2 -> 9 | E2: 9 | F2: 9 | G2: 9 | H2: 9 | I2: 9 | J2: 9 | K2: 9 | L2: 9 | M2: 9 | N2: 9 | O2: 9 | P2: 9 | Q2: =MAX(P2-1,0) -> 8 | R2: 8 | S2: 8 | T2: 8 | U2: 8 | V2: 8 | W2: 8 | X2: 8 | Y2: 8 | Z2: 8 | AA2: 8 | AB2: 8 | AC2: 8 | AD2: 8 | AE2: 8 | AF2: =MAX(AE2-1,0) -> 7 | AG2: 7 | AH2: 7 | AI2: 7 | AJ2: 7 | AK2: 7 | AL2: 7 | AM2: 7 | AN2: 7 | AO2: 7 | AP2: 7 | AQ2: 7 | AR2: 7 | AS2: 7 | AT2: 7 | AU2: =MAX(AT2-1,0) -> 6 | AV2: 6 | AW2: 6 | AX2: 6 | AY2: 6 | AZ2: 6 | BA2: 6 | BB2: 6 | BC2: 6 | BD2: 6 | BE2: 6 | BF2: 6 | BG2: 6 | BH2: 6 | BI2: 6 | BJ2: =MAX(BI2-1,0) -> 5 | BK2: 5 | BL2: 5 | BM2: 5 | BN2: 5 | BO2: 5 | BP2: =BO2 -> 5 | BQ2: 5 | BR2: 5 | BS2: 5 | BT2: 5 | BU2: 5 | BV2: 5 | BW2: 5 | BX2: 5 | BY2: =MAX(BX2-1,0) -> 4 | BZ2: 4 | CA2: 4 | CB2: 4 | CC2: 4 | CD2: 4 | CE2: 4 | CF2: 4 | CG2: 4 | CH2: 4 | CI2: 4 | CJ2: 4 | CK2: 4 | CL2: 4 | CM2: 4 | CN2: =MAX(CM2-1,0) -> 3 | CO2: 3 | CP2: 3 | CQ2: 3 | CR2: 3 | CS2: 3 | CT2: 3 | CU2: 3 | CV2: 3 | CW2: 3 | CX2: 3 | CY2: 3 | CZ2: 3 | DA2: 3 | DB2: 3 | DC2: =MAX(DB2-1,0) -> 2 | DD2: 2 | DE2: 2 | DF2: 2 | DG2: 2 | DH2: 2 | DI2: 2 | DJ2: 2 | DK2: 2 | DL2: 2 | DM2: 2 | DN2: 2 | DO2: 2 | DP2: 2 | DQ2: 2 | DR2: =MAX(DQ2-1,0) -> 1 | DS2: 1 | DT2: 1 | DU2: 1 | DV2: 1 | DW2: 1 | DX2: 1 | DY2: 1 | DZ2: 1 | EA2: 1 | EB2: =EA2 -> 1 | EC2: 1 | ED2: 1 | EE2: 1 | EF2: 1 | EG2: =MAX(EF2-1,0) -> 0 | EH2: 0 | EI2: 0 | EJ2: 0 | EK2: 0 | EL2: 0 | EM2: 0 | EN2: 0 | EO2: 0 | EP2: 0 | EQ2: 0 | ER2: 0 | ES2: 0 | ET2: 0 | EU2: 0
B3: 2 | C3: 3 | D3: 4 | E3: 5 | F3: 6 | G3: 7 | H3: 8 | I3: 9 | J3: 10 | K3: 11 | L3: 12 | M3: 13 | N3: 14 | O3: 15 | P3: 16 | Q3: 2 | R3: 3 | S3: 4 | T3: 5 | U3: 6 | V3: 7 | W3: 8 | X3: 9 | Y3: 10 | Z3: 11 | AA3: 12 | AB3: 13 | AC3: 14 | AD3: 15 | AE3: 16 | AF3: 2 | AG3: 3 | AH3: 4 | AI3: 5 | AJ3: 6 | AK3: 7 | AL3: 8 | AM3: 9 | AN3: 10 | AO3: 11 | AP3: 12 | AQ3: 13 | AR3: 14 | AS3: 15 | AT3: 16 | AU3: 2 | AV3: 3 | AW3: 4 | AX3: 5 | AY3: 6 | AZ3: 7 | BA3: 8 | BB3: 9 | BC3: 10 | BD3: 11 | BE3: 12 | BF3: 13 | BG3: 14 | BH3: 15 | BI3: 16 | BJ3: 2 | BK3: 3 | BL3: 4 | BM3: 5 | BN3: 6 | BO3: 7 | BP3: 8 | BQ3: 9 | BR3: 10 | BS3: 11 | BT3: 12 | BU3: 13 | BV3: 14 | BW3: 15 | BX3: 16 | BY3: 2 | BZ3: 3 | CA3: 4 | CB3: 5 | CC3: 6 | CD3: 7 | CE3: 8 | CF3: 9 | CG3: 10 | CH3: 11 | CI3: 12 | CJ3: 13 | CK3: 14 | CL3: 15 | CM3: 16 | CN3: 2 | CO3: 3 | CP3: 4 | CQ3: 5 | CR3: 6 | CS3: 7 | CT3: 8 | CU3: 9 | CV3: 10 | CW3: 11 | CX3: 12 | CY3: 13 | CZ3: 14 | DA3: 15 | DB3: 16 | DC3: 2 | DD3: 3 | DE3: 4 | DF3: 5 | DG3: 6 | DH3: 7 | DI3: 8 | DJ3: 9 | DK3: 10 | DL3: 11 | DM3: 12 | DN3: 13 | DO3: 14 | DP3: 15 | DQ3: 16 | DR3: 2 | DS3: 3 | DT3: 4 | DU3: 5 | DV3: 6 | DW3: 7 | DX3: 8 | DY3: 9 | DZ3: 10 | EA3: 11 | EB3: 12 | EC3: 13 | ED3: 14 | EE3: 15 | EF3: 16 | EG3: 2 | EH3: 3 | EI3: 4 | EJ3: 5 | EK3: 6 | EL3: 7 | EM3: 8 | EN3: 9 | EO3: 10 | EP3: 11 | EQ3: 12 | ER3: 13 | ES3: 14 | ET3: 15 | EU3: 16
B4: =CurrentYear-1 -> 2019 | Q4: =B4-1 -> 2018 | AF4: =Q4-1 -> 2017 | AU4: =AF4-1 -> 2016 | BJ4: =AU4-1 -> 2015 | BY4: =BJ4-1 -> 2014 | CN4: =BY4-1 -> 2013 | DC4: =CN4-1 -> 2012 | DR4: =DC4-1 -> 2011 | EG4: =DR4-1 -> 2010 | EV4: Accident Year Totals | FG4: Calendar Year Totals | FU4: Calendar Year Runoff Totals | GI4: Loss Ratios | GT4: AVERAGE
A5: Iter | B5: 12 | C5: 24 | D5: 36 | E5: 48 | F5: 60 | G5: 72 | H5: 84 | I5: 96 | J5: 108 | K5: 120 | L5: 132 | M5: 144 | N5: 156 | O5: 168 | P5: 180 | Q5: 12 | R5: 24 | S5: 36 | T5: 48 | U5: 60 | V5: 72 | W5: 84 | X5: 96 | Y5: 108 | Z5: 120 | AA5: 132 | AB5: 144 | AC5: 156 | AD5: 168 | AE5: 180 | AF5: 12 | AG5: 24 | AH5: 36 | AI5: 48 | AJ5: 60 | AK5: 72 | AL5: 84 | AM5: 96 | AN5: 108 | AO5: 120 | AP5: 132 | AQ5: 144 | AR5: 156 | AS5: 168 | AT5: 180 | AU5: 12 | AV5: 24 | AW5: 36 | AX5: 48 | AY5: 60 | AZ5: 72 | BA5: 84 | BB5: 96 | BC5: 108 | BD5: 120 | BE5: 132 | BF5: 144 | BG5: 156 | BH5: 168 | BI5: 180 | BJ5: 12 | BK5: 24 | BL5: 36 | BM5: 48 | BN5: 60 | BO5: 72 | BP5: 84 | BQ5: 96 | BR5: 108 | BS5: 120 | BT5: 132 | BU5: 144 | BV5: 156 | BW5: 168 | BX5: 180 | BY5: 12 | BZ5: 24 | CA5: 36 | CB5: 48 | CC5: 60 | CD5: 72 | CE5: 84 | CF5: 96 | CG5: 108 | CH5: 120 | CI5: 132 | CJ5: 144 | CK5: 156 | CL5: 168 | CM5: 180 | CN5: 12 | CO5: 24 | CP5: 36 | CQ5: 48 | CR5: 60 | CS5: 72 | CT5: 84 | CU5: 96 | CV5: 108 | CW5: 120 | CX5: 132 | CY5: 144 | CZ5: 156 | DA5: 168 | DB5: 180 | DC5: 12 | DD5: 24 | DE5: 36 | DF5: 48 | DG5: 60 | DH5: 72 | DI5: 84 | DJ5: 96 | DK5: 108 | DL5: 120 | DM5: 132 | DN5: 144 | DO5: 156 | DP5: 168 | DQ5: 180 | DR5: 12 | DS5: 24 | DT5: 36 | DU5: 48 | DV5: 60 | DW5: 72 | DX5: 84 | DY5: 96 | DZ5: 108 | EA5: 120 | EB5: 132 | EC5: 144 | ED5: 156 | EE5: 168 | EF5: 180 | EG5: 12 | EH5: 24 | EI5: 36 | EJ5: 48 | EK5: 60 | EL5: 72 | EM5: 84 | EN5: 96 | EO5: 108 | EP5: 120 | EQ5: 132 | ER5: 144 | ES5: 156 | ET5: 168 | EU5: 180 | EV5: Total | EW5: =EG4 -> 2010 | EX5: =DR4 -> 2011 | EY5: =EX5+1 -> 2012 | EZ5: =EY5+1 -> 2013 | FA5: 2014 | FB5: 2015 | FC5: 2016 | FD5: 2017 | FE5: 2018 | FF5: 2019 | FG5: 2020 | FH5: 2021 | FI5: 2022 | FJ5: 2023 | FK5: 2024 | FL5: 2025 | FM5: 2026 | FN5: 2027 | FO5: 2028 | FP5: 2029 | FQ5: 2030 | FR5: 2031 | FS5: 2032 | FT5: 2033 | FU5: =FF5+1 -> 2020 | FV5: 2021 | FW5: 2022 | FX5: 2023 | FY5: 2024 | FZ5: 2025 | GA5: 2026 | GB5: 2027 | GC5: 2028 | GD5: 2029 | GE5: 2030 | GF5: 2031 | GG5: 2032 | GH5: 2033 | GI5: =EG4 -> 2010 | GJ5: =GI5+1 -> 2011 | GK5: =GJ5+1 -> 2012 | GL5: =GK5+1 -> 2013 | GM5: 2014 | GN5: 2015 | GO5: 2016 | GP5: 2017 | GQ5: 2018 | GR5: 2019 | GS5: TOTAL | GT5: FIT
A6: 1 | B6: =IF($A6>Iterations,"",IF(B$2=0,0,OFFSET('PYp Ult - RawSimResults'!$A$5,($A6-1)*PYpUltYrs+B$2,B$3))) -> 0 | C6: =IF($A6>Iterations,"",IF(C$2=0,0,OFFSET('PYp Ult - RawSimResults'!$A$5,($A6-1)*PYpUltYrs+C$2,C$3))) -> 0 | D6: =IF($A6>Iterations,"",IF(D$2=0,0,OFFSET('PYp Ult - RawSimResults'!$A$5,($A6-1)*PYpUltYrs+D$2,D$3))) -> 0 | E6: =IF($A6>Iterations,"",IF(E$2=0,0,OFFSET('PYp Ult - RawSimResults'!$A$5,($A6-1)*PYpUltYrs+E$2,E$3))) -> 0 | F6: =IF($A6>Iterations,"",IF(F$2=0,0,OFFSET('PYp Ult - RawSimResults'!$A$5,($A6-1)*PYpUltYrs+F$2,F$3))) -> 0 | G6: =IF($A6>Iterations,"",IF(G$2=0,0,OFFSET('PYp Ult - RawSimResults'!$A$5,($A6-1)*PYpUltYrs+G$2,G$3))) -> 0 | H6: =IF($A6>Iterations,"",IF(H$2=0,0,OFFSET('PYp Ult - RawSimResults'!$A$5,($A6-1)*PYpUltYrs+H$2,H$3))) -> 0 | I6: =IF($A6>Iterations,"",IF(I$2=0,0,OFFSET('PYp Ult - RawSimResults'!$A$5,($A6-1)*PYpUltYrs+I$2,I$3))) -> 0 | J6: =IF($A6>Iterations,"",IF(J$2=0,0,OFFSET('PYp Ult - RawSimResults'!$A$5,($A6-1)*PYpUltYrs+J$2,J$3))) -> 0 | K6: =IF($A6>Iterations,"",IF(K$2=0,0,OFFSET('PYp Ult - RawSimResults'!$A$5,($A6-1)*PYpUltYrs+K$2,K$3))) -> 0 | L6: =IF($A6>Iterations,"",IF(L$2=0,0,OFFSET('PYp Ult - RawSimResults'!$A$5,($A6-1)*PYpUltYrs+L$2,L$3))) -> 0 | M6: =IF($A6>Iterations,"",IF(M$2=0,0,OFFSET('PYp Ult - RawSimResults'!$A$5,($A6-1)*PYpUltYrs+M$2,M$3))) -> 0 | N6: =IF($A6>Iterations,"",IF(N$2=0,0,OFFSET('PYp Ult - RawSimResults'!$A$5,($A6-1)*PYpUltYrs+N$2,N$3))) -> 0 | O6: =IF($A6>Iterations,"",IF(O$2=0,0,OFFSET('PYp Ult - RawSimResults'!$A$5,($A6-1)*PYpUltYrs+O$2,O$3))) -> 0 | P6: =IF($A6>Iterations,"",IF(P$2=0,0,OFFSET('PYp Ult - RawSimResults'!$A$5,($A6-1)*PYpUltYrs+P$2,P$3))) -> 0 | Q6: =IF($A6>Iterations,"",IF(Q$2=0,0,OFFSET('PYp Ult - RawSimResults'!$A$5,($A6-1)*PYpUltYrs+Q$2,Q$3))) -> 0 | R6: =IF($A6>Iterations,"",IF(R$2=0,0,OFFSET('PYp Ult - RawSimResults'!$A$5,($A6-1)*PYpUltYrs+R$2,R$3))) -> 0 | S6: =IF($A6>Iterations,"",IF(S$2=0,0,OFFSET('PYp Ult - RawSimResults'!$A$5,($A6-1)*PYpUltYrs+S$2,S$3))) -> 0 | T6: =IF($A6>Iterations,"",IF(T$2=0,0,OFFSET('PYp Ult - RawSimResults'!$A$5,($A6-1)*PYpUltYrs+T$2,T$3))) -> 0 | U6: =IF($A6>Iterations,"",IF(U$2=0,0,OFFSET('PYp Ult - RawSimResults'!$A$5,($A6-1)*PYpUltYrs+U$2,U$3))) -> 0 | V6: =IF($A6>Iterations,"",IF(V$2=0,0,OFFSET('PYp Ult - RawSimResults'!$A$5,($A6-1)*PYpUltYrs+V$2,V$3))) -> 0 | W6: =IF($A6>Iterations,"",IF(W$2=0,0,OFFSET('PYp Ult - RawSimResults'!$A$5,($A6-1)*PYpUltYrs+W$2,W$3))) -> 0 | X6: =IF($A6>Iterations,"",IF(X$2=0,0,OFFSET('PYp Ult - RawSimResults'!$A$5,($A6-1)*PYpUltYrs+X$2,X$3))) -> 0 | Y6: =IF($A6>Iterations,"",IF(Y$2=0,0,OFFSET('PYp Ult - RawSimResults'!$A$5,($A6-1)*PYpUltYrs+Y$2,Y$3))) -> 0 | Z6: =IF($A6>Iterations,"",IF(Z$2=0,0,OFFSET('PYp Ult - RawSimResults'!$A$5,($A6-1)*PYpUltYrs+Z$2,Z$3))) -> 0 | AA6: =IF($A6>Iterations,"",IF(AA$2=0,0,OFFSET('PYp Ult - RawSimResults'!$A$5,($A6-1)*PYpUltYrs+AA$2,AA$3))) -> 0 | AB6: =IF($A6>Iterations,"",IF(AB$2=0,0,OFFSET('PYp Ult - RawSimResults'!$A$5,($A6-1)*PYpUltYrs+AB$2,AB$3))) -> 0 | AC6: =IF($A6>Iterations,"",IF(AC$2=0,0,OFFSET('PYp Ult - RawSimResults'!$A$5,($A6-1)*PYpUltYrs+AC$2,AC$3))) -> 0 | AD6: =IF($A6>Iterations,"",IF(AD$2=0,0,OFFSET('PYp Ult - RawSimResults'!$A$5,($A6-1)*PYpUltYrs+AD$2,AD$3))) -> 0 | AE6: =IF($A6>Iterations,"",IF(AE$2=0,0,OFFSET('PYp Ult - RawSimResults'!$A$5,($A6-1)*PYpUltYrs+AE$2,AE$3))) -> 0 | AF6: =IF($A6>Iterations,"",IF(AF$2=0,0,OFFSET('PYp Ult - RawSimResults'!$A$5,($A6-1)*PYpUltYrs+AF$2,AF$3))) -> 0 | AG6: =IF($A6>Iterations,"",IF(AG$2=0,0,OFFSET('PYp Ult - RawSimResults'!$A$5,($A6-1)*PYpUltYrs+AG$2,AG$3))) -> 0 | AH6: =IF($A6>Iterations,"",IF(AH$2=0,0,OFFSET('PYp Ult - RawSimResults'!$A$5,($A6-1)*PYpUltYrs+AH$2,AH$3))) -> 0 | AI6: =IF($A6>Iterations,"",IF(AI$2=0,0,OFFSET('PYp Ult - RawSimResults'!$A$5,($A6-1)*PYpUltYrs+AI$2,AI$3))) -> 0 | AJ6: =IF($A6>Iterations,"",IF(AJ$2=0,0,OFFSET('PYp Ult - RawSimResults'!$A$5,($A6-1)*PYpUltYrs+AJ$2,AJ$3))) -> 0 | AK6: =IF($A6>Iterations,"",IF(AK$2=0,0,OFFSET('PYp Ult - RawSimResults'!$A$5,($A6-1)*PYpUltYrs+AK$2,AK$3))) -> 0 | AL6: =IF($A6>Iterations,"",IF(AL$2=0,0,OFFSET('PYp Ult - RawSimResults'!$A$5,($A6-1)*PYpUltYrs+AL$2,AL$3))) -> 0 | AM6: =IF($A6>Iterations,"",IF(AM$2=0,0,OFFSET('PYp Ult - RawSimResults'!$A$5,($A6-1)*PYpUltYrs+AM$2,AM$3))) -> 0 | AN6: =IF($A6>Iterations,"",IF(AN$2=0,0,OFFSET('PYp Ult - RawSimResults'!$A$5,($A6-1)*PYpUltYrs+AN$2,AN$3))) -> 0 | AO6: =IF($A6>Iterations,"",IF(AO$2=0,0,OFFSET('PYp Ult - RawSimResults'!$A$5,($A6-1)*PYpUltYrs+AO$2,AO$3))) -> 0 | AP6: =IF($A6>Iterations,"",IF(AP$2=0,0,OFFSET('PYp Ult - RawSimResults'!$A$5,($A6-1)*PYpUltYrs+AP$2,AP$3))) -> 0 | AQ6: =IF($A6>Iterations,"",IF(AQ$2=0,0,OFFSET('PYp Ult - RawSimResults'!$A$5,($A6-1)*PYpUltYrs+AQ$2,AQ$3))) -> 0 | AR6: =IF($A6>Iterations,"",IF(AR$2=0,0,OFFSET('PYp Ult - RawSimResults'!$A$5,($A6-1)*PYpUltYrs+AR$2,AR$3))) -> 0 | AS6: =IF($A6>Iterations,"",IF(AS$2=0,0,OFFSET('PYp Ult - RawSimResults'!$A$5,($A6-1)*PYpUltYrs+AS$2,AS$3))) -> 0 | AT6: =IF($A6>Iterations,"",IF(AT$2=0,0,OFFSET('PYp Ult - RawSimResults'!$A$5,($A6-1)*PYpUltYrs+AT$2,AT$3))) -> 0 | AU6: =IF($A6>Iterations,"",IF(AU$2=0,0,OFFSET('PYp Ult - RawSimResults'!$A$5,($A6-1)*PYpUltYrs+AU$2,AU$3))) -> 0 | AV6: =IF($A6>Iterations,"",IF(AV$2=0,0,OFFSET('PYp Ult - RawSimResults'!$A$5,($A6-1)*PYpUltYrs+AV$2,AV$3))) -> 0 | AW6: =IF($A6>Iterations,"",IF(AW$2=0,0,OFFSET('PYp Ult - RawSimResults'!$A$5,($A6-1)*PYpUltYrs+AW$2,AW$3))) -> 0 | AX6: =IF($A6>Iterations,"",IF(AX$2=0,0,OFFSET('PYp Ult - RawSimResults'!$A$5,($A6-1)*PYpUltYrs+AX$2,AX$3))) -> 0 | AY6: =IF($A6>Iterations,"",IF(AY$2=0,0,OFFSET('PYp Ult - RawSimResults'!$A$5,($A6-1)*PYpUltYrs+AY$2,AY$3))) -> 0 | AZ6: =IF($A6>Iterations,"",IF(AZ$2=0,0,OFFSET('PYp Ult - RawSimResults'!$A$5,($A6-1)*PYpUltYrs+AZ$2,AZ$3))) -> 0 | BA6: =IF($A6>Iterations,"",IF(BA$2=0,0,OFFSET('PYp Ult - RawSimResults'!$A$5,($A6-1)*PYpUltYrs+BA$2,BA$3))) -> 0 | BB6: =IF($A6>Iterations,"",IF(BB$2=0,0,OFFSET('PYp Ult - RawSimResults'!$A$5,($A6-1)*PYpUltYrs+BB$2,BB$3))) -> 0 | BC6: =IF($A6>Iterations,"",IF(BC$2=0,0,OFFSET('PYp Ult - RawSimResults'!$A$5,($A6-1)*PYpUltYrs+BC$2,BC$3))) -> 0 | BD6: =IF($A6>Iterations,"",IF(BD$2=0,0,OFFSET('PYp Ult - RawSimResults'!$A$5,($A6-1)*PYpUltYrs+BD$2,BD$3))) -> 0 | BE6: =IF($A6>Iterations,"",IF(BE$2=0,0,OFFSET('PYp Ult - RawSimResults'!$A$5,($A6-1)*PYpUltYrs+BE$2,BE$3))) -> 0 | BF6: =IF($A6>Iterations,"",IF(BF$2=0,0,OFFSET('PYp Ult - RawSimResults'!$A$5,($A6-1)*PYpUltYrs+BF$2,BF$3))) -> 0 | BG6: =IF($A6>Iterations,"",IF(BG$2=0,0,OFFSET('PYp Ult - RawSimResults'!$A$5,($A6-1)*PYpUltYrs+BG$2,BG$3))) -> 0 | BH6: =IF($A6>Iterations,"",IF(BH$2=0,0,OFFSET('PYp Ult - RawSimResults'!$A$5,($A6-1)*PYpUltYrs+BH$2,BH$3))) -> 0 | BI6: =IF($A6>Iterations,"",IF(BI$2=0,0,OFFSET('PYp Ult - RawSimResults'!$A$5,($A6-1)*PYpUltYrs+BI$2,BI$3))) -> 0 | BJ6: =IF($A6>Iterations,"",IF(BJ$2=0,0,OFFSET('PYp Ult - RawSimResults'!$A$5,($A6-1)*PYpUltYrs+BJ$2,BJ$3))) -> 0 | BK6: =IF($A6>Iterations,"",IF(BK$2=0,0,OFFSET('PYp Ult - RawSimResults'!$A$5,($A6-1)*PYpUltYrs+BK$2,BK$3))) -> 0 | BL6: =IF($A6>Iterations,"",IF(BL$2=0,0,OFFSET('PYp Ult - RawSimResults'!$A$5,($A6-1)*PYpUltYrs+BL$2,BL$3))) -> 0 | BM6: =IF($A6>Iterations,"",IF(BM$2=0,0,OFFSET('PYp Ult - RawSimResults'!$A$5,($A6-1)*PYpUltYrs+BM$2,BM$3))) -> 0 | BN6: =IF($A6>Iterations,"",IF(BN$2=0,0,OFFSET('PYp Ult - RawSimResults'!$A$5,($A6-1)*PYpUltYrs+BN$2,BN$3))) -> 0 | BO6: =IF($A6>Iterations,"",IF(BO$2=0,0,OFFSET('PYp Ult - RawSimResults'!$A$5,($A6-1)*PYpUltYrs+BO$2,BO$3))) -> 0 | BP6: =IF($A6>Iterations,"",IF(BP$2=0,0,OFFSET('PYp Ult - RawSimResults'!$A$5,($A6-1)*PYpUltYrs+BP$2,BP$3))) -> 0 | BQ6: =IF($A6>Iterations,"",IF(BQ$2=0,0,OFFSET('PYp Ult - RawSimResults'!$A$5,($A6-1)*PYpUltYrs+BQ$2,BQ$3))) -> 0 | BR6: =IF($A6>Iterations,"",IF(BR$2=0,0,OFFSET('PYp Ult - RawSimResults'!$A$5,($A6-1)*PYpUltYrs+BR$2,BR$3))) -> 0 | BS6: =IF($A6>Iterations,"",IF(BS$2=0,0,OFFSET('PYp Ult - RawSimResults'!$A$5,($A6-1)*PYpUltYrs+BS$2,BS$3))) -> 0 | BT6: =IF($A6>Iterations,"",IF(BT$2=0,0,OFFSET('PYp Ult - RawSimResults'!$A$5,($A6-1)*PYpUltYrs+BT$2,BT$3))) -> 0 | BU6: =IF($A6>Iterations,"",IF(BU$2=0,0,OFFSET('PYp Ult - RawSimResults'!$A$5,($A6-1)*PYpUltYrs+BU$2,BU$3))) -> 0 | BV6: =IF($A6>Iterations,"",IF(BV$2=0,0,OFFSET('PYp Ult - RawSimResults'!$A$5,($A6-1)*PYpUltYrs+BV$2,BV$3))) -> 0 | BW6: =IF($A6>Iterations,"",IF(BW$2=0,0,OFFSET('PYp Ult - RawSimResults'!$A$5,($A6-1)*PYpUltYrs+BW$2,BW$3))) -> 0 | BX6: =IF($A6>Iterations,"",IF(BX$2=0,0,OFFSET('PYp Ult - RawSimResults'!$A$5,($A6-1)*PYpUltYrs+BX$2,BX$3))) -> 0 | BY6: =IF($A6>Iterations,"",IF(BY$2=0,0,OFFSET('PYp Ult - RawSimResults'!$A$5,($A6-1)*PYpUltYrs+BY$2,BY$3))) -> 0 | BZ6: =IF($A6>Iterations,"",IF(BZ$2=0,0,OFFSET('PYp Ult - RawSimResults'!$A$5,($A6-1)*PYpUltYrs+BZ$2,BZ$3))) -> 0 | CA6: =IF($A6>Iterations,"",IF(CA$2=0,0,OFFSET('PYp Ult - RawSimResults'!$A$5,($A6-1)*PYpUltYrs+CA$2,CA$3))) -> 0 | CB6: =IF($A6>Iterations,"",IF(CB$2=0,0,OFFSET('PYp Ult - RawSimResults'!$A$5,($A6-1)*PYpUltYrs+CB$2,CB$3))) -> 0 | CC6: =IF($A6>Iterations,"",IF(CC$2=0,0,OFFSET('PYp Ult - RawSimResults'!$A$5,($A6-1)*PYpUltYrs+CC$2,CC$3))) -> 0 | CD6: =IF($A6>Iterations,"",IF(CD$2=0,0,OFFSET('PYp Ult - RawSimResults'!$A$5,($A6-1)*PYpUltYrs+CD$2,CD$3))) -> 0 | CE6: =IF($A6>Iterations,"",IF(CE$2=0,0,OFFSET('PYp Ult - RawSimResults'!$A$5,($A6-1)*PYpUltYrs+CE$2,CE$3))) -> 0 | CF6: =IF($A6>Iterations,"",IF(CF$2=0,0,OFFSET('PYp Ult - RawSimResults'!$A$5,($A6-1)*PYpUltYrs+CF$2,CF$3))) -> 0 | CG6: =IF($A6>Iterations,"",IF(CG$2=0,0,OFFSET('PYp Ult - RawSimResults'!$A$5,($A6-1)*PYpUltYrs+CG$2,CG$3))) -> 0 | CH6: =IF($A6>Iterations,"",IF(CH$2=0,0,OFFSET('PYp Ult - RawSimResults'!$A$5,($A6-1)*PYpUltYrs+CH$2,CH$3))) -> 0 | CI6: =IF($A6>Iterations,"",IF(CI$2=0,0,OFFSET('PYp Ult - RawSimResults'!$A$5,($A6-1)*PYpUltYrs+CI$2,CI$3))) -> 0 | CJ6: =IF($A6>Iterations,"",IF(CJ$2=0,0,OFFSET('PYp Ult - RawSimResults'!$A$5,($A6-1)*PYpUltYrs+CJ$2,CJ$3))) -> 0 | CK6: =IF($A6>Iterations,"",IF(CK$2=0,0,OFFSET('PYp Ult - RawSimResults'!$A$5,($A6-1)*PYpUltYrs+CK$2,CK$3))) -> 0 | CL6: =IF($A6>Iterations,"",IF(CL$2=0,0,OFFSET('PYp Ult - RawSimResults'!$A$5,($A6-1)*PYpUltYrs+CL$2,CL$3))) -> 0 | CM6: =IF($A6>Iterations,"",IF(CM$2=0,0,OFFSET('PYp Ult - RawSimResults'!$A$5,($A6-1)*PYpUltYrs+CM$2,CM$3))) -> 0 | CN6: =IF($A6>Iterations,"",IF(CN$2=0,0,OFFSET('PYp Ult - RawSimResults'!$A$5,($A6-1)*PYpUltYrs+CN$2,CN$3))) -> 0 | CO6: =IF($A6>Iterations,"",IF(CO$2=0,0,OFFSET('PYp Ult - RawSimResults'!$A$5,($A6-1)*PYpUltYrs+CO$2,CO$3))) -> 0 | CP6: =IF($A6>Iterations,"",IF(CP$2=0,0,OFFSET('PYp Ult - RawSimResults'!$A$5,($A6-1)*PYpUltYrs+CP$2,CP$3))) -> 0 | CQ6: =IF($A6>Iterations,"",IF(CQ$2=0,0,OFFSET('PYp Ult - RawSimResults'!$A$5,($A6-1)*PYpUltYrs+CQ$2,CQ$3))) -> 0 | CR6: =IF($A6>Iterations,"",IF(CR$2=0,0,OFFSET('PYp Ult - RawSimResults'!$A$5,($A6-1)*PYpUltYrs+CR$2,CR$3))) -> 0 | CS6: =IF($A6>Iterations,"",IF(CS$2=0,0,OFFSET('PYp Ult - RawSimResults'!$A$5,($A6-1)*PYpUltYrs+CS$2,CS$3))) -> 0 | CT6: =IF($A6>Iterations,"",IF(CT$2=0,0,OFFSET('PYp Ult - RawSimResults'!$A$5,($A6-1)*PYpUltYrs+CT$2,CT$3))) -> 0 | CU6: =IF($A6>Iterations,"",IF(CU$2=0,0,OFFSET('PYp Ult - RawSimResults'!$A$5,($A6-1)*PYpUltYrs+CU$2,CU$3))) -> 0 | CV6: =IF($A6>Iterations,"",IF(CV$2=0,0,OFFSET('PYp Ult - RawSimResults'!$A$5,($A6-1)*PYpUltYrs+CV$2,CV$3))) -> 0 | CW6: =IF($A6>Iterations,"",IF(CW$2=0,0,OFFSET('PYp Ult - RawSimResults'!$A$5,($A6-1)*PYpUltYrs+CW$2,CW$3))) -> 0 | CX6: =IF($A6>Iterations,"",IF(CX$2=0,0,OFFSET('PYp Ult - RawSimResults'!$A$5,($A6-1)*PYpUltYrs+CX$2,CX$3))) -> 0 | CY6: =IF($A6>Iterations,"",IF(CY$2=0,0,OFFSET('PYp Ult - RawSimResults'!$A$5,($A6-1)*PYpUltYrs+CY$2,CY$3))) -> 0 | CZ6: =IF($A6>Iterations,"",IF(CZ$2=0,0,OFFSET('PYp Ult - RawSimResults'!$A$5,($A6-1)*PYpUltYrs+CZ$2,CZ$3))) -> 0 | DA6: =IF($A6>Iterations,"",IF(DA$2=0,0,OFFSET('PYp Ult - RawSimResults'!$A$5,($A6-1)*PYpUltYrs+DA$2,DA$3))) -> 0 | DB6: =IF($A6>Iterations,"",IF(DB$2=0,0,OFFSET('PYp Ult - RawSimResults'!$A$5,($A6-1)*PYpUltYrs+DB$2,DB$3))) -> 0 | DC6: =IF($A6>Iterations,"",IF(DC$2=0,0,OFFSET('PYp Ult - RawSimResults'!$A$5,($A6-1)*PYpUltYrs+DC$2,DC$3))) -> 0 | DD6: =IF($A6>Iterations,"",IF(DD$2=0,0,OFFSET('PYp Ult - RawSimResults'!$A$5,($A6-1)*PYpUltYrs+DD$2,DD$3))) -> 0 | DE6: =IF($A6>Iterations,"",IF(DE$2=0,0,OFFSET('PYp Ult - RawSimResults'!$A$5,($A6-1)*PYpUltYrs+DE$2,DE$3))) -> 0 | DF6: =IF($A6>Iterations,"",IF(DF$2=0,0,OFFSET('PYp Ult - RawSimResults'!$A$5,($A6-1)*PYpUltYrs+DF$2,DF$3))) -> 0 | DG6: =IF($A6>Iterations,"",IF(DG$2=0,0,OFFSET('PYp Ult - RawSimResults'!$A$5,($A6-1)*PYpUltYrs+DG$2,DG$3))) -> 0 | DH6: =IF($A6>Iterations,"",IF(DH$2=0,0,OFFSET('PYp Ult - RawSimResults'!$A$5,($A6-1)*PYpUltYrs+DH$2,DH$3))) -> 0 | DI6: =IF($A6>Iterations,"",IF(DI$2=0,0,OFFSET('PYp Ult - RawSimResults'!$A$5,($A6-1)*PYpUltYrs+DI$2,DI$3))) -> 0 | DJ6: =IF($A6>Iterations,"",IF(DJ$2=0,0,OFFSET('PYp Ult - RawSimResults'!$A$5,($A6-1)*PYpUltYrs+DJ$2,DJ$3))) -> 0 | DK6: =IF($A6>Iterations,"",IF(DK$2=0,0,OFFSET('PYp Ult - RawSimResults'!$A$5,($A6-1)*PYpUltYrs+DK$2,DK$3))) -> 0 | DL6: =IF($A6>Iterations,"",IF(DL$2=0,0,OFFSET('PYp Ult - RawSimResults'!$A$5,($A6-1)*PYpUltYrs+DL$2,DL$3))) -> 0 | DM6: =IF($A6>Iterations,"",IF(DM$2=0,0,OFFSET('PYp Ult - RawSimResults'!$A$5,($A6-1)*PYpUltYrs+DM$2,DM$3))) -> 0 | DN6: =IF($A6>Iterations,"",IF(DN$2=0,0,OFFSET('PYp Ult - RawSimResults'!$A$5,($A6-1)*PYpUltYrs+DN$2,DN$3))) -> 0 | DO6: =IF($A6>Iterations,"",IF(DO$2=0,0,OFFSET('PYp Ult - RawSimResults'!$A$5,($A6-1)*PYpUltYrs+DO$2,DO$3))) -> 0 | DP6: =IF($A6>Iterations,"",IF(DP$2=0,0,OFFSET('PYp Ult - RawSimResults'!$A$5,($A6-1)*PYpUltYrs+DP$2,DP$3))) -> 0 | DQ6: =IF($A6>Iterations,"",IF(DQ$2=0,0,OFFSET('PYp Ult - RawSimResults'!$A$5,($A6-1)*PYpUltYrs+DQ$2,DQ$3))) -> 0 | DR6: =IF($A6>Iterations,"",IF(DR$2=0,0,OFFSET('PYp Ult - RawSimResults'!$A$5,($A6-1)*PYpUltYrs+DR$2,DR$3))) -> 0 | DS6: =IF($A6>Iterations,"",IF(DS$2=0,0,OFFSET('PYp Ult - RawSimResults'!$A$5,($A6-1)*PYpUltYrs+DS$2,DS$3))) -> 0 | DT6: =IF($A6>Iterations,"",IF(DT$2=0,0,OFFSET('PYp Ult - RawSimResults'!$A$5,($A6-1)*PYpUltYrs+DT$2,DT$3))) -> 0 | DU6: =IF($A6>Iterations,"",IF(DU$2=0,0,OFFSET('PYp Ult - RawSimResults'!$A$5,($A6-1)*PYpUltYrs+DU$2,DU$3))) -> 0 | DV6: =IF($A6>Iterations,"",IF(DV$2=0,0,OFFSET('PYp Ult - RawSimResults'!$A$5,($A6-1)*PYpUltYrs+DV$2,DV$3))) -> 0 | DW6: =IF($A6>Iterations,"",IF(DW$2=0,0,OFFSET('PYp Ult - RawSimResults'!$A$5,($A6-1)*PYpUltYrs+DW$2,DW$3))) -> 0 | DX6: =IF($A6>Iterations,"",IF(DX$2=0,0,OFFSET('PYp Ult - RawSimResults'!$A$5,($A6-1)*PYpUltYrs+DX$2,DX$3))) -> 0 | DY6: =IF($A6>Iterations,"",IF(DY$2=0,0,OFFSET('PYp Ult - RawSimResults'!$A$5,($A6-1)*PYpUltYrs+DY$2,DY$3))) -> 0 | DZ6: =IF($A6>Iterations,"",IF(DZ$2=0,0,OFFSET('PYp Ult - RawSimResults'!$A$5,($A6-1)*PYpUltYrs+DZ$2,DZ$3))) -> 0 | EA6: =IF($A6>Iterations,"",IF(EA$2=0,0,OFFSET('PYp Ult - RawSimResults'!$A$5,($A6-1)*PYpUltYrs+EA$2,EA$3))) -> 0 | EB6: =IF($A6>Iterations,"",IF(EB$2=0,0,OFFSET('PYp Ult - RawSimResults'!$A$5,($A6-1)*PYpUltYrs+EB$2,EB$3))) -> 0 | EC6: =IF($A6>Iterations,"",IF(EC$2=0,0,OFFSET('PYp Ult - RawSimResults'!$A$5,($A6-1)*PYpUltYrs+EC$2,EC$3))) -> 0 | ED6: =IF($A6>Iterations,"",IF(ED$2=0,0,OFFSET('PYp Ult - RawSimResults'!$A$5,($A6-1)*PYpUltYrs+ED$2,ED$3))) -> 0 | EE6: =IF($A6>Iterations,"",IF(EE$2=0,0,OFFSET('PYp Ult - RawSimResults'!$A$5,($A6-1)*PYpUltYrs+EE$2,EE$3))) -> 0 | EF6: =IF($A6>Iterations,"",IF(EF$2=0,0,OFFSET('PYp Ult - RawSimResults'!$A$5,($A6-1)*PYpUltYrs+EF$2,EF$3))) -> 0 | EG6: =IF($A6>Iterations,"",IF(EG$2=0,0,OFFSET('PYp Ult - RawSimResults'!$A$5,($A6-1)*PYpUltYrs+EG$2,EG$3))) -> 0 | EH6: =IF($A6>Iterations,"",IF(EH$2=0,0,OFFSET('PYp Ult - RawSimResults'!$A$5,($A6-1)*PYpUltYrs+EH$2,EH$3))) -> 0 | EI6: =IF($A6>Iterations,"",IF(EI$2=0,0,OFFSET('PYp Ult - RawSimResults'!$A$5,($A6-1)*PYpUltYrs+EI$2,EI$3))) -> 0 | EJ6: =IF($A6>Iterations,"",IF(EJ$2=0,0,OFFSET('PYp Ult - RawSimResults'!$A$5,($A6-1)*PYpUltYrs+EJ$2,EJ$3))) -> 0 | EK6: =IF($A6>Iterations,"",IF(EK$2=0,0,OFFSET('PYp Ult - RawSimResults'!$A$5,($A6-1)*PYpUltYrs+EK$2,EK$3))) -> 0 | EL6: =IF($A6>Iterations,"",IF(EL$2=0,0,OFFSET('PYp Ult - RawSimResults'!$A$5,($A6-1)*PYpUltYrs+EL$2,EL$3))) -> 0 | EM6: =IF($A6>Iterations,"",IF(EM$2=0,0,OFFSET('PYp Ult - RawSimResults'!$A$5,($A6-1)*PYpUltYrs+EM$2,EM$3))) -> 0 | EN6: =IF($A6>Iterations,"",IF(EN$2=0,0,OFFSET('PYp Ult - RawSimResults'!$A$5,($A6-1)*PYpUltYrs+EN$2,EN$3))) -> 0 | EO6: =IF($A6>Iterations,"",IF(EO$2=0,0,OFFSET('PYp Ult - RawSimResults'!$A$5,($A6-1)*PYpUltYrs+EO$2,EO$3))) -> 0 | EP6: =IF($A6>Iterations,"",IF(EP$2=0,0,OFFSET('PYp Ult - RawSimResults'!$A$5,($A6-1)*PYpUltYrs+EP$2,EP$3))) -> 0 | EQ6: =IF($A6>Iterations,"",IF(EQ$2=0,0,OFFSET('PYp Ult - RawSimResults'!$A$5,($A6-1)*PYpUltYrs+EQ$2,EQ$3))) -> 0 | ER6: =IF($A6>Iterations,"",IF(ER$2=0,0,OFFSET('PYp Ult - RawSimResults'!$A$5,($A6-1)*PYpUltYrs+ER$2,ER$3))) -> 0 | ES6: =IF($A6>Iterations,"",IF(ES$2=0,0,OFFSET('PYp Ult - RawSimResults'!$A$5,($A6-1)*PYpUltYrs+ES$2,ES$3))) -> 0 | ET6: =IF($A6>Iterations,"",IF(ET$2=0,0,OFFSET('PYp Ult - RawSimResults'!$A$5,($A6-1)*PYpUltYrs+ET$2,ET$3))) -> 0 | EU6: =IF($A6>Iterations,"",IF(EU$2=0,0,OFFSET('PYp Ult - RawSimResults'!$A$5,($A6-1)*PYpUltYrs+EU$2,EU$3))) -> 0 | EV6: =IF($A6>Iterations,"",SUM(EW6:FF6)) -> 0 | EW6: =IF($A6>Iterations,"",SUM(EQ6:EU6)) -> 0 | EX6: =IF($A6>Iterations,"",SUM(EA6:EF6)) -> 0 | EY6: =IF($A6>Iterations,"",SUM(DK6:DQ6)) -> 0 | EZ6: =IF($A6>Iterations,"",SUM(CU6:DB6)) -> 0 | FA6: =IF($A6>Iterations,"",SUM(CE6:CM6)) -> 0 | FB6: =IF($A6>Iterations,"",SUM(BO6:BX6)) -> 0 | FC6: =IF($A6>Iterations,"",SUM(AY6:BI6)) -> 0 | FD6: =IF($A6>Iterations,"",SUM(AI6:AT6)) -> 0 | FE6: =IF($A6>Iterations,"",SUM(S6:AE6)) -> 0 | FF6: =IF($A6>Iterations,"",SUM(C6:P6)) -> 0 | FG6: =IF($A6>Iterations,"",C6+S6+AI6+AY6+BO6+CE6+CU6+DK6+EA6+EQ6) -> 0 | FH6: 0 | FI6: 0 | FJ6: 0 | FK6: 0 | FL6: =IF($A6>Iterations,"",H6+X6+AN6+BD6+BT6+CJ6+CZ6+DP6+EF6) -> 0 | FM6: =IF($A6>Iterations,"",I6+Y6+AO6+BE6+BU6+CK6+DA6+DQ6) -> 0 | FN6: =IF($A6>Iterations,"",J6+Z6+AP6+BF6+BV6+CL6+DB6) -> 0 | FO6: =IF($A6>Iterations,"",K6+AA6+AQ6+BG6+BW6+CM6) -> 0 | FP6: =IF($A6>Iterations,"",L6+AB6+AR6+BH6+BX6) -> 0 | FQ6: =IF($A6>Iterations,"",M6+AC6+AS6+BI6) -> 0 | FR6: =IF($A6>Iterations,"",N6+AD6+AT6) -> 0 | FS6: =IF($A6>Iterations,"",O6+AE6) -> 0 | FT6: =IF($A6>Iterations,"",P6) -> 0 | FU6: =IF($A6>Iterations,"",SUM(FG6:FT6)) -> 0 | FV6: =IF($A6>Iterations,"",SUM(FH6:FT6)) -> 0 | FW6: =IF($A6>Iterations,"",SUM(FI6:FT6)) -> 0 | FX6: =IF($A6>Iterations,"",SUM(FJ6:FT6)) -> 0 | FY6: =IF($A6>Iterations,"",SUM(FK6:FT6)) -> 0 | FZ6: =IF($A6>Iterations,"",SUM(FL6:FT6)) -> 0 | GA6: =IF($A6>Iterations,"",SUM(FM6:FT6)) -> 0 | GB6: =IF($A6>Iterations,"",SUM(FN6:FT6)) -> 0 | GC6: =IF($A6>Iterations,"",SUM(FO6:FT6)) -> 0 | GD6: =IF($A6>Iterations,"",SUM(FP6:FT6)) -> 0 | GE6: =IF($A6>Iterations,"",SUM(FQ6:FT6)) -> 0 | GF6: =IF($A6>Iterations,"",SUM(FR6:FT6)) -> 0 | GG6: =IF($A6>Iterations,"",SUM(FS6:FT6)) -> 0 | GH6: =IF($A6>Iterations,"",SUM(FT6:FT6)) -> 0 | GI6: =IF($A6>Iterations,"",SUM(EG6:EU6)) -> 0 | GJ6: =IF($A6>Iterations,"",SUM(DR6:EF6)) -> 0 | GK6: =IF($A6>Iterations,"",SUM(DC6:DQ6)) -> 0 | GL6: =IF($A6>Iterations,"",SUM(CN6:DB6)) -> 0 | GM6: =IF($A6>Iterations,"",SUM(BY6:CM6)) -> 0 | GN6: =IF($A6>Iterations,"",SUM(BJ6:BX6)) -> 0 | GO6: =IF($A6>Iterations,"",SUM(AU6:BI6)) -> 0 | GP6: =IF($A6>Iterations,"",SUM(AF6:AT6)) -> 0 | GQ6: =IF($A6>Iterations,"",SUM(Q6:AE6)) -> 0 | GR6: =IF($A6>Iterations,"",SUM(B6:P6)) -> 0 | GS6: =IF($A6>Iterations,"",SUM(GI6:GR6)) -> 0 | GT6: =IF($A6>Iterations,"",SUM(B6,Q6:R6,AF6:AH6,AU6:AX6,BJ6:BN6,BY6:CD6,CN6:CT6,DC6:DJ6,DR6:DZ6,EG6:EP6)) -> 0
A7: 2 | B7: =IF($A7>Iterations,"",IF(B$2=0,0,OFFSET('PYp Ult - RawSimResults'!$A$5,($A7-1)*PYpUltYrs+B$2,B$3))) -> 0 | C7: =IF($A7>Iterations,"",IF(C$2=0,0,OFFSET('PYp Ult - RawSimResults'!$A$5,($A7-1)*PYpUltYrs+C$2,C$3))) -> 0 | D7: =IF($A7>Iterations,"",IF(D$2=0,0,OFFSET('PYp Ult - RawSimResults'!$A$5,($A7-1)*PYpUltYrs+D$2,D$3))) -> 0 | E7: =IF($A7>Iterations,"",IF(E$2=0,0,OFFSET('PYp Ult - RawSimResults'!$A$5,($A7-1)*PYpUltYrs+E$2,E$3))) -> 0 | F7: =IF($A7>Iterations,"",IF(F$2=0,0,OFFSET('PYp Ult - RawSimResults'!$A$5,($A7-1)*PYpUltYrs+F$2,F$3))) -> 0 | G7: =IF($A7>Iterations,"",IF(G$2=0,0,OFFSET('PYp Ult - RawSimResults'!$A$5,($A7-1)*PYpUltYrs+G$2,G$3))) -> 0 | H7: =IF($A7>Iterations,"",IF(H$2=0,0,OFFSET('PYp Ult - RawSimResults'!$A$5,($A7-1)*PYpUltYrs+H$2,H$3))) -> 0 | I7: =IF($A7>Iterations,"",IF(I$2=0,0,OFFSET('PYp Ult - RawSimResults'!$A$5,($A7-1)*PYpUltYrs+I$2,I$3))) -> 0 | J7: =IF($A7>Iterations,"",IF(J$2=0,0,OFFSET('PYp Ult - RawSimResults'!$A$5,($A7-1)*PYpUltYrs+J$2,J$3))) -> 0 | K7: =IF($A7>Iterations,"",IF(K$2=0,0,OFFSET('PYp Ult - RawSimResults'!$A$5,($A7-1)*PYpUltYrs+K$2,K$3))) -> 0 | L7: =IF($A7>Iterations,"",IF(L$2=0,0,OFFSET('PYp Ult - RawSimResults'!$A$5,($A7-1)*PYpUltYrs+L$2,L$3))) -> 0 | M7: =IF($A7>Iterations,"",IF(M$2=0,0,OFFSET('PYp Ult - RawSimResults'!$A$5,($A7-1)*PYpUltYrs+M$2,M$3))) -> 0 | N7: =IF($A7>Iterations,"",IF(N$2=0,0,OFFSET('PYp Ult - RawSimResults'!$A$5,($A7-1)*PYpUltYrs+N$2,N$3))) -> 0 | O7: =IF($A7>Iterations,"",IF(O$2=0,0,OFFSET('PYp Ult - RawSimResults'!$A$5,($A7-1)*PYpUltYrs+O$2,O$3))) -> 0 | P7: =IF($A7>Iterations,"",IF(P$2=0,0,OFFSET('PYp Ult - RawSimResults'!$A$5,($A7-1)*PYpUltYrs+P$2,P$3))) -> 0 | Q7: =IF($A7>Iterations,"",IF(Q$2=0,0,OFFSET('PYp Ult - RawSimResults'!$A$5,($A7-1)*PYpUltYrs+Q$2,Q$3))) -> 0 | R7: =IF($A7>Iterations,"",IF(R$2=0,0,OFFSET('PYp Ult - RawSimResults'!$A$5,($A7-1)*PYpUltYrs+R$2,R$3))) -> 0 | S7: =IF($A7>Iterations,"",IF(S$2=0,0,OFFSET('PYp Ult - RawSimResults'!$A$5,($A7-1)*PYpUltYrs+S$2,S$3))) -> 0 | T7: =IF($A7>Iterations,"",IF(T$2=0,0,OFFSET('PYp Ult - RawSimResults'!$A$5,($A7-1)*PYpUltYrs+T$2,T$3))) -> 0 | U7: =IF($A7>Iterations,"",IF(U$2=0,0,OFFSET('PYp Ult - RawSimResults'!$A$5,($A7-1)*PYpUltYrs+U$2,U$3))) -> 0 | V7: =IF($A7>Iterations,"",IF(V$2=0,0,OFFSET('PYp Ult - RawSimResults'!$A$5,($A7-1)*PYpUltYrs+V$2,V$3))) -> 0 | W7: =IF($A7>Iterations,"",IF(W$2=0,0,OFFSET('PYp Ult - RawSimResults'!$A$5,($A7-1)*PYpUltYrs+W$2,W$3))) -> 0 | X7: =IF($A7>Iterations,"",IF(X$2=0,0,OFFSET('PYp Ult - RawSimResults'!$A$5,($A7-1)*PYpUltYrs+X$2,X$3))) -> 0 | Y7: =IF($A7>Iterations,"",IF(Y$2=0,0,OFFSET('PYp Ult - RawSimResults'!$A$5,($A7-1)*PYpUltYrs+Y$2,Y$3))) -> 0 | Z7: =IF($A7>Iterations,"",IF(Z$2=0,0,OFFSET('PYp Ult - RawSimResults'!$A$5,($A7-1)*PYpUltYrs+Z$2,Z$3))) -> 0 | AA7: =IF($A7>Iterations,"",IF(AA$2=0,0,OFFSET('PYp Ult - RawSimResults'!$A$5,($A7-1)*PYpUltYrs+AA$2,AA$3))) -> 0 | AB7: =IF($A7>Iterations,"",IF(AB$2=0,0,OFFSET('PYp Ult - RawSimResults'!$A$5,($A7-1)*PYpUltYrs+AB$2,AB$3))) -> 0 | AC7: =IF($A7>Iterations,"",IF(AC$2=0,0,OFFSET('PYp Ult - RawSimResults'!$A$5,($A7-1)*PYpUltYrs+AC$2,AC$3))) -> 0 | AD7: =IF($A7>Iterations,"",IF(AD$2=0,0,OFFSET('PYp Ult - RawSimResults'!$A$5,($A7-1)*PYpUltYrs+AD$2,AD$3))) -> 0 | AE7: =IF($A7>Iterations,"",IF(AE$2=0,0,OFFSET('PYp Ult - RawSimResults'!$A$5,($A7-1)*PYpUltYrs+AE$2,AE$3))) -> 0 | AF7: =IF($A7>Iterations,"",IF(AF$2=0,0,OFFSET('PYp Ult - RawSimResults'!$A$5,($A7-1)*PYpUltYrs+AF$2,AF$3))) -> 0 | AG7: =IF($A7>Iterations,"",IF(AG$2=0,0,OFFSET('PYp Ult - RawSimResults'!$A$5,($A7-1)*PYpUltYrs+AG$2,AG$3))) -> 0 | AH7: =IF($A7>Iterations,"",IF(AH$2=0,0,OFFSET('PYp Ult - RawSimResults'!$A$5,($A7-1)*PYpUltYrs+AH$2,AH$3))) -> 0 | AI7: =IF($A7>Iterations,"",IF(AI$2=0,0,OFFSET('PYp Ult - RawSimResults'!$A$5,($A7-1)*PYpUltYrs+AI$2,AI$3))) -> 0 | AJ7: =IF($A7>Iterations,"",IF(AJ$2=0,0,OFFSET('PYp Ult - RawSimResults'!$A$5,($A7-1)*PYpUltYrs+AJ$2,AJ$3))) -> 0 | AK7: =IF($A7>Iterations,"",IF(AK$2=0,0,OFFSET('PYp Ult - RawSimResults'!$A$5,($A7-1)*PYpUltYrs+AK$2,AK$3))) -> 0 | AL7: =IF($A7>Iterations,"",IF(AL$2=0,0,OFFSET('PYp Ult - RawSimResults'!$A$5,($A7-1)*PYpUltYrs+AL$2,AL$3))) -> 0 | AM7: =IF($A7>Iterations,"",IF(AM$2=0,0,OFFSET('PYp Ult - RawSimResults'!$A$5,($A7-1)*PYpUltYrs+AM$2,AM$3))) -> 0 | AN7: =IF($A7>Iterations,"",IF(AN$2=0,0,OFFSET('PYp Ult - RawSimResults'!$A$5,($A7-1)*PYpUltYrs+AN$2,AN$3))) -> 0 | AO7: =IF($A7>Iterations,"",IF(AO$2=0,0,OFFSET('PYp Ult - RawSimResults'!$A$5,($A7-1)*PYpUltYrs+AO$2,AO$3))) -> 0 | AP7: =IF($A7>Iterations,"",IF(AP$2=0,0,OFFSET('PYp Ult - RawSimResults'!$A$5,($A7-1)*PYpUltYrs+AP$2,AP$3))) -> 0 | AQ7: =IF($A7>Iterations,"",IF(AQ$2=0,0,OFFSET('PYp Ult - RawSimResults'!$A$5,($A7-1)*PYpUltYrs+AQ$2,AQ$3))) -> 0 | AR7: =IF($A7>Iterations,"",IF(AR$2=0,0,OFFSET('PYp Ult - RawSimResults'!$A$5,($A7-1)*PYpUltYrs+AR$2,AR$3))) -> 0 | AS7: =IF($A7>Iterations,"",IF(AS$2=0,0,OFFSET('PYp Ult - RawSimResults'!$A$5,($A7-1)*PYpUltYrs+AS$2,AS$3))) -> 0 | AT7: =IF($A7>Iterations,"",IF(AT$2=0,0,OFFSET('PYp Ult - RawSimResults'!$A$5,($A7-1)*PYpUltYrs+AT$2,AT$3))) -> 0 | AU7: =IF($A7>Iterations,"",IF(AU$2=0,0,OFFSET('PYp Ult - RawSimResults'!$A$5,($A7-1)*PYpUltYrs+AU$2,AU$3))) -> 0 | AV7: =IF($A7>Iterations,"",IF(AV$2=0,0,OFFSET('PYp Ult - RawSimResults'!$A$5,($A7-1)*PYpUltYrs+AV$2,AV$3))) -> 0 | AW7: =IF($A7>Iterations,"",IF(AW$2=0,0,OFFSET('PYp Ult - RawSimResults'!$A$5,($A7-1)*PYpUltYrs+AW$2,AW$3))) -> 0 | AX7: =IF($A7>Iterations,"",IF(AX$2=0,0,OFFSET('PYp Ult - RawSimResults'!$A$5,($A7-1)*PYpUltYrs+AX$2,AX$3))) -> 0 | AY7: =IF($A7>Iterations,"",IF(AY$2=0,0,OFFSET('PYp Ult - RawSimResults'!$A$5,($A7-1)*PYpUltYrs+AY$2,AY$3))) -> 0 | AZ7: =IF($A7>Iterations,"",IF(AZ$2=0,0,OFFSET('PYp Ult - RawSimResults'!$A$5,($A7-1)*PYpUltYrs+AZ$2,AZ$3))) -> 0 | BA7: =IF($A7>Iterations,"",IF(BA$2=0,0,OFFSET('PYp Ult - RawSimResults'!$A$5,($A7-1)*PYpUltYrs+BA$2,BA$3))) -> 0 | BB7: =IF($A7>Iterations,"",IF(BB$2=0,0,OFFSET('PYp Ult - RawSimResults'!$A$5,($A7-1)*PYpUltYrs+BB$2,BB$3))) -> 0 | BC7: =IF($A7>Iterations,"",IF(BC$2=0,0,OFFSET('PYp Ult - RawSimResults'!$A$5,($A7-1)*PYpUltYrs+BC$2,BC$3))) -> 0 | BD7: =IF($A7>Iterations,"",IF(BD$2=0,0,OFFSET('PYp Ult - RawSimResults'!$A$5,($A7-1)*PYpUltYrs+BD$2,BD$3))) -> 0 | BE7: =IF($A7>Iterations,"",IF(BE$2=0,0,OFFSET('PYp Ult - RawSimResults'!$A$5,($A7-1)*PYpUltYrs+BE$2,BE$3))) -> 0 | BF7: =IF($A7>Iterations,"",IF(BF$2=0,0,OFFSET('PYp Ult - RawSimResults'!$A$5,($A7-1)*PYpUltYrs+BF$2,BF$3))) -> 0 | BG7: =IF($A7>Iterations,"",IF(BG$2=0,0,OFFSET('PYp Ult - RawSimResults'!$A$5,($A7-1)*PYpUltYrs+BG$2,BG$3))) -> 0 | BH7: =IF($A7>Iterations,"",IF(BH$2=0,0,OFFSET('PYp Ult - RawSimResults'!$A$5,($A7-1)*PYpUltYrs+BH$2,BH$3))) -> 0 | BI7: =IF($A7>Iterations,"",IF(BI$2=0,0,OFFSET('PYp Ult - RawSimResults'!$A$5,($A7-1)*PYpUltYrs+BI$2,BI$3))) -> 0 | BJ7: =IF($A7>Iterations,"",IF(BJ$2=0,0,OFFSET('PYp Ult - RawSimResults'!$A$5,($A7-1)*PYpUltYrs+BJ$2,BJ$3))) -> 0 | BK7: =IF($A7>Iterations,"",IF(BK$2=0,0,OFFSET('PYp Ult - RawSimResults'!$A$5,($A7-1)*PYpUltYrs+BK$2,BK$3))) -> 0 | BL7: =IF($A7>Iterations,"",IF(BL$2=0,0,OFFSET('PYp Ult - RawSimResults'!$A$5,($A7-1)*PYpUltYrs+BL$2,BL$3))) -> 0 | BM7: =IF($A7>Iterations,"",IF(BM$2=0,0,OFFSET('PYp Ult - RawSimResults'!$A$5,($A7-1)*PYpUltYrs+BM$2,BM$3))) -> 0 | BN7: =IF($A7>Iterations,"",IF(BN$2=0,0,OFFSET('PYp Ult - RawSimResults'!$A$5,($A7-1)*PYpUltYrs+BN$2,BN$3))) -> 0 | BO7: =IF($A7>Iterations,"",IF(BO$2=0,0,OFFSET('PYp Ult - RawSimResults'!$A$5,($A7-1)*PYpUltYrs+BO$2,BO$3))) -> 0 | BP7: =IF($A7>Iterations,"",IF(BP$2=0,0,OFFSET('PYp Ult - RawSimResults'!$A$5,($A7-1)*PYpUltYrs+BP$2,BP$3))) -> 0 | BQ7: =IF($A7>Iterations,"",IF(BQ$2=0,0,OFFSET('PYp Ult - RawSimResults'!$A$5,($A7-1)*PYpUltYrs+BQ$2,BQ$3))) -> 0 | BR7: =IF($A7>Iterations,"",IF(BR$2=0,0,OFFSET('PYp Ult - RawSimResults'!$A$5,($A7-1)*PYpUltYrs+BR$2,BR$3))) -> 0 | BS7: =IF($A7>Iterations,"",IF(BS$2=0,0,OFFSET('PYp Ult - RawSimResults'!$A$5,($A7-1)*PYpUltYrs+BS$2,BS$3))) -> 0 | BT7: =IF($A7>Iterations,"",IF(BT$2=0,0,OFFSET('PYp Ult - RawSimResults'!$A$5,($A7-1)*PYpUltYrs+BT$2,BT$3))) -> 0 | BU7: =IF($A7>Iterations,"",IF(BU$2=0,0,OFFSET('PYp Ult - RawSimResults'!$A$5,($A7-1)*PYpUltYrs+BU$2,BU$3))) -> 0 | BV7: =IF($A7>Iterations,"",IF(BV$2=0,0,OFFSET('PYp Ult - RawSimResults'!$A$5,($A7-1)*PYpUltYrs+BV$2,BV$3))) -> 0 | BW7: =IF($A7>Iterations,"",IF(BW$2=0,0,OFFSET('PYp Ult - RawSimResults'!$A$5,($A7-1)*PYpUltYrs+BW$2,BW$3))) -> 0 | BX7: =IF($A7>Iterations,"",IF(BX$2=0,0,OFFSET('PYp Ult - RawSimResults'!$A$5,($A7-1)*PYpUltYrs+BX$2,BX$3))) -> 0 | BY7: =IF($A7>Iterations,"",IF(BY$2=0,0,OFFSET('PYp Ult - RawSimResults'!$A$5,($A7-1)*PYpUltYrs+BY$2,BY$3))) -> 0 | BZ7: =IF($A7>Iterations,"",IF(BZ$2=0,0,OFFSET('PYp Ult - RawSimResults'!$A$5,($A7-1)*PYpUltYrs+BZ$2,BZ$3))) -> 0 | CA7: =IF($A7>Iterations,"",IF(CA$2=0,0,OFFSET('PYp Ult - RawSimResults'!$A$5,($A7-1)*PYpUltYrs+CA$2,CA$3))) -> 0 | CB7: =IF($A7>Iterations,"",IF(CB$2=0,0,OFFSET('PYp Ult - RawSimResults'!$A$5,($A7-1)*PYpUltYrs+CB$2,CB$3))) -> 0 | CC7: =IF($A7>Iterations,"",IF(CC$2=0,0,OFFSET('PYp Ult - RawSimResults'!$A$5,($A7-1)*PYpUltYrs+CC$2,CC$3))) -> 0 | CD7: =IF($A7>Iterations,"",IF(CD$2=0,0,OFFSET('PYp Ult - RawSimResults'!$A$5,($A7-1)*PYpUltYrs+CD$2,CD$3))) -> 0 | CE7: =IF($A7>Iterations,"",IF(CE$2=0,0,OFFSET('PYp Ult - RawSimResults'!$A$5,($A7-1)*PYpUltYrs+CE$2,CE$3))) -> 0 | CF7: =IF($A7>Iterations,"",IF(CF$2=0,0,OFFSET('PYp Ult - RawSimResults'!$A$5,($A7-1)*PYpUltYrs+CF$2,CF$3))) -> 0 | CG7: =IF($A7>Iterations,"",IF(CG$2=0,0,OFFSET('PYp Ult - RawSimResults'!$A$5,($A7-1)*PYpUltYrs+CG$2,CG$3))) -> 0 | CH7: =IF($A7>Iterations,"",IF(CH$2=0,0,OFFSET('PYp Ult - RawSimResults'!$A$5,($A7-1)*PYpUltYrs+CH$2,CH$3))) -> 0 | CI7: =IF($A7>Iterations,"",IF(CI$2=0,0,OFFSET('PYp Ult - RawSimResults'!$A$5,($A7-1)*PYpUltYrs+CI$2,CI$3))) -> 0 | CJ7: =IF($A7>Iterations,"",IF(CJ$2=0,0,OFFSET('PYp Ult - RawSimResults'!$A$5,($A7-1)*PYpUltYrs+CJ$2,CJ$3))) -> 0 | CK7: =IF($A7>Iterations,"",IF(CK$2=0,0,OFFSET('PYp Ult - RawSimResults'!$A$5,($A7-1)*PYpUltYrs+CK$2,CK$3))) -> 0 | CL7: =IF($A7>Iterations,"",IF(CL$2=0,0,OFFSET('PYp Ult - RawSimResults'!$A$5,($A7-1)*PYpUltYrs+CL$2,CL$3))) -> 0 | CM7: =IF($A7>Iterations,"",IF(CM$2=0,0,OFFSET('PYp Ult - RawSimResults'!$A$5,($A7-1)*PYpUltYrs+CM$2,CM$3))) -> 0 | CN7: =IF($A7>Iterations,"",IF(CN$2=0,0,OFFSET('PYp Ult - RawSimResults'!$A$5,($A7-1)*PYpUltYrs+CN$2,CN$3))) -> 0 | CO7: =IF($A7>Iterations,"",IF(CO$2=0,0,OFFSET('PYp Ult - RawSimResults'!$A$5,($A7-1)*PYpUltYrs+CO$2,CO$3))) -> 0 | CP7: =IF($A7>Iterations,"",IF(CP$2=0,0,OFFSET('PYp Ult - RawSimResults'!$A$5,($A7-1)*PYpUltYrs+CP$2,CP$3))) -> 0 | CQ7: =IF($A7>Iterations,"",IF(CQ$2=0,0,OFFSET('PYp Ult - RawSimResults'!$A$5,($A7-1)*PYpUltYrs+CQ$2,CQ$3))) -> 0 | CR7: =IF($A7>Iterations,"",IF(CR$2=0,0,OFFSET('PYp Ult - RawSimResults'!$A$5,($A7-1)*PYpUltYrs+CR$2,CR$3))) -> 0 | CS7: =IF($A7>Iterations,"",IF(CS$2=0,0,OFFSET('PYp Ult - RawSimResults'!$A$5,($A7-1)*PYpUltYrs+CS$2,CS$3))) -> 0 | CT7: =IF($A7>Iterations,"",IF(CT$2=0,0,OFFSET('PYp Ult - RawSimResults'!$A$5,($A7-1)*PYpUltYrs+CT$2,CT$3))) -> 0 | CU7: =IF($A7>Iterations,"",IF(CU$2=0,0,OFFSET('PYp Ult - RawSimResults'!$A$5,($A7-1)*PYpUltYrs+CU$2,CU$3))) -> 0 | CV7: =IF($A7>Iterations,"",IF(CV$2=0,0,OFFSET('PYp Ult - RawSimResults'!$A$5,($A7-1)*PYpUltYrs+CV$2,CV$3))) -> 0 | CW7: =IF($A7>Iterations,"",IF(CW$2=0,0,OFFSET('PYp Ult - RawSimResults'!$A$5,($A7-1)*PYpUltYrs+CW$2,CW$3))) -> 0 | CX7: =IF($A7>Iterations,"",IF(CX$2=0,0,OFFSET('PYp Ult - RawSimResults'!$A$5,($A7-1)*PYpUltYrs+CX$2,CX$3))) -> 0 | CY7: =IF($A7>Iterations,"",IF(CY$2=0,0,OFFSET('PYp Ult - RawSimResults'!$A$5,($A7-1)*PYpUltYrs+CY$2,CY$3))) -> 0 | CZ7: =IF($A7>Iterations,"",IF(CZ$2=0,0,OFFSET('PYp Ult - RawSimResults'!$A$5,($A7-1)*PYpUltYrs+CZ$2,CZ$3))) -> 0 | DA7: =IF($A7>Iterations,"",IF(DA$2=0,0,OFFSET('PYp Ult - RawSimResults'!$A$5,($A7-1)*PYpUltYrs+DA$2,DA$3))) -> 0 | DB7: =IF($A7>Iterations,"",IF(DB$2=0,0,OFFSET('PYp Ult - RawSimResults'!$A$5,($A7-1)*PYpUltYrs+DB$2,DB$3))) -> 0 | DC7: =IF($A7>Iterations,"",IF(DC$2=0,0,OFFSET('PYp Ult - RawSimResults'!$A$5,($A7-1)*PYpUltYrs+DC$2,DC$3))) -> 0 | DD7: =IF($A7>Iterations,"",IF(DD$2=0,0,OFFSET('PYp Ult - RawSimResults'!$A$5,($A7-1)*PYpUltYrs+DD$2,DD$3))) -> 0 | DE7: =IF($A7>Iterations,"",IF(DE$2=0,0,OFFSET('PYp Ult - RawSimResults'!$A$5,($A7-1)*PYpUltYrs+DE$2,DE$3))) -> 0 | DF7: =IF($A7>Iterations,"",IF(DF$2=0,0,OFFSET('PYp Ult - RawSimResults'!$A$5,($A7-1)*PYpUltYrs+DF$2,DF$3))) -> 0 | DG7: =IF($A7>Iterations,"",IF(DG$2=0,0,OFFSET('PYp Ult - RawSimResults'!$A$5,($A7-1)*PYpUltYrs+DG$2,DG$3))) -> 0 | DH7: =IF($A7>Iterations,"",IF(DH$2=0,0,OFFSET('PYp Ult - RawSimResults'!$A$5,($A7-1)*PYpUltYrs+DH$2,DH$3))) -> 0 | DI7: =IF($A7>Iterations,"",IF(DI$2=0,0,OFFSET('PYp Ult - RawSimResults'!$A$5,($A7-1)*PYpUltYrs+DI$2,DI$3))) -> 0 | DJ7: =IF($A7>Iterations,"",IF(DJ$2=0,0,OFFSET('PYp Ult - RawSimResults'!$A$5,($A7-1)*PYpUltYrs+DJ$2,DJ$3))) -> 0 | DK7: =IF($A7>Iterations,"",IF(DK$2=0,0,OFFSET('PYp Ult - RawSimResults'!$A$5,($A7-1)*PYpUltYrs+DK$2,DK$3))) -> 0 | DL7: =IF($A7>Iterations,"",IF(DL$2=0,0,OFFSET('PYp Ult - RawSimResults'!$A$5,($A7-1)*PYpUltYrs+DL$2,DL$3))) -> 0 | DM7: =IF($A7>Iterations,"",IF(DM$2=0,0,OFFSET('PYp Ult - RawSimResults'!$A$5,($A7-1)*PYpUltYrs+DM$2,DM$3))) -> 0 | DN7: =IF($A7>Iterations,"",IF(DN$2=0,0,OFFSET('PYp Ult - RawSimResults'!$A$5,($A7-1)*PYpUltYrs+DN$2,DN$3))) -> 0 | DO7: =IF($A7>Iterations,"",IF(DO$2=0,0,OFFSET('PYp Ult - RawSimResults'!$A$5,($A7-1)*PYpUltYrs+DO$2,DO$3))) -> 0 | DP7: =IF($A7>Iterations,"",IF(DP$2=0,0,OFFSET('PYp Ult - RawSimResults'!$A$5,($A7-1)*PYpUltYrs+DP$2,DP$3))) -> 0 | DQ7: =IF($A7>Iterations,"",IF(DQ$2=0,0,OFFSET('PYp Ult - RawSimResults'!$A$5,($A7-1)*PYpUltYrs+DQ$2,DQ$3))) -> 0 | DR7: =IF($A7>Iterations,"",IF(DR$2=0,0,OFFSET('PYp Ult - RawSimResults'!$A$5,($A7-1)*PYpUltYrs+DR$2,DR$3))) -> 0 | DS7: =IF($A7>Iterations,"",IF(DS$2=0,0,OFFSET('PYp Ult - RawSimResults'!$A$5,($A7-1)*PYpUltYrs+DS$2,DS$3))) -> 0 | DT7: =IF($A7>Iterations,"",IF(DT$2=0,0,OFFSET('PYp Ult - RawSimResults'!$A$5,($A7-1)*PYpUltYrs+DT$2,DT$3))) -> 0 | DU7: =IF($A7>Iterations,"",IF(DU$2=0,0,OFFSET('PYp Ult - RawSimResults'!$A$5,($A7-1)*PYpUltYrs+DU$2,DU$3))) -> 0 | DV7: =IF($A7>Iterations,"",IF(DV$2=0,0,OFFSET('PYp Ult - RawSimResults'!$A$5,($A7-1)*PYpUltYrs+DV$2,DV$3))) -> 0 | DW7: =IF($A7>Iterations,"",IF(DW$2=0,0,OFFSET('PYp Ult - RawSimResults'!$A$5,($A7-1)*PYpUltYrs+DW$2,DW$3))) -> 0 | DX7: =IF($A7>Iterations,"",IF(DX$2=0,0,OFFSET('PYp Ult - RawSimResults'!$A$5,($A7-1)*PYpUltYrs+DX$2,DX$3))) -> 0 | DY7: =IF($A7>Iterations,"",IF(DY$2=0,0,OFFSET('PYp Ult - RawSimResults'!$A$5,($A7-1)*PYpUltYrs+DY$2,DY$3))) -> 0 | DZ7: =IF($A7>Iterations,"",IF(DZ$2=0,0,OFFSET('PYp Ult - RawSimResults'!$A$5,($A7-1)*PYpUltYrs+DZ$2,DZ$3))) -> 0 | EA7: =IF($A7>Iterations,"",IF(EA$2=0,0,OFFSET('PYp Ult - RawSimResults'!$A$5,($A7-1)*PYpUltYrs+EA$2,EA$3))) -> 0 | EB7: =IF($A7>Iterations,"",IF(EB$2=0,0,OFFSET('PYp Ult - RawSimResults'!$A$5,($A7-1)*PYpUltYrs+EB$2,EB$3))) -> 0 | EC7: =IF($A7>Iterations,"",IF(EC$2=0,0,OFFSET('PYp Ult - RawSimResults'!$A$5,($A7-1)*PYpUltYrs+EC$2,EC$3))) -> 0 | ED7: =IF($A7>Iterations,"",IF(ED$2=0,0,OFFSET('PYp Ult - RawSimResults'!$A$5,($A7-1)*PYpUltYrs+ED$2,ED$3))) -> 0 | EE7: =IF($A7>Iterations,"",IF(EE$2=0,0,OFFSET('PYp Ult - RawSimResults'!$A$5,($A7-1)*PYpUltYrs+EE$2,EE$3))) -> 0 | EF7: =IF($A7>Iterations,"",IF(EF$2=0,0,OFFSET('PYp Ult - RawSimResults'!$A$5,($A7-1)*PYpUltYrs+EF$2,EF$3))) -> 0 | EG7: =IF($A7>Iterations,"",IF(EG$2=0,0,OFFSET('PYp Ult - RawSimResults'!$A$5,($A7-1)*PYpUltYrs+EG$2,EG$3))) -> 0 | EH7: =IF($A7>Iterations,"",IF(EH$2=0,0,OFFSET('PYp Ult - RawSimResults'!$A$5,($A7-1)*PYpUltYrs+EH$2,EH$3))) -> 0 | EI7: =IF($A7>Iterations,"",IF(EI$2=0,0,OFFSET('PYp Ult - RawSimResults'!$A$5,($A7-1)*PYpUltYrs+EI$2,EI$3))) -> 0 | EJ7: =IF($A7>Iterations,"",IF(EJ$2=0,0,OFFSET('PYp Ult - RawSimResults'!$A$5,($A7-1)*PYpUltYrs+EJ$2,EJ$3))) -> 0 | EK7: =IF($A7>Iterations,"",IF(EK$2=0,0,OFFSET('PYp Ult - RawSimResults'!$A$5,($A7-1)*PYpUltYrs+EK$2,EK$3))) -> 0 | EL7: =IF($A7>Iterations,"",IF(EL$2=0,0,OFFSET('PYp Ult - RawSimResults'!$A$5,($A7-1)*PYpUltYrs+EL$2,EL$3))) -> 0 | EM7: =IF($A7>Iterations,"",IF(EM$2=0,0,OFFSET('PYp Ult - RawSimResults'!$A$5,($A7-1)*PYpUltYrs+EM$2,EM$3))) -> 0 | EN7: =IF($A7>Iterations,"",IF(EN$2=0,0,OFFSET('PYp Ult - RawSimResults'!$A$5,($A7-1)*PYpUltYrs+EN$2,EN$3))) -> 0 | EO7: =IF($A7>Iterations,"",IF(EO$2=0,0,OFFSET('PYp Ult - RawSimResults'!$A$5,($A7-1)*PYpUltYrs+EO$2,EO$3))) -> 0 | EP7: =IF($A7>Iterations,"",IF(EP$2=0,0,OFFSET('PYp Ult - RawSimResults'!$A$5,($A7-1)*PYpUltYrs+EP$2,EP$3))) -> 0 | EQ7: =IF($A7>Iterations,"",IF(EQ$2=0,0,OFFSET('PYp Ult - RawSimResults'!$A$5,($A7-1)*PYpUltYrs+EQ$2,EQ$3))) -> 0 | ER7: =IF($A7>Iterations,"",IF(ER$2=0,0,OFFSET('PYp Ult - RawSimResults'!$A$5,($A7-1)*PYpUltYrs+ER$2,ER$3))) -> 0 | ES7: =IF($A7>Iterations,"",IF(ES$2=0,0,OFFSET('PYp Ult - RawSimResults'!$A$5,($A7-1)*PYpUltYrs+ES$2,ES$3))) -> 0 | ET7: =IF($A7>Iterations,"",IF(ET$2=0,0,OFFSET('PYp Ult - RawSimResults'!$A$5,($A7-1)*PYpUltYrs+ET$2,ET$3))) -> 0 | EU7: =IF($A7>Iterations,"",IF(EU$2=0,0,OFFSET('PYp Ult - RawSimResults'!$A$5,($A7-1)*PYpUltYrs+EU$2,EU$3))) -> 0 | EV7: 0 | EW7: 0 | EX7: 0 | EY7: 0 | EZ7: 0 | FA7: 0 | FB7: 0 | FC7: 0 | FD7: 0 | FE7: 0 | FF7: 0 | FG7: 0 | FH7: 0 | FI7: 0 | FJ7: 0 | FK7: 0 | FL7: 0 | FM7: 0 | FN7: 0 | FO7: 0 | FP7: 0 | FQ7: 0 | FR7: 0 | FS7: 0 | FT7: 0 | FU7: 0 | FV7: 0 | FW7: 0 | FX7: 0 | FY7: 0 | FZ7: 0 | GA7: 0 | GB7: 0 | GC7: 0 | GD7: 0 | GE7: 0 | GF7: 0 | GG7: 0 | GH7: 0 | GI7: 0 | GJ7: 0 | GK7: 0 | GL7: 0 | GM7: 0 | GN7: 0 | GO7: 0 | GP7: 0 | GQ7: 0 | GR7: 0 | GS7: 0 | GT7: 0
A8: 3 | B8: =IF($A8>Iterations,"",IF(B$2=0,0,OFFSET('PYp Ult - RawSimResults'!$A$5,($A8-1)*PYpUltYrs+B$2,B$3))) -> 0 | C8: =IF($A8>Iterations,"",IF(C$2=0,0,OFFSET('PYp Ult - RawSimResults'!$A$5,($A8-1)*PYpUltYrs+C$2,C$3))) -> 0 | D8: =IF($A8>Iterations,"",IF(D$2=0,0,OFFSET('PYp Ult - RawSimResults'!$A$5,($A8-1)*PYpUltYrs+D$2,D$3))) -> 0 | E8: =IF($A8>Iterations,"",IF(E$2=0,0,OFFSET('PYp Ult - RawSimResults'!$A$5,($A8-1)*PYpUltYrs+E$2,E$3))) -> 0 | F8: =IF($A8>Iterations,"",IF(F$2=0,0,OFFSET('PYp Ult - RawSimResults'!$A$5,($A8-1)*PYpUltYrs+F$2,F$3))) -> 0 | G8: =IF($A8>Iterations,"",IF(G$2=0,0,OFFSET('PYp Ult - RawSimResults'!$A$5,($A8-1)*PYpUltYrs+G$2,G$3))) -> 0 | H8: =IF($A8>Iterations,"",IF(H$2=0,0,OFFSET('PYp Ult - RawSimResults'!$A$5,($A8-1)*PYpUltYrs+H$2,H$3))) -> 0 | I8: =IF($A8>Iterations,"",IF(I$2=0,0,OFFSET('PYp Ult - RawSimResults'!$A$5,($A8-1)*PYpUltYrs+I$2,I$3))) -> 0 | J8: =IF($A8>Iterations,"",IF(J$2=0,0,OFFSET('PYp Ult - RawSimResults'!$A$5,($A8-1)*PYpUltYrs+J$2,J$3))) -> 0 | K8: =IF($A8>Iterations,"",IF(K$2=0,0,OFFSET('PYp Ult - RawSimResults'!$A$5,($A8-1)*PYpUltYrs+K$2,K$3))) -> 0 | L8: =IF($A8>Iterations,"",IF(L$2=0,0,OFFSET('PYp Ult - RawSimResults'!$A$5,($A8-1)*PYpUltYrs+L$2,L$3))) -> 0 | M8: =IF($A8>Iterations,"",IF(M$2=0,0,OFFSET('PYp Ult - RawSimResults'!$A$5,($A8-1)*PYpUltYrs+M$2,M$3))) -> 0 | N8: =IF($A8>Iterations,"",IF(N$2=0,0,OFFSET('PYp Ult - RawSimResults'!$A$5,($A8-1)*PYpUltYrs+N$2,N$3))) -> 0 | O8: =IF($A8>Iterations,"",IF(O$2=0,0,OFFSET('PYp Ult - RawSimResults'!$A$5,($A8-1)*PYpUltYrs+O$2,O$3))) -> 0 | P8: =IF($A8>Iterations,"",IF(P$2=0,0,OFFSET('PYp Ult - RawSimResults'!$A$5,($A8-1)*PYpUltYrs+P$2,P$3))) -> 0 | Q8: =IF($A8>Iterations,"",IF(Q$2=0,0,OFFSET('PYp Ult - RawSimResults'!$A$5,($A8-1)*PYpUltYrs+Q$2,Q$3))) -> 0 | R8: =IF($A8>Iterations,"",IF(R$2=0,0,OFFSET('PYp Ult - RawSimResults'!$A$5,($A8-1)*PYpUltYrs+R$2,R$3))) -> 0 | S8: =IF($A8>Iterations,"",IF(S$2=0,0,OFFSET('PYp Ult - RawSimResults'!$A$5,($A8-1)*PYpUltYrs+S$2,S$3))) -> 0 | T8: =IF($A8>Iterations,"",IF(T$2=0,0,OFFSET('PYp Ult - RawSimResults'!$A$5,($A8-1)*PYpUltYrs+T$2,T$3))) -> 0 | U8: =IF($A8>Iterations,"",IF(U$2=0,0,OFFSET('PYp Ult - RawSimResults'!$A$5,($A8-1)*PYpUltYrs+U$2,U$3))) -> 0 | V8: =IF($A8>Iterations,"",IF(V$2=0,0,OFFSET('PYp Ult - RawSimResults'!$A$5,($A8-1)*PYpUltYrs+V$2,V$3))) -> 0 | W8: =IF($A8>Iterations,"",IF(W$2=0,0,OFFSET('PYp Ult - RawSimResults'!$A$5,($A8-1)*PYpUltYrs+W$2,W$3))) -> 0 | X8: =IF($A8>Iterations,"",IF(X$2=0,0,OFFSET('PYp Ult - RawSimResults'!$A$5,($A8-1)*PYpUltYrs+X$2,X$3))) -> 0 | Y8: =IF($A8>Iterations,"",IF(Y$2=0,0,OFFSET('PYp Ult - RawSimResults'!$A$5,($A8-1)*PYpUltYrs+Y$2,Y$3))) -> 0 | Z8: =IF($A8>Iterations,"",IF(Z$2=0,0,OFFSET('PYp Ult - RawSimResults'!$A$5,($A8-1)*PYpUltYrs+Z$2,Z$3))) -> 0 | AA8: =IF($A8>Iterations,"",IF(AA$2=0,0,OFFSET('PYp Ult - RawSimResults'!$A$5,($A8-1)*PYpUltYrs+AA$2,AA$3))) -> 0 | AB8: =IF($A8>Iterations,"",IF(AB$2=0,0,OFFSET('PYp Ult - RawSimResults'!$A$5,($A8-1)*PYpUltYrs+AB$2,AB$3))) -> 0 | AC8: =IF($A8>Iterations,"",IF(AC$2=0,0,OFFSET('PYp Ult - RawSimResults'!$A$5,($A8-1)*PYpUltYrs+AC$2,AC$3))) -> 0 | AD8: =IF($A8>Iterations,"",IF(AD$2=0,0,OFFSET('PYp Ult - RawSimResults'!$A$5,($A8-1)*PYpUltYrs+AD$2,AD$3))) -> 0 | AE8: =IF($A8>Iterations,"",IF(AE$2=0,0,OFFSET('PYp Ult - RawSimResults'!$A$5,($A8-1)*PYpUltYrs+AE$2,AE$3))) -> 0 | AF8: =IF($A8>Iterations,"",IF(AF$2=0,0,OFFSET('PYp Ult - RawSimResults'!$A$5,($A8-1)*PYpUltYrs+AF$2,AF$3))) -> 0 | AG8: =IF($A8>Iterations,"",IF(AG$2=0,0,OFFSET('PYp Ult - RawSimResults'!$A$5,($A8-1)*PYpUltYrs+AG$2,AG$3))) -> 0 | AH8: =IF($A8>Iterations,"",IF(AH$2=0,0,OFFSET('PYp Ult - RawSimResults'!$A$5,($A8-1)*PYpUltYrs+AH$2,AH$3))) -> 0 | AI8: =IF($A8>Iterations,"",IF(AI$2=0,0,OFFSET('PYp Ult - RawSimResults'!$A$5,($A8-1)*PYpUltYrs+AI$2,AI$3))) -> 0 | AJ8: =IF($A8>Iterations,"",IF(AJ$2=0,0,OFFSET('PYp Ult - RawSimResults'!$A$5,($A8-1)*PYpUltYrs+AJ$2,AJ$3))) -> 0 | AK8: =IF($A8>Iterations,"",IF(AK$2=0,0,OFFSET('PYp Ult - RawSimResults'!$A$5,($A8-1)*PYpUltYrs+AK$2,AK$3))) -> 0 | AL8: =IF($A8>Iterations,"",IF(AL$2=0,0,OFFSET('PYp Ult - RawSimResults'!$A$5,($A8-1)*PYpUltYrs+AL$2,AL$3))) -> 0 | AM8: =IF($A8>Iterations,"",IF(AM$2=0,0,OFFSET('PYp Ult - RawSimResults'!$A$5,($A8-1)*PYpUltYrs+AM$2,AM$3))) -> 0 | AN8: =IF($A8>Iterations,"",IF(AN$2=0,0,OFFSET('PYp Ult - RawSimResults'!$A$5,($A8-1)*PYpUltYrs+AN$2,AN$3))) -> 0 | AO8: =IF($A8>Iterations,"",IF(AO$2=0,0,OFFSET('PYp Ult - RawSimResults'!$A$5,($A8-1)*PYpUltYrs+AO$2,AO$3))) -> 0 | AP8: =IF($A8>Iterations,"",IF(AP$2=0,0,OFFSET('PYp Ult - RawSimResults'!$A$5,($A8-1)*PYpUltYrs+AP$2,AP$3))) -> 0 | AQ8: =IF($A8>Iterations,"",IF(AQ$2=0,0,OFFSET('PYp Ult - RawSimResults'!$A$5,($A8-1)*PYpUltYrs+AQ$2,AQ$3))) -> 0 | AR8: =IF($A8>Iterations,"",IF(AR$2=0,0,OFFSET('PYp Ult - RawSimResults'!$A$5,($A8-1)*PYpUltYrs+AR$2,AR$3))) -> 0 | AS8: =IF($A8>Iterations,"",IF(AS$2=0,0,OFFSET('PYp Ult - RawSimResults'!$A$5,($A8-1)*PYpUltYrs+AS$2,AS$3))) -> 0 | AT8: =IF($A8>Iterations,"",IF(AT$2=0,0,OFFSET('PYp Ult - RawSimResults'!$A$5,($A8-1)*PYpUltYrs+AT$2,AT$3))) -> 0 | AU8: =IF($A8>Iterations,"",IF(AU$2=0,0,OFFSET('PYp Ult - RawSimResults'!$A$5,($A8-1)*PYpUltYrs+AU$2,AU$3))) -> 0 | AV8: =IF($A8>Iterations,"",IF(AV$2=0,0,OFFSET('PYp Ult - RawSimResults'!$A$5,($A8-1)*PYpUltYrs+AV$2,AV$3))) -> 0 | AW8: =IF($A8>Iterations,"",IF(AW$2=0,0,OFFSET('PYp Ult - RawSimResults'!$A$5,($A8-1)*PYpUltYrs+AW$2,AW$3))) -> 0 | AX8: =IF($A8>Iterations,"",IF(AX$2=0,0,OFFSET('PYp Ult - RawSimResults'!$A$5,($A8-1)*PYpUltYrs+AX$2,AX$3))) -> 0 | AY8: =IF($A8>Iterations,"",IF(AY$2=0,0,OFFSET('PYp Ult - RawSimResults'!$A$5,($A8-1)*PYpUltYrs+AY$2,AY$3))) -> 0 | AZ8: =IF($A8>Iterations,"",IF(AZ$2=0,0,OFFSET('PYp Ult - RawSimResults'!$A$5,($A8-1)*PYpUltYrs+AZ$2,AZ$3))) -> 0 | BA8: =IF($A8>Iterations,"",IF(BA$2=0,0,OFFSET('PYp Ult - RawSimResults'!$A$5,($A8-1)*PYpUltYrs+BA$2,BA$3))) -> 0 | BB8: =IF($A8>Iterations,"",IF(BB$2=0,0,OFFSET('PYp Ult - RawSimResults'!$A$5,($A8-1)*PYpUltYrs+BB$2,BB$3))) -> 0 | BC8: =IF($A8>Iterations,"",IF(BC$2=0,0,OFFSET('PYp Ult - RawSimResults'!$A$5,($A8-1)*PYpUltYrs+BC$2,BC$3))) -> 0 | BD8: =IF($A8>Iterations,"",IF(BD$2=0,0,OFFSET('PYp Ult - RawSimResults'!$A$5,($A8-1)*PYpUltYrs+BD$2,BD$3))) -> 0 | BE8: =IF($A8>Iterations,"",IF(BE$2=0,0,OFFSET('PYp Ult - RawSimResults'!$A$5,($A8-1)*PYpUltYrs+BE$2,BE$3))) -> 0 | BF8: =IF($A8>Iterations,"",IF(BF$2=0,0,OFFSET('PYp Ult - RawSimResults'!$A$5,($A8-1)*PYpUltYrs+BF$2,BF$3))) -> 0 | BG8: =IF($A8>Iterations,"",IF(BG$2=0,0,OFFSET('PYp Ult - RawSimResults'!$A$5,($A8-1)*PYpUltYrs+BG$2,BG$3))) -> 0 | BH8: =IF($A8>Iterations,"",IF(BH$2=0,0,OFFSET('PYp Ult - RawSimResults'!$A$5,($A8-1)*PYpUltYrs+BH$2,BH$3))) -> 0 | BI8: =IF($A8>Iterations,"",IF(BI$2=0,0,OFFSET('PYp Ult - RawSimResults'!$A$5,($A8-1)*PYpUltYrs+BI$2,BI$3))) -> 0 | BJ8: =IF($A8>Iterations,"",IF(BJ$2=0,0,OFFSET('PYp Ult - RawSimResults'!$A$5,($A8-1)*PYpUltYrs+BJ$2,BJ$3))) -> 0 | BK8: =IF($A8>Iterations,"",IF(BK$2=0,0,OFFSET('PYp Ult - RawSimResults'!$A$5,($A8-1)*PYpUltYrs+BK$2,BK$3))) -> 0 | BL8: =IF($A8>Iterations,"",IF(BL$2=0,0,OFFSET('PYp Ult - RawSimResults'!$A$5,($A8-1)*PYpUltYrs+BL$2,BL$3))) -> 0 | BM8: =IF($A8>Iterations,"",IF(BM$2=0,0,OFFSET('PYp Ult - RawSimResults'!$A$5,($A8-1)*PYpUltYrs+BM$2,BM$3))) -> 0 | BN8: =IF($A8>Iterations,"",IF(BN$2=0,0,OFFSET('PYp Ult - RawSimResults'!$A$5,($A8-1)*PYpUltYrs+BN$2,BN$3))) -> 0 | BO8: =IF($A8>Iterations,"",IF(BO$2=0,0,OFFSET('PYp Ult - RawSimResults'!$A$5,($A8-1)*PYpUltYrs+BO$2,BO$3))) -> 0 | BP8: =IF($A8>Iterations,"",IF(BP$2=0,0,OFFSET('PYp Ult - RawSimResults'!$A$5,($A8-1)*PYpUltYrs+BP$2,BP$3))) -> 0 | BQ8: =IF($A8>Iterations,"",IF(BQ$2=0,0,OFFSET('PYp Ult - RawSimResults'!$A$5,($A8-1)*PYpUltYrs+BQ$2,BQ$3))) -> 0 | BR8: =IF($A8>Iterations,"",IF(BR$2=0,0,OFFSET('PYp Ult - RawSimResults'!$A$5,($A8-1)*PYpUltYrs+BR$2,BR$3))) -> 0 | BS8: =IF($A8>Iterations,"",IF(BS$2=0,0,OFFSET('PYp Ult - RawSimResults'!$A$5,($A8-1)*PYpUltYrs+BS$2,BS$3))) -> 0 | BT8: =IF($A8>Iterations,"",IF(BT$2=0,0,OFFSET('PYp Ult - RawSimResults'!$A$5,($A8-1)*PYpUltYrs+BT$2,BT$3))) -> 0 | BU8: =IF($A8>Iterations,"",IF(BU$2=0,0,OFFSET('PYp Ult - RawSimResults'!$A$5,($A8-1)*PYpUltYrs+BU$2,BU$3))) -> 0 | BV8: =IF($A8>Iterations,"",IF(BV$2=0,0,OFFSET('PYp Ult - RawSimResults'!$A$5,($A8-1)*PYpUltYrs+BV$2,BV$3))) -> 0 | BW8: =IF($A8>Iterations,"",IF(BW$2=0,0,OFFSET('PYp Ult - RawSimResults'!$A$5,($A8-1)*PYpUltYrs+BW$2,BW$3))) -> 0 | BX8: =IF($A8>Iterations,"",IF(BX$2=0,0,OFFSET('PYp Ult - RawSimResults'!$A$5,($A8-1)*PYpUltYrs+BX$2,BX$3))) -> 0 | BY8: =IF($A8>Iterations,"",IF(BY$2=0,0,OFFSET('PYp Ult - RawSimResults'!$A$5,($A8-1)*PYpUltYrs+BY$2,BY$3))) -> 0 | BZ8: =IF($A8>Iterations,"",IF(BZ$2=0,0,OFFSET('PYp Ult - RawSimResults'!$A$5,($A8-1)*PYpUltYrs+BZ$2,BZ$3))) -> 0 | CA8: =IF($A8>Iterations,"",IF(CA$2=0,0,OFFSET('PYp Ult - RawSimResults'!$A$5,($A8-1)*PYpUltYrs+CA$2,CA$3))) -> 0 | CB8: =IF($A8>Iterations,"",IF(CB$2=0,0,OFFSET('PYp Ult - RawSimResults'!$A$5,($A8-1)*PYpUltYrs+CB$2,CB$3))) -> 0 | CC8: =IF($A8>Iterations,"",IF(CC$2=0,0,OFFSET('PYp Ult - RawSimResults'!$A$5,($A8-1)*PYpUltYrs+CC$2,CC$3))) -> 0 | CD8: =IF($A8>Iterations,"",IF(CD$2=0,0,OFFSET('PYp Ult - RawSimResults'!$A$5,($A8-1)*PYpUltYrs+CD$2,CD$3))) -> 0 | CE8: =IF($A8>Iterations,"",IF(CE$2=0,0,OFFSET('PYp Ult - RawSimResults'!$A$5,($A8-1)*PYpUltYrs+CE$2,CE$3))) -> 0 | CF8: =IF($A8>Iterations,"",IF(CF$2=0,0,OFFSET('PYp Ult - RawSimResults'!$A$5,($A8-1)*PYpUltYrs+CF$2,CF$3))) -> 0 | CG8: =IF($A8>Iterations,"",IF(CG$2=0,0,OFFSET('PYp Ult - RawSimResults'!$A$5,($A8-1)*PYpUltYrs+CG$2,CG$3))) -> 0 | CH8: =IF($A8>Iterations,"",IF(CH$2=0,0,OFFSET('PYp Ult - RawSimResults'!$A$5,($A8-1)*PYpUltYrs+CH$2,CH$3))) -> 0 | CI8: =IF($A8>Iterations,"",IF(CI$2=0,0,OFFSET('PYp Ult - RawSimResults'!$A$5,($A8-1)*PYpUltYrs+CI$2,CI$3))) -> 0 | CJ8: =IF($A8>Iterations,"",IF(CJ$2=0,0,OFFSET('PYp Ult - RawSimResults'!$A$5,($A8-1)*PYpUltYrs+CJ$2,CJ$3))) -> 0 | CK8: =IF($A8>Iterations,"",IF(CK$2=0,0,OFFSET('PYp Ult - RawSimResults'!$A$5,($A8-1)*PYpUltYrs+CK$2,CK$3))) -> 0 | CL8: =IF($A8>Iterations,"",IF(CL$2=0,0,OFFSET('PYp Ult - RawSimResults'!$A$5,($A8-1)*PYpUltYrs+CL$2,CL$3))) -> 0 | CM8: =IF($A8>Iterations,"",IF(CM$2=0,0,OFFSET('PYp Ult - RawSimResults'!$A$5,($A8-1)*PYpUltYrs+CM$2,CM$3))) -> 0 | CN8: =IF($A8>Iterations,"",IF(CN$2=0,0,OFFSET('PYp Ult - RawSimResults'!$A$5,($A8-1)*PYpUltYrs+CN$2,CN$3))) -> 0 | CO8: =IF($A8>Iterations,"",IF(CO$2=0,0,OFFSET('PYp Ult - RawSimResults'!$A$5,($A8-1)*PYpUltYrs+CO$2,CO$3))) -> 0 | CP8: =IF($A8>Iterations,"",IF(CP$2=0,0,OFFSET('PYp Ult - RawSimResults'!$A$5,($A8-1)*PYpUltYrs+CP$2,CP$3))) -> 0 | CQ8: =IF($A8>Iterations,"",IF(CQ$2=0,0,OFFSET('PYp Ult - RawSimResults'!$A$5,($A8-1)*PYpUltYrs+CQ$2,CQ$3))) -> 0 | CR8: =IF($A8>Iterations,"",IF(CR$2=0,0,OFFSET('PYp Ult - RawSimResults'!$A$5,($A8-1)*PYpUltYrs+CR$2,CR$3))) -> 0 | CS8: =IF($A8>Iterations,"",IF(CS$2=0,0,OFFSET('PYp Ult - RawSimResults'!$A$5,($A8-1)*PYpUltYrs+CS$2,CS$3))) -> 0 | CT8: =IF($A8>Iterations,"",IF(CT$2=0,0,OFFSET('PYp Ult - RawSimResults'!$A$5,($A8-1)*PYpUltYrs+CT$2,CT$3))) -> 0 | CU8: =IF($A8>Iterations,"",IF(CU$2=0,0,OFFSET('PYp Ult - RawSimResults'!$A$5,($A8-1)*PYpUltYrs+CU$2,CU$3))) -> 0 | CV8: =IF($A8>Iterations,"",IF(CV$2=0,0,OFFSET('PYp Ult - RawSimResults'!$A$5,($A8-1)*PYpUltYrs+CV$2,CV$3))) -> 0 | CW8: =IF($A8>Iterations,"",IF(CW$2=0,0,OFFSET('PYp Ult - RawSimResults'!$A$5,($A8-1)*PYpUltYrs+CW$2,CW$3))) -> 0 | CX8: =IF($A8>Iterations,"",IF(CX$2=0,0,OFFSET('PYp Ult - RawSimResults'!$A$5,($A8-1)*PYpUltYrs+CX$2,CX$3))) -> 0 | CY8: =IF($A8>Iterations,"",IF(CY$2=0,0,OFFSET('PYp Ult - RawSimResults'!$A$5,($A8-1)*PYpUltYrs+CY$2,CY$3))) -> 0 | CZ8: =IF($A8>Iterations,"",IF(CZ$2=0,0,OFFSET('PYp Ult - RawSimResults'!$A$5,($A8-1)*PYpUltYrs+CZ$2,CZ$3))) -> 0 | DA8: =IF($A8>Iterations,"",IF(DA$2=0,0,OFFSET('PYp Ult - RawSimResults'!$A$5,($A8-1)*PYpUltYrs+DA$2,DA$3))) -> 0 | DB8: =IF($A8>Iterations,"",IF(DB$2=0,0,OFFSET('PYp Ult - RawSimResults'!$A$5,($A8-1)*PYpUltYrs+DB$2,DB$3))) -> 0 | DC8: =IF($A8>Iterations,"",IF(DC$2=0,0,OFFSET('PYp Ult - RawSimResults'!$A$5,($A8-1)*PYpUltYrs+DC$2,DC$3))) -> 0 | DD8: =IF($A8>Iterations,"",IF(DD$2=0,0,OFFSET('PYp Ult - RawSimResults'!$A$5,($A8-1)*PYpUltYrs+DD$2,DD$3))) -> 0 | DE8: =IF($A8>Iterations,"",IF(DE$2=0,0,OFFSET('PYp Ult - RawSimResults'!$A$5,($A8-1)*PYpUltYrs+DE$2,DE$3))) -> 0 | DF8: =IF($A8>Iterations,"",IF(DF$2=0,0,OFFSET('PYp Ult - RawSimResults'!$A$5,($A8-1)*PYpUltYrs+DF$2,DF$3))) -> 0 | DG8: =IF($A8>Iterations,"",IF(DG$2=0,0,OFFSET('PYp Ult - RawSimResults'!$A$5,($A8-1)*PYpUltYrs+DG$2,DG$3))) -> 0 | DH8: =IF($A8>Iterations,"",IF(DH$2=0,0,OFFSET('PYp Ult - RawSimResults'!$A$5,($A8-1)*PYpUltYrs+DH$2,DH$3))) -> 0 | DI8: =IF($A8>Iterations,"",IF(DI$2=0,0,OFFSET('PYp Ult - RawSimResults'!$A$5,($A8-1)*PYpUltYrs+DI$2,DI$3))) -> 0 | DJ8: =IF($A8>Iterations,"",IF(DJ$2=0,0,OFFSET('PYp Ult - RawSimResults'!$A$5,($A8-1)*PYpUltYrs+DJ$2,DJ$3))) -> 0 | DK8: =IF($A8>Iterations,"",IF(DK$2=0,0,OFFSET('PYp Ult - RawSimResults'!$A$5,($A8-1)*PYpUltYrs+DK$2,DK$3))) -> 0 | DL8: =IF($A8>Iterations,"",IF(DL$2=0,0,OFFSET('PYp Ult - RawSimResults'!$A$5,($A8-1)*PYpUltYrs+DL$2,DL$3))) -> 0 | DM8: =IF($A8>Iterations,"",IF(DM$2=0,0,OFFSET('PYp Ult - RawSimResults'!$A$5,($A8-1)*PYpUltYrs+DM$2,DM$3))) -> 0 | DN8: =IF($A8>Iterations,"",IF(DN$2=0,0,OFFSET('PYp Ult - RawSimResults'!$A$5,($A8-1)*PYpUltYrs+DN$2,DN$3))) -> 0 | DO8: =IF($A8>Iterations,"",IF(DO$2=0,0,OFFSET('PYp Ult - RawSimResults'!$A$5,($A8-1)*PYpUltYrs+DO$2,DO$3))) -> 0 | DP8: =IF($A8>Iterations,"",IF(DP$2=0,0,OFFSET('PYp Ult - RawSimResults'!$A$5,($A8-1)*PYpUltYrs+DP$2,DP$3))) -> 0 | DQ8: =IF($A8>Iterations,"",IF(DQ$2=0,0,OFFSET('PYp Ult - RawSimResults'!$A$5,($A8-1)*PYpUltYrs+DQ$2,DQ$3))) -> 0 | DR8: =IF($A8>Iterations,"",IF(DR$2=0,0,OFFSET('PYp Ult - RawSimResults'!$A$5,($A8-1)*PYpUltYrs+DR$2,DR$3))) -> 0 | DS8: =IF($A8>Iterations,"",IF(DS$2=0,0,OFFSET('PYp Ult - RawSimResults'!$A$5,($A8-1)*PYpUltYrs+DS$2,DS$3))) -> 0 | DT8: =IF($A8>Iterations,"",IF(DT$2=0,0,OFFSET('PYp Ult - RawSimResults'!$A$5,($A8-1)*PYpUltYrs+DT$2,DT$3))) -> 0 | DU8: =IF($A8>Iterations,"",IF(DU$2=0,0,OFFSET('PYp Ult - RawSimResults'!$A$5,($A8-1)*PYpUltYrs+DU$2,DU$3))) -> 0 | DV8: =IF($A8>Iterations,"",IF(DV$2=0,0,OFFSET('PYp Ult - RawSimResults'!$A$5,($A8-1)*PYpUltYrs+DV$2,DV$3))) -> 0 | DW8: =IF($A8>Iterations,"",IF(DW$2=0,0,OFFSET('PYp Ult - RawSimResults'!$A$5,($A8-1)*PYpUltYrs+DW$2,DW$3))) -> 0 | DX8: =IF($A8>Iterations,"",IF(DX$2=0,0,OFFSET('PYp Ult - RawSimResults'!$A$5,($A8-1)*PYpUltYrs+DX$2,DX$3))) -> 0 | DY8: =IF($A8>Iterations,"",IF(DY$2=0,0,OFFSET('PYp Ult - RawSimResults'!$A$5,($A8-1)*PYpUltYrs+DY$2,DY$3))) -> 0 | DZ8: =IF($A8>Iterations,"",IF(DZ$2=0,0,OFFSET('PYp Ult - RawSimResults'!$A$5,($A8-1)*PYpUltYrs+DZ$2,DZ$3))) -> 0 | EA8: =IF($A8>Iterations,"",IF(EA$2=0,0,OFFSET('PYp Ult - RawSimResults'!$A$5,($A8-1)*PYpUltYrs+EA$2,EA$3))) -> 0 | EB8: =IF($A8>Iterations,"",IF(EB$2=0,0,OFFSET('PYp Ult - RawSimResults'!$A$5,($A8-1)*PYpUltYrs+EB$2,EB$3))) -> 0 | EC8: =IF($A8>Iterations,"",IF(EC$2=0,0,OFFSET('PYp Ult - RawSimResults'!$A$5,($A8-1)*PYpUltYrs+EC$2,EC$3))) -> 0 | ED8: =IF($A8>Iterations,"",IF(ED$2=0,0,OFFSET('PYp Ult - RawSimResults'!$A$5,($A8-1)*PYpUltYrs+ED$2,ED$3))) -> 0 | EE8: =IF($A8>Iterations,"",IF(EE$2=0,0,OFFSET('PYp Ult - RawSimResults'!$A$5,($A8-1)*PYpUltYrs+EE$2,EE$3))) -> 0 | EF8: =IF($A8>Iterations,"",IF(EF$2=0,0,OFFSET('PYp Ult - RawSimResults'!$A$5,($A8-1)*PYpUltYrs+EF$2,EF$3))) -> 0 | EG8: =IF($A8>Iterations,"",IF(EG$2=0,0,OFFSET('PYp Ult - RawSimResults'!$A$5,($A8-1)*PYpUltYrs+EG$2,EG$3))) -> 0 | EH8: =IF($A8>Iterations,"",IF(EH$2=0,0,OFFSET('PYp Ult - RawSimResults'!$A$5,($A8-1)*PYpUltYrs+EH$2,EH$3))) -> 0 | EI8: =IF($A8>Iterations,"",IF(EI$2=0,0,OFFSET('PYp Ult - RawSimResults'!$A$5,($A8-1)*PYpUltYrs+EI$2,EI$3))) -> 0 | EJ8: =IF($A8>Iterations,"",IF(EJ$2=0,0,OFFSET('PYp Ult - RawSimResults'!$A$5,($A8-1)*PYpUltYrs+EJ$2,EJ$3))) -> 0 | EK8: =IF($A8>Iterations,"",IF(EK$2=0,0,OFFSET('PYp Ult - RawSimResults'!$A$5,($A8-1)*PYpUltYrs+EK$2,EK$3))) -> 0 | EL8: =IF($A8>Iterations,"",IF(EL$2=0,0,OFFSET('PYp Ult - RawSimResults'!$A$5,($A8-1)*PYpUltYrs+EL$2,EL$3))) -> 0 | EM8: =IF($A8>Iterations,"",IF(EM$2=0,0,OFFSET('PYp Ult - RawSimResults'!$A$5,($A8-1)*PYpUltYrs+EM$2,EM$3))) -> 0 | EN8: =IF($A8>Iterations,"",IF(EN$2=0,0,OFFSET('PYp Ult - RawSimResults'!$A$5,($A8-1)*PYpUltYrs+EN$2,EN$3))) -> 0 | EO8: =IF($A8>Iterations,"",IF(EO$2=0,0,OFFSET('PYp Ult - RawSimResults'!$A$5,($A8-1)*PYpUltYrs+EO$2,EO$3))) -> 0 | EP8: =IF($A8>Iterations,"",IF(EP$2=0,0,OFFSET('PYp Ult - RawSimResults'!$A$5,($A8-1)*PYpUltYrs+EP$2,EP$3))) -> 0 | EQ8: =IF($A8>Iterations,"",IF(EQ$2=0,0,OFFSET('PYp Ult - RawSimResults'!$A$5,($A8-1)*PYpUltYrs+EQ$2,EQ$3))) -> 0 | ER8: =IF($A8>Iterations,"",IF(ER$2=0,0,OFFSET('PYp Ult - RawSimResults'!$A$5,($A8-1)*PYpUltYrs+ER$2,ER$3))) -> 0 | ES8: =IF($A8>Iterations,"",IF(ES$2=0,0,OFFSET('PYp Ult - RawSimResults'!$A$5,($A8-1)*PYpUltYrs+ES$2,ES$3))) -> 0 | ET8: =IF($A8>Iterations,"",IF(ET$2=0,0,OFFSET('PYp Ult - RawSimResults'!$A$5,($A8-1)*PYpUltYrs+ET$2,ET$3))) -> 0 | EU8: =IF($A8>Iterations,"",IF(EU$2=0,0,OFFSET('PYp Ult - RawSimResults'!$A$5,($A8-1)*PYpUltYrs+EU$2,EU$3))) -> 0 | EV8: 0 | EW8: 0 | EX8: 0 | EY8: 0 | EZ8: 0 | FA8: 0 | FB8: 0 | FC8: 0 | FD8: 0 | FE8: 0 | FF8: 0 | FG8: 0 | FH8: 0 | FI8: 0 | FJ8: 0 | FK8: 0 | FL8: 0 | FM8: 0 | FN8: 0 | FO8: 0 | FP8: 0 | FQ8: 0 | FR8: 0 | FS8: 0 | FT8: 0 | FU8: 0 | FV8: 0 | FW8: 0 | FX8: 0 | FY8: 0 | FZ8: 0 | GA8: 0 | GB8: 0 | GC8: 0 | GD8: 0 | GE8: 0 | GF8: 0 | GG8: 0 | GH8: 0 | GI8: 0 | GJ8: 0 | GK8: 0 | GL8: 0 | GM8: 0 | GN8: 0 | GO8: 0 | GP8: 0 | GQ8: 0 | GR8: 0 | GS8: 0 | GT8: 0
A9: 4 | B9: =IF($A9>Iterations,"",IF(B$2=0,0,OFFSET('PYp Ult - RawSimResults'!$A$5,($A9-1)*PYpUltYrs+B$2,B$3))) -> 0 | C9: =IF($A9>Iterations,"",IF(C$2=0,0,OFFSET('PYp Ult - RawSimResults'!$A$5,($A9-1)*PYpUltYrs+C$2,C$3))) -> 0 | D9: =IF($A9>Iterations,"",IF(D$2=0,0,OFFSET('PYp Ult - RawSimResults'!$A$5,($A9-1)*PYpUltYrs+D$2,D$3))) -> 0 | E9: =IF($A9>Iterations,"",IF(E$2=0,0,OFFSET('PYp Ult - RawSimResults'!$A$5,($A9-1)*PYpUltYrs+E$2,E$3))) -> 0 | F9: =IF($A9>Iterations,"",IF(F$2=0,0,OFFSET('PYp Ult - RawSimResults'!$A$5,($A9-1)*PYpUltYrs+F$2,F$3))) -> 0 | G9: =IF($A9>Iterations,"",IF(G$2=0,0,OFFSET('PYp Ult - RawSimResults'!$A$5,($A9-1)*PYpUltYrs+G$2,G$3))) -> 0 | H9: =IF($A9>Iterations,"",IF(H$2=0,0,OFFSET('PYp Ult - RawSimResults'!$A$5,($A9-1)*PYpUltYrs+H$2,H$3))) -> 0 | I9: =IF($A9>Iterations,"",IF(I$2=0,0,OFFSET('PYp Ult - RawSimResults'!$A$5,($A9-1)*PYpUltYrs+I$2,I$3))) -> 0 | J9: =IF($A9>Iterations,"",IF(J$2=0,0,OFFSET('PYp Ult - RawSimResults'!$A$5,($A9-1)*PYpUltYrs+J$2,J$3))) -> 0 | K9: =IF($A9>Iterations,"",IF(K$2=0,0,OFFSET('PYp Ult - RawSimResults'!$A$5,($A9-1)*PYpUltYrs+K$2,K$3))) -> 0 | L9: =IF($A9>Iterations,"",IF(L$2=0,0,OFFSET('PYp Ult - RawSimResults'!$A$5,($A9-1)*PYpUltYrs+L$2,L$3))) -> 0 | M9: =IF($A9>Iterations,"",IF(M$2=0,0,OFFSET('PYp Ult - RawSimResults'!$A$5,($A9-1)*PYpUltYrs+M$2,M$3))) -> 0 | N9: =IF($A9>Iterations,"",IF(N$2=0,0,OFFSET('PYp Ult - RawSimResults'!$A$5,($A9-1)*PYpUltYrs+N$2,N$3))) -> 0 | O9: =IF($A9>Iterations,"",IF(O$2=0,0,OFFSET('PYp Ult - RawSimResults'!$A$5,($A9-1)*PYpUltYrs+O$2,O$3))) -> 0 | P9: =IF($A9>Iterations,"",IF(P$2=0,0,OFFSET('PYp Ult - RawSimResults'!$A$5,($A9-1)*PYpUltYrs+P$2,P$3))) -> 0 | Q9: =IF($A9>Iterations,"",IF(Q$2=0,0,OFFSET('PYp Ult - RawSimResults'!$A$5,($A9-1)*PYpUltYrs+Q$2,Q$3))) -> 0 | R9: =IF($A9>Iterations,"",IF(R$2=0,0,OFFSET('PYp Ult - RawSimResults'!$A$5,($A9-1)*PYpUltYrs+R$2,R$3))) -> 0 | S9: =IF($A9>Iterations,"",IF(S$2=0,0,OFFSET('PYp Ult - RawSimResults'!$A$5,($A9-1)*PYpUltYrs+S$2,S$3))) -> 0 | T9: =IF($A9>Iterations,"",IF(T$2=0,0,OFFSET('PYp Ult - RawSimResults'!$A$5,($A9-1)*PYpUltYrs+T$2,T$3))) -> 0 | U9: =IF($A9>Iterations,"",IF(U$2=0,0,OFFSET('PYp Ult - RawSimResults'!$A$5,($A9-1)*PYpUltYrs+U$2,U$3))) -> 0 | V9: =IF($A9>Iterations,"",IF(V$2=0,0,OFFSET('PYp Ult - RawSimResults'!$A$5,($A9-1)*PYpUltYrs+V$2,V$3))) -> 0 | W9: =IF($A9>Iterations,"",IF(W$2=0,0,OFFSET('PYp Ult - RawSimResults'!$A$5,($A9-1)*PYpUltYrs+W$2,W$3))) -> 0 | X9: =IF($A9>Iterations,"",IF(X$2=0,0,OFFSET('PYp Ult - RawSimResults'!$A$5,($A9-1)*PYpUltYrs+X$2,X$3))) -> 0 | Y9: =IF($A9>Iterations,"",IF(Y$2=0,0,OFFSET('PYp Ult - RawSimResults'!$A$5,($A9-1)*PYpUltYrs+Y$2,Y$3))) -> 0 | Z9: =IF($A9>Iterations,"",IF(Z$2=0,0,OFFSET('PYp Ult - RawSimResults'!$A$5,($A9-1)*PYpUltYrs+Z$2,Z$3))) -> 0 | AA9: =IF($A9>Iterations,"",IF(AA$2=0,0,OFFSET('PYp Ult - RawSimResults'!$A$5,($A9-1)*PYpUltYrs+AA$2,AA$3))) -> 0 | AB9: =IF($A9>Iterations,"",IF(AB$2=0,0,OFFSET('PYp Ult - RawSimResults'!$A$5,($A9-1)*PYpUltYrs+AB$2,AB$3))) -> 0 | AC9: =IF($A9>Iterations,"",IF(AC$2=0,0,OFFSET('PYp Ult - RawSimResults'!$A$5,($A9-1)*PYpUltYrs+AC$2,AC$3))) -> 0 | AD9: =IF($A9>Iterations,"",IF(AD$2=0,0,OFFSET('PYp Ult - RawSimResults'!$A$5,($A9-1)*PYpUltYrs+AD$2,AD$3))) -> 0 | AE9: =IF($A9>Iterations,"",IF(AE$2=0,0,OFFSET('PYp Ult - RawSimResults'!$A$5,($A9-1)*PYpUltYrs+AE$2,AE$3))) -> 0 | AF9: =IF($A9>Iterations,"",IF(AF$2=0,0,OFFSET('PYp Ult - RawSimResults'!$A$5,($A9-1)*PYpUltYrs+AF$2,AF$3))) -> 0 | AG9: =IF($A9>Iterations,"",IF(AG$2=0,0,OFFSET('PYp Ult - RawSimResults'!$A$5,($A9-1)*PYpUltYrs+AG$2,AG$3))) -> 0 | AH9: =IF($A9>Iterations,"",IF(AH$2=0,0,OFFSET('PYp Ult - RawSimResults'!$A$5,($A9-1)*PYpUltYrs+AH$2,AH$3))) -> 0 | AI9: =IF($A9>Iterations,"",IF(AI$2=0,0,OFFSET('PYp Ult - RawSimResults'!$A$5,($A9-1)*PYpUltYrs+AI$2,AI$3))) -> 0 | AJ9: =IF($A9>Iterations,"",IF(AJ$2=0,0,OFFSET('PYp Ult - RawSimResults'!$A$5,($A9-1)*PYpUltYrs+AJ$2,AJ$3))) -> 0 | AK9: =IF($A9>Iterations,"",IF(AK$2=0,0,OFFSET('PYp Ult - RawSimResults'!$A$5,($A9-1)*PYpUltYrs+AK$2,AK$3))) -> 0 | AL9: =IF($A9>Iterations,"",IF(AL$2=0,0,OFFSET('PYp Ult - RawSimResults'!$A$5,($A9-1)*PYpUltYrs+AL$2,AL$3))) -> 0 | AM9: =IF($A9>Iterations,"",IF(AM$2=0,0,OFFSET('PYp Ult - RawSimResults'!$A$5,($A9-1)*PYpUltYrs+AM$2,AM$3))) -> 0 | AN9: =IF($A9>Iterations,"",IF(AN$2=0,0,OFFSET('PYp Ult - RawSimResults'!$A$5,($A9-1)*PYpUltYrs+AN$2,AN$3))) -> 0 | AO9: =IF($A9>Iterations,"",IF(AO$2=0,0,OFFSET('PYp Ult - RawSimResults'!$A$5,($A9-1)*PYpUltYrs+AO$2,AO$3))) -> 0 | AP9: =IF($A9>Iterations,"",IF(AP$2=0,0,OFFSET('PYp Ult - RawSimResults'!$A$5,($A9-1)*PYpUltYrs+AP$2,AP$3))) -> 0 | AQ9: =IF($A9>Iterations,"",IF(AQ$2=0,0,OFFSET('PYp Ult - RawSimResults'!$A$5,($A9-1)*PYpUltYrs+AQ$2,AQ$3))) -> 0 | AR9: =IF($A9>Iterations,"",IF(AR$2=0,0,OFFSET('PYp Ult - RawSimResults'!$A$5,($A9-1)*PYpUltYrs+AR$2,AR$3))) -> 0 | AS9: =IF($A9>Iterations,"",IF(AS$2=0,0,OFFSET('PYp Ult - RawSimResults'!$A$5,($A9-1)*PYpUltYrs+AS$2,AS$3))) -> 0 | AT9: =IF($A9>Iterations,"",IF(AT$2=0,0,OFFSET('PYp Ult - RawSimResults'!$A$5,($A9-1)*PYpUltYrs+AT$2,AT$3))) -> 0 | AU9: =IF($A9>Iterations,"",IF(AU$2=0,0,OFFSET('PYp Ult - RawSimResults'!$A$5,($A9-1)*PYpUltYrs+AU$2,AU$3))) -> 0 | AV9: =IF($A9>Iterations,"",IF(AV$2=0,0,OFFSET('PYp Ult - RawSimResults'!$A$5,($A9-1)*PYpUltYrs+AV$2,AV$3))) -> 0 | AW9: =IF($A9>Iterations,"",IF(AW$2=0,0,OFFSET('PYp Ult - RawSimResults'!$A$5,($A9-1)*PYpUltYrs+AW$2,AW$3))) -> 0 | AX9: =IF($A9>Iterations,"",IF(AX$2=0,0,OFFSET('PYp Ult - RawSimResults'!$A$5,($A9-1)*PYpUltYrs+AX$2,AX$3))) -> 0 | AY9: =IF($A9>Iterations,"",IF(AY$2=0,0,OFFSET('PYp Ult - RawSimResults'!$A$5,($A9-1)*PYpUltYrs+AY$2,AY$3))) -> 0 | AZ9: =IF($A9>Iterations,"",IF(AZ$2=0,0,OFFSET('PYp Ult - RawSimResults'!$A$5,($A9-1)*PYpUltYrs+AZ$2,AZ$3))) -> 0 | BA9: =IF($A9>Iterations,"",IF(BA$2=0,0,OFFSET('PYp Ult - RawSimResults'!$A$5,($A9-1)*PYpUltYrs+BA$2,BA$3))) -> 0 | BB9: =IF($A9>Iterations,"",IF(BB$2=0,0,OFFSET('PYp Ult - RawSimResults'!$A$5,($A9-1)*PYpUltYrs+BB$2,BB$3))) -> 0 | BC9: =IF($A9>Iterations,"",IF(BC$2=0,0,OFFSET('PYp Ult - RawSimResults'!$A$5,($A9-1)*PYpUltYrs+BC$2,BC$3))) -> 0 | BD9: =IF($A9>Iterations,"",IF(BD$2=0,0,OFFSET('PYp Ult - RawSimResults'!$A$5,($A9-1)*PYpUltYrs+BD$2,BD$3))) -> 0 | BE9: =IF($A9>Iterations,"",IF(BE$2=0,0,OFFSET('PYp Ult - RawSimResults'!$A$5,($A9-1)*PYpUltYrs+BE$2,BE$3))) -> 0 | BF9: =IF($A9>Iterations,"",IF(BF$2=0,0,OFFSET('PYp Ult - RawSimResults'!$A$5,($A9-1)*PYpUltYrs+BF$2,BF$3))) -> 0 | BG9: =IF($A9>Iterations,"",IF(BG$2=0,0,OFFSET('PYp Ult - RawSimResults'!$A$5,($A9-1)*PYpUltYrs+BG$2,BG$3))) -> 0 | BH9: =IF($A9>Iterations,"",IF(BH$2=0,0,OFFSET('PYp Ult - RawSimResults'!$A$5,($A9-1)*PYpUltYrs+BH$2,BH$3))) -> 0 | BI9: =IF($A9>Iterations,"",IF(BI$2=0,0,OFFSET('PYp Ult - RawSimResults'!$A$5,($A9-1)*PYpUltYrs+BI$2,BI$3))) -> 0 | BJ9: =IF($A9>Iterations,"",IF(BJ$2=0,0,OFFSET('PYp Ult - RawSimResults'!$A$5,($A9-1)*PYpUltYrs+BJ$2,BJ$3))) -> 0 | BK9: =IF($A9>Iterations,"",IF(BK$2=0,0,OFFSET('PYp Ult - RawSimResults'!$A$5,($A9-1)*PYpUltYrs+BK$2,BK$3))) -> 0 | BL9: =IF($A9>Iterations,"",IF(BL$2=0,0,OFFSET('PYp Ult - RawSimResults'!$A$5,($A9-1)*PYpUltYrs+BL$2,BL$3))) -> 0 | BM9: =IF($A9>Iterations,"",IF(BM$2=0,0,OFFSET('PYp Ult - RawSimResults'!$A$5,($A9-1)*PYpUltYrs+BM$2,BM$3))) -> 0 | BN9: =IF($A9>Iterations,"",IF(BN$2=0,0,OFFSET('PYp Ult - RawSimResults'!$A$5,($A9-1)*PYpUltYrs+BN$2,BN$3))) -> 0 | BO9: =IF($A9>Iterations,"",IF(BO$2=0,0,OFFSET('PYp Ult - RawSimResults'!$A$5,($A9-1)*PYpUltYrs+BO$2,BO$3))) -> 0 | BP9: =IF($A9>Iterations,"",IF(BP$2=0,0,OFFSET('PYp Ult - RawSimResults'!$A$5,($A9-1)*PYpUltYrs+BP$2,BP$3))) -> 0 | BQ9: =IF($A9>Iterations,"",IF(BQ$2=0,0,OFFSET('PYp Ult - RawSimResults'!$A$5,($A9-1)*PYpUltYrs+BQ$2,BQ$3))) -> 0 | BR9: =IF($A9>Iterations,"",IF(BR$2=0,0,OFFSET('PYp Ult - RawSimResults'!$A$5,($A9-1)*PYpUltYrs+BR$2,BR$3))) -> 0 | BS9: =IF($A9>Iterations,"",IF(BS$2=0,0,OFFSET('PYp Ult - RawSimResults'!$A$5,($A9-1)*PYpUltYrs+BS$2,BS$3))) -> 0 | BT9: =IF($A9>Iterations,"",IF(BT$2=0,0,OFFSET('PYp Ult - RawSimResults'!$A$5,($A9-1)*PYpUltYrs+BT$2,BT$3))) -> 0 | BU9: =IF($A9>Iterations,"",IF(BU$2=0,0,OFFSET('PYp Ult - RawSimResults'!$A$5,($A9-1)*PYpUltYrs+BU$2,BU$3))) -> 0 | BV9: =IF($A9>Iterations,"",IF(BV$2=0,0,OFFSET('PYp Ult - RawSimResults'!$A$5,($A9-1)*PYpUltYrs+BV$2,BV$3))) -> 0 | BW9: =IF($A9>Iterations,"",IF(BW$2=0,0,OFFSET('PYp Ult - RawSimResults'!$A$5,($A9-1)*PYpUltYrs+BW$2,BW$3))) -> 0 | BX9: =IF($A9>Iterations,"",IF(BX$2=0,0,OFFSET('PYp Ult - RawSimResults'!$A$5,($A9-1)*PYpUltYrs+BX$2,BX$3))) -> 0 | BY9: =IF($A9>Iterations,"",IF(BY$2=0,0,OFFSET('PYp Ult - RawSimResults'!$A$5,($A9-1)*PYpUltYrs+BY$2,BY$3))) -> 0 | BZ9: =IF($A9>Iterations,"",IF(BZ$2=0,0,OFFSET('PYp Ult - RawSimResults'!$A$5,($A9-1)*PYpUltYrs+BZ$2,BZ$3))) -> 0 | CA9: =IF($A9>Iterations,"",IF(CA$2=0,0,OFFSET('PYp Ult - RawSimResults'!$A$5,($A9-1)*PYpUltYrs+CA$2,CA$3))) -> 0 | CB9: =IF($A9>Iterations,"",IF(CB$2=0,0,OFFSET('PYp Ult - RawSimResults'!$A$5,($A9-1)*PYpUltYrs+CB$2,CB$3))) -> 0 | CC9: =IF($A9>Iterations,"",IF(CC$2=0,0,OFFSET('PYp Ult - RawSimResults'!$A$5,($A9-1)*PYpUltYrs+CC$2,CC$3))) -> 0 | CD9: =IF($A9>Iterations,"",IF(CD$2=0,0,OFFSET('PYp Ult - RawSimResults'!$A$5,($A9-1)*PYpUltYrs+CD$2,CD$3))) -> 0 | CE9: =IF($A9>Iterations,"",IF(CE$2=0,0,OFFSET('PYp Ult - RawSimResults'!$A$5,($A9-1)*PYpUltYrs+CE$2,CE$3))) -> 0 | CF9: =IF($A9>Iterations,"",IF(CF$2=0,0,OFFSET('PYp Ult - RawSimResults'!$A$5,($A9-1)*PYpUltYrs+CF$2,CF$3))) -> 0 | CG9: =IF($A9>Iterations,"",IF(CG$2=0,0,OFFSET('PYp Ult - RawSimResults'!$A$5,($A9-1)*PYpUltYrs+CG$2,CG$3))) -> 0 | CH9: =IF($A9>Iterations,"",IF(CH$2=0,0,OFFSET('PYp Ult - RawSimResults'!$A$5,($A9-1)*PYpUltYrs+CH$2,CH$3))) -> 0 | CI9: =IF($A9>Iterations,"",IF(CI$2=0,0,OFFSET('PYp Ult - RawSimResults'!$A$5,($A9-1)*PYpUltYrs+CI$2,CI$3))) -> 0 | CJ9: =IF($A9>Iterations,"",IF(CJ$2=0,0,OFFSET('PYp Ult - RawSimResults'!$A$5,($A9-1)*PYpUltYrs+CJ$2,CJ$3))) -> 0 | CK9: =IF($A9>Iterations,"",IF(CK$2=0,0,OFFSET('PYp Ult - RawSimResults'!$A$5,($A9-1)*PYpUltYrs+CK$2,CK$3))) -> 0 | CL9: =IF($A9>Iterations,"",IF(CL$2=0,0,OFFSET('PYp Ult - RawSimResults'!$A$5,($A9-1)*PYpUltYrs+CL$2,CL$3))) -> 0 | CM9: =IF($A9>Iterations,"",IF(CM$2=0,0,OFFSET('PYp Ult - RawSimResults'!$A$5,($A9-1)*PYpUltYrs+CM$2,CM$3))) -> 0 | CN9: =IF($A9>Iterations,"",IF(CN$2=0,0,OFFSET('PYp Ult - RawSimResults'!$A$5,($A9-1)*PYpUltYrs+CN$2,CN$3))) -> 0 | CO9: =IF($A9>Iterations,"",IF(CO$2=0,0,OFFSET('PYp Ult - RawSimResults'!$A$5,($A9-1)*PYpUltYrs+CO$2,CO$3))) -> 0 | CP9: =IF($A9>Iterations,"",IF(CP$2=0,0,OFFSET('PYp Ult - RawSimResults'!$A$5,($A9-1)*PYpUltYrs+CP$2,CP$3))) -> 0 | CQ9: =IF($A9>Iterations,"",IF(CQ$2=0,0,OFFSET('PYp Ult - RawSimResults'!$A$5,($A9-1)*PYpUltYrs+CQ$2,CQ$3))) -> 0 | CR9: =IF($A9>Iterations,"",IF(CR$2=0,0,OFFSET('PYp Ult - RawSimResults'!$A$5,($A9-1)*PYpUltYrs+CR$2,CR$3))) -> 0 | CS9: =IF($A9>Iterations,"",IF(CS$2=0,0,OFFSET('PYp Ult - RawSimResults'!$A$5,($A9-1)*PYpUltYrs+CS$2,CS$3))) -> 0 | CT9: =IF($A9>Iterations,"",IF(CT$2=0,0,OFFSET('PYp Ult - RawSimResults'!$A$5,($A9-1)*PYpUltYrs+CT$2,CT$3))) -> 0 | CU9: =IF($A9>Iterations,"",IF(CU$2=0,0,OFFSET('PYp Ult - RawSimResults'!$A$5,($A9-1)*PYpUltYrs+CU$2,CU$3))) -> 0 | CV9: =IF($A9>Iterations,"",IF(CV$2=0,0,OFFSET('PYp Ult - RawSimResults'!$A$5,($A9-1)*PYpUltYrs+CV$2,CV$3))) -> 0 | CW9: =IF($A9>Iterations,"",IF(CW$2=0,0,OFFSET('PYp Ult - RawSimResults'!$A$5,($A9-1)*PYpUltYrs+CW$2,CW$3))) -> 0 | CX9: =IF($A9>Iterations,"",IF(CX$2=0,0,OFFSET('PYp Ult - RawSimResults'!$A$5,($A9-1)*PYpUltYrs+CX$2,CX$3))) -> 0 | CY9: =IF($A9>Iterations,"",IF(CY$2=0,0,OFFSET('PYp Ult - RawSimResults'!$A$5,($A9-1)*PYpUltYrs+CY$2,CY$3))) -> 0 | CZ9: =IF($A9>Iterations,"",IF(CZ$2=0,0,OFFSET('PYp Ult - RawSimResults'!$A$5,($A9-1)*PYpUltYrs+CZ$2,CZ$3))) -> 0 | DA9: =IF($A9>Iterations,"",IF(DA$2=0,0,OFFSET('PYp Ult - RawSimResults'!$A$5,($A9-1)*PYpUltYrs+DA$2,DA$3))) -> 0 | DB9: =IF($A9>Iterations,"",IF(DB$2=0,0,OFFSET('PYp Ult - RawSimResults'!$A$5,($A9-1)*PYpUltYrs+DB$2,DB$3))) -> 0 | DC9: =IF($A9>Iterations,"",IF(DC$2=0,0,OFFSET('PYp Ult - RawSimResults'!$A$5,($A9-1)*PYpUltYrs+DC$2,DC$3))) -> 0 | DD9: =IF($A9>Iterations,"",IF(DD$2=0,0,OFFSET('PYp Ult - RawSimResults'!$A$5,($A9-1)*PYpUltYrs+DD$2,DD$3))) -> 0 | DE9: =IF($A9>Iterations,"",IF(DE$2=0,0,OFFSET('PYp Ult - RawSimResults'!$A$5,($A9-1)*PYpUltYrs+DE$2,DE$3))) -> 0 | DF9: =IF($A9>Iterations,"",IF(DF$2=0,0,OFFSET('PYp Ult - RawSimResults'!$A$5,($A9-1)*PYpUltYrs+DF$2,DF$3))) -> 0 | DG9: =IF($A9>Iterations,"",IF(DG$2=0,0,OFFSET('PYp Ult - RawSimResults'!$A$5,($A9-1)*PYpUltYrs+DG$2,DG$3))) -> 0 | DH9: =IF($A9>Iterations,"",IF(DH$2=0,0,OFFSET('PYp Ult - RawSimResults'!$A$5,($A9-1)*PYpUltYrs+DH$2,DH$3))) -> 0 | DI9: =IF($A9>Iterations,"",IF(DI$2=0,0,OFFSET('PYp Ult - RawSimResults'!$A$5,($A9-1)*PYpUltYrs+DI$2,DI$3))) -> 0 | DJ9: =IF($A9>Iterations,"",IF(DJ$2=0,0,OFFSET('PYp Ult - RawSimResults'!$A$5,($A9-1)*PYpUltYrs+DJ$2,DJ$3))) -> 0 | DK9: =IF($A9>Iterations,"",IF(DK$2=0,0,OFFSET('PYp Ult - RawSimResults'!$A$5,($A9-1)*PYpUltYrs+DK$2,DK$3))) -> 0 | DL9: =IF($A9>Iterations,"",IF(DL$2=0,0,OFFSET('PYp Ult - RawSimResults'!$A$5,($A9-1)*PYpUltYrs+DL$2,DL$3))) -> 0 | DM9: =IF($A9>Iterations,"",IF(DM$2=0,0,OFFSET('PYp Ult - RawSimResults'!$A$5,($A9-1)*PYpUltYrs+DM$2,DM$3))) -> 0 | DN9: =IF($A9>Iterations,"",IF(DN$2=0,0,OFFSET('PYp Ult - RawSimResults'!$A$5,($A9-1)*PYpUltYrs+DN$2,DN$3))) -> 0 | DO9: =IF($A9>Iterations,"",IF(DO$2=0,0,OFFSET('PYp Ult - RawSimResults'!$A$5,($A9-1)*PYpUltYrs+DO$2,DO$3))) -> 0 | DP9: =IF($A9>Iterations,"",IF(DP$2=0,0,OFFSET('PYp Ult - RawSimResults'!$A$5,($A9-1)*PYpUltYrs+DP$2,DP$3))) -> 0 | DQ9: =IF($A9>Iterations,"",IF(DQ$2=0,0,OFFSET('PYp Ult - RawSimResults'!$A$5,($A9-1)*PYpUltYrs+DQ$2,DQ$3))) -> 0 | DR9: =IF($A9>Iterations,"",IF(DR$2=0,0,OFFSET('PYp Ult - RawSimResults'!$A$5,($A9-1)*PYpUltYrs+DR$2,DR$3))) -> 0 | DS9: =IF($A9>Iterations,"",IF(DS$2=0,0,OFFSET('PYp Ult - RawSimResults'!$A$5,($A9-1)*PYpUltYrs+DS$2,DS$3))) -> 0 | DT9: =IF($A9>Iterations,"",IF(DT$2=0,0,OFFSET('PYp Ult - RawSimResults'!$A$5,($A9-1)*PYpUltYrs+DT$2,DT$3))) -> 0 | DU9: =IF($A9>Iterations,"",IF(DU$2=0,0,OFFSET('PYp Ult - RawSimResults'!$A$5,($A9-1)*PYpUltYrs+DU$2,DU$3))) -> 0 | DV9: =IF($A9>Iterations,"",IF(DV$2=0,0,OFFSET('PYp Ult - RawSimResults'!$A$5,($A9-1)*PYpUltYrs+DV$2,DV$3))) -> 0 | DW9: =IF($A9>Iterations,"",IF(DW$2=0,0,OFFSET('PYp Ult - RawSimResults'!$A$5,($A9-1)*PYpUltYrs+DW$2,DW$3))) -> 0 | DX9: =IF($A9>Iterations,"",IF(DX$2=0,0,OFFSET('PYp Ult - RawSimResults'!$A$5,($A9-1)*PYpUltYrs+DX$2,DX$3))) -> 0 | DY9: =IF($A9>Iterations,"",IF(DY$2=0,0,OFFSET('PYp Ult - RawSimResults'!$A$5,($A9-1)*PYpUltYrs+DY$2,DY$3))) -> 0 | DZ9: =IF($A9>Iterations,"",IF(DZ$2=0,0,OFFSET('PYp Ult - RawSimResults'!$A$5,($A9-1)*PYpUltYrs+DZ$2,DZ$3))) -> 0 | EA9: =IF($A9>Iterations,"",IF(EA$2=0,0,OFFSET('PYp Ult - RawSimResults'!$A$5,($A9-1)*PYpUltYrs+EA$2,EA$3))) -> 0 | EB9: =IF($A9>Iterations,"",IF(EB$2=0,0,OFFSET('PYp Ult - RawSimResults'!$A$5,($A9-1)*PYpUltYrs+EB$2,EB$3))) -> 0 | EC9: =IF($A9>Iterations,"",IF(EC$2=0,0,OFFSET('PYp Ult - RawSimResults'!$A$5,($A9-1)*PYpUltYrs+EC$2,EC$3))) -> 0 | ED9: =IF($A9>Iterations,"",IF(ED$2=0,0,OFFSET('PYp Ult - RawSimResults'!$A$5,($A9-1)*PYpUltYrs+ED$2,ED$3))) -> 0 | EE9: =IF($A9>Iterations,"",IF(EE$2=0,0,OFFSET('PYp Ult - RawSimResults'!$A$5,($A9-1)*PYpUltYrs+EE$2,EE$3))) -> 0 | EF9: =IF($A9>Iterations,"",IF(EF$2=0,0,OFFSET('PYp Ult - RawSimResults'!$A$5,($A9-1)*PYpUltYrs+EF$2,EF$3))) -> 0 | EG9: =IF($A9>Iterations,"",IF(EG$2=0,0,OFFSET('PYp Ult - RawSimResults'!$A$5,($A9-1)*PYpUltYrs+EG$2,EG$3))) -> 0 | EH9: =IF($A9>Iterations,"",IF(EH$2=0,0,OFFSET('PYp Ult - RawSimResults'!$A$5,($A9-1)*PYpUltYrs+EH$2,EH$3))) -> 0 | EI9: =IF($A9>Iterations,"",IF(EI$2=0,0,OFFSET('PYp Ult - RawSimResults'!$A$5,($A9-1)*PYpUltYrs+EI$2,EI$3))) -> 0 | EJ9: =IF($A9>Iterations,"",IF(EJ$2=0,0,OFFSET('PYp Ult - RawSimResults'!$A$5,($A9-1)*PYpUltYrs+EJ$2,EJ$3))) -> 0 | EK9: =IF($A9>Iterations,"",IF(EK$2=0,0,OFFSET('PYp Ult - RawSimResults'!$A$5,($A9-1)*PYpUltYrs+EK$2,EK$3))) -> 0 | EL9: =IF($A9>Iterations,"",IF(EL$2=0,0,OFFSET('PYp Ult - RawSimResults'!$A$5,($A9-1)*PYpUltYrs+EL$2,EL$3))) -> 0 | EM9: =IF($A9>Iterations,"",IF(EM$2=0,0,OFFSET('PYp Ult - RawSimResults'!$A$5,($A9-1)*PYpUltYrs+EM$2,EM$3))) -> 0 | EN9: =IF($A9>Iterations,"",IF(EN$2=0,0,OFFSET('PYp Ult - RawSimResults'!$A$5,($A9-1)*PYpUltYrs+EN$2,EN$3))) -> 0 | EO9: =IF($A9>Iterations,"",IF(EO$2=0,0,OFFSET('PYp Ult - RawSimResults'!$A$5,($A9-1)*PYpUltYrs+EO$2,EO$3))) -> 0 | EP9: =IF($A9>Iterations,"",IF(EP$2=0,0,OFFSET('PYp Ult - RawSimResults'!$A$5,($A9-1)*PYpUltYrs+EP$2,EP$3))) -> 0 | EQ9: =IF($A9>Iterations,"",IF(EQ$2=0,0,OFFSET('PYp Ult - RawSimResults'!$A$5,($A9-1)*PYpUltYrs+EQ$2,EQ$3))) -> 0 | ER9: =IF($A9>Iterations,"",IF(ER$2=0,0,OFFSET('PYp Ult - RawSimResults'!$A$5,($A9-1)*PYpUltYrs+ER$2,ER$3))) -> 0 | ES9: =IF($A9>Iterations,"",IF(ES$2=0,0,OFFSET('PYp Ult - RawSimResults'!$A$5,($A9-1)*PYpUltYrs+ES$2,ES$3))) -> 0 | ET9: =IF($A9>Iterations,"",IF(ET$2=0,0,OFFSET('PYp Ult - RawSimResults'!$A$5,($A9-1)*PYpUltYrs+ET$2,ET$3))) -> 0 | EU9: =IF($A9>Iterations,"",IF(EU$2=0,0,OFFSET('PYp Ult - RawSimResults'!$A$5,($A9-1)*PYpUltYrs+EU$2,EU$3))) -> 0 | EV9: 0 | EW9: 0 | EX9: 0 | EY9: 0 | EZ9: 0 | FA9: 0 | FB9: 0 | FC9: 0 | FD9: 0 | FE9: 0 | FF9: 0 | FG9: 0 | FH9: 0 | FI9: 0 | FJ9: 0 | FK9: 0 | FL9: 0 | FM9: 0 | FN9: 0 | FO9: 0 | FP9: 0 | FQ9: 0 | FR9: 0 | FS9: 0 | FT9: 0 | FU9: 0 | FV9: 0 | FW9: 0 | FX9: 0 | FY9: 0 | FZ9: 0 | GA9: 0 | GB9: 0 | GC9: 0 | GD9: 0 | GE9: 0 | GF9: 0 | GG9: 0 | GH9: 0 | GI9: 0 | GJ9: 0 | GK9: 0 | GL9: 0 | GM9: 0 | GN9: 0 | GO9: 0 | GP9: 0 | GQ9: 0 | GR9: 0 | GS9: 0 | GT9: 0
A10: 5 | B10: =IF($A10>Iterations,"",IF(B$2=0,0,OFFSET('PYp Ult - RawSimResults'!$A$5,($A10-1)*PYpUltYrs+B$2,B$3))) -> 0 | C10: =IF($A10>Iterations,"",IF(C$2=0,0,OFFSET('PYp Ult - RawSimResults'!$A$5,($A10-1)*PYpUltYrs+C$2,C$3))) -> 0 | D10: =IF($A10>Iterations,"",IF(D$2=0,0,OFFSET('PYp Ult - RawSimResults'!$A$5,($A10-1)*PYpUltYrs+D$2,D$3))) -> 0 | E10: =IF($A10>Iterations,"",IF(E$2=0,0,OFFSET('PYp Ult - RawSimResults'!$A$5,($A10-1)*PYpUltYrs+E$2,E$3))) -> 0 | F10: =IF($A10>Iterations,"",IF(F$2=0,0,OFFSET('PYp Ult - RawSimResults'!$A$5,($A10-1)*PYpUltYrs+F$2,F$3))) -> 0 | G10: =IF($A10>Iterations,"",IF(G$2=0,0,OFFSET('PYp Ult - RawSimResults'!$A$5,($A10-1)*PYpUltYrs+G$2,G$3))) -> 0 | H10: =IF($A10>Iterations,"",IF(H$2=0,0,OFFSET('PYp Ult - RawSimResults'!$A$5,($A10-1)*PYpUltYrs+H$2,H$3))) -> 0 | I10: =IF($A10>Iterations,"",IF(I$2=0,0,OFFSET('PYp Ult - RawSimResults'!$A$5,($A10-1)*PYpUltYrs+I$2,I$3))) -> 0 | J10: =IF($A10>Iterations,"",IF(J$2=0,0,OFFSET('PYp Ult - RawSimResults'!$A$5,($A10-1)*PYpUltYrs+J$2,J$3))) -> 0 | K10: =IF($A10>Iterations,"",IF(K$2=0,0,OFFSET('PYp Ult - RawSimResults'!$A$5,($A10-1)*PYpUltYrs+K$2,K$3))) -> 0 | L10: =IF($A10>Iterations,"",IF(L$2=0,0,OFFSET('PYp Ult - RawSimResults'!$A$5,($A10-1)*PYpUltYrs+L$2,L$3))) -> 0 | M10: =IF($A10>Iterations,"",IF(M$2=0,0,OFFSET('PYp Ult - RawSimResults'!$A$5,($A10-1)*PYpUltYrs+M$2,M$3))) -> 0 | N10: =IF($A10>Iterations,"",IF(N$2=0,0,OFFSET('PYp Ult - RawSimResults'!$A$5,($A10-1)*PYpUltYrs+N$2,N$3))) -> 0 | O10: =IF($A10>Iterations,"",IF(O$2=0,0,OFFSET('PYp Ult - RawSimResults'!$A$5,($A10-1)*PYpUltYrs+O$2,O$3))) -> 0 | P10: =IF($A10>Iterations,"",IF(P$2=0,0,OFFSET('PYp Ult - RawSimResults'!$A$5,($A10-1)*PYpUltYrs+P$2,P$3))) -> 0 | Q10: =IF($A10>Iterations,"",IF(Q$2=0,0,OFFSET('PYp Ult - RawSimResults'!$A$5,($A10-1)*PYpUltYrs+Q$2,Q$3))) -> 0 | R10: =IF($A10>Iterations,"",IF(R$2=0,0,OFFSET('PYp Ult - RawSimResults'!$A$5,($A10-1)*PYpUltYrs+R$2,R$3))) -> 0 | S10: =IF($A10>Iterations,"",IF(S$2=0,0,OFFSET('PYp Ult - RawSimResults'!$A$5,($A10-1)*PYpUltYrs+S$2,S$3))) -> 0 | T10: =IF($A10>Iterations,"",IF(T$2=0,0,OFFSET('PYp Ult - RawSimResults'!$A$5,($A10-1)*PYpUltYrs+T$2,T$3))) -> 0 | U10: =IF($A10>Iterations,"",IF(U$2=0,0,OFFSET('PYp Ult - RawSimResults'!$A$5,($A10-1)*PYpUltYrs+U$2,U$3))) -> 0 | V10: =IF($A10>Iterations,"",IF(V$2=0,0,OFFSET('PYp Ult - RawSimResults'!$A$5,($A10-1)*PYpUltYrs+V$2,V$3))) -> 0 | W10: =IF($A10>Iterations,"",IF(W$2=0,0,OFFSET('PYp Ult - RawSimResults'!$A$5,($A10-1)*PYpUltYrs+W$2,W$3))) -> 0 | X10: =IF($A10>Iterations,"",IF(X$2=0,0,OFFSET('PYp Ult - RawSimResults'!$A$5,($A10-1)*PYpUltYrs+X$2,X$3))) -> 0 | Y10: =IF($A10>Iterations,"",IF(Y$2=0,0,OFFSET('PYp Ult - RawSimResults'!$A$5,($A10-1)*PYpUltYrs+Y$2,Y$3))) -> 0 | Z10: =IF($A10>Iterations,"",IF(Z$2=0,0,OFFSET('PYp Ult - RawSimResults'!$A$5,($A10-1)*PYpUltYrs+Z$2,Z$3))) -> 0 | AA10: =IF($A10>Iterations,"",IF(AA$2=0,0,OFFSET('PYp Ult - RawSimResults'!$A$5,($A10-1)*PYpUltYrs+AA$2,AA$3))) -> 0 | AB10: =IF($A10>Iterations,"",IF(AB$2=0,0,OFFSET('PYp Ult - RawSimResults'!$A$5,($A10-1)*PYpUltYrs+AB$2,AB$3))) -> 0 | AC10: =IF($A10>Iterations,"",IF(AC$2=0,0,OFFSET('PYp Ult - RawSimResults'!$A$5,($A10-1)*PYpUltYrs+AC$2,AC$3))) -> 0 | AD10: =IF($A10>Iterations,"",IF(AD$2=0,0,OFFSET('PYp Ult - RawSimResults'!$A$5,($A10-1)*PYpUltYrs+AD$2,AD$3))) -> 0 | AE10: =IF($A10>Iterations,"",IF(AE$2=0,0,OFFSET('PYp Ult - RawSimResults'!$A$5,($A10-1)*PYpUltYrs+AE$2,AE$3))) -> 0 | AF10: =IF($A10>Iterations,"",IF(AF$2=0,0,OFFSET('PYp Ult - RawSimResults'!$A$5,($A10-1)*PYpUltYrs+AF$2,AF$3))) -> 0 | AG10: =IF($A10>Iterations,"",IF(AG$2=0,0,OFFSET('PYp Ult - RawSimResults'!$A$5,($A10-1)*PYpUltYrs+AG$2,AG$3))) -> 0 | AH10: =IF($A10>Iterations,"",IF(AH$2=0,0,OFFSET('PYp Ult - RawSimResults'!$A$5,($A10-1)*PYpUltYrs+AH$2,AH$3))) -> 0 | AI10: =IF($A10>Iterations,"",IF(AI$2=0,0,OFFSET('PYp Ult - RawSimResults'!$A$5,($A10-1)*PYpUltYrs+AI$2,AI$3))) -> 0 | AJ10: =IF($A10>Iterations,"",IF(AJ$2=0,0,OFFSET('PYp Ult - RawSimResults'!$A$5,($A10-1)*PYpUltYrs+AJ$2,AJ$3))) -> 0 | AK10: =IF($A10>Iterations,"",IF(AK$2=0,0,OFFSET('PYp Ult - RawSimResults'!$A$5,($A10-1)*PYpUltYrs+AK$2,AK$3))) -> 0 | AL10: =IF($A10>Iterations,"",IF(AL$2=0,0,OFFSET('PYp Ult - RawSimResults'!$A$5,($A10-1)*PYpUltYrs+AL$2,AL$3))) -> 0 | AM10: =IF($A10>Iterations,"",IF(AM$2=0,0,OFFSET('PYp Ult - RawSimResults'!$A$5,($A10-1)*PYpUltYrs+AM$2,AM$3))) -> 0 | AN10: =IF($A10>Iterations,"",IF(AN$2=0,0,OFFSET('PYp Ult - RawSimResults'!$A$5,($A10-1)*PYpUltYrs+AN$2,AN$3))) -> 0 | AO10: =IF($A10>Iterations,"",IF(AO$2=0,0,OFFSET('PYp Ult - RawSimResults'!$A$5,($A10-1)*PYpUltYrs+AO$2,AO$3))) -> 0 | AP10: =IF($A10>Iterations,"",IF(AP$2=0,0,OFFSET('PYp Ult - RawSimResults'!$A$5,($A10-1)*PYpUltYrs+AP$2,AP$3))) -> 0 | AQ10: =IF($A10>Iterations,"",IF(AQ$2=0,0,OFFSET('PYp Ult - RawSimResults'!$A$5,($A10-1)*PYpUltYrs+AQ$2,AQ$3))) -> 0 | AR10: =IF($A10>Iterations,"",IF(AR$2=0,0,OFFSET('PYp Ult - RawSimResults'!$A$5,($A10-1)*PYpUltYrs+AR$2,AR$3))) -> 0 | AS10: =IF($A10>Iterations,"",IF(AS$2=0,0,OFFSET('PYp Ult - RawSimResults'!$A$5,($A10-1)*PYpUltYrs+AS$2,AS$3))) -> 0 | AT10: =IF($A10>Iterations,"",IF(AT$2=0,0,OFFSET('PYp Ult - RawSimResults'!$A$5,($A10-1)*PYpUltYrs+AT$2,AT$3))) -> 0 | AU10: =IF($A10>Iterations,"",IF(AU$2=0,0,OFFSET('PYp Ult - RawSimResults'!$A$5,($A10-1)*PYpUltYrs+AU$2,AU$3))) -> 0 | AV10: =IF($A10>Iterations,"",IF(AV$2=0,0,OFFSET('PYp Ult - RawSimResults'!$A$5,($A10-1)*PYpUltYrs+AV$2,AV$3))) -> 0 | AW10: =IF($A10>Iterations,"",IF(AW$2=0,0,OFFSET('PYp Ult - RawSimResults'!$A$5,($A10-1)*PYpUltYrs+AW$2,AW$3))) -> 0 | AX10: =IF($A10>Iterations,"",IF(AX$2=0,0,OFFSET('PYp Ult - RawSimResults'!$A$5,($A10-1)*PYpUltYrs+AX$2,AX$3))) -> 0 | AY10: =IF($A10>Iterations,"",IF(AY$2=0,0,OFFSET('PYp Ult - RawSimResults'!$A$5,($A10-1)*PYpUltYrs+AY$2,AY$3))) -> 0 | AZ10: =IF($A10>Iterations,"",IF(AZ$2=0,0,OFFSET('PYp Ult - RawSimResults'!$A$5,($A10-1)*PYpUltYrs+AZ$2,AZ$3))) -> 0 | BA10: =IF($A10>Iterations,"",IF(BA$2=0,0,OFFSET('PYp Ult - RawSimResults'!$A$5,($A10-1)*PYpUltYrs+BA$2,BA$3))) -> 0 | BB10: =IF($A10>Iterations,"",IF(BB$2=0,0,OFFSET('PYp Ult - RawSimResults'!$A$5,($A10-1)*PYpUltYrs+BB$2,BB$3))) -> 0 | BC10: =IF($A10>Iterations,"",IF(BC$2=0,0,OFFSET('PYp Ult - RawSimResults'!$A$5,($A10-1)*PYpUltYrs+BC$2,BC$3))) -> 0 | BD10: =IF($A10>Iterations,"",IF(BD$2=0,0,OFFSET('PYp Ult - RawSimResults'!$A$5,($A10-1)*PYpUltYrs+BD$2,BD$3))) -> 0 | BE10: =IF($A10>Iterations,"",IF(BE$2=0,0,OFFSET('PYp Ult - RawSimResults'!$A$5,($A10-1)*PYpUltYrs+BE$2,BE$3))) -> 0 | BF10: =IF($A10>Iterations,"",IF(BF$2=0,0,OFFSET('PYp Ult - RawSimResults'!$A$5,($A10-1)*PYpUltYrs+BF$2,BF$3))) -> 0 | BG10: =IF($A10>Iterations,"",IF(BG$2=0,0,OFFSET('PYp Ult - RawSimResults'!$A$5,($A10-1)*PYpUltYrs+BG$2,BG$3))) -> 0 | BH10: =IF($A10>Iterations,"",IF(BH$2=0,0,OFFSET('PYp Ult - RawSimResults'!$A$5,($A10-1)*PYpUltYrs+BH$2,BH$3))) -> 0 | BI10: =IF($A10>Iterations,"",IF(BI$2=0,0,OFFSET('PYp Ult - RawSimResults'!$A$5,($A10-1)*PYpUltYrs+BI$2,BI$3))) -> 0 | BJ10: =IF($A10>Iterations,"",IF(BJ$2=0,0,OFFSET('PYp Ult - RawSimResults'!$A$5,($A10-1)*PYpUltYrs+BJ$2,BJ$3))) -> 0 | BK10: =IF($A10>Iterations,"",IF(BK$2=0,0,OFFSET('PYp Ult - RawSimResults'!$A$5,($A10-1)*PYpUltYrs+BK$2,BK$3))) -> 0 | BL10: =IF($A10>Iterations,"",IF(BL$2=0,0,OFFSET('PYp Ult - RawSimResults'!$A$5,($A10-1)*PYpUltYrs+BL$2,BL$3))) -> 0 | BM10: =IF($A10>Iterations,"",IF(BM$2=0,0,OFFSET('PYp Ult - RawSimResults'!$A$5,($A10-1)*PYpUltYrs+BM$2,BM$3))) -> 0 | BN10: =IF($A10>Iterations,"",IF(BN$2=0,0,OFFSET('PYp Ult - RawSimResults'!$A$5,($A10-1)*PYpUltYrs+BN$2,BN$3))) -> 0 | BO10: =IF($A10>Iterations,"",IF(BO$2=0,0,OFFSET('PYp Ult - RawSimResults'!$A$5,($A10-1)*PYpUltYrs+BO$2,BO$3))) -> 0 | BP10: =IF($A10>Iterations,"",IF(BP$2=0,0,OFFSET('PYp Ult - RawSimResults'!$A$5,($A10-1)*PYpUltYrs+BP$2,BP$3))) -> 0 | BQ10: =IF($A10>Iterations,"",IF(BQ$2=0,0,OFFSET('PYp Ult - RawSimResults'!$A$5,($A10-1)*PYpUltYrs+BQ$2,BQ$3))) -> 0 | BR10: =IF($A10>Iterations,"",IF(BR$2=0,0,OFFSET('PYp Ult - RawSimResults'!$A$5,($A10-1)*PYpUltYrs+BR$2,BR$3))) -> 0 | BS10: =IF($A10>Iterations,"",IF(BS$2=0,0,OFFSET('PYp Ult - RawSimResults'!$A$5,($A10-1)*PYpUltYrs+BS$2,BS$3))) -> 0 | BT10: =IF($A10>Iterations,"",IF(BT$2=0,0,OFFSET('PYp Ult - RawSimResults'!$A$5,($A10-1)*PYpUltYrs+BT$2,BT$3))) -> 0 | BU10: =IF($A10>Iterations,"",IF(BU$2=0,0,OFFSET('PYp Ult - RawSimResults'!$A$5,($A10-1)*PYpUltYrs+BU$2,BU$3))) -> 0 | BV10: =IF($A10>Iterations,"",IF(BV$2=0,0,OFFSET('PYp Ult - RawSimResults'!$A$5,($A10-1)*PYpUltYrs+BV$2,BV$3))) -> 0 | BW10: =IF($A10>Iterations,"",IF(BW$2=0,0,OFFSET('PYp Ult - RawSimResults'!$A$5,($A10-1)*PYpUltYrs+BW$2,BW$3))) -> 0 | BX10: =IF($A10>Iterations,"",IF(BX$2=0,0,OFFSET('PYp Ult - RawSimResults'!$A$5,($A10-1)*PYpUltYrs+BX$2,BX$3))) -> 0 | BY10: =IF($A10>Iterations,"",IF(BY$2=0,0,OFFSET('PYp Ult - RawSimResults'!$A$5,($A10-1)*PYpUltYrs+BY$2,BY$3))) -> 0 | BZ10: =IF($A10>Iterations,"",IF(BZ$2=0,0,OFFSET('PYp Ult - RawSimResults'!$A$5,($A10-1)*PYpUltYrs+BZ$2,BZ$3))) -> 0 | CA10: =IF($A10>Iterations,"",IF(CA$2=0,0,OFFSET('PYp Ult - RawSimResults'!$A$5,($A10-1)*PYpUltYrs+CA$2,CA$3))) -> 0 | CB10: =IF($A10>Iterations,"",IF(CB$2=0,0,OFFSET('PYp Ult - RawSimResults'!$A$5,($A10-1)*PYpUltYrs+CB$2,CB$3))) -> 0 | CC10: =IF($A10>Iterations,"",IF(CC$2=0,0,OFFSET('PYp Ult - RawSimResults'!$A$5,($A10-1)*PYpUltYrs+CC$2,CC$3))) -> 0 | CD10: =IF($A10>Iterations,"",IF(CD$2=0,0,OFFSET('PYp Ult - RawSimResults'!$A$5,($A10-1)*PYpUltYrs+CD$2,CD$3))) -> 0 | CE10: =IF($A10>Iterations,"",IF(CE$2=0,0,OFFSET('PYp Ult - RawSimResults'!$A$5,($A10-1)*PYpUltYrs+CE$2,CE$3))) -> 0 | CF10: =IF($A10>Iterations,"",IF(CF$2=0,0,OFFSET('PYp Ult - RawSimResults'!$A$5,($A10-1)*PYpUltYrs+CF$2,CF$3))) -> 0 | CG10: =IF($A10>Iterations,"",IF(CG$2=0,0,OFFSET('PYp Ult - RawSimResults'!$A$5,($A10-1)*PYpUltYrs+CG$2,CG$3))) -> 0 | CH10: =IF($A10>Iterations,"",IF(CH$2=0,0,OFFSET('PYp Ult - RawSimResults'!$A$5,($A10-1)*PYpUltYrs+CH$2,CH$3))) -> 0 | CI10: =IF($A10>Iterations,"",IF(CI$2=0,0,OFFSET('PYp Ult - RawSimResults'!$A$5,($A10-1)*PYpUltYrs+CI$2,CI$3))) -> 0 | CJ10: =IF($A10>Iterations,"",IF(CJ$2=0,0,OFFSET('PYp Ult - RawSimResults'!$A$5,($A10-1)*PYpUltYrs+CJ$2,CJ$3))) -> 0 | CK10: =IF($A10>Iterations,"",IF(CK$2=0,0,OFFSET('PYp Ult - RawSimResults'!$A$5,($A10-1)*PYpUltYrs+CK$2,CK$3))) -> 0 | CL10: =IF($A10>Iterations,"",IF(CL$2=0,0,OFFSET('PYp Ult - RawSimResults'!$A$5,($A10-1)*PYpUltYrs+CL$2,CL$3))) -> 0 | CM10: =IF($A10>Iterations,"",IF(CM$2=0,0,OFFSET('PYp Ult - RawSimResults'!$A$5,($A10-1)*PYpUltYrs+CM$2,CM$3))) -> 0 | CN10: =IF($A10>Iterations,"",IF(CN$2=0,0,OFFSET('PYp Ult - RawSimResults'!$A$5,($A10-1)*PYpUltYrs+CN$2,CN$3))) -> 0 | CO10: =IF($A10>Iterations,"",IF(CO$2=0,0,OFFSET('PYp Ult - RawSimResults'!$A$5,($A10-1)*PYpUltYrs+CO$2,CO$3))) -> 0 | CP10: =IF($A10>Iterations,"",IF(CP$2=0,0,OFFSET('PYp Ult - RawSimResults'!$A$5,($A10-1)*PYpUltYrs+CP$2,CP$3))) -> 0 | CQ10: =IF($A10>Iterations,"",IF(CQ$2=0,0,OFFSET('PYp Ult - RawSimResults'!$A$5,($A10-1)*PYpUltYrs+CQ$2,CQ$3))) -> 0 | CR10: =IF($A10>Iterations,"",IF(CR$2=0,0,OFFSET('PYp Ult - RawSimResults'!$A$5,($A10-1)*PYpUltYrs+CR$2,CR$3))) -> 0 | CS10: =IF($A10>Iterations,"",IF(CS$2=0,0,OFFSET('PYp Ult - RawSimResults'!$A$5,($A10-1)*PYpUltYrs+CS$2,CS$3))) -> 0 | CT10: =IF($A10>Iterations,"",IF(CT$2=0,0,OFFSET('PYp Ult - RawSimResults'!$A$5,($A10-1)*PYpUltYrs+CT$2,CT$3))) -> 0 | CU10: =IF($A10>Iterations,"",IF(CU$2=0,0,OFFSET('PYp Ult - RawSimResults'!$A$5,($A10-1)*PYpUltYrs+CU$2,CU$3))) -> 0 | CV10: =IF($A10>Iterations,"",IF(CV$2=0,0,OFFSET('PYp Ult - RawSimResults'!$A$5,($A10-1)*PYpUltYrs+CV$2,CV$3))) -> 0 | CW10: =IF($A10>Iterations,"",IF(CW$2=0,0,OFFSET('PYp Ult - RawSimResults'!$A$5,($A10-1)*PYpUltYrs+CW$2,CW$3))) -> 0 | CX10: =IF($A10>Iterations,"",IF(CX$2=0,0,OFFSET('PYp Ult - RawSimResults'!$A$5,($A10-1)*PYpUltYrs+CX$2,CX$3))) -> 0 | CY10: =IF($A10>Iterations,"",IF(CY$2=0,0,OFFSET('PYp Ult - RawSimResults'!$A$5,($A10-1)*PYpUltYrs+CY$2,CY$3))) -> 0 | CZ10: =IF($A10>Iterations,"",IF(CZ$2=0,0,OFFSET('PYp Ult - RawSimResults'!$A$5,($A10-1)*PYpUltYrs+CZ$2,CZ$3))) -> 0 | DA10: =IF($A10>Iterations,"",IF(DA$2=0,0,OFFSET('PYp Ult - RawSimResults'!$A$5,($A10-1)*PYpUltYrs+DA$2,DA$3))) -> 0 | DB10: =IF($A10>Iterations,"",IF(DB$2=0,0,OFFSET('PYp Ult - RawSimResults'!$A$5,($A10-1)*PYpUltYrs+DB$2,DB$3))) -> 0 | DC10: =IF($A10>Iterations,"",IF(DC$2=0,0,OFFSET('PYp Ult - RawSimResults'!$A$5,($A10-1)*PYpUltYrs+DC$2,DC$3))) -> 0 | DD10: =IF($A10>Iterations,"",IF(DD$2=0,0,OFFSET('PYp Ult - RawSimResults'!$A$5,($A10-1)*PYpUltYrs+DD$2,DD$3))) -> 0 | DE10: =IF($A10>Iterations,"",IF(DE$2=0,0,OFFSET('PYp Ult - RawSimResults'!$A$5,($A10-1)*PYpUltYrs+DE$2,DE$3))) -> 0 | DF10: =IF($A10>Iterations,"",IF(DF$2=0,0,OFFSET('PYp Ult - RawSimResults'!$A$5,($A10-1)*PYpUltYrs+DF$2,DF$3))) -> 0 | DG10: =IF($A10>Iterations,"",IF(DG$2=0,0,OFFSET('PYp Ult - RawSimResults'!$A$5,($A10-1)*PYpUltYrs+DG$2,DG$3))) -> 0 | DH10: =IF($A10>Iterations,"",IF(DH$2=0,0,OFFSET('PYp Ult - RawSimResults'!$A$5,($A10-1)*PYpUltYrs+DH$2,DH$3))) -> 0 | DI10: =IF($A10>Iterations,"",IF(DI$2=0,0,OFFSET('PYp Ult - RawSimResults'!$A$5,($A10-1)*PYpUltYrs+DI$2,DI$3))) -> 0 | DJ10: =IF($A10>Iterations,"",IF(DJ$2=0,0,OFFSET('PYp Ult - RawSimResults'!$A$5,($A10-1)*PYpUltYrs+DJ$2,DJ$3))) -> 0 | DK10: =IF($A10>Iterations,"",IF(DK$2=0,0,OFFSET('PYp Ult - RawSimResults'!$A$5,($A10-1)*PYpUltYrs+DK$2,DK$3))) -> 0 | DL10: =IF($A10>Iterations,"",IF(DL$2=0,0,OFFSET('PYp Ult - RawSimResults'!$A$5,($A10-1)*PYpUltYrs+DL$2,DL$3))) -> 0 | DM10: =IF($A10>Iterations,"",IF(DM$2=0,0,OFFSET('PYp Ult - RawSimResults'!$A$5,($A10-1)*PYpUltYrs+DM$2,DM$3))) -> 0 | DN10: =IF($A10>Iterations,"",IF(DN$2=0,0,OFFSET('PYp Ult - RawSimResults'!$A$5,($A10-1)*PYpUltYrs+DN$2,DN$3))) -> 0 | DO10: =IF($A10>Iterations,"",IF(DO$2=0,0,OFFSET('PYp Ult - RawSimResults'!$A$5,($A10-1)*PYpUltYrs+DO$2,DO$3))) -> 0 | DP10: =IF($A10>Iterations,"",IF(DP$2=0,0,OFFSET('PYp Ult - RawSimResults'!$A$5,($A10-1)*PYpUltYrs+DP$2,DP$3))) -> 0 | DQ10: =IF($A10>Iterations,"",IF(DQ$2=0,0,OFFSET('PYp Ult - RawSimResults'!$A$5,($A10-1)*PYpUltYrs+DQ$2,DQ$3))) -> 0 | DR10: =IF($A10>Iterations,"",IF(DR$2=0,0,OFFSET('PYp Ult - RawSimResults'!$A$5,($A10-1)*PYpUltYrs+DR$2,DR$3))) -> 0 | DS10: =IF($A10>Iterations,"",IF(DS$2=0,0,OFFSET('PYp Ult - RawSimResults'!$A$5,($A10-1)*PYpUltYrs+DS$2,DS$3))) -> 0 | DT10: =IF($A10>Iterations,"",IF(DT$2=0,0,OFFSET('PYp Ult - RawSimResults'!$A$5,($A10-1)*PYpUltYrs+DT$2,DT$3))) -> 0 | DU10: =IF($A10>Iterations,"",IF(DU$2=0,0,OFFSET('PYp Ult - RawSimResults'!$A$5,($A10-1)*PYpUltYrs+DU$2,DU$3))) -> 0 | DV10: =IF($A10>Iterations,"",IF(DV$2=0,0,OFFSET('PYp Ult - RawSimResults'!$A$5,($A10-1)*PYpUltYrs+DV$2,DV$3))) -> 0 | DW10: =IF($A10>Iterations,"",IF(DW$2=0,0,OFFSET('PYp Ult - RawSimResults'!$A$5,($A10-1)*PYpUltYrs+DW$2,DW$3))) -> 0 | DX10: =IF($A10>Iterations,"",IF(DX$2=0,0,OFFSET('PYp Ult - RawSimResults'!$A$5,($A10-1)*PYpUltYrs+DX$2,DX$3))) -> 0 | DY10: =IF($A10>Iterations,"",IF(DY$2=0,0,OFFSET('PYp Ult - RawSimResults'!$A$5,($A10-1)*PYpUltYrs+DY$2,DY$3))) -> 0 | DZ10: =IF($A10>Iterations,"",IF(DZ$2=0,0,OFFSET('PYp Ult - RawSimResults'!$A$5,($A10-1)*PYpUltYrs+DZ$2,DZ$3))) -> 0 | EA10: =IF($A10>Iterations,"",IF(EA$2=0,0,OFFSET('PYp Ult - RawSimResults'!$A$5,($A10-1)*PYpUltYrs+EA$2,EA$3))) -> 0 | EB10: =IF($A10>Iterations,"",IF(EB$2=0,0,OFFSET('PYp Ult - RawSimResults'!$A$5,($A10-1)*PYpUltYrs+EB$2,EB$3))) -> 0 | EC10: =IF($A10>Iterations,"",IF(EC$2=0,0,OFFSET('PYp Ult - RawSimResults'!$A$5,($A10-1)*PYpUltYrs+EC$2,EC$3))) -> 0 | ED10: =IF($A10>Iterations,"",IF(ED$2=0,0,OFFSET('PYp Ult - RawSimResults'!$A$5,($A10-1)*PYpUltYrs+ED$2,ED$3))) -> 0 | EE10: =IF($A10>Iterations,"",IF(EE$2=0,0,OFFSET('PYp Ult - RawSimResults'!$A$5,($A10-1)*PYpUltYrs+EE$2,EE$3))) -> 0 | EF10: =IF($A10>Iterations,"",IF(EF$2=0,0,OFFSET('PYp Ult - RawSimResults'!$A$5,($A10-1)*PYpUltYrs+EF$2,EF$3))) -> 0 | EG10: =IF($A10>Iterations,"",IF(EG$2=0,0,OFFSET('PYp Ult - RawSimResults'!$A$5,($A10-1)*PYpUltYrs+EG$2,EG$3))) -> 0 | EH10: =IF($A10>Iterations,"",IF(EH$2=0,0,OFFSET('PYp Ult - RawSimResults'!$A$5,($A10-1)*PYpUltYrs+EH$2,EH$3))) -> 0 | EI10: =IF($A10>Iterations,"",IF(EI$2=0,0,OFFSET('PYp Ult - RawSimResults'!$A$5,($A10-1)*PYpUltYrs+EI$2,EI$3))) -> 0 | EJ10: =IF($A10>Iterations,"",IF(EJ$2=0,0,OFFSET('PYp Ult - RawSimResults'!$A$5,($A10-1)*PYpUltYrs+EJ$2,EJ$3))) -> 0 | EK10: =IF($A10>Iterations,"",IF(EK$2=0,0,OFFSET('PYp Ult - RawSimResults'!$A$5,($A10-1)*PYpUltYrs+EK$2,EK$3))) -> 0 | EL10: =IF($A10>Iterations,"",IF(EL$2=0,0,OFFSET('PYp Ult - RawSimResults'!$A$5,($A10-1)*PYpUltYrs+EL$2,EL$3))) -> 0 | EM10: =IF($A10>Iterations,"",IF(EM$2=0,0,OFFSET('PYp Ult - RawSimResults'!$A$5,($A10-1)*PYpUltYrs+EM$2,EM$3))) -> 0 | EN10: =IF($A10>Iterations,"",IF(EN$2=0,0,OFFSET('PYp Ult - RawSimResults'!$A$5,($A10-1)*PYpUltYrs+EN$2,EN$3))) -> 0 | EO10: =IF($A10>Iterations,"",IF(EO$2=0,0,OFFSET('PYp Ult - RawSimResults'!$A$5,($A10-1)*PYpUltYrs+EO$2,EO$3))) -> 0 | EP10: =IF($A10>Iterations,"",IF(EP$2=0,0,OFFSET('PYp Ult - RawSimResults'!$A$5,($A10-1)*PYpUltYrs+EP$2,EP$3))) -> 0 | EQ10: =IF($A10>Iterations,"",IF(EQ$2=0,0,OFFSET('PYp Ult - RawSimResults'!$A$5,($A10-1)*PYpUltYrs+EQ$2,EQ$3))) -> 0 | ER10: =IF($A10>Iterations,"",IF(ER$2=0,0,OFFSET('PYp Ult - RawSimResults'!$A$5,($A10-1)*PYpUltYrs+ER$2,ER$3))) -> 0 | ES10: =IF($A10>Iterations,"",IF(ES$2=0,0,OFFSET('PYp Ult - RawSimResults'!$A$5,($A10-1)*PYpUltYrs+ES$2,ES$3))) -> 0 | ET10: =IF($A10>Iterations,"",IF(ET$2=0,0,OFFSET('PYp Ult - RawSimResults'!$A$5,($A10-1)*PYpUltYrs+ET$2,ET$3))) -> 0 | EU10: =IF($A10>Iterations,"",IF(EU$2=0,0,OFFSET('PYp Ult - RawSimResults'!$A$5,($A10-1)*PYpUltYrs+EU$2,EU$3))) -> 0 | EV10: 0 | EW10: 0 | EX10: 0 | EY10: 0 | EZ10: 0 | FA10: 0 | FB10: 0 | FC10: 0 | FD10: 0 | FE10: 0 | FF10: 0 | FG10: 0 | FH10: 0 | FI10: 0 | FJ10: 0 | FK10: 0 | FL10: 0 | FM10: 0 | FN10: 0 | FO10: 0 | FP10: 0 | FQ10: 0 | FR10: 0 | FS10: 0 | FT10: 0 | FU10: 0 | FV10: 0 | FW10: 0 | FX10: 0 | FY10: 0 | FZ10: 0 | GA10: 0 | GB10: 0 | GC10: 0 | GD10: 0 | GE10: 0 | GF10: 0 | GG10: 0 | GH10: 0 | GI10: 0 | GJ10: 0 | GK10: 0 | GL10: 0 | GM10: 0 | GN10: 0 | GO10: 0 | GP10: 0 | GQ10: 0 | GR10: 0 | GS10: 0 | GT10: 0
A11: 6 | B11: =IF($A11>Iterations,"",IF(B$2=0,0,OFFSET('PYp Ult - RawSimResults'!$A$5,($A11-1)*PYpUltYrs+B$2,B$3))) -> 0 | C11: =IF($A11>Iterations,"",IF(C$2=0,0,OFFSET('PYp Ult - RawSimResults'!$A$5,($A11-1)*PYpUltYrs+C$2,C$3))) -> 0 | D11: =IF($A11>Iterations,"",IF(D$2=0,0,OFFSET('PYp Ult - RawSimResults'!$A$5,($A11-1)*PYpUltYrs+D$2,D$3))) -> 0 | E11: =IF($A11>Iterations,"",IF(E$2=0,0,OFFSET('PYp Ult - RawSimResults'!$A$5,($A11-1)*PYpUltYrs+E$2,E$3))) -> 0 | F11: =IF($A11>Iterations,"",IF(F$2=0,0,OFFSET('PYp Ult - RawSimResults'!$A$5,($A11-1)*PYpUltYrs+F$2,F$3))) -> 0 | G11: =IF($A11>Iterations,"",IF(G$2=0,0,OFFSET('PYp Ult - RawSimResults'!$A$5,($A11-1)*PYpUltYrs+G$2,G$3))) -> 0 | H11: =IF($A11>Iterations,"",IF(H$2=0,0,OFFSET('PYp Ult - RawSimResults'!$A$5,($A11-1)*PYpUltYrs+H$2,H$3))) -> 0 | I11: =IF($A11>Iterations,"",IF(I$2=0,0,OFFSET('PYp Ult - RawSimResults'!$A$5,($A11-1)*PYpUltYrs+I$2,I$3))) -> 0 | J11: =IF($A11>Iterations,"",IF(J$2=0,0,OFFSET('PYp Ult - RawSimResults'!$A$5,($A11-1)*PYpUltYrs+J$2,J$3))) -> 0 | K11: =IF($A11>Iterations,"",IF(K$2=0,0,OFFSET('PYp Ult - RawSimResults'!$A$5,($A11-1)*PYpUltYrs+K$2,K$3))) -> 0 | L11: =IF($A11>Iterations,"",IF(L$2=0,0,OFFSET('PYp Ult - RawSimResults'!$A$5,($A11-1)*PYpUltYrs+L$2,L$3))) -> 0 | M11: =IF($A11>Iterations,"",IF(M$2=0,0,OFFSET('PYp Ult - RawSimResults'!$A$5,($A11-1)*PYpUltYrs+M$2,M$3))) -> 0 | N11: =IF($A11>Iterations,"",IF(N$2=0,0,OFFSET('PYp Ult - RawSimResults'!$A$5,($A11-1)*PYpUltYrs+N$2,N$3))) -> 0 | O11: =IF($A11>Iterations,"",IF(O$2=0,0,OFFSET('PYp Ult - RawSimResults'!$A$5,($A11-1)*PYpUltYrs+O$2,O$3))) -> 0 | P11: =IF($A11>Iterations,"",IF(P$2=0,0,OFFSET('PYp Ult - RawSimResults'!$A$5,($A11-1)*PYpUltYrs+P$2,P$3))) -> 0 | Q11: =IF($A11>Iterations,"",IF(Q$2=0,0,OFFSET('PYp Ult - RawSimResults'!$A$5,($A11-1)*PYpUltYrs+Q$2,Q$3))) -> 0 | R11: =IF($A11>Iterations,"",IF(R$2=0,0,OFFSET('PYp Ult - RawSimResults'!$A$5,($A11-1)*PYpUltYrs+R$2,R$3))) -> 0 | S11: =IF($A11>Iterations,"",IF(S$2=0,0,OFFSET('PYp Ult - RawSimResults'!$A$5,($A11-1)*PYpUltYrs+S$2,S$3))) -> 0 | T11: =IF($A11>Iterations,"",IF(T$2=0,0,OFFSET('PYp Ult - RawSimResults'!$A$5,($A11-1)*PYpUltYrs+T$2,T$3))) -> 0 | U11: =IF($A11>Iterations,"",IF(U$2=0,0,OFFSET('PYp Ult - RawSimResults'!$A$5,($A11-1)*PYpUltYrs+U$2,U$3))) -> 0 | V11: =IF($A11>Iterations,"",IF(V$2=0,0,OFFSET('PYp Ult - RawSimResults'!$A$5,($A11-1)*PYpUltYrs+V$2,V$3))) -> 0 | W11: =IF($A11>Iterations,"",IF(W$2=0,0,OFFSET('PYp Ult - RawSimResults'!$A$5,($A11-1)*PYpUltYrs+W$2,W$3))) -> 0 | X11: =IF($A11>Iterations,"",IF(X$2=0,0,OFFSET('PYp Ult - RawSimResults'!$A$5,($A11-1)*PYpUltYrs+X$2,X$3))) -> 0 | Y11: =IF($A11>Iterations,"",IF(Y$2=0,0,OFFSET('PYp Ult - RawSimResults'!$A$5,($A11-1)*PYpUltYrs+Y$2,Y$3))) -> 0 | Z11: =IF($A11>Iterations,"",IF(Z$2=0,0,OFFSET('PYp Ult - RawSimResults'!$A$5,($A11-1)*PYpUltYrs+Z$2,Z$3))) -> 0 | AA11: =IF($A11>Iterations,"",IF(AA$2=0,0,OFFSET('PYp Ult - RawSimResults'!$A$5,($A11-1)*PYpUltYrs+AA$2,AA$3))) -> 0 | AB11: =IF($A11>Iterations,"",IF(AB$2=0,0,OFFSET('PYp Ult - RawSimResults'!$A$5,($A11-1)*PYpUltYrs+AB$2,AB$3))) -> 0 | AC11: =IF($A11>Iterations,"",IF(AC$2=0,0,OFFSET('PYp Ult - RawSimResults'!$A$5,($A11-1)*PYpUltYrs+AC$2,AC$3))) -> 0 | AD11: =IF($A11>Iterations,"",IF(AD$2=0,0,OFFSET('PYp Ult - RawSimResults'!$A$5,($A11-1)*PYpUltYrs+AD$2,AD$3))) -> 0 | AE11: =IF($A11>Iterations,"",IF(AE$2=0,0,OFFSET('PYp Ult - RawSimResults'!$A$5,($A11-1)*PYpUltYrs+AE$2,AE$3))) -> 0 | AF11: =IF($A11>Iterations,"",IF(AF$2=0,0,OFFSET('PYp Ult - RawSimResults'!$A$5,($A11-1)*PYpUltYrs+AF$2,AF$3))) -> 0 | AG11: =IF($A11>Iterations,"",IF(AG$2=0,0,OFFSET('PYp Ult - RawSimResults'!$A$5,($A11-1)*PYpUltYrs+AG$2,AG$3))) -> 0 | AH11: =IF($A11>Iterations,"",IF(AH$2=0,0,OFFSET('PYp Ult - RawSimResults'!$A$5,($A11-1)*PYpUltYrs+AH$2,AH$3))) -> 0 | AI11: =IF($A11>Iterations,"",IF(AI$2=0,0,OFFSET('PYp Ult - RawSimResults'!$A$5,($A11-1)*PYpUltYrs+AI$2,AI$3))) -> 0 | AJ11: =IF($A11>Iterations,"",IF(AJ$2=0,0,OFFSET('PYp Ult - RawSimResults'!$A$5,($A11-1)*PYpUltYrs+AJ$2,AJ$3))) -> 0 | AK11: =IF($A11>Iterations,"",IF(AK$2=0,0,OFFSET('PYp Ult - RawSimResults'!$A$5,($A11-1)*PYpUltYrs+AK$2,AK$3))) -> 0 | AL11: =IF($A11>Iterations,"",IF(AL$2=0,0,OFFSET('PYp Ult - RawSimResults'!$A$5,($A11-1)*PYpUltYrs+AL$2,AL$3))) -> 0 | AM11: =IF($A11>Iterations,"",IF(AM$2=0,0,OFFSET('PYp Ult - RawSimResults'!$A$5,($A11-1)*PYpUltYrs+AM$2,AM$3))) -> 0 | AN11: =IF($A11>Iterations,"",IF(AN$2=0,0,OFFSET('PYp Ult - RawSimResults'!$A$5,($A11-1)*PYpUltYrs+AN$2,AN$3))) -> 0 | AO11: =IF($A11>Iterations,"",IF(AO$2=0,0,OFFSET('PYp Ult - RawSimResults'!$A$5,($A11-1)*PYpUltYrs+AO$2,AO$3))) -> 0 | AP11: =IF($A11>Iterations,"",IF(AP$2=0,0,OFFSET('PYp Ult - RawSimResults'!$A$5,($A11-1)*PYpUltYrs+AP$2,AP$3))) -> 0 | AQ11: =IF($A11>Iterations,"",IF(AQ$2=0,0,OFFSET('PYp Ult - RawSimResults'!$A$5,($A11-1)*PYpUltYrs+AQ$2,AQ$3))) -> 0 | AR11: =IF($A11>Iterations,"",IF(AR$2=0,0,OFFSET('PYp Ult - RawSimResults'!$A$5,($A11-1)*PYpUltYrs+AR$2,AR$3))) -> 0 | AS11: =IF($A11>Iterations,"",IF(AS$2=0,0,OFFSET('PYp Ult - RawSimResults'!$A$5,($A11-1)*PYpUltYrs+AS$2,AS$3))) -> 0 | AT11: =IF($A11>Iterations,"",IF(AT$2=0,0,OFFSET('PYp Ult - RawSimResults'!$A$5,($A11-1)*PYpUltYrs+AT$2,AT$3))) -> 0 | AU11: =IF($A11>Iterations,"",IF(AU$2=0,0,OFFSET('PYp Ult - RawSimResults'!$A$5,($A11-1)*PYpUltYrs+AU$2,AU$3))) -> 0 | AV11: =IF($A11>Iterations,"",IF(AV$2=0,0,OFFSET('PYp Ult - RawSimResults'!$A$5,($A11-1)*PYpUltYrs+AV$2,AV$3))) -> 0 | AW11: =IF($A11>Iterations,"",IF(AW$2=0,0,OFFSET('PYp Ult - RawSimResults'!$A$5,($A11-1)*PYpUltYrs+AW$2,AW$3))) -> 0 | AX11: =IF($A11>Iterations,"",IF(AX$2=0,0,OFFSET('PYp Ult - RawSimResults'!$A$5,($A11-1)*PYpUltYrs+AX$2,AX$3))) -> 0 | AY11: =IF($A11>Iterations,"",IF(AY$2=0,0,OFFSET('PYp Ult - RawSimResults'!$A$5,($A11-1)*PYpUltYrs+AY$2,AY$3))) -> 0 | AZ11: =IF($A11>Iterations,"",IF(AZ$2=0,0,OFFSET('PYp Ult - RawSimResults'!$A$5,($A11-1)*PYpUltYrs+AZ$2,AZ$3))) -> 0 | BA11: =IF($A11>Iterations,"",IF(BA$2=0,0,OFFSET('PYp Ult - RawSimResults'!$A$5,($A11-1)*PYpUltYrs+BA$2,BA$3))) -> 0 | BB11: =IF($A11>Iterations,"",IF(BB$2=0,0,OFFSET('PYp Ult - RawSimResults'!$A$5,($A11-1)*PYpUltYrs+BB$2,BB$3))) -> 0 | BC11: =IF($A11>Iterations,"",IF(BC$2=0,0,OFFSET('PYp Ult - RawSimResults'!$A$5,($A11-1)*PYpUltYrs+BC$2,BC$3))) -> 0 | BD11: =IF($A11>Iterations,"",IF(BD$2=0,0,OFFSET('PYp Ult - RawSimResults'!$A$5,($A11-1)*PYpUltYrs+BD$2,BD$3))) -> 0 | BE11: =IF($A11>Iterations,"",IF(BE$2=0,0,OFFSET('PYp Ult - RawSimResults'!$A$5,($A11-1)*PYpUltYrs+BE$2,BE$3))) -> 0 | BF11: =IF($A11>Iterations,"",IF(BF$2=0,0,OFFSET('PYp Ult - RawSimResults'!$A$5,($A11-1)*PYpUltYrs+BF$2,BF$3))) -> 0 | BG11: =IF($A11>Iterations,"",IF(BG$2=0,0,OFFSET('PYp Ult - RawSimResults'!$A$5,($A11-1)*PYpUltYrs+BG$2,BG$3))) -> 0 | BH11: =IF($A11>Iterations,"",IF(BH$2=0,0,OFFSET('PYp Ult - RawSimResults'!$A$5,($A11-1)*PYpUltYrs+BH$2,BH$3))) -> 0 | BI11: =IF($A11>Iterations,"",IF(BI$2=0,0,OFFSET('PYp Ult - RawSimResults'!$A$5,($A11-1)*PYpUltYrs+BI$2,BI$3))) -> 0 | BJ11: =IF($A11>Iterations,"",IF(BJ$2=0,0,OFFSET('PYp Ult - RawSimResults'!$A$5,($A11-1)*PYpUltYrs+BJ$2,BJ$3))) -> 0 | BK11: =IF($A11>Iterations,"",IF(BK$2=0,0,OFFSET('PYp Ult - RawSimResults'!$A$5,($A11-1)*PYpUltYrs+BK$2,BK$3))) -> 0 | BL11: =IF($A11>Iterations,"",IF(BL$2=0,0,OFFSET('PYp Ult - RawSimResults'!$A$5,($A11-1)*PYpUltYrs+BL$2,BL$3))) -> 0 | BM11: =IF($A11>Iterations,"",IF(BM$2=0,0,OFFSET('PYp Ult - RawSimResults'!$A$5,($A11-1)*PYpUltYrs+BM$2,BM$3))) -> 0 | BN11: =IF($A11>Iterations,"",IF(BN$2=0,0,OFFSET('PYp Ult - RawSimResults'!$A$5,($A11-1)*PYpUltYrs+BN$2,BN$3))) -> 0 | BO11: =IF($A11>Iterations,"",IF(BO$2=0,0,OFFSET('PYp Ult - RawSimResults'!$A$5,($A11-1)*PYpUltYrs+BO$2,BO$3))) -> 0 | BP11: =IF($A11>Iterations,"",IF(BP$2=0,0,OFFSET('PYp Ult - RawSimResults'!$A$5,($A11-1)*PYpUltYrs+BP$2,BP$3))) -> 0 | BQ11: =IF($A11>Iterations,"",IF(BQ$2=0,0,OFFSET('PYp Ult - RawSimResults'!$A$5,($A11-1)*PYpUltYrs+BQ$2,BQ$3))) -> 0 | BR11: =IF($A11>Iterations,"",IF(BR$2=0,0,OFFSET('PYp Ult - RawSimResults'!$A$5,($A11-1)*PYpUltYrs+BR$2,BR$3))) -> 0 | BS11: =IF($A11>Iterations,"",IF(BS$2=0,0,OFFSET('PYp Ult - RawSimResults'!$A$5,($A11-1)*PYpUltYrs+BS$2,BS$3))) -> 0 | BT11: =IF($A11>Iterations,"",IF(BT$2=0,0,OFFSET('PYp Ult - RawSimResults'!$A$5,($A11-1)*PYpUltYrs+BT$2,BT$3))) -> 0 | BU11: =IF($A11>Iterations,"",IF(BU$2=0,0,OFFSET('PYp Ult - RawSimResults'!$A$5,($A11-1)*PYpUltYrs+BU$2,BU$3))) -> 0 | BV11: =IF($A11>Iterations,"",IF(BV$2=0,0,OFFSET('PYp Ult - RawSimResults'!$A$5,($A11-1)*PYpUltYrs+BV$2,BV$3))) -> 0 | BW11: =IF($A11>Iterations,"",IF(BW$2=0,0,OFFSET('PYp Ult - RawSimResults'!$A$5,($A11-1)*PYpUltYrs+BW$2,BW$3))) -> 0 | BX11: =IF($A11>Iterations,"",IF(BX$2=0,0,OFFSET('PYp Ult - RawSimResults'!$A$5,($A11-1)*PYpUltYrs+BX$2,BX$3))) -> 0 | BY11: =IF($A11>Iterations,"",IF(BY$2=0,0,OFFSET('PYp Ult - RawSimResults'!$A$5,($A11-1)*PYpUltYrs+BY$2,BY$3))) -> 0 | BZ11: =IF($A11>Iterations,"",IF(BZ$2=0,0,OFFSET('PYp Ult - RawSimResults'!$A$5,($A11-1)*PYpUltYrs+BZ$2,BZ$3))) -> 0 | CA11: =IF($A11>Iterations,"",IF(CA$2=0,0,OFFSET('PYp Ult - RawSimResults'!$A$5,($A11-1)*PYpUltYrs+CA$2,CA$3))) -> 0 | CB11: =IF($A11>Iterations,"",IF(CB$2=0,0,OFFSET('PYp Ult - RawSimResults'!$A$5,($A11-1)*PYpUltYrs+CB$2,CB$3))) -> 0 | CC11: =IF($A11>Iterations,"",IF(CC$2=0,0,OFFSET('PYp Ult - RawSimResults'!$A$5,($A11-1)*PYpUltYrs+CC$2,CC$3))) -> 0 | CD11: =IF($A11>Iterations,"",IF(CD$2=0,0,OFFSET('PYp Ult - RawSimResults'!$A$5,($A11-1)*PYpUltYrs+CD$2,CD$3))) -> 0 | CE11: =IF($A11>Iterations,"",IF(CE$2=0,0,OFFSET('PYp Ult - RawSimResults'!$A$5,($A11-1)*PYpUltYrs+CE$2,CE$3))) -> 0 | CF11: =IF($A11>Iterations,"",IF(CF$2=0,0,OFFSET('PYp Ult - RawSimResults'!$A$5,($A11-1)*PYpUltYrs+CF$2,CF$3))) -> 0 | CG11: =IF($A11>Iterations,"",IF(CG$2=0,0,OFFSET('PYp Ult - RawSimResults'!$A$5,($A11-1)*PYpUltYrs+CG$2,CG$3))) -> 0 | CH11: =IF($A11>Iterations,"",IF(CH$2=0,0,OFFSET('PYp Ult - RawSimResults'!$A$5,($A11-1)*PYpUltYrs+CH$2,CH$3))) -> 0 | CI11: =IF($A11>Iterations,"",IF(CI$2=0,0,OFFSET('PYp Ult - RawSimResults'!$A$5,($A11-1)*PYpUltYrs+CI$2,CI$3))) -> 0 | CJ11: =IF($A11>Iterations,"",IF(CJ$2=0,0,OFFSET('PYp Ult - RawSimResults'!$A$5,($A11-1)*PYpUltYrs+CJ$2,CJ$3))) -> 0 | CK11: =IF($A11>Iterations,"",IF(CK$2=0,0,OFFSET('PYp Ult - RawSimResults'!$A$5,($A11-1)*PYpUltYrs+CK$2,CK$3))) -> 0 | CL11: =IF($A11>Iterations,"",IF(CL$2=0,0,OFFSET('PYp Ult - RawSimResults'!$A$5,($A11-1)*PYpUltYrs+CL$2,CL$3))) -> 0 | CM11: =IF($A11>Iterations,"",IF(CM$2=0,0,OFFSET('PYp Ult - RawSimResults'!$A$5,($A11-1)*PYpUltYrs+CM$2,CM$3))) -> 0 | CN11: =IF($A11>Iterations,"",IF(CN$2=0,0,OFFSET('PYp Ult - RawSimResults'!$A$5,($A11-1)*PYpUltYrs+CN$2,CN$3))) -> 0 | CO11: =IF($A11>Iterations,"",IF(CO$2=0,0,OFFSET('PYp Ult - RawSimResults'!$A$5,($A11-1)*PYpUltYrs+CO$2,CO$3))) -> 0 | CP11: =IF($A11>Iterations,"",IF(CP$2=0,0,OFFSET('PYp Ult - RawSimResults'!$A$5,($A11-1)*PYpUltYrs+CP$2,CP$3))) -> 0 | CQ11: =IF($A11>Iterations,"",IF(CQ$2=0,0,OFFSET('PYp Ult - RawSimResults'!$A$5,($A11-1)*PYpUltYrs+CQ$2,CQ$3))) -> 0 | CR11: =IF($A11>Iterations,"",IF(CR$2=0,0,OFFSET('PYp Ult - RawSimResults'!$A$5,($A11-1)*PYpUltYrs+CR$2,CR$3))) -> 0 | CS11: =IF($A11>Iterations,"",IF(CS$2=0,0,OFFSET('PYp Ult - RawSimResults'!$A$5,($A11-1)*PYpUltYrs+CS$2,CS$3))) -> 0 | CT11: =IF($A11>Iterations,"",IF(CT$2=0,0,OFFSET('PYp Ult - RawSimResults'!$A$5,($A11-1)*PYpUltYrs+CT$2,CT$3))) -> 0 | CU11: =IF($A11>Iterations,"",IF(CU$2=0,0,OFFSET('PYp Ult - RawSimResults'!$A$5,($A11-1)*PYpUltYrs+CU$2,CU$3))) -> 0 | CV11: =IF($A11>Iterations,"",IF(CV$2=0,0,OFFSET('PYp Ult - RawSimResults'!$A$5,($A11-1)*PYpUltYrs+CV$2,CV$3))) -> 0 | CW11: =IF($A11>Iterations,"",IF(CW$2=0,0,OFFSET('PYp Ult - RawSimResults'!$A$5,($A11-1)*PYpUltYrs+CW$2,CW$3))) -> 0 | CX11: =IF($A11>Iterations,"",IF(CX$2=0,0,OFFSET('PYp Ult - RawSimResults'!$A$5,($A11-1)*PYpUltYrs+CX$2,CX$3))) -> 0 | CY11: =IF($A11>Iterations,"",IF(CY$2=0,0,OFFSET('PYp Ult - RawSimResults'!$A$5,($A11-1)*PYpUltYrs+CY$2,CY$3))) -> 0 | CZ11: =IF($A11>Iterations,"",IF(CZ$2=0,0,OFFSET('PYp Ult - RawSimResults'!$A$5,($A11-1)*PYpUltYrs+CZ$2,CZ$3))) -> 0 | DA11: =IF($A11>Iterations,"",IF(DA$2=0,0,OFFSET('PYp Ult - RawSimResults'!$A$5,($A11-1)*PYpUltYrs+DA$2,DA$3))) -> 0 | DB11: =IF($A11>Iterations,"",IF(DB$2=0,0,OFFSET('PYp Ult - RawSimResults'!$A$5,($A11-1)*PYpUltYrs+DB$2,DB$3))) -> 0 | DC11: =IF($A11>Iterations,"",IF(DC$2=0,0,OFFSET('PYp Ult - RawSimResults'!$A$5,($A11-1)*PYpUltYrs+DC$2,DC$3))) -> 0 | DD11: =IF($A11>Iterations,"",IF(DD$2=0,0,OFFSET('PYp Ult - RawSimResults'!$A$5,($A11-1)*PYpUltYrs+DD$2,DD$3))) -> 0 | DE11: =IF($A11>Iterations,"",IF(DE$2=0,0,OFFSET('PYp Ult - RawSimResults'!$A$5,($A11-1)*PYpUltYrs+DE$2,DE$3))) -> 0 | DF11: =IF($A11>Iterations,"",IF(DF$2=0,0,OFFSET('PYp Ult - RawSimResults'!$A$5,($A11-1)*PYpUltYrs+DF$2,DF$3))) -> 0 | DG11: =IF($A11>Iterations,"",IF(DG$2=0,0,OFFSET('PYp Ult - RawSimResults'!$A$5,($A11-1)*PYpUltYrs+DG$2,DG$3))) -> 0 | DH11: =IF($A11>Iterations,"",IF(DH$2=0,0,OFFSET('PYp Ult - RawSimResults'!$A$5,($A11-1)*PYpUltYrs+DH$2,DH$3))) -> 0 | DI11: =IF($A11>Iterations,"",IF(DI$2=0,0,OFFSET('PYp Ult - RawSimResults'!$A$5,($A11-1)*PYpUltYrs+DI$2,DI$3))) -> 0 | DJ11: =IF($A11>Iterations,"",IF(DJ$2=0,0,OFFSET('PYp Ult - RawSimResults'!$A$5,($A11-1)*PYpUltYrs+DJ$2,DJ$3))) -> 0 | DK11: =IF($A11>Iterations,"",IF(DK$2=0,0,OFFSET('PYp Ult - RawSimResults'!$A$5,($A11-1)*PYpUltYrs+DK$2,DK$3))) -> 0 | DL11: =IF($A11>Iterations,"",IF(DL$2=0,0,OFFSET('PYp Ult - RawSimResults'!$A$5,($A11-1)*PYpUltYrs+DL$2,DL$3))) -> 0 | DM11: =IF($A11>Iterations,"",IF(DM$2=0,0,OFFSET('PYp Ult - RawSimResults'!$A$5,($A11-1)*PYpUltYrs+DM$2,DM$3))) -> 0 | DN11: =IF($A11>Iterations,"",IF(DN$2=0,0,OFFSET('PYp Ult - RawSimResults'!$A$5,($A11-1)*PYpUltYrs+DN$2,DN$3))) -> 0 | DO11: =IF($A11>Iterations,"",IF(DO$2=0,0,OFFSET('PYp Ult - RawSimResults'!$A$5,($A11-1)*PYpUltYrs+DO$2,DO$3))) -> 0 | DP11: =IF($A11>Iterations,"",IF(DP$2=0,0,OFFSET('PYp Ult - RawSimResults'!$A$5,($A11-1)*PYpUltYrs+DP$2,DP$3))) -> 0 | DQ11: =IF($A11>Iterations,"",IF(DQ$2=0,0,OFFSET('PYp Ult - RawSimResults'!$A$5,($A11-1)*PYpUltYrs+DQ$2,DQ$3))) -> 0 | DR11: =IF($A11>Iterations,"",IF(DR$2=0,0,OFFSET('PYp Ult - RawSimResults'!$A$5,($A11-1)*PYpUltYrs+DR$2,DR$3))) -> 0 | DS11: =IF($A11>Iterations,"",IF(DS$2=0,0,OFFSET('PYp Ult - RawSimResults'!$A$5,($A11-1)*PYpUltYrs+DS$2,DS$3))) -> 0 | DT11: =IF($A11>Iterations,"",IF(DT$2=0,0,OFFSET('PYp Ult - RawSimResults'!$A$5,($A11-1)*PYpUltYrs+DT$2,DT$3))) -> 0 | DU11: =IF($A11>Iterations,"",IF(DU$2=0,0,OFFSET('PYp Ult - RawSimResults'!$A$5,($A11-1)*PYpUltYrs+DU$2,DU$3))) -> 0 | DV11: =IF($A11>Iterations,"",IF(DV$2=0,0,OFFSET('PYp Ult - RawSimResults'!$A$5,($A11-1)*PYpUltYrs+DV$2,DV$3))) -> 0 | DW11: =IF($A11>Iterations,"",IF(DW$2=0,0,OFFSET('PYp Ult - RawSimResults'!$A$5,($A11-1)*PYpUltYrs+DW$2,DW$3))) -> 0 | DX11: =IF($A11>Iterations,"",IF(DX$2=0,0,OFFSET('PYp Ult - RawSimResults'!$A$5,($A11-1)*PYpUltYrs+DX$2,DX$3))) -> 0 | DY11: =IF($A11>Iterations,"",IF(DY$2=0,0,OFFSET('PYp Ult - RawSimResults'!$A$5,($A11-1)*PYpUltYrs+DY$2,DY$3))) -> 0 | DZ11: =IF($A11>Iterations,"",IF(DZ$2=0,0,OFFSET('PYp Ult - RawSimResults'!$A$5,($A11-1)*PYpUltYrs+DZ$2,DZ$3))) -> 0 | EA11: =IF($A11>Iterations,"",IF(EA$2=0,0,OFFSET('PYp Ult - RawSimResults'!$A$5,($A11-1)*PYpUltYrs+EA$2,EA$3))) -> 0 | EB11: =IF($A11>Iterations,"",IF(EB$2=0,0,OFFSET('PYp Ult - RawSimResults'!$A$5,($A11-1)*PYpUltYrs+EB$2,EB$3))) -> 0 | EC11: =IF($A11>Iterations,"",IF(EC$2=0,0,OFFSET('PYp Ult - RawSimResults'!$A$5,($A11-1)*PYpUltYrs+EC$2,EC$3))) -> 0 | ED11: =IF($A11>Iterations,"",IF(ED$2=0,0,OFFSET('PYp Ult - RawSimResults'!$A$5,($A11-1)*PYpUltYrs+ED$2,ED$3))) -> 0 | EE11: =IF($A11>Iterations,"",IF(EE$2=0,0,OFFSET('PYp Ult - RawSimResults'!$A$5,($A11-1)*PYpUltYrs+EE$2,EE$3))) -> 0 | EF11: =IF($A11>Iterations,"",IF(EF$2=0,0,OFFSET('PYp Ult - RawSimResults'!$A$5,($A11-1)*PYpUltYrs+EF$2,EF$3))) -> 0 | EG11: =IF($A11>Iterations,"",IF(EG$2=0,0,OFFSET('PYp Ult - RawSimResults'!$A$5,($A11-1)*PYpUltYrs+EG$2,EG$3))) -> 0 | EH11: =IF($A11>Iterations,"",IF(EH$2=0,0,OFFSET('PYp Ult - RawSimResults'!$A$5,($A11-1)*PYpUltYrs+EH$2,EH$3))) -> 0 | EI11: =IF($A11>Iterations,"",IF(EI$2=0,0,OFFSET('PYp Ult - RawSimResults'!$A$5,($A11-1)*PYpUltYrs+EI$2,EI$3))) -> 0 | EJ11: =IF($A11>Iterations,"",IF(EJ$2=0,0,OFFSET('PYp Ult - RawSimResults'!$A$5,($A11-1)*PYpUltYrs+EJ$2,EJ$3))) -> 0 | EK11: =IF($A11>Iterations,"",IF(EK$2=0,0,OFFSET('PYp Ult - RawSimResults'!$A$5,($A11-1)*PYpUltYrs+EK$2,EK$3))) -> 0 | EL11: =IF($A11>Iterations,"",IF(EL$2=0,0,OFFSET('PYp Ult - RawSimResults'!$A$5,($A11-1)*PYpUltYrs+EL$2,EL$3))) -> 0 | EM11: =IF($A11>Iterations,"",IF(EM$2=0,0,OFFSET('PYp Ult - RawSimResults'!$A$5,($A11-1)*PYpUltYrs+EM$2,EM$3))) -> 0 | EN11: =IF($A11>Iterations,"",IF(EN$2=0,0,OFFSET('PYp Ult - RawSimResults'!$A$5,($A11-1)*PYpUltYrs+EN$2,EN$3))) -> 0 | EO11: =IF($A11>Iterations,"",IF(EO$2=0,0,OFFSET('PYp Ult - RawSimResults'!$A$5,($A11-1)*PYpUltYrs+EO$2,EO$3))) -> 0 | EP11: =IF($A11>Iterations,"",IF(EP$2=0,0,OFFSET('PYp Ult - RawSimResults'!$A$5,($A11-1)*PYpUltYrs+EP$2,EP$3))) -> 0 | EQ11: =IF($A11>Iterations,"",IF(EQ$2=0,0,OFFSET('PYp Ult - RawSimResults'!$A$5,($A11-1)*PYpUltYrs+EQ$2,EQ$3))) -> 0 | ER11: =IF($A11>Iterations,"",IF(ER$2=0,0,OFFSET('PYp Ult - RawSimResults'!$A$5,($A11-1)*PYpUltYrs+ER$2,ER$3))) -> 0 | ES11: =IF($A11>Iterations,"",IF(ES$2=0,0,OFFSET('PYp Ult - RawSimResults'!$A$5,($A11-1)*PYpUltYrs+ES$2,ES$3))) -> 0 | ET11: =IF($A11>Iterations,"",IF(ET$2=0,0,OFFSET('PYp Ult - RawSimResults'!$A$5,($A11-1)*PYpUltYrs+ET$2,ET$3))) -> 0 | EU11: =IF($A11>Iterations,"",IF(EU$2=0,0,OFFSET('PYp Ult - RawSimResults'!$A$5,($A11-1)*PYpUltYrs+EU$2,EU$3))) -> 0 | EV11: 0 | EW11: 0 | EX11: 0 | EY11: 0 | EZ11: 0 | FA11: 0 | FB11: 0 | FC11: 0 | FD11: 0 | FE11: 0 | FF11: 0 | FG11: 0 | FH11: 0 | FI11: 0 | FJ11: 0 | FK11: 0 | FL11: 0 | FM11: 0 | FN11: 0 | FO11: 0 | FP11: 0 | FQ11: 0 | FR11: 0 | FS11: 0 | FT11: 0 | FU11: 0 | FV11: 0 | FW11: 0 | FX11: 0 | FY11: 0 | FZ11: 0 | GA11: 0 | GB11: 0 | GC11: 0 | GD11: 0 | GE11: 0 | GF11: 0 | GG11: 0 | GH11: 0 | GI11: 0 | GJ11: 0 | GK11: 0 | GL11: 0 | GM11: 0 | GN11: 0 | GO11: 0 | GP11: 0 | GQ11: 0 | GR11: 0 | GS11: 0 | GT11: 0
A12: 7 | B12: =IF($A12>Iterations,"",IF(B$2=0,0,OFFSET('PYp Ult - RawSimResults'!$A$5,($A12-1)*PYpUltYrs+B$2,B$3))) -> 0 | C12: =IF($A12>Iterations,"",IF(C$2=0,0,OFFSET('PYp Ult - RawSimResults'!$A$5,($A12-1)*PYpUltYrs+C$2,C$3))) -> 0 | D12: =IF($A12>Iterations,"",IF(D$2=0,0,OFFSET('PYp Ult - RawSimResults'!$A$5,($A12-1)*PYpUltYrs+D$2,D$3))) -> 0 | E12: =IF($A12>Iterations,"",IF(E$2=0,0,OFFSET('PYp Ult - RawSimResults'!$A$5,($A12-1)*PYpUltYrs+E$2,E$3))) -> 0 | F12: =IF($A12>Iterations,"",IF(F$2=0,0,OFFSET('PYp Ult - RawSimResults'!$A$5,($A12-1)*PYpUltYrs+F$2,F$3))) -> 0 | G12: =IF($A12>Iterations,"",IF(G$2=0,0,OFFSET('PYp Ult - RawSimResults'!$A$5,($A12-1)*PYpUltYrs+G$2,G$3))) -> 0 | H12: =IF($A12>Iterations,"",IF(H$2=0,0,OFFSET('PYp Ult - RawSimResults'!$A$5,($A12-1)*PYpUltYrs+H$2,H$3))) -> 0 | I12: =IF($A12>Iterations,"",IF(I$2=0,0,OFFSET('PYp Ult - RawSimResults'!$A$5,($A12-1)*PYpUltYrs+I$2,I$3))) -> 0 | J12: =IF($A12>Iterations,"",IF(J$2=0,0,OFFSET('PYp Ult - RawSimResults'!$A$5,($A12-1)*PYpUltYrs+J$2,J$3))) -> 0 | K12: =IF($A12>Iterations,"",IF(K$2=0,0,OFFSET('PYp Ult - RawSimResults'!$A$5,($A12-1)*PYpUltYrs+K$2,K$3))) -> 0 | L12: =IF($A12>Iterations,"",IF(L$2=0,0,OFFSET('PYp Ult - RawSimResults'!$A$5,($A12-1)*PYpUltYrs+L$2,L$3))) -> 0 | M12: =IF($A12>Iterations,"",IF(M$2=0,0,OFFSET('PYp Ult - RawSimResults'!$A$5,($A12-1)*PYpUltYrs+M$2,M$3))) -> 0 | N12: =IF($A12>Iterations,"",IF(N$2=0,0,OFFSET('PYp Ult - RawSimResults'!$A$5,($A12-1)*PYpUltYrs+N$2,N$3))) -> 0 | O12: =IF($A12>Iterations,"",IF(O$2=0,0,OFFSET('PYp Ult - RawSimResults'!$A$5,($A12-1)*PYpUltYrs+O$2,O$3))) -> 0 | P12: =IF($A12>Iterations,"",IF(P$2=0,0,OFFSET('PYp Ult - RawSimResults'!$A$5,($A12-1)*PYpUltYrs+P$2,P$3))) -> 0 | Q12: =IF($A12>Iterations,"",IF(Q$2=0,0,OFFSET('PYp Ult - RawSimResults'!$A$5,($A12-1)*PYpUltYrs+Q$2,Q$3))) -> 0 | R12: =IF($A12>Iterations,"",IF(R$2=0,0,OFFSET('PYp Ult - RawSimResults'!$A$5,($A12-1)*PYpUltYrs+R$2,R$3))) -> 0 | S12: =IF($A12>Iterations,"",IF(S$2=0,0,OFFSET('PYp Ult - RawSimResults'!$A$5,($A12-1)*PYpUltYrs+S$2,S$3))) -> 0 | T12: =IF($A12>Iterations,"",IF(T$2=0,0,OFFSET('PYp Ult - RawSimResults'!$A$5,($A12-1)*PYpUltYrs+T$2,T$3))) -> 0 | U12: =IF($A12>Iterations,"",IF(U$2=0,0,OFFSET('PYp Ult - RawSimResults'!$A$5,($A12-1)*PYpUltYrs+U$2,U$3))) -> 0 | V12: =IF($A12>Iterations,"",IF(V$2=0,0,OFFSET('PYp Ult - RawSimResults'!$A$5,($A12-1)*PYpUltYrs+V$2,V$3))) -> 0 | W12: =IF($A12>Iterations,"",IF(W$2=0,0,OFFSET('PYp Ult - RawSimResults'!$A$5,($A12-1)*PYpUltYrs+W$2,W$3))) -> 0 | X12: =IF($A12>Iterations,"",IF(X$2=0,0,OFFSET('PYp Ult - RawSimResults'!$A$5,($A12-1)*PYpUltYrs+X$2,X$3))) -> 0 | Y12: =IF($A12>Iterations,"",IF(Y$2=0,0,OFFSET('PYp Ult - RawSimResults'!$A$5,($A12-1)*PYpUltYrs+Y$2,Y$3))) -> 0 | Z12: =IF($A12>Iterations,"",IF(Z$2=0,0,OFFSET('PYp Ult - RawSimResults'!$A$5,($A12-1)*PYpUltYrs+Z$2,Z$3))) -> 0 | AA12: =IF($A12>Iterations,"",IF(AA$2=0,0,OFFSET('PYp Ult - RawSimResults'!$A$5,($A12-1)*PYpUltYrs+AA$2,AA$3))) -> 0 | AB12: =IF($A12>Iterations,"",IF(AB$2=0,0,OFFSET('PYp Ult - RawSimResults'!$A$5,($A12-1)*PYpUltYrs+AB$2,AB$3))) -> 0 | AC12: =IF($A12>Iterations,"",IF(AC$2=0,0,OFFSET('PYp Ult - RawSimResults'!$A$5,($A12-1)*PYpUltYrs+AC$2,AC$3))) -> 0 | AD12: =IF($A12>Iterations,"",IF(AD$2=0,0,OFFSET('PYp Ult - RawSimResults'!$A$5,($A12-1)*PYpUltYrs+AD$2,AD$3))) -> 0 | AE12: =IF($A12>Iterations,"",IF(AE$2=0,0,OFFSET('PYp Ult - RawSimResults'!$A$5,($A12-1)*PYpUltYrs+AE$2,AE$3))) -> 0 | AF12: =IF($A12>Iterations,"",IF(AF$2=0,0,OFFSET('PYp Ult - RawSimResults'!$A$5,($A12-1)*PYpUltYrs+AF$2,AF$3))) -> 0 | AG12: =IF($A12>Iterations,"",IF(AG$2=0,0,OFFSET('PYp Ult - RawSimResults'!$A$5,($A12-1)*PYpUltYrs+AG$2,AG$3))) -> 0 | AH12: =IF($A12>Iterations,"",IF(AH$2=0,0,OFFSET('PYp Ult - RawSimResults'!$A$5,($A12-1)*PYpUltYrs+AH$2,AH$3))) -> 0 | AI12: =IF($A12>Iterations,"",IF(AI$2=0,0,OFFSET('PYp Ult - RawSimResults'!$A$5,($A12-1)*PYpUltYrs+AI$2,AI$3))) -> 0 | AJ12: =IF($A12>Iterations,"",IF(AJ$2=0,0,OFFSET('PYp Ult - RawSimResults'!$A$5,($A12-1)*PYpUltYrs+AJ$2,AJ$3))) -> 0 | AK12: =IF($A12>Iterations,"",IF(AK$2=0,0,OFFSET('PYp Ult - RawSimResults'!$A$5,($A12-1)*PYpUltYrs+AK$2,AK$3))) -> 0 | AL12: =IF($A12>Iterations,"",IF(AL$2=0,0,OFFSET('PYp Ult - RawSimResults'!$A$5,($A12-1)*PYpUltYrs+AL$2,AL$3))) -> 0 | AM12: =IF($A12>Iterations,"",IF(AM$2=0,0,OFFSET('PYp Ult - RawSimResults'!$A$5,($A12-1)*PYpUltYrs+AM$2,AM$3))) -> 0 | AN12: =IF($A12>Iterations,"",IF(AN$2=0,0,OFFSET('PYp Ult - RawSimResults'!$A$5,($A12-1)*PYpUltYrs+AN$2,AN$3))) -> 0 | AO12: =IF($A12>Iterations,"",IF(AO$2=0,0,OFFSET('PYp Ult - RawSimResults'!$A$5,($A12-1)*PYpUltYrs+AO$2,AO$3))) -> 0 | AP12: =IF($A12>Iterations,"",IF(AP$2=0,0,OFFSET('PYp Ult - RawSimResults'!$A$5,($A12-1)*PYpUltYrs+AP$2,AP$3))) -> 0 | AQ12: =IF($A12>Iterations,"",IF(AQ$2=0,0,OFFSET('PYp Ult - RawSimResults'!$A$5,($A12-1)*PYpUltYrs+AQ$2,AQ$3))) -> 0 | AR12: =IF($A12>Iterations,"",IF(AR$2=0,0,OFFSET('PYp Ult - RawSimResults'!$A$5,($A12-1)*PYpUltYrs+AR$2,AR$3))) -> 0 | AS12: =IF($A12>Iterations,"",IF(AS$2=0,0,OFFSET('PYp Ult - RawSimResults'!$A$5,($A12-1)*PYpUltYrs+AS$2,AS$3))) -> 0 | AT12: =IF($A12>Iterations,"",IF(AT$2=0,0,OFFSET('PYp Ult - RawSimResults'!$A$5,($A12-1)*PYpUltYrs+AT$2,AT$3))) -> 0 | AU12: =IF($A12>Iterations,"",IF(AU$2=0,0,OFFSET('PYp Ult - RawSimResults'!$A$5,($A12-1)*PYpUltYrs+AU$2,AU$3))) -> 0 | AV12: =IF($A12>Iterations,"",IF(AV$2=0,0,OFFSET('PYp Ult - RawSimResults'!$A$5,($A12-1)*PYpUltYrs+AV$2,AV$3))) -> 0 | AW12: =IF($A12>Iterations,"",IF(AW$2=0,0,OFFSET('PYp Ult - RawSimResults'!$A$5,($A12-1)*PYpUltYrs+AW$2,AW$3))) -> 0 | AX12: =IF($A12>Iterations,"",IF(AX$2=0,0,OFFSET('PYp Ult - RawSimResults'!$A$5,($A12-1)*PYpUltYrs+AX$2,AX$3))) -> 0 | AY12: =IF($A12>Iterations,"",IF(AY$2=0,0,OFFSET('PYp Ult - RawSimResults'!$A$5,($A12-1)*PYpUltYrs+AY$2,AY$3))) -> 0 | AZ12: =IF($A12>Iterations,"",IF(AZ$2=0,0,OFFSET('PYp Ult - RawSimResults'!$A$5,($A12-1)*PYpUltYrs+AZ$2,AZ$3))) -> 0 | BA12: =IF($A12>Iterations,"",IF(BA$2=0,0,OFFSET('PYp Ult - RawSimResults'!$A$5,($A12-1)*PYpUltYrs+BA$2,BA$3))) -> 0 | BB12: =IF($A12>Iterations,"",IF(BB$2=0,0,OFFSET('PYp Ult - RawSimResults'!$A$5,($A12-1)*PYpUltYrs+BB$2,BB$3))) -> 0 | BC12: =IF($A12>Iterations,"",IF(BC$2=0,0,OFFSET('PYp Ult - RawSimResults'!$A$5,($A12-1)*PYpUltYrs+BC$2,BC$3))) -> 0 | BD12: =IF($A12>Iterations,"",IF(BD$2=0,0,OFFSET('PYp Ult - RawSimResults'!$A$5,($A12-1)*PYpUltYrs+BD$2,BD$3))) -> 0 | BE12: =IF($A12>Iterations,"",IF(BE$2=0,0,OFFSET('PYp Ult - RawSimResults'!$A$5,($A12-1)*PYpUltYrs+BE$2,BE$3))) -> 0 | BF12: =IF($A12>Iterations,"",IF(BF$2=0,0,OFFSET('PYp Ult - RawSimResults'!$A$5,($A12-1)*PYpUltYrs+BF$2,BF$3))) -> 0 | BG12: =IF($A12>Iterations,"",IF(BG$2=0,0,OFFSET('PYp Ult - RawSimResults'!$A$5,($A12-1)*PYpUltYrs+BG$2,BG$3))) -> 0 | BH12: =IF($A12>Iterations,"",IF(BH$2=0,0,OFFSET('PYp Ult - RawSimResults'!$A$5,($A12-1)*PYpUltYrs+BH$2,BH$3))) -> 0 | BI12: =IF($A12>Iterations,"",IF(BI$2=0,0,OFFSET('PYp Ult - RawSimResults'!$A$5,($A12-1)*PYpUltYrs+BI$2,BI$3))) -> 0 | BJ12: =IF($A12>Iterations,"",IF(BJ$2=0,0,OFFSET('PYp Ult - RawSimResults'!$A$5,($A12-1)*PYpUltYrs+BJ$2,BJ$3))) -> 0 | BK12: =IF($A12>Iterations,"",IF(BK$2=0,0,OFFSET('PYp Ult - RawSimResults'!$A$5,($A12-1)*PYpUltYrs+BK$2,BK$3))) -> 0 | BL12: =IF($A12>Iterations,"",IF(BL$2=0,0,OFFSET('PYp Ult - RawSimResults'!$A$5,($A12-1)*PYpUltYrs+BL$2,BL$3))) -> 0 | BM12: =IF($A12>Iterations,"",IF(BM$2=0,0,OFFSET('PYp Ult - RawSimResults'!$A$5,($A12-1)*PYpUltYrs+BM$2,BM$3))) -> 0 | BN12: =IF($A12>Iterations,"",IF(BN$2=0,0,OFFSET('PYp Ult - RawSimResults'!$A$5,($A12-1)*PYpUltYrs+BN$2,BN$3))) -> 0 | BO12: =IF($A12>Iterations,"",IF(BO$2=0,0,OFFSET('PYp Ult - RawSimResults'!$A$5,($A12-1)*PYpUltYrs+BO$2,BO$3))) -> 0 | BP12: =IF($A12>Iterations,"",IF(BP$2=0,0,OFFSET('PYp Ult - RawSimResults'!$A$5,($A12-1)*PYpUltYrs+BP$2,BP$3))) -> 0 | BQ12: =IF($A12>Iterations,"",IF(BQ$2=0,0,OFFSET('PYp Ult - RawSimResults'!$A$5,($A12-1)*PYpUltYrs+BQ$2,BQ$3))) -> 0 | BR12: =IF($A12>Iterations,"",IF(BR$2=0,0,OFFSET('PYp Ult - RawSimResults'!$A$5,($A12-1)*PYpUltYrs+BR$2,BR$3))) -> 0 | BS12: =IF($A12>Iterations,"",IF(BS$2=0,0,OFFSET('PYp Ult - RawSimResults'!$A$5,($A12-1)*PYpUltYrs+BS$2,BS$3))) -> 0 | BT12: =IF($A12>Iterations,"",IF(BT$2=0,0,OFFSET('PYp Ult - RawSimResults'!$A$5,($A12-1)*PYpUltYrs+BT$2,BT$3))) -> 0 | BU12: =IF($A12>Iterations,"",IF(BU$2=0,0,OFFSET('PYp Ult - RawSimResults'!$A$5,($A12-1)*PYpUltYrs+BU$2,BU$3))) -> 0 | BV12: =IF($A12>Iterations,"",IF(BV$2=0,0,OFFSET('PYp Ult - RawSimResults'!$A$5,($A12-1)*PYpUltYrs+BV$2,BV$3))) -> 0 | BW12: =IF($A12>Iterations,"",IF(BW$2=0,0,OFFSET('PYp Ult - RawSimResults'!$A$5,($A12-1)*PYpUltYrs+BW$2,BW$3))) -> 0 | BX12: =IF($A12>Iterations,"",IF(BX$2=0,0,OFFSET('PYp Ult - RawSimResults'!$A$5,($A12-1)*PYpUltYrs+BX$2,BX$3))) -> 0 | BY12: =IF($A12>Iterations,"",IF(BY$2=0,0,OFFSET('PYp Ult - RawSimResults'!$A$5,($A12-1)*PYpUltYrs+BY$2,BY$3))) -> 0 | BZ12: =IF($A12>Iterations,"",IF(BZ$2=0,0,OFFSET('PYp Ult - RawSimResults'!$A$5,($A12-1)*PYpUltYrs+BZ$2,BZ$3))) -> 0 | CA12: =IF($A12>Iterations,"",IF(CA$2=0,0,OFFSET('PYp Ult - RawSimResults'!$A$5,($A12-1)*PYpUltYrs+CA$2,CA$3))) -> 0 | CB12: =IF($A12>Iterations,"",IF(CB$2=0,0,OFFSET('PYp Ult - RawSimResults'!$A$5,($A12-1)*PYpUltYrs+CB$2,CB$3))) -> 0 | CC12: =IF($A12>Iterations,"",IF(CC$2=0,0,OFFSET('PYp Ult - RawSimResults'!$A$5,($A12-1)*PYpUltYrs+CC$2,CC$3))) -> 0 | CD12: =IF($A12>Iterations,"",IF(CD$2=0,0,OFFSET('PYp Ult - RawSimResults'!$A$5,($A12-1)*PYpUltYrs+CD$2,CD$3))) -> 0 | CE12: =IF($A12>Iterations,"",IF(CE$2=0,0,OFFSET('PYp Ult - RawSimResults'!$A$5,($A12-1)*PYpUltYrs+CE$2,CE$3))) -> 0 | CF12: =IF($A12>Iterations,"",IF(CF$2=0,0,OFFSET('PYp Ult - RawSimResults'!$A$5,($A12-1)*PYpUltYrs+CF$2,CF$3))) -> 0 | CG12: =IF($A12>Iterations,"",IF(CG$2=0,0,OFFSET('PYp Ult - RawSimResults'!$A$5,($A12-1)*PYpUltYrs+CG$2,CG$3))) -> 0 | CH12: =IF($A12>Iterations,"",IF(CH$2=0,0,OFFSET('PYp Ult - RawSimResults'!$A$5,($A12-1)*PYpUltYrs+CH$2,CH$3))) -> 0 | CI12: =IF($A12>Iterations,"",IF(CI$2=0,0,OFFSET('PYp Ult - RawSimResults'!$A$5,($A12-1)*PYpUltYrs+CI$2,CI$3))) -> 0 | CJ12: =IF($A12>Iterations,"",IF(CJ$2=0,0,OFFSET('PYp Ult - RawSimResults'!$A$5,($A12-1)*PYpUltYrs+CJ$2,CJ$3))) -> 0 | CK12: =IF($A12>Iterations,"",IF(CK$2=0,0,OFFSET('PYp Ult - RawSimResults'!$A$5,($A12-1)*PYpUltYrs+CK$2,CK$3))) -> 0 | CL12: =IF($A12>Iterations,"",IF(CL$2=0,0,OFFSET('PYp Ult - RawSimResults'!$A$5,($A12-1)*PYpUltYrs+CL$2,CL$3))) -> 0 | CM12: =IF($A12>Iterations,"",IF(CM$2=0,0,OFFSET('PYp Ult - RawSimResults'!$A$5,($A12-1)*PYpUltYrs+CM$2,CM$3))) -> 0 | CN12: =IF($A12>Iterations,"",IF(CN$2=0,0,OFFSET('PYp Ult - RawSimResults'!$A$5,($A12-1)*PYpUltYrs+CN$2,CN$3))) -> 0 | CO12: =IF($A12>Iterations,"",IF(CO$2=0,0,OFFSET('PYp Ult - RawSimResults'!$A$5,($A12-1)*PYpUltYrs+CO$2,CO$3))) -> 0 | CP12: =IF($A12>Iterations,"",IF(CP$2=0,0,OFFSET('PYp Ult - RawSimResults'!$A$5,($A12-1)*PYpUltYrs+CP$2,CP$3))) -> 0 | CQ12: =IF($A12>Iterations,"",IF(CQ$2=0,0,OFFSET('PYp Ult - RawSimResults'!$A$5,($A12-1)*PYpUltYrs+CQ$2,CQ$3))) -> 0 | CR12: =IF($A12>Iterations,"",IF(CR$2=0,0,OFFSET('PYp Ult - RawSimResults'!$A$5,($A12-1)*PYpUltYrs+CR$2,CR$3))) -> 0 | CS12: =IF($A12>Iterations,"",IF(CS$2=0,0,OFFSET('PYp Ult - RawSimResults'!$A$5,($A12-1)*PYpUltYrs+CS$2,CS$3))) -> 0 | CT12: =IF($A12>Iterations,"",IF(CT$2=0,0,OFFSET('PYp Ult - RawSimResults'!$A$5,($A12-1)*PYpUltYrs+CT$2,CT$3))) -> 0 | CU12: =IF($A12>Iterations,"",IF(CU$2=0,0,OFFSET('PYp Ult - RawSimResults'!$A$5,($A12-1)*PYpUltYrs+CU$2,CU$3))) -> 0 | CV12: =IF($A12>Iterations,"",IF(CV$2=0,0,OFFSET('PYp Ult - RawSimResults'!$A$5,($A12-1)*PYpUltYrs+CV$2,CV$3))) -> 0 | CW12: =IF($A12>Iterations,"",IF(CW$2=0,0,OFFSET('PYp Ult - RawSimResults'!$A$5,($A12-1)*PYpUltYrs+CW$2,CW$3))) -> 0 | CX12: =IF($A12>Iterations,"",IF(CX$2=0,0,OFFSET('PYp Ult - RawSimResults'!$A$5,($A12-1)*PYpUltYrs+CX$2,CX$3))) -> 0 | CY12: =IF($A12>Iterations,"",IF(CY$2=0,0,OFFSET('PYp Ult - RawSimResults'!$A$5,($A12-1)*PYpUltYrs+CY$2,CY$3))) -> 0 | CZ12: =IF($A12>Iterations,"",IF(CZ$2=0,0,OFFSET('PYp Ult - RawSimResults'!$A$5,($A12-1)*PYpUltYrs+CZ$2,CZ$3))) -> 0 | DA12: =IF($A12>Iterations,"",IF(DA$2=0,0,OFFSET('PYp Ult - RawSimResults'!$A$5,($A12-1)*PYpUltYrs+DA$2,DA$3))) -> 0 | DB12: =IF($A12>Iterations,"",IF(DB$2=0,0,OFFSET('PYp Ult - RawSimResults'!$A$5,($A12-1)*PYpUltYrs+DB$2,DB$3))) -> 0 | DC12: =IF($A12>Iterations,"",IF(DC$2=0,0,OFFSET('PYp Ult - RawSimResults'!$A$5,($A12-1)*PYpUltYrs+DC$2,DC$3))) -> 0 | DD12: =IF($A12>Iterations,"",IF(DD$2=0,0,OFFSET('PYp Ult - RawSimResults'!$A$5,($A12-1)*PYpUltYrs+DD$2,DD$3))) -> 0 | DE12: =IF($A12>Iterations,"",IF(DE$2=0,0,OFFSET('PYp Ult - RawSimResults'!$A$5,($A12-1)*PYpUltYrs+DE$2,DE$3))) -> 0 | DF12: =IF($A12>Iterations,"",IF(DF$2=0,0,OFFSET('PYp Ult - RawSimResults'!$A$5,($A12-1)*PYpUltYrs+DF$2,DF$3))) -> 0 | DG12: =IF($A12>Iterations,"",IF(DG$2=0,0,OFFSET('PYp Ult - RawSimResults'!$A$5,($A12-1)*PYpUltYrs+DG$2,DG$3))) -> 0 | DH12: =IF($A12>Iterations,"",IF(DH$2=0,0,OFFSET('PYp Ult - RawSimResults'!$A$5,($A12-1)*PYpUltYrs+DH$2,DH$3))) -> 0 | DI12: =IF($A12>Iterations,"",IF(DI$2=0,0,OFFSET('PYp Ult - RawSimResults'!$A$5,($A12-1)*PYpUltYrs+DI$2,DI$3))) -> 0 | DJ12: =IF($A12>Iterations,"",IF(DJ$2=0,0,OFFSET('PYp Ult - RawSimResults'!$A$5,($A12-1)*PYpUltYrs+DJ$2,DJ$3))) -> 0 | DK12: =IF($A12>Iterations,"",IF(DK$2=0,0,OFFSET('PYp Ult - RawSimResults'!$A$5,($A12-1)*PYpUltYrs+DK$2,DK$3))) -> 0 | DL12: =IF($A12>Iterations,"",IF(DL$2=0,0,OFFSET('PYp Ult - RawSimResults'!$A$5,($A12-1)*PYpUltYrs+DL$2,DL$3))) -> 0 | DM12: =IF($A12>Iterations,"",IF(DM$2=0,0,OFFSET('PYp Ult - RawSimResults'!$A$5,($A12-1)*PYpUltYrs+DM$2,DM$3))) -> 0 | DN12: =IF($A12>Iterations,"",IF(DN$2=0,0,OFFSET('PYp Ult - RawSimResults'!$A$5,($A12-1)*PYpUltYrs+DN$2,DN$3))) -> 0 | DO12: =IF($A12>Iterations,"",IF(DO$2=0,0,OFFSET('PYp Ult - RawSimResults'!$A$5,($A12-1)*PYpUltYrs+DO$2,DO$3))) -> 0 | DP12: =IF($A12>Iterations,"",IF(DP$2=0,0,OFFSET('PYp Ult - RawSimResults'!$A$5,($A12-1)*PYpUltYrs+DP$2,DP$3))) -> 0 | DQ12: =IF($A12>Iterations,"",IF(DQ$2=0,0,OFFSET('PYp Ult - RawSimResults'!$A$5,($A12-1)*PYpUltYrs+DQ$2,DQ$3))) -> 0 | DR12: =IF($A12>Iterations,"",IF(DR$2=0,0,OFFSET('PYp Ult - RawSimResults'!$A$5,($A12-1)*PYpUltYrs+DR$2,DR$3))) -> 0 | DS12: =IF($A12>Iterations,"",IF(DS$2=0,0,OFFSET('PYp Ult - RawSimResults'!$A$5,($A12-1)*PYpUltYrs+DS$2,DS$3))) -> 0 | DT12: =IF($A12>Iterations,"",IF(DT$2=0,0,OFFSET('PYp Ult - RawSimResults'!$A$5,($A12-1)*PYpUltYrs+DT$2,DT$3))) -> 0 | DU12: =IF($A12>Iterations,"",IF(DU$2=0,0,OFFSET('PYp Ult - RawSimResults'!$A$5,($A12-1)*PYpUltYrs+DU$2,DU$3))) -> 0 | DV12: =IF($A12>Iterations,"",IF(DV$2=0,0,OFFSET('PYp Ult - RawSimResults'!$A$5,($A12-1)*PYpUltYrs+DV$2,DV$3))) -> 0 | DW12: =IF($A12>Iterations,"",IF(DW$2=0,0,OFFSET('PYp Ult - RawSimResults'!$A$5,($A12-1)*PYpUltYrs+DW$2,DW$3))) -> 0 | DX12: =IF($A12>Iterations,"",IF(DX$2=0,0,OFFSET('PYp Ult - RawSimResults'!$A$5,($A12-1)*PYpUltYrs+DX$2,DX$3))) -> 0 | DY12: =IF($A12>Iterations,"",IF(DY$2=0,0,OFFSET('PYp Ult - RawSimResults'!$A$5,($A12-1)*PYpUltYrs+DY$2,DY$3))) -> 0 | DZ12: =IF($A12>Iterations,"",IF(DZ$2=0,0,OFFSET('PYp Ult - RawSimResults'!$A$5,($A12-1)*PYpUltYrs+DZ$2,DZ$3))) -> 0 | EA12: =IF($A12>Iterations,"",IF(EA$2=0,0,OFFSET('PYp Ult - RawSimResults'!$A$5,($A12-1)*PYpUltYrs+EA$2,EA$3))) -> 0 | EB12: =IF($A12>Iterations,"",IF(EB$2=0,0,OFFSET('PYp Ult - RawSimResults'!$A$5,($A12-1)*PYpUltYrs+EB$2,EB$3))) -> 0 | EC12: =IF($A12>Iterations,"",IF(EC$2=0,0,OFFSET('PYp Ult - RawSimResults'!$A$5,($A12-1)*PYpUltYrs+EC$2,EC$3))) -> 0 | ED12: =IF($A12>Iterations,"",IF(ED$2=0,0,OFFSET('PYp Ult - RawSimResults'!$A$5,($A12-1)*PYpUltYrs+ED$2,ED$3))) -> 0 | EE12: =IF($A12>Iterations,"",IF(EE$2=0,0,OFFSET('PYp Ult - RawSimResults'!$A$5,($A12-1)*PYpUltYrs+EE$2,EE$3))) -> 0 | EF12: =IF($A12>Iterations,"",IF(EF$2=0,0,OFFSET('PYp Ult - RawSimResults'!$A$5,($A12-1)*PYpUltYrs+EF$2,EF$3))) -> 0 | EG12: =IF($A12>Iterations,"",IF(EG$2=0,0,OFFSET('PYp Ult - RawSimResults'!$A$5,($A12-1)*PYpUltYrs+EG$2,EG$3))) -> 0 | EH12: =IF($A12>Iterations,"",IF(EH$2=0,0,OFFSET('PYp Ult - RawSimResults'!$A$5,($A12-1)*PYpUltYrs+EH$2,EH$3))) -> 0 | EI12: =IF($A12>Iterations,"",IF(EI$2=0,0,OFFSET('PYp Ult - RawSimResults'!$A$5,($A12-1)*PYpUltYrs+EI$2,EI$3))) -> 0 | EJ12: =IF($A12>Iterations,"",IF(EJ$2=0,0,OFFSET('PYp Ult - RawSimResults'!$A$5,($A12-1)*PYpUltYrs+EJ$2,EJ$3))) -> 0 | EK12: =IF($A12>Iterations,"",IF(EK$2=0,0,OFFSET('PYp Ult - RawSimResults'!$A$5,($A12-1)*PYpUltYrs+EK$2,EK$3))) -> 0 | EL12: =IF($A12>Iterations,"",IF(EL$2=0,0,OFFSET('PYp Ult - RawSimResults'!$A$5,($A12-1)*PYpUltYrs+EL$2,EL$3))) -> 0 | EM12: =IF($A12>Iterations,"",IF(EM$2=0,0,OFFSET('PYp Ult - RawSimResults'!$A$5,($A12-1)*PYpUltYrs+EM$2,EM$3))) -> 0 | EN12: =IF($A12>Iterations,"",IF(EN$2=0,0,OFFSET('PYp Ult - RawSimResults'!$A$5,($A12-1)*PYpUltYrs+EN$2,EN$3))) -> 0 | EO12: =IF($A12>Iterations,"",IF(EO$2=0,0,OFFSET('PYp Ult - RawSimResults'!$A$5,($A12-1)*PYpUltYrs+EO$2,EO$3))) -> 0 | EP12: =IF($A12>Iterations,"",IF(EP$2=0,0,OFFSET('PYp Ult - RawSimResults'!$A$5,($A12-1)*PYpUltYrs+EP$2,EP$3))) -> 0 | EQ12: =IF($A12>Iterations,"",IF(EQ$2=0,0,OFFSET('PYp Ult - RawSimResults'!$A$5,($A12-1)*PYpUltYrs+EQ$2,EQ$3))) -> 0 | ER12: =IF($A12>Iterations,"",IF(ER$2=0,0,OFFSET('PYp Ult - RawSimResults'!$A$5,($A12-1)*PYpUltYrs+ER$2,ER$3))) -> 0 | ES12: =IF($A12>Iterations,"",IF(ES$2=0,0,OFFSET('PYp Ult - RawSimResults'!$A$5,($A12-1)*PYpUltYrs+ES$2,ES$3))) -> 0 | ET12: =IF($A12>Iterations,"",IF(ET$2=0,0,OFFSET('PYp Ult - RawSimResults'!$A$5,($A12-1)*PYpUltYrs+ET$2,ET$3))) -> 0 | EU12: =IF($A12>Iterations,"",IF(EU$2=0,0,OFFSET('PYp Ult - RawSimResults'!$A$5,($A12-1)*PYpUltYrs+EU$2,EU$3))) -> 0 | EV12: 0 | EW12: 0 | EX12: 0 | EY12: 0 | EZ12: 0 | FA12: 0 | FB12: 0 | FC12: 0 | FD12: 0 | FE12: 0 | FF12: 0 | FG12: 0 | FH12: 0 | FI12: 0 | FJ12: 0 | FK12: 0 | FL12: 0 | FM12: 0 | FN12: 0 | FO12: 0 | FP12: 0 | FQ12: 0 | FR12: 0 | FS12: 0 | FT12: 0 | FU12: 0 | FV12: 0 | FW12: 0 | FX12: 0 | FY12: 0 | FZ12: 0 | GA12: 0 | GB12: 0 | GC12: 0 | GD12: 0 | GE12: 0 | GF12: 0 | GG12: 0 | GH12: 0 | GI12: 0 | GJ12: 0 | GK12: 0 | GL12: 0 | GM12: 0 | GN12: 0 | GO12: 0 | GP12: 0 | GQ12: 0 | GR12: 0 | GS12: 0 | GT12: 0
A13: 8 | B13: =IF($A13>Iterations,"",IF(B$2=0,0,OFFSET('PYp Ult - RawSimResults'!$A$5,($A13-1)*PYpUltYrs+B$2,B$3))) -> 0 | C13: =IF($A13>Iterations,"",IF(C$2=0,0,OFFSET('PYp Ult - RawSimResults'!$A$5,($A13-1)*PYpUltYrs+C$2,C$3))) -> 0 | D13: =IF($A13>Iterations,"",IF(D$2=0,0,OFFSET('PYp Ult - RawSimResults'!$A$5,($A13-1)*PYpUltYrs+D$2,D$3))) -> 0 | E13: =IF($A13>Iterations,"",IF(E$2=0,0,OFFSET('PYp Ult - RawSimResults'!$A$5,($A13-1)*PYpUltYrs+E$2,E$3))) -> 0 | F13: =IF($A13>Iterations,"",IF(F$2=0,0,OFFSET('PYp Ult - RawSimResults'!$A$5,($A13-1)*PYpUltYrs+F$2,F$3))) -> 0 | G13: =IF($A13>Iterations,"",IF(G$2=0,0,OFFSET('PYp Ult - RawSimResults'!$A$5,($A13-1)*PYpUltYrs+G$2,G$3))) -> 0 | H13: =IF($A13>Iterations,"",IF(H$2=0,0,OFFSET('PYp Ult - RawSimResults'!$A$5,($A13-1)*PYpUltYrs+H$2,H$3))) -> 0 | I13: =IF($A13>Iterations,"",IF(I$2=0,0,OFFSET('PYp Ult - RawSimResults'!$A$5,($A13-1)*PYpUltYrs+I$2,I$3))) -> 0 | J13: =IF($A13>Iterations,"",IF(J$2=0,0,OFFSET('PYp Ult - RawSimResults'!$A$5,($A13-1)*PYpUltYrs+J$2,J$3))) -> 0 | K13: =IF($A13>Iterations,"",IF(K$2=0,0,OFFSET('PYp Ult - RawSimResults'!$A$5,($A13-1)*PYpUltYrs+K$2,K$3))) -> 0 | L13: =IF($A13>Iterations,"",IF(L$2=0,0,OFFSET('PYp Ult - RawSimResults'!$A$5,($A13-1)*PYpUltYrs+L$2,L$3))) -> 0 | M13: =IF($A13>Iterations,"",IF(M$2=0,0,OFFSET('PYp Ult - RawSimResults'!$A$5,($A13-1)*PYpUltYrs+M$2,M$3))) -> 0 | N13: =IF($A13>Iterations,"",IF(N$2=0,0,OFFSET('PYp Ult - RawSimResults'!$A$5,($A13-1)*PYpUltYrs+N$2,N$3))) -> 0 | O13: =IF($A13>Iterations,"",IF(O$2=0,0,OFFSET('PYp Ult - RawSimResults'!$A$5,($A13-1)*PYpUltYrs+O$2,O$3))) -> 0 | P13: =IF($A13>Iterations,"",IF(P$2=0,0,OFFSET('PYp Ult - RawSimResults'!$A$5,($A13-1)*PYpUltYrs+P$2,P$3))) -> 0 | Q13: =IF($A13>Iterations,"",IF(Q$2=0,0,OFFSET('PYp Ult - RawSimResults'!$A$5,($A13-1)*PYpUltYrs+Q$2,Q$3))) -> 0 | R13: =IF($A13>Iterations,"",IF(R$2=0,0,OFFSET('PYp Ult - RawSimResults'!$A$5,($A13-1)*PYpUltYrs+R$2,R$3))) -> 0 | S13: =IF($A13>Iterations,"",IF(S$2=0,0,OFFSET('PYp Ult - RawSimResults'!$A$5,($A13-1)*PYpUltYrs+S$2,S$3))) -> 0 | T13: =IF($A13>Iterations,"",IF(T$2=0,0,OFFSET('PYp Ult - RawSimResults'!$A$5,($A13-1)*PYpUltYrs+T$2,T$3))) -> 0 | U13: =IF($A13>Iterations,"",IF(U$2=0,0,OFFSET('PYp Ult - RawSimResults'!$A$5,($A13-1)*PYpUltYrs+U$2,U$3))) -> 0 | V13: =IF($A13>Iterations,"",IF(V$2=0,0,OFFSET('PYp Ult - RawSimResults'!$A$5,($A13-1)*PYpUltYrs+V$2,V$3))) -> 0 | W13: =IF($A13>Iterations,"",IF(W$2=0,0,OFFSET('PYp Ult - RawSimResults'!$A$5,($A13-1)*PYpUltYrs+W$2,W$3))) -> 0 | X13: =IF($A13>Iterations,"",IF(X$2=0,0,OFFSET('PYp Ult - RawSimResults'!$A$5,($A13-1)*PYpUltYrs+X$2,X$3))) -> 0 | Y13: =IF($A13>Iterations,"",IF(Y$2=0,0,OFFSET('PYp Ult - RawSimResults'!$A$5,($A13-1)*PYpUltYrs+Y$2,Y$3))) -> 0 | Z13: =IF($A13>Iterations,"",IF(Z$2=0,0,OFFSET('PYp Ult - RawSimResults'!$A$5,($A13-1)*PYpUltYrs+Z$2,Z$3))) -> 0 | AA13: =IF($A13>Iterations,"",IF(AA$2=0,0,OFFSET('PYp Ult - RawSimResults'!$A$5,($A13-1)*PYpUltYrs+AA$2,AA$3))) -> 0 | AB13: =IF($A13>Iterations,"",IF(AB$2=0,0,OFFSET('PYp Ult - RawSimResults'!$A$5,($A13-1)*PYpUltYrs+AB$2,AB$3))) -> 0 | AC13: =IF($A13>Iterations,"",IF(AC$2=0,0,OFFSET('PYp Ult - RawSimResults'!$A$5,($A13-1)*PYpUltYrs+AC$2,AC$3))) -> 0 | AD13: =IF($A13>Iterations,"",IF(AD$2=0,0,OFFSET('PYp Ult - RawSimResults'!$A$5,($A13-1)*PYpUltYrs+AD$2,AD$3))) -> 0 | AE13: =IF($A13>Iterations,"",IF(AE$2=0,0,OFFSET('PYp Ult - RawSimResults'!$A$5,($A13-1)*PYpUltYrs+AE$2,AE$3))) -> 0 | AF13: =IF($A13>Iterations,"",IF(AF$2=0,0,OFFSET('PYp Ult - RawSimResults'!$A$5,($A13-1)*PYpUltYrs+AF$2,AF$3))) -> 0 | AG13: =IF($A13>Iterations,"",IF(AG$2=0,0,OFFSET('PYp Ult - RawSimResults'!$A$5,($A13-1)*PYpUltYrs+AG$2,AG$3))) -> 0 | AH13: =IF($A13>Iterations,"",IF(AH$2=0,0,OFFSET('PYp Ult - RawSimResults'!$A$5,($A13-1)*PYpUltYrs+AH$2,AH$3))) -> 0 | AI13: =IF($A13>Iterations,"",IF(AI$2=0,0,OFFSET('PYp Ult - RawSimResults'!$A$5,($A13-1)*PYpUltYrs+AI$2,AI$3))) -> 0 | AJ13: =IF($A13>Iterations,"",IF(AJ$2=0,0,OFFSET('PYp Ult - RawSimResults'!$A$5,($A13-1)*PYpUltYrs+AJ$2,AJ$3))) -> 0 | AK13: =IF($A13>Iterations,"",IF(AK$2=0,0,OFFSET('PYp Ult - RawSimResults'!$A$5,($A13-1)*PYpUltYrs+AK$2,AK$3))) -> 0 | AL13: =IF($A13>Iterations,"",IF(AL$2=0,0,OFFSET('PYp Ult - RawSimResults'!$A$5,($A13-1)*PYpUltYrs+AL$2,AL$3))) -> 0 | AM13: =IF($A13>Iterations,"",IF(AM$2=0,0,OFFSET('PYp Ult - RawSimResults'!$A$5,($A13-1)*PYpUltYrs+AM$2,AM$3))) -> 0 | AN13: =IF($A13>Iterations,"",IF(AN$2=0,0,OFFSET('PYp Ult - RawSimResults'!$A$5,($A13-1)*PYpUltYrs+AN$2,AN$3))) -> 0 | AO13: =IF($A13>Iterations,"",IF(AO$2=0,0,OFFSET('PYp Ult - RawSimResults'!$A$5,($A13-1)*PYpUltYrs+AO$2,AO$3))) -> 0 | AP13: =IF($A13>Iterations,"",IF(AP$2=0,0,OFFSET('PYp Ult - RawSimResults'!$A$5,($A13-1)*PYpUltYrs+AP$2,AP$3))) -> 0 | AQ13: =IF($A13>Iterations,"",IF(AQ$2=0,0,OFFSET('PYp Ult - RawSimResults'!$A$5,($A13-1)*PYpUltYrs+AQ$2,AQ$3))) -> 0 | AR13: =IF($A13>Iterations,"",IF(AR$2=0,0,OFFSET('PYp Ult - RawSimResults'!$A$5,($A13-1)*PYpUltYrs+AR$2,AR$3))) -> 0 | AS13: =IF($A13>Iterations,"",IF(AS$2=0,0,OFFSET('PYp Ult - RawSimResults'!$A$5,($A13-1)*PYpUltYrs+AS$2,AS$3))) -> 0 | AT13: =IF($A13>Iterations,"",IF(AT$2=0,0,OFFSET('PYp Ult - RawSimResults'!$A$5,($A13-1)*PYpUltYrs+AT$2,AT$3))) -> 0 | AU13: =IF($A13>Iterations,"",IF(AU$2=0,0,OFFSET('PYp Ult - RawSimResults'!$A$5,($A13-1)*PYpUltYrs+AU$2,AU$3))) -> 0 | AV13: =IF($A13>Iterations,"",IF(AV$2=0,0,OFFSET('PYp Ult - RawSimResults'!$A$5,($A13-1)*PYpUltYrs+AV$2,AV$3))) -> 0 | AW13: =IF($A13>Iterations,"",IF(AW$2=0,0,OFFSET('PYp Ult - RawSimResults'!$A$5,($A13-1)*PYpUltYrs+AW$2,AW$3))) -> 0 | AX13: =IF($A13>Iterations,"",IF(AX$2=0,0,OFFSET('PYp Ult - RawSimResults'!$A$5,($A13-1)*PYpUltYrs+AX$2,AX$3))) -> 0 | AY13: =IF($A13>Iterations,"",IF(AY$2=0,0,OFFSET('PYp Ult - RawSimResults'!$A$5,($A13-1)*PYpUltYrs+AY$2,AY$3))) -> 0 | AZ13: =IF($A13>Iterations,"",IF(AZ$2=0,0,OFFSET('PYp Ult - RawSimResults'!$A$5,($A13-1)*PYpUltYrs+AZ$2,AZ$3))) -> 0 | BA13: =IF($A13>Iterations,"",IF(BA$2=0,0,OFFSET('PYp Ult - RawSimResults'!$A$5,($A13-1)*PYpUltYrs+BA$2,BA$3))) -> 0 | BB13: =IF($A13>Iterations,"",IF(BB$2=0,0,OFFSET('PYp Ult - RawSimResults'!$A$5,($A13-1)*PYpUltYrs+BB$2,BB$3))) -> 0 | BC13: =IF($A13>Iterations,"",IF(BC$2=0,0,OFFSET('PYp Ult - RawSimResults'!$A$5,($A13-1)*PYpUltYrs+BC$2,BC$3))) -> 0 | BD13: =IF($A13>Iterations,"",IF(BD$2=0,0,OFFSET('PYp Ult - RawSimResults'!$A$5,($A13-1)*PYpUltYrs+BD$2,BD$3))) -> 0 | BE13: =IF($A13>Iterations,"",IF(BE$2=0,0,OFFSET('PYp Ult - RawSimResults'!$A$5,($A13-1)*PYpUltYrs+BE$2,BE$3))) -> 0 | BF13: =IF($A13>Iterations,"",IF(BF$2=0,0,OFFSET('PYp Ult - RawSimResults'!$A$5,($A13-1)*PYpUltYrs+BF$2,BF$3))) -> 0 | BG13: =IF($A13>Iterations,"",IF(BG$2=0,0,OFFSET('PYp Ult - RawSimResults'!$A$5,($A13-1)*PYpUltYrs+BG$2,BG$3))) -> 0 | BH13: =IF($A13>Iterations,"",IF(BH$2=0,0,OFFSET('PYp Ult - RawSimResults'!$A$5,($A13-1)*PYpUltYrs+BH$2,BH$3))) -> 0 | BI13: =IF($A13>Iterations,"",IF(BI$2=0,0,OFFSET('PYp Ult - RawSimResults'!$A$5,($A13-1)*PYpUltYrs+BI$2,BI$3))) -> 0 | BJ13: =IF($A13>Iterations,"",IF(BJ$2=0,0,OFFSET('PYp Ult - RawSimResults'!$A$5,($A13-1)*PYpUltYrs+BJ$2,BJ$3))) -> 0 | BK13: =IF($A13>Iterations,"",IF(BK$2=0,0,OFFSET('PYp Ult - RawSimResults'!$A$5,($A13-1)*PYpUltYrs+BK$2,BK$3))) -> 0 | BL13: =IF($A13>Iterations,"",IF(BL$2=0,0,OFFSET('PYp Ult - RawSimResults'!$A$5,($A13-1)*PYpUltYrs+BL$2,BL$3))) -> 0 | BM13: =IF($A13>Iterations,"",IF(BM$2=0,0,OFFSET('PYp Ult - RawSimResults'!$A$5,($A13-1)*PYpUltYrs+BM$2,BM$3))) -> 0 | BN13: =IF($A13>Iterations,"",IF(BN$2=0,0,OFFSET('PYp Ult - RawSimResults'!$A$5,($A13-1)*PYpUltYrs+BN$2,BN$3))) -> 0 | BO13: =IF($A13>Iterations,"",IF(BO$2=0,0,OFFSET('PYp Ult - RawSimResults'!$A$5,($A13-1)*PYpUltYrs+BO$2,BO$3))) -> 0 | BP13: =IF($A13>Iterations,"",IF(BP$2=0,0,OFFSET('PYp Ult - RawSimResults'!$A$5,($A13-1)*PYpUltYrs+BP$2,BP$3))) -> 0 | BQ13: =IF($A13>Iterations,"",IF(BQ$2=0,0,OFFSET('PYp Ult - RawSimResults'!$A$5,($A13-1)*PYpUltYrs+BQ$2,BQ$3))) -> 0 | BR13: =IF($A13>Iterations,"",IF(BR$2=0,0,OFFSET('PYp Ult - RawSimResults'!$A$5,($A13-1)*PYpUltYrs+BR$2,BR$3))) -> 0 | BS13: =IF($A13>Iterations,"",IF(BS$2=0,0,OFFSET('PYp Ult - RawSimResults'!$A$5,($A13-1)*PYpUltYrs+BS$2,BS$3))) -> 0 | BT13: =IF($A13>Iterations,"",IF(BT$2=0,0,OFFSET('PYp Ult - RawSimResults'!$A$5,($A13-1)*PYpUltYrs+BT$2,BT$3))) -> 0 | BU13: =IF($A13>Iterations,"",IF(BU$2=0,0,OFFSET('PYp Ult - RawSimResults'!$A$5,($A13-1)*PYpUltYrs+BU$2,BU$3))) -> 0 | BV13: =IF($A13>Iterations,"",IF(BV$2=0,0,OFFSET('PYp Ult - RawSimResults'!$A$5,($A13-1)*PYpUltYrs+BV$2,BV$3))) -> 0 | BW13: =IF($A13>Iterations,"",IF(BW$2=0,0,OFFSET('PYp Ult - RawSimResults'!$A$5,($A13-1)*PYpUltYrs+BW$2,BW$3))) -> 0 | BX13: =IF($A13>Iterations,"",IF(BX$2=0,0,OFFSET('PYp Ult - RawSimResults'!$A$5,($A13-1)*PYpUltYrs+BX$2,BX$3))) -> 0 | BY13: =IF($A13>Iterations,"",IF(BY$2=0,0,OFFSET('PYp Ult - RawSimResults'!$A$5,($A13-1)*PYpUltYrs+BY$2,BY$3))) -> 0 | BZ13: =IF($A13>Iterations,"",IF(BZ$2=0,0,OFFSET('PYp Ult - RawSimResults'!$A$5,($A13-1)*PYpUltYrs+BZ$2,BZ$3))) -> 0 | CA13: =IF($A13>Iterations,"",IF(CA$2=0,0,OFFSET('PYp Ult - RawSimResults'!$A$5,($A13-1)*PYpUltYrs+CA$2,CA$3))) -> 0 | CB13: =IF($A13>Iterations,"",IF(CB$2=0,0,OFFSET('PYp Ult - RawSimResults'!$A$5,($A13-1)*PYpUltYrs+CB$2,CB$3))) -> 0 | CC13: =IF($A13>Iterations,"",IF(CC$2=0,0,OFFSET('PYp Ult - RawSimResults'!$A$5,($A13-1)*PYpUltYrs+CC$2,CC$3))) -> 0 | CD13: =IF($A13>Iterations,"",IF(CD$2=0,0,OFFSET('PYp Ult - RawSimResults'!$A$5,($A13-1)*PYpUltYrs+CD$2,CD$3))) -> 0 | CE13: =IF($A13>Iterations,"",IF(CE$2=0,0,OFFSET('PYp Ult - RawSimResults'!$A$5,($A13-1)*PYpUltYrs+CE$2,CE$3))) -> 0 | CF13: =IF($A13>Iterations,"",IF(CF$2=0,0,OFFSET('PYp Ult - RawSimResults'!$A$5,($A13-1)*PYpUltYrs+CF$2,CF$3))) -> 0 | CG13: =IF($A13>Iterations,"",IF(CG$2=0,0,OFFSET('PYp Ult - RawSimResults'!$A$5,($A13-1)*PYpUltYrs+CG$2,CG$3))) -> 0 | CH13: =IF($A13>Iterations,"",IF(CH$2=0,0,OFFSET('PYp Ult - RawSimResults'!$A$5,($A13-1)*PYpUltYrs+CH$2,CH$3))) -> 0 | CI13: =IF($A13>Iterations,"",IF(CI$2=0,0,OFFSET('PYp Ult - RawSimResults'!$A$5,($A13-1)*PYpUltYrs+CI$2,CI$3))) -> 0 | CJ13: =IF($A13>Iterations,"",IF(CJ$2=0,0,OFFSET('PYp Ult - RawSimResults'!$A$5,($A13-1)*PYpUltYrs+CJ$2,CJ$3))) -> 0 | CK13: =IF($A13>Iterations,"",IF(CK$2=0,0,OFFSET('PYp Ult - RawSimResults'!$A$5,($A13-1)*PYpUltYrs+CK$2,CK$3))) -> 0 | CL13: =IF($A13>Iterations,"",IF(CL$2=0,0,OFFSET('PYp Ult - RawSimResults'!$A$5,($A13-1)*PYpUltYrs+CL$2,CL$3))) -> 0 | CM13: =IF($A13>Iterations,"",IF(CM$2=0,0,OFFSET('PYp Ult - RawSimResults'!$A$5,($A13-1)*PYpUltYrs+CM$2,CM$3))) -> 0 | CN13: =IF($A13>Iterations,"",IF(CN$2=0,0,OFFSET('PYp Ult - RawSimResults'!$A$5,($A13-1)*PYpUltYrs+CN$2,CN$3))) -> 0 | CO13: =IF($A13>Iterations,"",IF(CO$2=0,0,OFFSET('PYp Ult - RawSimResults'!$A$5,($A13-1)*PYpUltYrs+CO$2,CO$3))) -> 0 | CP13: =IF($A13>Iterations,"",IF(CP$2=0,0,OFFSET('PYp Ult - RawSimResults'!$A$5,($A13-1)*PYpUltYrs+CP$2,CP$3))) -> 0 | CQ13: =IF($A13>Iterations,"",IF(CQ$2=0,0,OFFSET('PYp Ult - RawSimResults'!$A$5,($A13-1)*PYpUltYrs+CQ$2,CQ$3))) -> 0 | CR13: =IF($A13>Iterations,"",IF(CR$2=0,0,OFFSET('PYp Ult - RawSimResults'!$A$5,($A13-1)*PYpUltYrs+CR$2,CR$3))) -> 0 | CS13: =IF($A13>Iterations,"",IF(CS$2=0,0,OFFSET('PYp Ult - RawSimResults'!$A$5,($A13-1)*PYpUltYrs+CS$2,CS$3))) -> 0 | CT13: =IF($A13>Iterations,"",IF(CT$2=0,0,OFFSET('PYp Ult - RawSimResults'!$A$5,($A13-1)*PYpUltYrs+CT$2,CT$3))) -> 0 | CU13: =IF($A13>Iterations,"",IF(CU$2=0,0,OFFSET('PYp Ult - RawSimResults'!$A$5,($A13-1)*PYpUltYrs+CU$2,CU$3))) -> 0 | CV13: =IF($A13>Iterations,"",IF(CV$2=0,0,OFFSET('PYp Ult - RawSimResults'!$A$5,($A13-1)*PYpUltYrs+CV$2,CV$3))) -> 0 | CW13: =IF($A13>Iterations,"",IF(CW$2=0,0,OFFSET('PYp Ult - RawSimResults'!$A$5,($A13-1)*PYpUltYrs+CW$2,CW$3))) -> 0 | CX13: =IF($A13>Iterations,"",IF(CX$2=0,0,OFFSET('PYp Ult - RawSimResults'!$A$5,($A13-1)*PYpUltYrs+CX$2,CX$3))) -> 0 | CY13: =IF($A13>Iterations,"",IF(CY$2=0,0,OFFSET('PYp Ult - RawSimResults'!$A$5,($A13-1)*PYpUltYrs+CY$2,CY$3))) -> 0 | CZ13: =IF($A13>Iterations,"",IF(CZ$2=0,0,OFFSET('PYp Ult - RawSimResults'!$A$5,($A13-1)*PYpUltYrs+CZ$2,CZ$3))) -> 0 | DA13: =IF($A13>Iterations,"",IF(DA$2=0,0,OFFSET('PYp Ult - RawSimResults'!$A$5,($A13-1)*PYpUltYrs+DA$2,DA$3))) -> 0 | DB13: =IF($A13>Iterations,"",IF(DB$2=0,0,OFFSET('PYp Ult - RawSimResults'!$A$5,($A13-1)*PYpUltYrs+DB$2,DB$3))) -> 0 | DC13: =IF($A13>Iterations,"",IF(DC$2=0,0,OFFSET('PYp Ult - RawSimResults'!$A$5,($A13-1)*PYpUltYrs+DC$2,DC$3))) -> 0 | DD13: =IF($A13>Iterations,"",IF(DD$2=0,0,OFFSET('PYp Ult - RawSimResults'!$A$5,($A13-1)*PYpUltYrs+DD$2,DD$3))) -> 0 | DE13: =IF($A13>Iterations,"",IF(DE$2=0,0,OFFSET('PYp Ult - RawSimResults'!$A$5,($A13-1)*PYpUltYrs+DE$2,DE$3))) -> 0 | DF13: =IF($A13>Iterations,"",IF(DF$2=0,0,OFFSET('PYp Ult - RawSimResults'!$A$5,($A13-1)*PYpUltYrs+DF$2,DF$3))) -> 0 | DG13: =IF($A13>Iterations,"",IF(DG$2=0,0,OFFSET('PYp Ult - RawSimResults'!$A$5,($A13-1)*PYpUltYrs+DG$2,DG$3))) -> 0 | DH13: =IF($A13>Iterations,"",IF(DH$2=0,0,OFFSET('PYp Ult - RawSimResults'!$A$5,($A13-1)*PYpUltYrs+DH$2,DH$3))) -> 0 | DI13: =IF($A13>Iterations,"",IF(DI$2=0,0,OFFSET('PYp Ult - RawSimResults'!$A$5,($A13-1)*PYpUltYrs+DI$2,DI$3))) -> 0 | DJ13: =IF($A13>Iterations,"",IF(DJ$2=0,0,OFFSET('PYp Ult - RawSimResults'!$A$5,($A13-1)*PYpUltYrs+DJ$2,DJ$3))) -> 0 | DK13: =IF($A13>Iterations,"",IF(DK$2=0,0,OFFSET('PYp Ult - RawSimResults'!$A$5,($A13-1)*PYpUltYrs+DK$2,DK$3))) -> 0 | DL13: =IF($A13>Iterations,"",IF(DL$2=0,0,OFFSET('PYp Ult - RawSimResults'!$A$5,($A13-1)*PYpUltYrs+DL$2,DL$3))) -> 0 | DM13: =IF($A13>Iterations,"",IF(DM$2=0,0,OFFSET('PYp Ult - RawSimResults'!$A$5,($A13-1)*PYpUltYrs+DM$2,DM$3))) -> 0 | DN13: =IF($A13>Iterations,"",IF(DN$2=0,0,OFFSET('PYp Ult - RawSimResults'!$A$5,($A13-1)*PYpUltYrs+DN$2,DN$3))) -> 0 | DO13: =IF($A13>Iterations,"",IF(DO$2=0,0,OFFSET('PYp Ult - RawSimResults'!$A$5,($A13-1)*PYpUltYrs+DO$2,DO$3))) -> 0 | DP13: =IF($A13>Iterations,"",IF(DP$2=0,0,OFFSET('PYp Ult - RawSimResults'!$A$5,($A13-1)*PYpUltYrs+DP$2,DP$3))) -> 0 | DQ13: =IF($A13>Iterations,"",IF(DQ$2=0,0,OFFSET('PYp Ult - RawSimResults'!$A$5,($A13-1)*PYpUltYrs+DQ$2,DQ$3))) -> 0 | DR13: =IF($A13>Iterations,"",IF(DR$2=0,0,OFFSET('PYp Ult - RawSimResults'!$A$5,($A13-1)*PYpUltYrs+DR$2,DR$3))) -> 0 | DS13: =IF($A13>Iterations,"",IF(DS$2=0,0,OFFSET('PYp Ult - RawSimResults'!$A$5,($A13-1)*PYpUltYrs+DS$2,DS$3))) -> 0 | DT13: =IF($A13>Iterations,"",IF(DT$2=0,0,OFFSET('PYp Ult - RawSimResults'!$A$5,($A13-1)*PYpUltYrs+DT$2,DT$3))) -> 0 | DU13: =IF($A13>Iterations,"",IF(DU$2=0,0,OFFSET('PYp Ult - RawSimResults'!$A$5,($A13-1)*PYpUltYrs+DU$2,DU$3))) -> 0 | DV13: =IF($A13>Iterations,"",IF(DV$2=0,0,OFFSET('PYp Ult - RawSimResults'!$A$5,($A13-1)*PYpUltYrs+DV$2,DV$3))) -> 0 | DW13: =IF($A13>Iterations,"",IF(DW$2=0,0,OFFSET('PYp Ult - RawSimResults'!$A$5,($A13-1)*PYpUltYrs+DW$2,DW$3))) -> 0 | DX13: =IF($A13>Iterations,"",IF(DX$2=0,0,OFFSET('PYp Ult - RawSimResults'!$A$5,($A13-1)*PYpUltYrs+DX$2,DX$3))) -> 0 | DY13: =IF($A13>Iterations,"",IF(DY$2=0,0,OFFSET('PYp Ult - RawSimResults'!$A$5,($A13-1)*PYpUltYrs+DY$2,DY$3))) -> 0 | DZ13: =IF($A13>Iterations,"",IF(DZ$2=0,0,OFFSET('PYp Ult - RawSimResults'!$A$5,($A13-1)*PYpUltYrs+DZ$2,DZ$3))) -> 0 | EA13: =IF($A13>Iterations,"",IF(EA$2=0,0,OFFSET('PYp Ult - RawSimResults'!$A$5,($A13-1)*PYpUltYrs+EA$2,EA$3))) -> 0 | EB13: =IF($A13>Iterations,"",IF(EB$2=0,0,OFFSET('PYp Ult - RawSimResults'!$A$5,($A13-1)*PYpUltYrs+EB$2,EB$3))) -> 0 | EC13: =IF($A13>Iterations,"",IF(EC$2=0,0,OFFSET('PYp Ult - RawSimResults'!$A$5,($A13-1)*PYpUltYrs+EC$2,EC$3))) -> 0 | ED13: =IF($A13>Iterations,"",IF(ED$2=0,0,OFFSET('PYp Ult - RawSimResults'!$A$5,($A13-1)*PYpUltYrs+ED$2,ED$3))) -> 0 | EE13: =IF($A13>Iterations,"",IF(EE$2=0,0,OFFSET('PYp Ult - RawSimResults'!$A$5,($A13-1)*PYpUltYrs+EE$2,EE$3))) -> 0 | EF13: =IF($A13>Iterations,"",IF(EF$2=0,0,OFFSET('PYp Ult - RawSimResults'!$A$5,($A13-1)*PYpUltYrs+EF$2,EF$3))) -> 0 | EG13: =IF($A13>Iterations,"",IF(EG$2=0,0,OFFSET('PYp Ult - RawSimResults'!$A$5,($A13-1)*PYpUltYrs+EG$2,EG$3))) -> 0 | EH13: =IF($A13>Iterations,"",IF(EH$2=0,0,OFFSET('PYp Ult - RawSimResults'!$A$5,($A13-1)*PYpUltYrs+EH$2,EH$3))) -> 0 | EI13: =IF($A13>Iterations,"",IF(EI$2=0,0,OFFSET('PYp Ult - RawSimResults'!$A$5,($A13-1)*PYpUltYrs+EI$2,EI$3))) -> 0 | EJ13: =IF($A13>Iterations,"",IF(EJ$2=0,0,OFFSET('PYp Ult - RawSimResults'!$A$5,($A13-1)*PYpUltYrs+EJ$2,EJ$3))) -> 0 | EK13: =IF($A13>Iterations,"",IF(EK$2=0,0,OFFSET('PYp Ult - RawSimResults'!$A$5,($A13-1)*PYpUltYrs+EK$2,EK$3))) -> 0 | EL13: =IF($A13>Iterations,"",IF(EL$2=0,0,OFFSET('PYp Ult - RawSimResults'!$A$5,($A13-1)*PYpUltYrs+EL$2,EL$3))) -> 0 | EM13: =IF($A13>Iterations,"",IF(EM$2=0,0,OFFSET('PYp Ult - RawSimResults'!$A$5,($A13-1)*PYpUltYrs+EM$2,EM$3))) -> 0 | EN13: =IF($A13>Iterations,"",IF(EN$2=0,0,OFFSET('PYp Ult - RawSimResults'!$A$5,($A13-1)*PYpUltYrs+EN$2,EN$3))) -> 0 | EO13: =IF($A13>Iterations,"",IF(EO$2=0,0,OFFSET('PYp Ult - RawSimResults'!$A$5,($A13-1)*PYpUltYrs+EO$2,EO$3))) -> 0 | EP13: =IF($A13>Iterations,"",IF(EP$2=0,0,OFFSET('PYp Ult - RawSimResults'!$A$5,($A13-1)*PYpUltYrs+EP$2,EP$3))) -> 0 | EQ13: =IF($A13>Iterations,"",IF(EQ$2=0,0,OFFSET('PYp Ult - RawSimResults'!$A$5,($A13-1)*PYpUltYrs+EQ$2,EQ$3))) -> 0 | ER13: =IF($A13>Iterations,"",IF(ER$2=0,0,OFFSET('PYp Ult - RawSimResults'!$A$5,($A13-1)*PYpUltYrs+ER$2,ER$3))) -> 0 | ES13: =IF($A13>Iterations,"",IF(ES$2=0,0,OFFSET('PYp Ult - RawSimResults'!$A$5,($A13-1)*PYpUltYrs+ES$2,ES$3))) -> 0 | ET13: =IF($A13>Iterations,"",IF(ET$2=0,0,OFFSET('PYp Ult - RawSimResults'!$A$5,($A13-1)*PYpUltYrs+ET$2,ET$3))) -> 0 | EU13: =IF($A13>Iterations,"",IF(EU$2=0,0,OFFSET('PYp Ult - RawSimResults'!$A$5,($A13-1)*PYpUltYrs+EU$2,EU$3))) -> 0 | EV13: 0 | EW13: 0 | EX13: 0 | EY13: 0 | EZ13: 0 | FA13: 0 | FB13: 0 | FC13: 0 | FD13: 0 | FE13: 0 | FF13: 0 | FG13: 0 | FH13: 0 | FI13: 0 | FJ13: 0 | FK13: 0 | FL13: 0 | FM13: 0 | FN13: 0 | FO13: 0 | FP13: 0 | FQ13: 0 | FR13: 0 | FS13: 0 | FT13: 0 | FU13: 0 | FV13: 0 | FW13: 0 | FX13: 0 | FY13: 0 | FZ13: 0 | GA13: 0 | GB13: 0 | GC13: 0 | GD13: 0 | GE13: 0 | GF13: 0 | GG13: 0 | GH13: 0 | GI13: 0 | GJ13: 0 | GK13: 0 | GL13: 0 | GM13: 0 | GN13: 0 | GO13: 0 | GP13: 0 | GQ13: 0 | GR13: 0 | GS13: 0 | GT13: 0
